Workbook

Sheet Disclaimer
L4: Copyright © 2022 Society of Actuaries Research Institute
B5: Mortality Forecast Visualization Tool
B8: Disclaimer
B10: This software is made available free of charge with the understanding that neither the author nor the Society of Actuaries Research Institute
B11: accepts any liability for its use. It may be used for any personal, research or commercial use provided that the user does not represent it as
B12: his or her own work and does not distribute it to others for a fee.

Sheet Intro
B2: Introduction to the Excel Visualization Tool
B5: This interactive Excel tool supplements the SOA report “Analyzing Geographical Variation in Cause-of-Death Mortality for China: Evidence from 2004 to 2019” by Dr Han Li and Dr Katja Hanewald.
B6: This tool provides an interactive visualization of mortality forecasts during 2020-2029 across gender, region, area, and cause-of-death.
B9: Tab | D9: Description
B10: All _series | D10: Mortality forecast for all combinations.
B11: Gender_comparison | D11: Comparison of mortality forecast between Male and Female.
B12: Region_comparison | D12: Comparison of mortality forecast among Central, East and West.
B13: Area_comparison | D13: Comparison of mortality forecast between Rural and Urban.
B16: Hierarchy of dataset
B17: The hierarchy of the dataset is explained below and in the diagrams:
B18: Level 1 - Gender (Male, Female)
B19: Level 2 - Region (East, Central, West)
B20: Level 3 - Area (Urban, Rural)
B21: Level 4 - Cause of Death
B22: Cancer
B23: Circulatory
B24: Congenital
B25: Diabetes
B26: Digestive
B27: External
B28: Infectious
B29: Mental
B30: Respiratory
B31: Other
B64: *10 causes: cancer, circulatory, congenital, diabetes, digestive, external, infectious, mental, respiratory, and other.

Sheet Read_me
A2: General Guidance for Using this Tool
A4: When you first open this file, and are prompted by Excel to "Enable Content" and/or "Enable Macros", you must indicate "yes"; otherwise, the tool will not be able to function.
A6: Throughout this Excel file, factors that can be changed by the user are identified with yellow background, as shown to the right: | F6: Male
A9: Guidance for each worksheet
A10: All series:
A11: The [All] worksheet shows mortality forecasts from 2020 to 2029, for all combinations available in the dataset.
A12: It shows one combination at a time
A13: There are two options available for choosing the combinations:
A14: 1) Use the drop-down boxes to select the combination of interest, then click "Update Chart"
A15: For example, choose "Male" for "Gender", "Central" for "Region", "Rural" for "Area", and "Cancer" for "Cause"
A16: Click "Update Chart" to refresh the graph
A17: 2) Use "Next", "Previous", "Reset" buttons to go through all available combinations
A18: Click "Reset" to return to 1st combination, which is "Male, Central, Rural, Cancer"
A19: For the chart, the horizontal axis represents age groups and the vertical axis represents mortality rate on log scale.
A20: The lines with various colors represent mortality forecasts across different years.
A22: Gender comparison:
A23: The [Gender] worksheet compares the mortality forecasts between Male and Female, for a selected combination and forecast year.
A24: The two options to select the combination are similar to those in the [All] worksheet.
A25: For the chart, the horizontal axis represents age groups and the vertical axis represents mortality rate on log scale.
A26: The lines represent mortality forecasts for the chosen year, for Male and Female respectively.
A28: Region comparison:
A29: The [Region] worksheet compares the mortality forecasts between East, Central and West regions, for a selected combination and forecast year.
A30: The two options to select the combination are similar to those in the [All] worksheet.
A31: For the chart, the horizontal axis represents age groups and the vertical axis represents mortality rate on log scale.
A32: The lines represent mortality forecasts for the chosen year, for East, Central, and West regions respectively.
A34: Area comparison:
A35: The [Area] worksheet compares the mortality forecasts between Urban and Rural areas, for a selected combination and forecast year.
A36: The two options to select the combination are similar to those in the [All] worksheet.
A37: For the chart, the horizontal axis represents age groups and the vertical axis represents mortality rate on log scale.
A38: The lines represent mortality forecasts for the chosen year, for Urban and Rural areas respectively.

Sheet Hierarchy (hidden)
B32: *10 causes: cancer, circulatory, congenital, diiabetes, digestive, external, infectious, mental, respiratory, and other.

Sheet All_series
B2: Option 1 - Select Combination Using Drop-down List | L2: Option 2 - Click Buttons to Select Combination
B4: Gender | C4: Region | D4: Area | E4: Cause | X4: Gender | Y4: Region | Z4: Area | AA4: Cause | AB4: 1
B5: Male | C5: Central | D5: Rural | E5: Cancer | X5: =OFFSET(_tbl!B$3,comb_id,0) -> Male | Y5: =OFFSET(_tbl!C$3,comb_id,0) -> Central | Z5: =OFFSET(_tbl!D$3,comb_id,0) -> Rural | AA5: =OFFSET(_tbl!E$3,comb_id,0) -> Cancer
B9: CHARTS AND DATA | E9: =IF(COUNTIFS(M13:V30,"NA")=180, "Combination Not Available", B5&", "&C5&", "&D5&", Cause - "&E5) -> Male, Central, Rural, Cause - Cancer
L12: Age/Year | M12: 2020 | N12: 2021 | O12: 2022 | P12: 2023 | Q12: 2024 | R12: 2025 | S12: 2026 | T12: 2027 | U12: 2028 | V12: 2029
L13: 1-4 | M13: =IF(SUMIFS(_data_Forecast!D:D,_data_Forecast!$N:$N,$B$5,_data_Forecast!$O:$O,$C$5,_data_Forecast!$P:$P,$D$5,_data_Forecast!$Q:$Q,$E$5,_data_Forecast!$C:$C,All_series!$L13)=0,"NA",SUMIFS(_data_Forecast!D:D,_data_Forecast!$N:$N,$B$5,_data_Forecast!$O:$O,$C$5,_data_Forecast!$P:$P,$D$5,_data_Forecast!$Q:$Q,$E$5,_data_Forecast!$C:$C,All_series!$L13)) -> 3.03520888e-05 | N13: =IF(SUMIFS(_data_Forecast!E:E,_data_Forecast!$N:$N,$B$5,_data_Forecast!$O:$O,$C$5,_data_Forecast!$P:$P,$D$5,_data_Forecast!$Q:$Q,$E$5,_data_Forecast!$C:$C,All_series!$L13)=0,"NA",SUMIFS(_data_Forecast!E:E,_data_Forecast!$N:$N,$B$5,_data_Forecast!$O:$O,$C$5,_data_Forecast!$P:$P,$D$5,_data_Forecast!$Q:$Q,$E$5,_data_Forecast!$C:$C,All_series!$L13)) -> 3.027480088e-05 | O13: =IF(SUMIFS(_data_Forecast!F:F,_data_Forecast!$N:$N,$B$5,_data_Forecast!$O:$O,$C$5,_data_Forecast!$P:$P,$D$5,_data_Forecast!$Q:$Q,$E$5,_data_Forecast!$C:$C,All_series!$L13)=0,"NA",SUMIFS(_data_Forecast!F:F,_data_Forecast!$N:$N,$B$5,_data_Forecast!$O:$O,$C$5,_data_Forecast!$P:$P,$D$5,_data_Forecast!$Q:$Q,$E$5,_data_Forecast!$C:$C,All_series!$L13)) -> 3.020538412e-05 | P13: =IF(SUMIFS(_data_Forecast!G:G,_data_Forecast!$N:$N,$B$5,_data_Forecast!$O:$O,$C$5,_data_Forecast!$P:$P,$D$5,_data_Forecast!$Q:$Q,$E$5,_data_Forecast!$C:$C,All_series!$L13)=0,"NA",SUMIFS(_data_Forecast!G:G,_data_Forecast!$N:$N,$B$5,_data_Forecast!$O:$O,$C$5,_data_Forecast!$P:$P,$D$5,_data_Forecast!$Q:$Q,$E$5,_data_Forecast!$C:$C,All_series!$L13)) -> 3.00993879e-05 | Q13: =IF(SUMIFS(_data_Forecast!H:H,_data_Forecast!$N:$N,$B$5,_data_Forecast!$O:$O,$C$5,_data_Forecast!$P:$P,$D$5,_data_Forecast!$Q:$Q,$E$5,_data_Forecast!$C:$C,All_series!$L13)=0,"NA",SUMIFS(_data_Forecast!H:H,_data_Forecast!$N:$N,$B$5,_data_Forecast!$O:$O,$C$5,_data_Forecast!$P:$P,$D$5,_data_Forecast!$Q:$Q,$E$5,_data_Forecast!$C:$C,All_series!$L13)) -> 3.003104365e-05 | R13: =IF(SUMIFS(_data_Forecast!I:I,_data_Forecast!$N:$N,$B$5,_data_Forecast!$O:$O,$C$5,_data_Forecast!$P:$P,$D$5,_data_Forecast!$Q:$Q,$E$5,_data_Forecast!$C:$C,All_series!$L13)=0,"NA",SUMIFS(_data_Forecast!I:I,_data_Forecast!$N:$N,$B$5,_data_Forecast!$O:$O,$C$5,_data_Forecast!$P:$P,$D$5,_data_Forecast!$Q:$Q,$E$5,_data_Forecast!$C:$C,All_series!$L13)) -> 2.995515191e-05 | S13: =IF(SUMIFS(_data_Forecast!J:J,_data_Forecast!$N:$N,$B$5,_data_Forecast!$O:$O,$C$5,_data_Forecast!$P:$P,$D$5,_data_Forecast!$Q:$Q,$E$5,_data_Forecast!$C:$C,All_series!$L13)=0,"NA",SUMIFS(_data_Forecast!J:J,_data_Forecast!$N:$N,$B$5,_data_Forecast!$O:$O,$C$5,_data_Forecast!$P:$P,$D$5,_data_Forecast!$Q:$Q,$E$5,_data_Forecast!$C:$C,All_series!$L13)) -> 2.986931169e-05 | T13: =IF(SUMIFS(_data_Forecast!K:K,_data_Forecast!$N:$N,$B$5,_data_Forecast!$O:$O,$C$5,_data_Forecast!$P:$P,$D$5,_data_Forecast!$Q:$Q,$E$5,_data_Forecast!$C:$C,All_series!$L13)=0,"NA",SUMIFS(_data_Forecast!K:K,_data_Forecast!$N:$N,$B$5,_data_Forecast!$O:$O,$C$5,_data_Forecast!$P:$P,$D$5,_data_Forecast!$Q:$Q,$E$5,_data_Forecast!$C:$C,All_series!$L13)) -> 2.97939357e-05 | U13: =IF(SUMIFS(_data_Forecast!L:L,_data_Forecast!$N:$N,$B$5,_data_Forecast!$O:$O,$C$5,_data_Forecast!$P:$P,$D$5,_data_Forecast!$Q:$Q,$E$5,_data_Forecast!$C:$C,All_series!$L13)=0,"NA",SUMIFS(_data_Forecast!L:L,_data_Forecast!$N:$N,$B$5,_data_Forecast!$O:$O,$C$5,_data_Forecast!$P:$P,$D$5,_data_Forecast!$Q:$Q,$E$5,_data_Forecast!$C:$C,All_series!$L13)) -> 2.971423254e-05 | V13: =IF(SUMIFS(_data_Forecast!M:M,_data_Forecast!$N:$N,$B$5,_data_Forecast!$O:$O,$C$5,_data_Forecast!$P:$P,$D$5,_data_Forecast!$Q:$Q,$E$5,_data_Forecast!$C:$C,All_series!$L13)=0,"NA",SUMIFS(_data_Forecast!M:M,_data_Forecast!$N:$N,$B$5,_data_Forecast!$O:$O,$C$5,_data_Forecast!$P:$P,$D$5,_data_Forecast!$Q:$Q,$E$5,_data_Forecast!$C:$C,All_series!$L13)) -> 2.962670621e-05
L14: 5-9 | M14: =IF(SUMIFS(_data_Forecast!D:D,_data_Forecast!$N:$N,$B$5,_data_Forecast!$O:$O,$C$5,_data_Forecast!$P:$P,$D$5,_data_Forecast!$Q:$Q,$E$5,_data_Forecast!$C:$C,All_series!$L14)=0,"NA",SUMIFS(_data_Forecast!D:D,_data_Forecast!$N:$N,$B$5,_data_Forecast!$O:$O,$C$5,_data_Forecast!$P:$P,$D$5,_data_Forecast!$Q:$Q,$E$5,_data_Forecast!$C:$C,All_series!$L14)) -> 3.220767111e-05 | N14: =IF(SUMIFS(_data_Forecast!E:E,_data_Forecast!$N:$N,$B$5,_data_Forecast!$O:$O,$C$5,_data_Forecast!$P:$P,$D$5,_data_Forecast!$Q:$Q,$E$5,_data_Forecast!$C:$C,All_series!$L14)=0,"NA",SUMIFS(_data_Forecast!E:E,_data_Forecast!$N:$N,$B$5,_data_Forecast!$O:$O,$C$5,_data_Forecast!$P:$P,$D$5,_data_Forecast!$Q:$Q,$E$5,_data_Forecast!$C:$C,All_series!$L14)) -> 3.213234351e-05 | O14: =IF(SUMIFS(_data_Forecast!F:F,_data_Forecast!$N:$N,$B$5,_data_Forecast!$O:$O,$C$5,_data_Forecast!$P:$P,$D$5,_data_Forecast!$Q:$Q,$E$5,_data_Forecast!$C:$C,All_series!$L14)=0,"NA",SUMIFS(_data_Forecast!F:F,_data_Forecast!$N:$N,$B$5,_data_Forecast!$O:$O,$C$5,_data_Forecast!$P:$P,$D$5,_data_Forecast!$Q:$Q,$E$5,_data_Forecast!$C:$C,All_series!$L14)) -> 3.206845566e-05 | P14: =IF(SUMIFS(_data_Forecast!G:G,_data_Forecast!$N:$N,$B$5,_data_Forecast!$O:$O,$C$5,_data_Forecast!$P:$P,$D$5,_data_Forecast!$Q:$Q,$E$5,_data_Forecast!$C:$C,All_series!$L14)=0,"NA",SUMIFS(_data_Forecast!G:G,_data_Forecast!$N:$N,$B$5,_data_Forecast!$O:$O,$C$5,_data_Forecast!$P:$P,$D$5,_data_Forecast!$Q:$Q,$E$5,_data_Forecast!$C:$C,All_series!$L14)) -> 3.201429524e-05 | Q14: =IF(SUMIFS(_data_Forecast!H:H,_data_Forecast!$N:$N,$B$5,_data_Forecast!$O:$O,$C$5,_data_Forecast!$P:$P,$D$5,_data_Forecast!$Q:$Q,$E$5,_data_Forecast!$C:$C,All_series!$L14)=0,"NA",SUMIFS(_data_Forecast!H:H,_data_Forecast!$N:$N,$B$5,_data_Forecast!$O:$O,$C$5,_data_Forecast!$P:$P,$D$5,_data_Forecast!$Q:$Q,$E$5,_data_Forecast!$C:$C,All_series!$L14)) -> 3.195774868e-05 | R14: =IF(SUMIFS(_data_Forecast!I:I,_data_Forecast!$N:$N,$B$5,_data_Forecast!$O:$O,$C$5,_data_Forecast!$P:$P,$D$5,_data_Forecast!$Q:$Q,$E$5,_data_Forecast!$C:$C,All_series!$L14)=0,"NA",SUMIFS(_data_Forecast!I:I,_data_Forecast!$N:$N,$B$5,_data_Forecast!$O:$O,$C$5,_data_Forecast!$P:$P,$D$5,_data_Forecast!$Q:$Q,$E$5,_data_Forecast!$C:$C,All_series!$L14)) -> 3.190542146e-05 | S14: =IF(SUMIFS(_data_Forecast!J:J,_data_Forecast!$N:$N,$B$5,_data_Forecast!$O:$O,$C$5,_data_Forecast!$P:$P,$D$5,_data_Forecast!$Q:$Q,$E$5,_data_Forecast!$C:$C,All_series!$L14)=0,"NA",SUMIFS(_data_Forecast!J:J,_data_Forecast!$N:$N,$B$5,_data_Forecast!$O:$O,$C$5,_data_Forecast!$P:$P,$D$5,_data_Forecast!$Q:$Q,$E$5,_data_Forecast!$C:$C,All_series!$L14)) -> 3.185247072e-05 | T14: =IF(SUMIFS(_data_Forecast!K:K,_data_Forecast!$N:$N,$B$5,_data_Forecast!$O:$O,$C$5,_data_Forecast!$P:$P,$D$5,_data_Forecast!$Q:$Q,$E$5,_data_Forecast!$C:$C,All_series!$L14)=0,"NA",SUMIFS(_data_Forecast!K:K,_data_Forecast!$N:$N,$B$5,_data_Forecast!$O:$O,$C$5,_data_Forecast!$P:$P,$D$5,_data_Forecast!$Q:$Q,$E$5,_data_Forecast!$C:$C,All_series!$L14)) -> 3.180121067e-05 | U14: =IF(SUMIFS(_data_Forecast!L:L,_data_Forecast!$N:$N,$B$5,_data_Forecast!$O:$O,$C$5,_data_Forecast!$P:$P,$D$5,_data_Forecast!$Q:$Q,$E$5,_data_Forecast!$C:$C,All_series!$L14)=0,"NA",SUMIFS(_data_Forecast!L:L,_data_Forecast!$N:$N,$B$5,_data_Forecast!$O:$O,$C$5,_data_Forecast!$P:$P,$D$5,_data_Forecast!$Q:$Q,$E$5,_data_Forecast!$C:$C,All_series!$L14)) -> 3.174598426e-05 | V14: =IF(SUMIFS(_data_Forecast!M:M,_data_Forecast!$N:$N,$B$5,_data_Forecast!$O:$O,$C$5,_data_Forecast!$P:$P,$D$5,_data_Forecast!$Q:$Q,$E$5,_data_Forecast!$C:$C,All_series!$L14)=0,"NA",SUMIFS(_data_Forecast!M:M,_data_Forecast!$N:$N,$B$5,_data_Forecast!$O:$O,$C$5,_data_Forecast!$P:$P,$D$5,_data_Forecast!$Q:$Q,$E$5,_data_Forecast!$C:$C,All_series!$L14)) -> 3.169283698e-05
L15: 10-14 | M15: =IF(SUMIFS(_data_Forecast!D:D,_data_Forecast!$N:$N,$B$5,_data_Forecast!$O:$O,$C$5,_data_Forecast!$P:$P,$D$5,_data_Forecast!$Q:$Q,$E$5,_data_Forecast!$C:$C,All_series!$L15)=0,"NA",SUMIFS(_data_Forecast!D:D,_data_Forecast!$N:$N,$B$5,_data_Forecast!$O:$O,$C$5,_data_Forecast!$P:$P,$D$5,_data_Forecast!$Q:$Q,$E$5,_data_Forecast!$C:$C,All_series!$L15)) -> 3.85823199e-05 | N15: =IF(SUMIFS(_data_Forecast!E:E,_data_Forecast!$N:$N,$B$5,_data_Forecast!$O:$O,$C$5,_data_Forecast!$P:$P,$D$5,_data_Forecast!$Q:$Q,$E$5,_data_Forecast!$C:$C,All_series!$L15)=0,"NA",SUMIFS(_data_Forecast!E:E,_data_Forecast!$N:$N,$B$5,_data_Forecast!$O:$O,$C$5,_data_Forecast!$P:$P,$D$5,_data_Forecast!$Q:$Q,$E$5,_data_Forecast!$C:$C,All_series!$L15)) -> 3.834180859e-05 | O15: =IF(SUMIFS(_data_Forecast!F:F,_data_Forecast!$N:$N,$B$5,_data_Forecast!$O:$O,$C$5,_data_Forecast!$P:$P,$D$5,_data_Forecast!$Q:$Q,$E$5,_data_Forecast!$C:$C,All_series!$L15)=0,"NA",SUMIFS(_data_Forecast!F:F,_data_Forecast!$N:$N,$B$5,_data_Forecast!$O:$O,$C$5,_data_Forecast!$P:$P,$D$5,_data_Forecast!$Q:$Q,$E$5,_data_Forecast!$C:$C,All_series!$L15)) -> 3.801256852e-05 | P15: =IF(SUMIFS(_data_Forecast!G:G,_data_Forecast!$N:$N,$B$5,_data_Forecast!$O:$O,$C$5,_data_Forecast!$P:$P,$D$5,_data_Forecast!$Q:$Q,$E$5,_data_Forecast!$C:$C,All_series!$L15)=0,"NA",SUMIFS(_data_Forecast!G:G,_data_Forecast!$N:$N,$B$5,_data_Forecast!$O:$O,$C$5,_data_Forecast!$P:$P,$D$5,_data_Forecast!$Q:$Q,$E$5,_data_Forecast!$C:$C,All_series!$L15)) -> 3.767304752e-05 | Q15: =IF(SUMIFS(_data_Forecast!H:H,_data_Forecast!$N:$N,$B$5,_data_Forecast!$O:$O,$C$5,_data_Forecast!$P:$P,$D$5,_data_Forecast!$Q:$Q,$E$5,_data_Forecast!$C:$C,All_series!$L15)=0,"NA",SUMIFS(_data_Forecast!H:H,_data_Forecast!$N:$N,$B$5,_data_Forecast!$O:$O,$C$5,_data_Forecast!$P:$P,$D$5,_data_Forecast!$Q:$Q,$E$5,_data_Forecast!$C:$C,All_series!$L15)) -> 3.751715128e-05 | R15: =IF(SUMIFS(_data_Forecast!I:I,_data_Forecast!$N:$N,$B$5,_data_Forecast!$O:$O,$C$5,_data_Forecast!$P:$P,$D$5,_data_Forecast!$Q:$Q,$E$5,_data_Forecast!$C:$C,All_series!$L15)=0,"NA",SUMIFS(_data_Forecast!I:I,_data_Forecast!$N:$N,$B$5,_data_Forecast!$O:$O,$C$5,_data_Forecast!$P:$P,$D$5,_data_Forecast!$Q:$Q,$E$5,_data_Forecast!$C:$C,All_series!$L15)) -> 3.751328163e-05 | S15: =IF(SUMIFS(_data_Forecast!J:J,_data_Forecast!$N:$N,$B$5,_data_Forecast!$O:$O,$C$5,_data_Forecast!$P:$P,$D$5,_data_Forecast!$Q:$Q,$E$5,_data_Forecast!$C:$C,All_series!$L15)=0,"NA",SUMIFS(_data_Forecast!J:J,_data_Forecast!$N:$N,$B$5,_data_Forecast!$O:$O,$C$5,_data_Forecast!$P:$P,$D$5,_data_Forecast!$Q:$Q,$E$5,_data_Forecast!$C:$C,All_series!$L15)) -> 3.759275909e-05 | T15: =IF(SUMIFS(_data_Forecast!K:K,_data_Forecast!$N:$N,$B$5,_data_Forecast!$O:$O,$C$5,_data_Forecast!$P:$P,$D$5,_data_Forecast!$Q:$Q,$E$5,_data_Forecast!$C:$C,All_series!$L15)=0,"NA",SUMIFS(_data_Forecast!K:K,_data_Forecast!$N:$N,$B$5,_data_Forecast!$O:$O,$C$5,_data_Forecast!$P:$P,$D$5,_data_Forecast!$Q:$Q,$E$5,_data_Forecast!$C:$C,All_series!$L15)) -> 3.772245822e-05 | U15: =IF(SUMIFS(_data_Forecast!L:L,_data_Forecast!$N:$N,$B$5,_data_Forecast!$O:$O,$C$5,_data_Forecast!$P:$P,$D$5,_data_Forecast!$Q:$Q,$E$5,_data_Forecast!$C:$C,All_series!$L15)=0,"NA",SUMIFS(_data_Forecast!L:L,_data_Forecast!$N:$N,$B$5,_data_Forecast!$O:$O,$C$5,_data_Forecast!$P:$P,$D$5,_data_Forecast!$Q:$Q,$E$5,_data_Forecast!$C:$C,All_series!$L15)) -> 3.783359356e-05 | V15: =IF(SUMIFS(_data_Forecast!M:M,_data_Forecast!$N:$N,$B$5,_data_Forecast!$O:$O,$C$5,_data_Forecast!$P:$P,$D$5,_data_Forecast!$Q:$Q,$E$5,_data_Forecast!$C:$C,All_series!$L15)=0,"NA",SUMIFS(_data_Forecast!M:M,_data_Forecast!$N:$N,$B$5,_data_Forecast!$O:$O,$C$5,_data_Forecast!$P:$P,$D$5,_data_Forecast!$Q:$Q,$E$5,_data_Forecast!$C:$C,All_series!$L15)) -> 3.789675119e-05
L16: 15-19 | M16: =IF(SUMIFS(_data_Forecast!D:D,_data_Forecast!$N:$N,$B$5,_data_Forecast!$O:$O,$C$5,_data_Forecast!$P:$P,$D$5,_data_Forecast!$Q:$Q,$E$5,_data_Forecast!$C:$C,All_series!$L16)=0,"NA",SUMIFS(_data_Forecast!D:D,_data_Forecast!$N:$N,$B$5,_data_Forecast!$O:$O,$C$5,_data_Forecast!$P:$P,$D$5,_data_Forecast!$Q:$Q,$E$5,_data_Forecast!$C:$C,All_series!$L16)) -> 5.082873723e-05 | N16: =IF(SUMIFS(_data_Forecast!E:E,_data_Forecast!$N:$N,$B$5,_data_Forecast!$O:$O,$C$5,_data_Forecast!$P:$P,$D$5,_data_Forecast!$Q:$Q,$E$5,_data_Forecast!$C:$C,All_series!$L16)=0,"NA",SUMIFS(_data_Forecast!E:E,_data_Forecast!$N:$N,$B$5,_data_Forecast!$O:$O,$C$5,_data_Forecast!$P:$P,$D$5,_data_Forecast!$Q:$Q,$E$5,_data_Forecast!$C:$C,All_series!$L16)) -> 5.06556194e-05 | O16: =IF(SUMIFS(_data_Forecast!F:F,_data_Forecast!$N:$N,$B$5,_data_Forecast!$O:$O,$C$5,_data_Forecast!$P:$P,$D$5,_data_Forecast!$Q:$Q,$E$5,_data_Forecast!$C:$C,All_series!$L16)=0,"NA",SUMIFS(_data_Forecast!F:F,_data_Forecast!$N:$N,$B$5,_data_Forecast!$O:$O,$C$5,_data_Forecast!$P:$P,$D$5,_data_Forecast!$Q:$Q,$E$5,_data_Forecast!$C:$C,All_series!$L16)) -> 5.046637462e-05 | P16: =IF(SUMIFS(_data_Forecast!G:G,_data_Forecast!$N:$N,$B$5,_data_Forecast!$O:$O,$C$5,_data_Forecast!$P:$P,$D$5,_data_Forecast!$Q:$Q,$E$5,_data_Forecast!$C:$C,All_series!$L16)=0,"NA",SUMIFS(_data_Forecast!G:G,_data_Forecast!$N:$N,$B$5,_data_Forecast!$O:$O,$C$5,_data_Forecast!$P:$P,$D$5,_data_Forecast!$Q:$Q,$E$5,_data_Forecast!$C:$C,All_series!$L16)) -> 5.021083225e-05 | Q16: =IF(SUMIFS(_data_Forecast!H:H,_data_Forecast!$N:$N,$B$5,_data_Forecast!$O:$O,$C$5,_data_Forecast!$P:$P,$D$5,_data_Forecast!$Q:$Q,$E$5,_data_Forecast!$C:$C,All_series!$L16)=0,"NA",SUMIFS(_data_Forecast!H:H,_data_Forecast!$N:$N,$B$5,_data_Forecast!$O:$O,$C$5,_data_Forecast!$P:$P,$D$5,_data_Forecast!$Q:$Q,$E$5,_data_Forecast!$C:$C,All_series!$L16)) -> 5.012875259e-05 | R16: =IF(SUMIFS(_data_Forecast!I:I,_data_Forecast!$N:$N,$B$5,_data_Forecast!$O:$O,$C$5,_data_Forecast!$P:$P,$D$5,_data_Forecast!$Q:$Q,$E$5,_data_Forecast!$C:$C,All_series!$L16)=0,"NA",SUMIFS(_data_Forecast!I:I,_data_Forecast!$N:$N,$B$5,_data_Forecast!$O:$O,$C$5,_data_Forecast!$P:$P,$D$5,_data_Forecast!$Q:$Q,$E$5,_data_Forecast!$C:$C,All_series!$L16)) -> 5.015658981e-05 | S16: =IF(SUMIFS(_data_Forecast!J:J,_data_Forecast!$N:$N,$B$5,_data_Forecast!$O:$O,$C$5,_data_Forecast!$P:$P,$D$5,_data_Forecast!$Q:$Q,$E$5,_data_Forecast!$C:$C,All_series!$L16)=0,"NA",SUMIFS(_data_Forecast!J:J,_data_Forecast!$N:$N,$B$5,_data_Forecast!$O:$O,$C$5,_data_Forecast!$P:$P,$D$5,_data_Forecast!$Q:$Q,$E$5,_data_Forecast!$C:$C,All_series!$L16)) -> 5.025657423e-05 | T16: =IF(SUMIFS(_data_Forecast!K:K,_data_Forecast!$N:$N,$B$5,_data_Forecast!$O:$O,$C$5,_data_Forecast!$P:$P,$D$5,_data_Forecast!$Q:$Q,$E$5,_data_Forecast!$C:$C,All_series!$L16)=0,"NA",SUMIFS(_data_Forecast!K:K,_data_Forecast!$N:$N,$B$5,_data_Forecast!$O:$O,$C$5,_data_Forecast!$P:$P,$D$5,_data_Forecast!$Q:$Q,$E$5,_data_Forecast!$C:$C,All_series!$L16)) -> 5.03874053e-05 | U16: =IF(SUMIFS(_data_Forecast!L:L,_data_Forecast!$N:$N,$B$5,_data_Forecast!$O:$O,$C$5,_data_Forecast!$P:$P,$D$5,_data_Forecast!$Q:$Q,$E$5,_data_Forecast!$C:$C,All_series!$L16)=0,"NA",SUMIFS(_data_Forecast!L:L,_data_Forecast!$N:$N,$B$5,_data_Forecast!$O:$O,$C$5,_data_Forecast!$P:$P,$D$5,_data_Forecast!$Q:$Q,$E$5,_data_Forecast!$C:$C,All_series!$L16)) -> 5.050455391e-05 | V16: =IF(SUMIFS(_data_Forecast!M:M,_data_Forecast!$N:$N,$B$5,_data_Forecast!$O:$O,$C$5,_data_Forecast!$P:$P,$D$5,_data_Forecast!$Q:$Q,$E$5,_data_Forecast!$C:$C,All_series!$L16)=0,"NA",SUMIFS(_data_Forecast!M:M,_data_Forecast!$N:$N,$B$5,_data_Forecast!$O:$O,$C$5,_data_Forecast!$P:$P,$D$5,_data_Forecast!$Q:$Q,$E$5,_data_Forecast!$C:$C,All_series!$L16)) -> 5.057436504e-05
L17: 20-24 | M17: =IF(SUMIFS(_data_Forecast!D:D,_data_Forecast!$N:$N,$B$5,_data_Forecast!$O:$O,$C$5,_data_Forecast!$P:$P,$D$5,_data_Forecast!$Q:$Q,$E$5,_data_Forecast!$C:$C,All_series!$L17)=0,"NA",SUMIFS(_data_Forecast!D:D,_data_Forecast!$N:$N,$B$5,_data_Forecast!$O:$O,$C$5,_data_Forecast!$P:$P,$D$5,_data_Forecast!$Q:$Q,$E$5,_data_Forecast!$C:$C,All_series!$L17)) -> 7.550690833e-05 | N17: =IF(SUMIFS(_data_Forecast!E:E,_data_Forecast!$N:$N,$B$5,_data_Forecast!$O:$O,$C$5,_data_Forecast!$P:$P,$D$5,_data_Forecast!$Q:$Q,$E$5,_data_Forecast!$C:$C,All_series!$L17)=0,"NA",SUMIFS(_data_Forecast!E:E,_data_Forecast!$N:$N,$B$5,_data_Forecast!$O:$O,$C$5,_data_Forecast!$P:$P,$D$5,_data_Forecast!$Q:$Q,$E$5,_data_Forecast!$C:$C,All_series!$L17)) -> 7.47701973e-05 | O17: =IF(SUMIFS(_data_Forecast!F:F,_data_Forecast!$N:$N,$B$5,_data_Forecast!$O:$O,$C$5,_data_Forecast!$P:$P,$D$5,_data_Forecast!$Q:$Q,$E$5,_data_Forecast!$C:$C,All_series!$L17)=0,"NA",SUMIFS(_data_Forecast!F:F,_data_Forecast!$N:$N,$B$5,_data_Forecast!$O:$O,$C$5,_data_Forecast!$P:$P,$D$5,_data_Forecast!$Q:$Q,$E$5,_data_Forecast!$C:$C,All_series!$L17)) -> 7.368858775e-05 | P17: =IF(SUMIFS(_data_Forecast!G:G,_data_Forecast!$N:$N,$B$5,_data_Forecast!$O:$O,$C$5,_data_Forecast!$P:$P,$D$5,_data_Forecast!$Q:$Q,$E$5,_data_Forecast!$C:$C,All_series!$L17)=0,"NA",SUMIFS(_data_Forecast!G:G,_data_Forecast!$N:$N,$B$5,_data_Forecast!$O:$O,$C$5,_data_Forecast!$P:$P,$D$5,_data_Forecast!$Q:$Q,$E$5,_data_Forecast!$C:$C,All_series!$L17)) -> 7.262318291e-05 | Q17: =IF(SUMIFS(_data_Forecast!H:H,_data_Forecast!$N:$N,$B$5,_data_Forecast!$O:$O,$C$5,_data_Forecast!$P:$P,$D$5,_data_Forecast!$Q:$Q,$E$5,_data_Forecast!$C:$C,All_series!$L17)=0,"NA",SUMIFS(_data_Forecast!H:H,_data_Forecast!$N:$N,$B$5,_data_Forecast!$O:$O,$C$5,_data_Forecast!$P:$P,$D$5,_data_Forecast!$Q:$Q,$E$5,_data_Forecast!$C:$C,All_series!$L17)) -> 7.20217572e-05 | R17: =IF(SUMIFS(_data_Forecast!I:I,_data_Forecast!$N:$N,$B$5,_data_Forecast!$O:$O,$C$5,_data_Forecast!$P:$P,$D$5,_data_Forecast!$Q:$Q,$E$5,_data_Forecast!$C:$C,All_series!$L17)=0,"NA",SUMIFS(_data_Forecast!I:I,_data_Forecast!$N:$N,$B$5,_data_Forecast!$O:$O,$C$5,_data_Forecast!$P:$P,$D$5,_data_Forecast!$Q:$Q,$E$5,_data_Forecast!$C:$C,All_series!$L17)) -> 7.185736624e-05 | S17: =IF(SUMIFS(_data_Forecast!J:J,_data_Forecast!$N:$N,$B$5,_data_Forecast!$O:$O,$C$5,_data_Forecast!$P:$P,$D$5,_data_Forecast!$Q:$Q,$E$5,_data_Forecast!$C:$C,All_series!$L17)=0,"NA",SUMIFS(_data_Forecast!J:J,_data_Forecast!$N:$N,$B$5,_data_Forecast!$O:$O,$C$5,_data_Forecast!$P:$P,$D$5,_data_Forecast!$Q:$Q,$E$5,_data_Forecast!$C:$C,All_series!$L17)) -> 7.201041399e-05 | T17: =IF(SUMIFS(_data_Forecast!K:K,_data_Forecast!$N:$N,$B$5,_data_Forecast!$O:$O,$C$5,_data_Forecast!$P:$P,$D$5,_data_Forecast!$Q:$Q,$E$5,_data_Forecast!$C:$C,All_series!$L17)=0,"NA",SUMIFS(_data_Forecast!K:K,_data_Forecast!$N:$N,$B$5,_data_Forecast!$O:$O,$C$5,_data_Forecast!$P:$P,$D$5,_data_Forecast!$Q:$Q,$E$5,_data_Forecast!$C:$C,All_series!$L17)) -> 7.225221156e-05 | U17: =IF(SUMIFS(_data_Forecast!L:L,_data_Forecast!$N:$N,$B$5,_data_Forecast!$O:$O,$C$5,_data_Forecast!$P:$P,$D$5,_data_Forecast!$Q:$Q,$E$5,_data_Forecast!$C:$C,All_series!$L17)=0,"NA",SUMIFS(_data_Forecast!L:L,_data_Forecast!$N:$N,$B$5,_data_Forecast!$O:$O,$C$5,_data_Forecast!$P:$P,$D$5,_data_Forecast!$Q:$Q,$E$5,_data_Forecast!$C:$C,All_series!$L17)) -> 7.244457732e-05 | V17: =IF(SUMIFS(_data_Forecast!M:M,_data_Forecast!$N:$N,$B$5,_data_Forecast!$O:$O,$C$5,_data_Forecast!$P:$P,$D$5,_data_Forecast!$Q:$Q,$E$5,_data_Forecast!$C:$C,All_series!$L17)=0,"NA",SUMIFS(_data_Forecast!M:M,_data_Forecast!$N:$N,$B$5,_data_Forecast!$O:$O,$C$5,_data_Forecast!$P:$P,$D$5,_data_Forecast!$Q:$Q,$E$5,_data_Forecast!$C:$C,All_series!$L17)) -> 7.25032936e-05
L18: 25-29 | M18: =IF(SUMIFS(_data_Forecast!D:D,_data_Forecast!$N:$N,$B$5,_data_Forecast!$O:$O,$C$5,_data_Forecast!$P:$P,$D$5,_data_Forecast!$Q:$Q,$E$5,_data_Forecast!$C:$C,All_series!$L18)=0,"NA",SUMIFS(_data_Forecast!D:D,_data_Forecast!$N:$N,$B$5,_data_Forecast!$O:$O,$C$5,_data_Forecast!$P:$P,$D$5,_data_Forecast!$Q:$Q,$E$5,_data_Forecast!$C:$C,All_series!$L18)) -> 0.0001170924402 | N18: =IF(SUMIFS(_data_Forecast!E:E,_data_Forecast!$N:$N,$B$5,_data_Forecast!$O:$O,$C$5,_data_Forecast!$P:$P,$D$5,_data_Forecast!$Q:$Q,$E$5,_data_Forecast!$C:$C,All_series!$L18)=0,"NA",SUMIFS(_data_Forecast!E:E,_data_Forecast!$N:$N,$B$5,_data_Forecast!$O:$O,$C$5,_data_Forecast!$P:$P,$D$5,_data_Forecast!$Q:$Q,$E$5,_data_Forecast!$C:$C,All_series!$L18)) -> 0.0001163730776 | O18: =IF(SUMIFS(_data_Forecast!F:F,_data_Forecast!$N:$N,$B$5,_data_Forecast!$O:$O,$C$5,_data_Forecast!$P:$P,$D$5,_data_Forecast!$Q:$Q,$E$5,_data_Forecast!$C:$C,All_series!$L18)=0,"NA",SUMIFS(_data_Forecast!F:F,_data_Forecast!$N:$N,$B$5,_data_Forecast!$O:$O,$C$5,_data_Forecast!$P:$P,$D$5,_data_Forecast!$Q:$Q,$E$5,_data_Forecast!$C:$C,All_series!$L18)) -> 0.0001153774044 | P18: =IF(SUMIFS(_data_Forecast!G:G,_data_Forecast!$N:$N,$B$5,_data_Forecast!$O:$O,$C$5,_data_Forecast!$P:$P,$D$5,_data_Forecast!$Q:$Q,$E$5,_data_Forecast!$C:$C,All_series!$L18)=0,"NA",SUMIFS(_data_Forecast!G:G,_data_Forecast!$N:$N,$B$5,_data_Forecast!$O:$O,$C$5,_data_Forecast!$P:$P,$D$5,_data_Forecast!$Q:$Q,$E$5,_data_Forecast!$C:$C,All_series!$L18)) -> 0.0001143912722 | Q18: =IF(SUMIFS(_data_Forecast!H:H,_data_Forecast!$N:$N,$B$5,_data_Forecast!$O:$O,$C$5,_data_Forecast!$P:$P,$D$5,_data_Forecast!$Q:$Q,$E$5,_data_Forecast!$C:$C,All_series!$L18)=0,"NA",SUMIFS(_data_Forecast!H:H,_data_Forecast!$N:$N,$B$5,_data_Forecast!$O:$O,$C$5,_data_Forecast!$P:$P,$D$5,_data_Forecast!$Q:$Q,$E$5,_data_Forecast!$C:$C,All_series!$L18)) -> 0.0001138421382 | R18: =IF(SUMIFS(_data_Forecast!I:I,_data_Forecast!$N:$N,$B$5,_data_Forecast!$O:$O,$C$5,_data_Forecast!$P:$P,$D$5,_data_Forecast!$Q:$Q,$E$5,_data_Forecast!$C:$C,All_series!$L18)=0,"NA",SUMIFS(_data_Forecast!I:I,_data_Forecast!$N:$N,$B$5,_data_Forecast!$O:$O,$C$5,_data_Forecast!$P:$P,$D$5,_data_Forecast!$Q:$Q,$E$5,_data_Forecast!$C:$C,All_series!$L18)) -> 0.0001136807941 | S18: =IF(SUMIFS(_data_Forecast!J:J,_data_Forecast!$N:$N,$B$5,_data_Forecast!$O:$O,$C$5,_data_Forecast!$P:$P,$D$5,_data_Forecast!$Q:$Q,$E$5,_data_Forecast!$C:$C,All_series!$L18)=0,"NA",SUMIFS(_data_Forecast!J:J,_data_Forecast!$N:$N,$B$5,_data_Forecast!$O:$O,$C$5,_data_Forecast!$P:$P,$D$5,_data_Forecast!$Q:$Q,$E$5,_data_Forecast!$C:$C,All_series!$L18)) -> 0.0001138205073 | T18: =IF(SUMIFS(_data_Forecast!K:K,_data_Forecast!$N:$N,$B$5,_data_Forecast!$O:$O,$C$5,_data_Forecast!$P:$P,$D$5,_data_Forecast!$Q:$Q,$E$5,_data_Forecast!$C:$C,All_series!$L18)=0,"NA",SUMIFS(_data_Forecast!K:K,_data_Forecast!$N:$N,$B$5,_data_Forecast!$O:$O,$C$5,_data_Forecast!$P:$P,$D$5,_data_Forecast!$Q:$Q,$E$5,_data_Forecast!$C:$C,All_series!$L18)) -> 0.0001140355962 | U18: =IF(SUMIFS(_data_Forecast!L:L,_data_Forecast!$N:$N,$B$5,_data_Forecast!$O:$O,$C$5,_data_Forecast!$P:$P,$D$5,_data_Forecast!$Q:$Q,$E$5,_data_Forecast!$C:$C,All_series!$L18)=0,"NA",SUMIFS(_data_Forecast!L:L,_data_Forecast!$N:$N,$B$5,_data_Forecast!$O:$O,$C$5,_data_Forecast!$P:$P,$D$5,_data_Forecast!$Q:$Q,$E$5,_data_Forecast!$C:$C,All_series!$L18)) -> 0.0001142117958 | V18: =IF(SUMIFS(_data_Forecast!M:M,_data_Forecast!$N:$N,$B$5,_data_Forecast!$O:$O,$C$5,_data_Forecast!$P:$P,$D$5,_data_Forecast!$Q:$Q,$E$5,_data_Forecast!$C:$C,All_series!$L18)=0,"NA",SUMIFS(_data_Forecast!M:M,_data_Forecast!$N:$N,$B$5,_data_Forecast!$O:$O,$C$5,_data_Forecast!$P:$P,$D$5,_data_Forecast!$Q:$Q,$E$5,_data_Forecast!$C:$C,All_series!$L18)) -> 0.0001142580768
L19: 30-34 | M19: =IF(SUMIFS(_data_Forecast!D:D,_data_Forecast!$N:$N,$B$5,_data_Forecast!$O:$O,$C$5,_data_Forecast!$P:$P,$D$5,_data_Forecast!$Q:$Q,$E$5,_data_Forecast!$C:$C,All_series!$L19)=0,"NA",SUMIFS(_data_Forecast!D:D,_data_Forecast!$N:$N,$B$5,_data_Forecast!$O:$O,$C$5,_data_Forecast!$P:$P,$D$5,_data_Forecast!$Q:$Q,$E$5,_data_Forecast!$C:$C,All_series!$L19)) -> 0.0001982553033 | N19: =IF(SUMIFS(_data_Forecast!E:E,_data_Forecast!$N:$N,$B$5,_data_Forecast!$O:$O,$C$5,_data_Forecast!$P:$P,$D$5,_data_Forecast!$Q:$Q,$E$5,_data_Forecast!$C:$C,All_series!$L19)=0,"NA",SUMIFS(_data_Forecast!E:E,_data_Forecast!$N:$N,$B$5,_data_Forecast!$O:$O,$C$5,_data_Forecast!$P:$P,$D$5,_data_Forecast!$Q:$Q,$E$5,_data_Forecast!$C:$C,All_series!$L19)) -> 0.0001972615168 | O19: =IF(SUMIFS(_data_Forecast!F:F,_data_Forecast!$N:$N,$B$5,_data_Forecast!$O:$O,$C$5,_data_Forecast!$P:$P,$D$5,_data_Forecast!$Q:$Q,$E$5,_data_Forecast!$C:$C,All_series!$L19)=0,"NA",SUMIFS(_data_Forecast!F:F,_data_Forecast!$N:$N,$B$5,_data_Forecast!$O:$O,$C$5,_data_Forecast!$P:$P,$D$5,_data_Forecast!$Q:$Q,$E$5,_data_Forecast!$C:$C,All_series!$L19)) -> 0.0001959893413 | P19: =IF(SUMIFS(_data_Forecast!G:G,_data_Forecast!$N:$N,$B$5,_data_Forecast!$O:$O,$C$5,_data_Forecast!$P:$P,$D$5,_data_Forecast!$Q:$Q,$E$5,_data_Forecast!$C:$C,All_series!$L19)=0,"NA",SUMIFS(_data_Forecast!G:G,_data_Forecast!$N:$N,$B$5,_data_Forecast!$O:$O,$C$5,_data_Forecast!$P:$P,$D$5,_data_Forecast!$Q:$Q,$E$5,_data_Forecast!$C:$C,All_series!$L19)) -> 0.0001947558702 | Q19: =IF(SUMIFS(_data_Forecast!H:H,_data_Forecast!$N:$N,$B$5,_data_Forecast!$O:$O,$C$5,_data_Forecast!$P:$P,$D$5,_data_Forecast!$Q:$Q,$E$5,_data_Forecast!$C:$C,All_series!$L19)=0,"NA",SUMIFS(_data_Forecast!H:H,_data_Forecast!$N:$N,$B$5,_data_Forecast!$O:$O,$C$5,_data_Forecast!$P:$P,$D$5,_data_Forecast!$Q:$Q,$E$5,_data_Forecast!$C:$C,All_series!$L19)) -> 0.0001939707944 | R19: =IF(SUMIFS(_data_Forecast!I:I,_data_Forecast!$N:$N,$B$5,_data_Forecast!$O:$O,$C$5,_data_Forecast!$P:$P,$D$5,_data_Forecast!$Q:$Q,$E$5,_data_Forecast!$C:$C,All_series!$L19)=0,"NA",SUMIFS(_data_Forecast!I:I,_data_Forecast!$N:$N,$B$5,_data_Forecast!$O:$O,$C$5,_data_Forecast!$P:$P,$D$5,_data_Forecast!$Q:$Q,$E$5,_data_Forecast!$C:$C,All_series!$L19)) -> 0.0001935906303 | S19: =IF(SUMIFS(_data_Forecast!J:J,_data_Forecast!$N:$N,$B$5,_data_Forecast!$O:$O,$C$5,_data_Forecast!$P:$P,$D$5,_data_Forecast!$Q:$Q,$E$5,_data_Forecast!$C:$C,All_series!$L19)=0,"NA",SUMIFS(_data_Forecast!J:J,_data_Forecast!$N:$N,$B$5,_data_Forecast!$O:$O,$C$5,_data_Forecast!$P:$P,$D$5,_data_Forecast!$Q:$Q,$E$5,_data_Forecast!$C:$C,All_series!$L19)) -> 0.0001935077224 | T19: =IF(SUMIFS(_data_Forecast!K:K,_data_Forecast!$N:$N,$B$5,_data_Forecast!$O:$O,$C$5,_data_Forecast!$P:$P,$D$5,_data_Forecast!$Q:$Q,$E$5,_data_Forecast!$C:$C,All_series!$L19)=0,"NA",SUMIFS(_data_Forecast!K:K,_data_Forecast!$N:$N,$B$5,_data_Forecast!$O:$O,$C$5,_data_Forecast!$P:$P,$D$5,_data_Forecast!$Q:$Q,$E$5,_data_Forecast!$C:$C,All_series!$L19)) -> 0.0001935029107 | U19: =IF(SUMIFS(_data_Forecast!L:L,_data_Forecast!$N:$N,$B$5,_data_Forecast!$O:$O,$C$5,_data_Forecast!$P:$P,$D$5,_data_Forecast!$Q:$Q,$E$5,_data_Forecast!$C:$C,All_series!$L19)=0,"NA",SUMIFS(_data_Forecast!L:L,_data_Forecast!$N:$N,$B$5,_data_Forecast!$O:$O,$C$5,_data_Forecast!$P:$P,$D$5,_data_Forecast!$Q:$Q,$E$5,_data_Forecast!$C:$C,All_series!$L19)) -> 0.0001934411427 | V19: =IF(SUMIFS(_data_Forecast!M:M,_data_Forecast!$N:$N,$B$5,_data_Forecast!$O:$O,$C$5,_data_Forecast!$P:$P,$D$5,_data_Forecast!$Q:$Q,$E$5,_data_Forecast!$C:$C,All_series!$L19)=0,"NA",SUMIFS(_data_Forecast!M:M,_data_Forecast!$N:$N,$B$5,_data_Forecast!$O:$O,$C$5,_data_Forecast!$P:$P,$D$5,_data_Forecast!$Q:$Q,$E$5,_data_Forecast!$C:$C,All_series!$L19)) -> 0.0001932456866
L20: 35-39 | M20: =IF(SUMIFS(_data_Forecast!D:D,_data_Forecast!$N:$N,$B$5,_data_Forecast!$O:$O,$C$5,_data_Forecast!$P:$P,$D$5,_data_Forecast!$Q:$Q,$E$5,_data_Forecast!$C:$C,All_series!$L20)=0,"NA",SUMIFS(_data_Forecast!D:D,_data_Forecast!$N:$N,$B$5,_data_Forecast!$O:$O,$C$5,_data_Forecast!$P:$P,$D$5,_data_Forecast!$Q:$Q,$E$5,_data_Forecast!$C:$C,All_series!$L20)) -> 0.0003436032274 | N20: =IF(SUMIFS(_data_Forecast!E:E,_data_Forecast!$N:$N,$B$5,_data_Forecast!$O:$O,$C$5,_data_Forecast!$P:$P,$D$5,_data_Forecast!$Q:$Q,$E$5,_data_Forecast!$C:$C,All_series!$L20)=0,"NA",SUMIFS(_data_Forecast!E:E,_data_Forecast!$N:$N,$B$5,_data_Forecast!$O:$O,$C$5,_data_Forecast!$P:$P,$D$5,_data_Forecast!$Q:$Q,$E$5,_data_Forecast!$C:$C,All_series!$L20)) -> 0.0003410980275 | O20: =IF(SUMIFS(_data_Forecast!F:F,_data_Forecast!$N:$N,$B$5,_data_Forecast!$O:$O,$C$5,_data_Forecast!$P:$P,$D$5,_data_Forecast!$Q:$Q,$E$5,_data_Forecast!$C:$C,All_series!$L20)=0,"NA",SUMIFS(_data_Forecast!F:F,_data_Forecast!$N:$N,$B$5,_data_Forecast!$O:$O,$C$5,_data_Forecast!$P:$P,$D$5,_data_Forecast!$Q:$Q,$E$5,_data_Forecast!$C:$C,All_series!$L20)) -> 0.0003385021549 | P20: =IF(SUMIFS(_data_Forecast!G:G,_data_Forecast!$N:$N,$B$5,_data_Forecast!$O:$O,$C$5,_data_Forecast!$P:$P,$D$5,_data_Forecast!$Q:$Q,$E$5,_data_Forecast!$C:$C,All_series!$L20)=0,"NA",SUMIFS(_data_Forecast!G:G,_data_Forecast!$N:$N,$B$5,_data_Forecast!$O:$O,$C$5,_data_Forecast!$P:$P,$D$5,_data_Forecast!$Q:$Q,$E$5,_data_Forecast!$C:$C,All_series!$L20)) -> 0.0003355397685 | Q20: =IF(SUMIFS(_data_Forecast!H:H,_data_Forecast!$N:$N,$B$5,_data_Forecast!$O:$O,$C$5,_data_Forecast!$P:$P,$D$5,_data_Forecast!$Q:$Q,$E$5,_data_Forecast!$C:$C,All_series!$L20)=0,"NA",SUMIFS(_data_Forecast!H:H,_data_Forecast!$N:$N,$B$5,_data_Forecast!$O:$O,$C$5,_data_Forecast!$P:$P,$D$5,_data_Forecast!$Q:$Q,$E$5,_data_Forecast!$C:$C,All_series!$L20)) -> 0.0003333082864 | R20: =IF(SUMIFS(_data_Forecast!I:I,_data_Forecast!$N:$N,$B$5,_data_Forecast!$O:$O,$C$5,_data_Forecast!$P:$P,$D$5,_data_Forecast!$Q:$Q,$E$5,_data_Forecast!$C:$C,All_series!$L20)=0,"NA",SUMIFS(_data_Forecast!I:I,_data_Forecast!$N:$N,$B$5,_data_Forecast!$O:$O,$C$5,_data_Forecast!$P:$P,$D$5,_data_Forecast!$Q:$Q,$E$5,_data_Forecast!$C:$C,All_series!$L20)) -> 0.0003312191043 | S20: =IF(SUMIFS(_data_Forecast!J:J,_data_Forecast!$N:$N,$B$5,_data_Forecast!$O:$O,$C$5,_data_Forecast!$P:$P,$D$5,_data_Forecast!$Q:$Q,$E$5,_data_Forecast!$C:$C,All_series!$L20)=0,"NA",SUMIFS(_data_Forecast!J:J,_data_Forecast!$N:$N,$B$5,_data_Forecast!$O:$O,$C$5,_data_Forecast!$P:$P,$D$5,_data_Forecast!$Q:$Q,$E$5,_data_Forecast!$C:$C,All_series!$L20)) -> 0.0003296236246 | T20: =IF(SUMIFS(_data_Forecast!K:K,_data_Forecast!$N:$N,$B$5,_data_Forecast!$O:$O,$C$5,_data_Forecast!$P:$P,$D$5,_data_Forecast!$Q:$Q,$E$5,_data_Forecast!$C:$C,All_series!$L20)=0,"NA",SUMIFS(_data_Forecast!K:K,_data_Forecast!$N:$N,$B$5,_data_Forecast!$O:$O,$C$5,_data_Forecast!$P:$P,$D$5,_data_Forecast!$Q:$Q,$E$5,_data_Forecast!$C:$C,All_series!$L20)) -> 0.0003278988441 | U20: =IF(SUMIFS(_data_Forecast!L:L,_data_Forecast!$N:$N,$B$5,_data_Forecast!$O:$O,$C$5,_data_Forecast!$P:$P,$D$5,_data_Forecast!$Q:$Q,$E$5,_data_Forecast!$C:$C,All_series!$L20)=0,"NA",SUMIFS(_data_Forecast!L:L,_data_Forecast!$N:$N,$B$5,_data_Forecast!$O:$O,$C$5,_data_Forecast!$P:$P,$D$5,_data_Forecast!$Q:$Q,$E$5,_data_Forecast!$C:$C,All_series!$L20)) -> 0.0003262272847 | V20: =IF(SUMIFS(_data_Forecast!M:M,_data_Forecast!$N:$N,$B$5,_data_Forecast!$O:$O,$C$5,_data_Forecast!$P:$P,$D$5,_data_Forecast!$Q:$Q,$E$5,_data_Forecast!$C:$C,All_series!$L20)=0,"NA",SUMIFS(_data_Forecast!M:M,_data_Forecast!$N:$N,$B$5,_data_Forecast!$O:$O,$C$5,_data_Forecast!$P:$P,$D$5,_data_Forecast!$Q:$Q,$E$5,_data_Forecast!$C:$C,All_series!$L20)) -> 0.0003242593383
L21: 40-44 | M21: =IF(SUMIFS(_data_Forecast!D:D,_data_Forecast!$N:$N,$B$5,_data_Forecast!$O:$O,$C$5,_data_Forecast!$P:$P,$D$5,_data_Forecast!$Q:$Q,$E$5,_data_Forecast!$C:$C,All_series!$L21)=0,"NA",SUMIFS(_data_Forecast!D:D,_data_Forecast!$N:$N,$B$5,_data_Forecast!$O:$O,$C$5,_data_Forecast!$P:$P,$D$5,_data_Forecast!$Q:$Q,$E$5,_data_Forecast!$C:$C,All_series!$L21)) -> 0.0005879556505 | N21: =IF(SUMIFS(_data_Forecast!E:E,_data_Forecast!$N:$N,$B$5,_data_Forecast!$O:$O,$C$5,_data_Forecast!$P:$P,$D$5,_data_Forecast!$Q:$Q,$E$5,_data_Forecast!$C:$C,All_series!$L21)=0,"NA",SUMIFS(_data_Forecast!E:E,_data_Forecast!$N:$N,$B$5,_data_Forecast!$O:$O,$C$5,_data_Forecast!$P:$P,$D$5,_data_Forecast!$Q:$Q,$E$5,_data_Forecast!$C:$C,All_series!$L21)) -> 0.0005819155624 | O21: =IF(SUMIFS(_data_Forecast!F:F,_data_Forecast!$N:$N,$B$5,_data_Forecast!$O:$O,$C$5,_data_Forecast!$P:$P,$D$5,_data_Forecast!$Q:$Q,$E$5,_data_Forecast!$C:$C,All_series!$L21)=0,"NA",SUMIFS(_data_Forecast!F:F,_data_Forecast!$N:$N,$B$5,_data_Forecast!$O:$O,$C$5,_data_Forecast!$P:$P,$D$5,_data_Forecast!$Q:$Q,$E$5,_data_Forecast!$C:$C,All_series!$L21)) -> 0.0005767164724 | P21: =IF(SUMIFS(_data_Forecast!G:G,_data_Forecast!$N:$N,$B$5,_data_Forecast!$O:$O,$C$5,_data_Forecast!$P:$P,$D$5,_data_Forecast!$Q:$Q,$E$5,_data_Forecast!$C:$C,All_series!$L21)=0,"NA",SUMIFS(_data_Forecast!G:G,_data_Forecast!$N:$N,$B$5,_data_Forecast!$O:$O,$C$5,_data_Forecast!$P:$P,$D$5,_data_Forecast!$Q:$Q,$E$5,_data_Forecast!$C:$C,All_series!$L21)) -> 0.0005694208345 | Q21: =IF(SUMIFS(_data_Forecast!H:H,_data_Forecast!$N:$N,$B$5,_data_Forecast!$O:$O,$C$5,_data_Forecast!$P:$P,$D$5,_data_Forecast!$Q:$Q,$E$5,_data_Forecast!$C:$C,All_series!$L21)=0,"NA",SUMIFS(_data_Forecast!H:H,_data_Forecast!$N:$N,$B$5,_data_Forecast!$O:$O,$C$5,_data_Forecast!$P:$P,$D$5,_data_Forecast!$Q:$Q,$E$5,_data_Forecast!$C:$C,All_series!$L21)) -> 0.0005635994957 | R21: =IF(SUMIFS(_data_Forecast!I:I,_data_Forecast!$N:$N,$B$5,_data_Forecast!$O:$O,$C$5,_data_Forecast!$P:$P,$D$5,_data_Forecast!$Q:$Q,$E$5,_data_Forecast!$C:$C,All_series!$L21)=0,"NA",SUMIFS(_data_Forecast!I:I,_data_Forecast!$N:$N,$B$5,_data_Forecast!$O:$O,$C$5,_data_Forecast!$P:$P,$D$5,_data_Forecast!$Q:$Q,$E$5,_data_Forecast!$C:$C,All_series!$L21)) -> 0.0005569300976 | S21: =IF(SUMIFS(_data_Forecast!J:J,_data_Forecast!$N:$N,$B$5,_data_Forecast!$O:$O,$C$5,_data_Forecast!$P:$P,$D$5,_data_Forecast!$Q:$Q,$E$5,_data_Forecast!$C:$C,All_series!$L21)=0,"NA",SUMIFS(_data_Forecast!J:J,_data_Forecast!$N:$N,$B$5,_data_Forecast!$O:$O,$C$5,_data_Forecast!$P:$P,$D$5,_data_Forecast!$Q:$Q,$E$5,_data_Forecast!$C:$C,All_series!$L21)) -> 0.0005513053877 | T21: =IF(SUMIFS(_data_Forecast!K:K,_data_Forecast!$N:$N,$B$5,_data_Forecast!$O:$O,$C$5,_data_Forecast!$P:$P,$D$5,_data_Forecast!$Q:$Q,$E$5,_data_Forecast!$C:$C,All_series!$L21)=0,"NA",SUMIFS(_data_Forecast!K:K,_data_Forecast!$N:$N,$B$5,_data_Forecast!$O:$O,$C$5,_data_Forecast!$P:$P,$D$5,_data_Forecast!$Q:$Q,$E$5,_data_Forecast!$C:$C,All_series!$L21)) -> 0.000544946285 | U21: =IF(SUMIFS(_data_Forecast!L:L,_data_Forecast!$N:$N,$B$5,_data_Forecast!$O:$O,$C$5,_data_Forecast!$P:$P,$D$5,_data_Forecast!$Q:$Q,$E$5,_data_Forecast!$C:$C,All_series!$L21)=0,"NA",SUMIFS(_data_Forecast!L:L,_data_Forecast!$N:$N,$B$5,_data_Forecast!$O:$O,$C$5,_data_Forecast!$P:$P,$D$5,_data_Forecast!$Q:$Q,$E$5,_data_Forecast!$C:$C,All_series!$L21)) -> 0.0005390139474 | V21: =IF(SUMIFS(_data_Forecast!M:M,_data_Forecast!$N:$N,$B$5,_data_Forecast!$O:$O,$C$5,_data_Forecast!$P:$P,$D$5,_data_Forecast!$Q:$Q,$E$5,_data_Forecast!$C:$C,All_series!$L21)=0,"NA",SUMIFS(_data_Forecast!M:M,_data_Forecast!$N:$N,$B$5,_data_Forecast!$O:$O,$C$5,_data_Forecast!$P:$P,$D$5,_data_Forecast!$Q:$Q,$E$5,_data_Forecast!$C:$C,All_series!$L21)) -> 0.0005323865612
L22: 45-49 | M22: =IF(SUMIFS(_data_Forecast!D:D,_data_Forecast!$N:$N,$B$5,_data_Forecast!$O:$O,$C$5,_data_Forecast!$P:$P,$D$5,_data_Forecast!$Q:$Q,$E$5,_data_Forecast!$C:$C,All_series!$L22)=0,"NA",SUMIFS(_data_Forecast!D:D,_data_Forecast!$N:$N,$B$5,_data_Forecast!$O:$O,$C$5,_data_Forecast!$P:$P,$D$5,_data_Forecast!$Q:$Q,$E$5,_data_Forecast!$C:$C,All_series!$L22)) -> 0.001017527463 | N22: =IF(SUMIFS(_data_Forecast!E:E,_data_Forecast!$N:$N,$B$5,_data_Forecast!$O:$O,$C$5,_data_Forecast!$P:$P,$D$5,_data_Forecast!$Q:$Q,$E$5,_data_Forecast!$C:$C,All_series!$L22)=0,"NA",SUMIFS(_data_Forecast!E:E,_data_Forecast!$N:$N,$B$5,_data_Forecast!$O:$O,$C$5,_data_Forecast!$P:$P,$D$5,_data_Forecast!$Q:$Q,$E$5,_data_Forecast!$C:$C,All_series!$L22)) -> 0.001010617809 | O22: =IF(SUMIFS(_data_Forecast!F:F,_data_Forecast!$N:$N,$B$5,_data_Forecast!$O:$O,$C$5,_data_Forecast!$P:$P,$D$5,_data_Forecast!$Q:$Q,$E$5,_data_Forecast!$C:$C,All_series!$L22)=0,"NA",SUMIFS(_data_Forecast!F:F,_data_Forecast!$N:$N,$B$5,_data_Forecast!$O:$O,$C$5,_data_Forecast!$P:$P,$D$5,_data_Forecast!$Q:$Q,$E$5,_data_Forecast!$C:$C,All_series!$L22)) -> 0.001001140861 | P22: =IF(SUMIFS(_data_Forecast!G:G,_data_Forecast!$N:$N,$B$5,_data_Forecast!$O:$O,$C$5,_data_Forecast!$P:$P,$D$5,_data_Forecast!$Q:$Q,$E$5,_data_Forecast!$C:$C,All_series!$L22)=0,"NA",SUMIFS(_data_Forecast!G:G,_data_Forecast!$N:$N,$B$5,_data_Forecast!$O:$O,$C$5,_data_Forecast!$P:$P,$D$5,_data_Forecast!$Q:$Q,$E$5,_data_Forecast!$C:$C,All_series!$L22)) -> 0.0009902046095 | Q22: =IF(SUMIFS(_data_Forecast!H:H,_data_Forecast!$N:$N,$B$5,_data_Forecast!$O:$O,$C$5,_data_Forecast!$P:$P,$D$5,_data_Forecast!$Q:$Q,$E$5,_data_Forecast!$C:$C,All_series!$L22)=0,"NA",SUMIFS(_data_Forecast!H:H,_data_Forecast!$N:$N,$B$5,_data_Forecast!$O:$O,$C$5,_data_Forecast!$P:$P,$D$5,_data_Forecast!$Q:$Q,$E$5,_data_Forecast!$C:$C,All_series!$L22)) -> 0.0009784149881 | R22: =IF(SUMIFS(_data_Forecast!I:I,_data_Forecast!$N:$N,$B$5,_data_Forecast!$O:$O,$C$5,_data_Forecast!$P:$P,$D$5,_data_Forecast!$Q:$Q,$E$5,_data_Forecast!$C:$C,All_series!$L22)=0,"NA",SUMIFS(_data_Forecast!I:I,_data_Forecast!$N:$N,$B$5,_data_Forecast!$O:$O,$C$5,_data_Forecast!$P:$P,$D$5,_data_Forecast!$Q:$Q,$E$5,_data_Forecast!$C:$C,All_series!$L22)) -> 0.0009648485742 | S22: =IF(SUMIFS(_data_Forecast!J:J,_data_Forecast!$N:$N,$B$5,_data_Forecast!$O:$O,$C$5,_data_Forecast!$P:$P,$D$5,_data_Forecast!$Q:$Q,$E$5,_data_Forecast!$C:$C,All_series!$L22)=0,"NA",SUMIFS(_data_Forecast!J:J,_data_Forecast!$N:$N,$B$5,_data_Forecast!$O:$O,$C$5,_data_Forecast!$P:$P,$D$5,_data_Forecast!$Q:$Q,$E$5,_data_Forecast!$C:$C,All_series!$L22)) -> 0.0009510670439 | T22: =IF(SUMIFS(_data_Forecast!K:K,_data_Forecast!$N:$N,$B$5,_data_Forecast!$O:$O,$C$5,_data_Forecast!$P:$P,$D$5,_data_Forecast!$Q:$Q,$E$5,_data_Forecast!$C:$C,All_series!$L22)=0,"NA",SUMIFS(_data_Forecast!K:K,_data_Forecast!$N:$N,$B$5,_data_Forecast!$O:$O,$C$5,_data_Forecast!$P:$P,$D$5,_data_Forecast!$Q:$Q,$E$5,_data_Forecast!$C:$C,All_series!$L22)) -> 0.0009364417509 | U22: =IF(SUMIFS(_data_Forecast!L:L,_data_Forecast!$N:$N,$B$5,_data_Forecast!$O:$O,$C$5,_data_Forecast!$P:$P,$D$5,_data_Forecast!$Q:$Q,$E$5,_data_Forecast!$C:$C,All_series!$L22)=0,"NA",SUMIFS(_data_Forecast!L:L,_data_Forecast!$N:$N,$B$5,_data_Forecast!$O:$O,$C$5,_data_Forecast!$P:$P,$D$5,_data_Forecast!$Q:$Q,$E$5,_data_Forecast!$C:$C,All_series!$L22)) -> 0.00092251577 | V22: =IF(SUMIFS(_data_Forecast!M:M,_data_Forecast!$N:$N,$B$5,_data_Forecast!$O:$O,$C$5,_data_Forecast!$P:$P,$D$5,_data_Forecast!$Q:$Q,$E$5,_data_Forecast!$C:$C,All_series!$L22)=0,"NA",SUMIFS(_data_Forecast!M:M,_data_Forecast!$N:$N,$B$5,_data_Forecast!$O:$O,$C$5,_data_Forecast!$P:$P,$D$5,_data_Forecast!$Q:$Q,$E$5,_data_Forecast!$C:$C,All_series!$L22)) -> 0.0009086763385
L23: 50-54 | M23: =IF(SUMIFS(_data_Forecast!D:D,_data_Forecast!$N:$N,$B$5,_data_Forecast!$O:$O,$C$5,_data_Forecast!$P:$P,$D$5,_data_Forecast!$Q:$Q,$E$5,_data_Forecast!$C:$C,All_series!$L23)=0,"NA",SUMIFS(_data_Forecast!D:D,_data_Forecast!$N:$N,$B$5,_data_Forecast!$O:$O,$C$5,_data_Forecast!$P:$P,$D$5,_data_Forecast!$Q:$Q,$E$5,_data_Forecast!$C:$C,All_series!$L23)) -> 0.001803154411 | N23: =IF(SUMIFS(_data_Forecast!E:E,_data_Forecast!$N:$N,$B$5,_data_Forecast!$O:$O,$C$5,_data_Forecast!$P:$P,$D$5,_data_Forecast!$Q:$Q,$E$5,_data_Forecast!$C:$C,All_series!$L23)=0,"NA",SUMIFS(_data_Forecast!E:E,_data_Forecast!$N:$N,$B$5,_data_Forecast!$O:$O,$C$5,_data_Forecast!$P:$P,$D$5,_data_Forecast!$Q:$Q,$E$5,_data_Forecast!$C:$C,All_series!$L23)) -> 0.001793773794 | O23: =IF(SUMIFS(_data_Forecast!F:F,_data_Forecast!$N:$N,$B$5,_data_Forecast!$O:$O,$C$5,_data_Forecast!$P:$P,$D$5,_data_Forecast!$Q:$Q,$E$5,_data_Forecast!$C:$C,All_series!$L23)=0,"NA",SUMIFS(_data_Forecast!F:F,_data_Forecast!$N:$N,$B$5,_data_Forecast!$O:$O,$C$5,_data_Forecast!$P:$P,$D$5,_data_Forecast!$Q:$Q,$E$5,_data_Forecast!$C:$C,All_series!$L23)) -> 0.001779016049 | P23: =IF(SUMIFS(_data_Forecast!G:G,_data_Forecast!$N:$N,$B$5,_data_Forecast!$O:$O,$C$5,_data_Forecast!$P:$P,$D$5,_data_Forecast!$Q:$Q,$E$5,_data_Forecast!$C:$C,All_series!$L23)=0,"NA",SUMIFS(_data_Forecast!G:G,_data_Forecast!$N:$N,$B$5,_data_Forecast!$O:$O,$C$5,_data_Forecast!$P:$P,$D$5,_data_Forecast!$Q:$Q,$E$5,_data_Forecast!$C:$C,All_series!$L23)) -> 0.001763348645 | Q23: =IF(SUMIFS(_data_Forecast!H:H,_data_Forecast!$N:$N,$B$5,_data_Forecast!$O:$O,$C$5,_data_Forecast!$P:$P,$D$5,_data_Forecast!$Q:$Q,$E$5,_data_Forecast!$C:$C,All_series!$L23)=0,"NA",SUMIFS(_data_Forecast!H:H,_data_Forecast!$N:$N,$B$5,_data_Forecast!$O:$O,$C$5,_data_Forecast!$P:$P,$D$5,_data_Forecast!$Q:$Q,$E$5,_data_Forecast!$C:$C,All_series!$L23)) -> 0.001746333271 | R23: =IF(SUMIFS(_data_Forecast!I:I,_data_Forecast!$N:$N,$B$5,_data_Forecast!$O:$O,$C$5,_data_Forecast!$P:$P,$D$5,_data_Forecast!$Q:$Q,$E$5,_data_Forecast!$C:$C,All_series!$L23)=0,"NA",SUMIFS(_data_Forecast!I:I,_data_Forecast!$N:$N,$B$5,_data_Forecast!$O:$O,$C$5,_data_Forecast!$P:$P,$D$5,_data_Forecast!$Q:$Q,$E$5,_data_Forecast!$C:$C,All_series!$L23)) -> 0.001727984131 | S23: =IF(SUMIFS(_data_Forecast!J:J,_data_Forecast!$N:$N,$B$5,_data_Forecast!$O:$O,$C$5,_data_Forecast!$P:$P,$D$5,_data_Forecast!$Q:$Q,$E$5,_data_Forecast!$C:$C,All_series!$L23)=0,"NA",SUMIFS(_data_Forecast!J:J,_data_Forecast!$N:$N,$B$5,_data_Forecast!$O:$O,$C$5,_data_Forecast!$P:$P,$D$5,_data_Forecast!$Q:$Q,$E$5,_data_Forecast!$C:$C,All_series!$L23)) -> 0.001709421419 | T23: =IF(SUMIFS(_data_Forecast!K:K,_data_Forecast!$N:$N,$B$5,_data_Forecast!$O:$O,$C$5,_data_Forecast!$P:$P,$D$5,_data_Forecast!$Q:$Q,$E$5,_data_Forecast!$C:$C,All_series!$L23)=0,"NA",SUMIFS(_data_Forecast!K:K,_data_Forecast!$N:$N,$B$5,_data_Forecast!$O:$O,$C$5,_data_Forecast!$P:$P,$D$5,_data_Forecast!$Q:$Q,$E$5,_data_Forecast!$C:$C,All_series!$L23)) -> 0.00169012465 | U23: =IF(SUMIFS(_data_Forecast!L:L,_data_Forecast!$N:$N,$B$5,_data_Forecast!$O:$O,$C$5,_data_Forecast!$P:$P,$D$5,_data_Forecast!$Q:$Q,$E$5,_data_Forecast!$C:$C,All_series!$L23)=0,"NA",SUMIFS(_data_Forecast!L:L,_data_Forecast!$N:$N,$B$5,_data_Forecast!$O:$O,$C$5,_data_Forecast!$P:$P,$D$5,_data_Forecast!$Q:$Q,$E$5,_data_Forecast!$C:$C,All_series!$L23)) -> 0.001671351373 | V23: =IF(SUMIFS(_data_Forecast!M:M,_data_Forecast!$N:$N,$B$5,_data_Forecast!$O:$O,$C$5,_data_Forecast!$P:$P,$D$5,_data_Forecast!$Q:$Q,$E$5,_data_Forecast!$C:$C,All_series!$L23)=0,"NA",SUMIFS(_data_Forecast!M:M,_data_Forecast!$N:$N,$B$5,_data_Forecast!$O:$O,$C$5,_data_Forecast!$P:$P,$D$5,_data_Forecast!$Q:$Q,$E$5,_data_Forecast!$C:$C,All_series!$L23)) -> 0.001652438563
L24: 55-59 | M24: =IF(SUMIFS(_data_Forecast!D:D,_data_Forecast!$N:$N,$B$5,_data_Forecast!$O:$O,$C$5,_data_Forecast!$P:$P,$D$5,_data_Forecast!$Q:$Q,$E$5,_data_Forecast!$C:$C,All_series!$L24)=0,"NA",SUMIFS(_data_Forecast!D:D,_data_Forecast!$N:$N,$B$5,_data_Forecast!$O:$O,$C$5,_data_Forecast!$P:$P,$D$5,_data_Forecast!$Q:$Q,$E$5,_data_Forecast!$C:$C,All_series!$L24)) -> 0.002885308894 | N24: =IF(SUMIFS(_data_Forecast!E:E,_data_Forecast!$N:$N,$B$5,_data_Forecast!$O:$O,$C$5,_data_Forecast!$P:$P,$D$5,_data_Forecast!$Q:$Q,$E$5,_data_Forecast!$C:$C,All_series!$L24)=0,"NA",SUMIFS(_data_Forecast!E:E,_data_Forecast!$N:$N,$B$5,_data_Forecast!$O:$O,$C$5,_data_Forecast!$P:$P,$D$5,_data_Forecast!$Q:$Q,$E$5,_data_Forecast!$C:$C,All_series!$L24)) -> 0.00285795454 | O24: =IF(SUMIFS(_data_Forecast!F:F,_data_Forecast!$N:$N,$B$5,_data_Forecast!$O:$O,$C$5,_data_Forecast!$P:$P,$D$5,_data_Forecast!$Q:$Q,$E$5,_data_Forecast!$C:$C,All_series!$L24)=0,"NA",SUMIFS(_data_Forecast!F:F,_data_Forecast!$N:$N,$B$5,_data_Forecast!$O:$O,$C$5,_data_Forecast!$P:$P,$D$5,_data_Forecast!$Q:$Q,$E$5,_data_Forecast!$C:$C,All_series!$L24)) -> 0.002824915311 | P24: =IF(SUMIFS(_data_Forecast!G:G,_data_Forecast!$N:$N,$B$5,_data_Forecast!$O:$O,$C$5,_data_Forecast!$P:$P,$D$5,_data_Forecast!$Q:$Q,$E$5,_data_Forecast!$C:$C,All_series!$L24)=0,"NA",SUMIFS(_data_Forecast!G:G,_data_Forecast!$N:$N,$B$5,_data_Forecast!$O:$O,$C$5,_data_Forecast!$P:$P,$D$5,_data_Forecast!$Q:$Q,$E$5,_data_Forecast!$C:$C,All_series!$L24)) -> 0.002795650192 | Q24: =IF(SUMIFS(_data_Forecast!H:H,_data_Forecast!$N:$N,$B$5,_data_Forecast!$O:$O,$C$5,_data_Forecast!$P:$P,$D$5,_data_Forecast!$Q:$Q,$E$5,_data_Forecast!$C:$C,All_series!$L24)=0,"NA",SUMIFS(_data_Forecast!H:H,_data_Forecast!$N:$N,$B$5,_data_Forecast!$O:$O,$C$5,_data_Forecast!$P:$P,$D$5,_data_Forecast!$Q:$Q,$E$5,_data_Forecast!$C:$C,All_series!$L24)) -> 0.002764792859 | R24: =IF(SUMIFS(_data_Forecast!I:I,_data_Forecast!$N:$N,$B$5,_data_Forecast!$O:$O,$C$5,_data_Forecast!$P:$P,$D$5,_data_Forecast!$Q:$Q,$E$5,_data_Forecast!$C:$C,All_series!$L24)=0,"NA",SUMIFS(_data_Forecast!I:I,_data_Forecast!$N:$N,$B$5,_data_Forecast!$O:$O,$C$5,_data_Forecast!$P:$P,$D$5,_data_Forecast!$Q:$Q,$E$5,_data_Forecast!$C:$C,All_series!$L24)) -> 0.002735268333 | S24: =IF(SUMIFS(_data_Forecast!J:J,_data_Forecast!$N:$N,$B$5,_data_Forecast!$O:$O,$C$5,_data_Forecast!$P:$P,$D$5,_data_Forecast!$Q:$Q,$E$5,_data_Forecast!$C:$C,All_series!$L24)=0,"NA",SUMIFS(_data_Forecast!J:J,_data_Forecast!$N:$N,$B$5,_data_Forecast!$O:$O,$C$5,_data_Forecast!$P:$P,$D$5,_data_Forecast!$Q:$Q,$E$5,_data_Forecast!$C:$C,All_series!$L24)) -> 0.002705433116 | T24: =IF(SUMIFS(_data_Forecast!K:K,_data_Forecast!$N:$N,$B$5,_data_Forecast!$O:$O,$C$5,_data_Forecast!$P:$P,$D$5,_data_Forecast!$Q:$Q,$E$5,_data_Forecast!$C:$C,All_series!$L24)=0,"NA",SUMIFS(_data_Forecast!K:K,_data_Forecast!$N:$N,$B$5,_data_Forecast!$O:$O,$C$5,_data_Forecast!$P:$P,$D$5,_data_Forecast!$Q:$Q,$E$5,_data_Forecast!$C:$C,All_series!$L24)) -> 0.002676214219 | U24: =IF(SUMIFS(_data_Forecast!L:L,_data_Forecast!$N:$N,$B$5,_data_Forecast!$O:$O,$C$5,_data_Forecast!$P:$P,$D$5,_data_Forecast!$Q:$Q,$E$5,_data_Forecast!$C:$C,All_series!$L24)=0,"NA",SUMIFS(_data_Forecast!L:L,_data_Forecast!$N:$N,$B$5,_data_Forecast!$O:$O,$C$5,_data_Forecast!$P:$P,$D$5,_data_Forecast!$Q:$Q,$E$5,_data_Forecast!$C:$C,All_series!$L24)) -> 0.002647061258 | V24: =IF(SUMIFS(_data_Forecast!M:M,_data_Forecast!$N:$N,$B$5,_data_Forecast!$O:$O,$C$5,_data_Forecast!$P:$P,$D$5,_data_Forecast!$Q:$Q,$E$5,_data_Forecast!$C:$C,All_series!$L24)=0,"NA",SUMIFS(_data_Forecast!M:M,_data_Forecast!$N:$N,$B$5,_data_Forecast!$O:$O,$C$5,_data_Forecast!$P:$P,$D$5,_data_Forecast!$Q:$Q,$E$5,_data_Forecast!$C:$C,All_series!$L24)) -> 0.002618215357
L25: 60-64 | M25: =IF(SUMIFS(_data_Forecast!D:D,_data_Forecast!$N:$N,$B$5,_data_Forecast!$O:$O,$C$5,_data_Forecast!$P:$P,$D$5,_data_Forecast!$Q:$Q,$E$5,_data_Forecast!$C:$C,All_series!$L25)=0,"NA",SUMIFS(_data_Forecast!D:D,_data_Forecast!$N:$N,$B$5,_data_Forecast!$O:$O,$C$5,_data_Forecast!$P:$P,$D$5,_data_Forecast!$Q:$Q,$E$5,_data_Forecast!$C:$C,All_series!$L25)) -> 0.004652298268 | N25: =IF(SUMIFS(_data_Forecast!E:E,_data_Forecast!$N:$N,$B$5,_data_Forecast!$O:$O,$C$5,_data_Forecast!$P:$P,$D$5,_data_Forecast!$Q:$Q,$E$5,_data_Forecast!$C:$C,All_series!$L25)=0,"NA",SUMIFS(_data_Forecast!E:E,_data_Forecast!$N:$N,$B$5,_data_Forecast!$O:$O,$C$5,_data_Forecast!$P:$P,$D$5,_data_Forecast!$Q:$Q,$E$5,_data_Forecast!$C:$C,All_series!$L25)) -> 0.004615793617 | O25: =IF(SUMIFS(_data_Forecast!F:F,_data_Forecast!$N:$N,$B$5,_data_Forecast!$O:$O,$C$5,_data_Forecast!$P:$P,$D$5,_data_Forecast!$Q:$Q,$E$5,_data_Forecast!$C:$C,All_series!$L25)=0,"NA",SUMIFS(_data_Forecast!F:F,_data_Forecast!$N:$N,$B$5,_data_Forecast!$O:$O,$C$5,_data_Forecast!$P:$P,$D$5,_data_Forecast!$Q:$Q,$E$5,_data_Forecast!$C:$C,All_series!$L25)) -> 0.004577403656 | P25: =IF(SUMIFS(_data_Forecast!G:G,_data_Forecast!$N:$N,$B$5,_data_Forecast!$O:$O,$C$5,_data_Forecast!$P:$P,$D$5,_data_Forecast!$Q:$Q,$E$5,_data_Forecast!$C:$C,All_series!$L25)=0,"NA",SUMIFS(_data_Forecast!G:G,_data_Forecast!$N:$N,$B$5,_data_Forecast!$O:$O,$C$5,_data_Forecast!$P:$P,$D$5,_data_Forecast!$Q:$Q,$E$5,_data_Forecast!$C:$C,All_series!$L25)) -> 0.004542082472 | Q25: =IF(SUMIFS(_data_Forecast!H:H,_data_Forecast!$N:$N,$B$5,_data_Forecast!$O:$O,$C$5,_data_Forecast!$P:$P,$D$5,_data_Forecast!$Q:$Q,$E$5,_data_Forecast!$C:$C,All_series!$L25)=0,"NA",SUMIFS(_data_Forecast!H:H,_data_Forecast!$N:$N,$B$5,_data_Forecast!$O:$O,$C$5,_data_Forecast!$P:$P,$D$5,_data_Forecast!$Q:$Q,$E$5,_data_Forecast!$C:$C,All_series!$L25)) -> 0.004504660849 | R25: =IF(SUMIFS(_data_Forecast!I:I,_data_Forecast!$N:$N,$B$5,_data_Forecast!$O:$O,$C$5,_data_Forecast!$P:$P,$D$5,_data_Forecast!$Q:$Q,$E$5,_data_Forecast!$C:$C,All_series!$L25)=0,"NA",SUMIFS(_data_Forecast!I:I,_data_Forecast!$N:$N,$B$5,_data_Forecast!$O:$O,$C$5,_data_Forecast!$P:$P,$D$5,_data_Forecast!$Q:$Q,$E$5,_data_Forecast!$C:$C,All_series!$L25)) -> 0.004467793692 | S25: =IF(SUMIFS(_data_Forecast!J:J,_data_Forecast!$N:$N,$B$5,_data_Forecast!$O:$O,$C$5,_data_Forecast!$P:$P,$D$5,_data_Forecast!$Q:$Q,$E$5,_data_Forecast!$C:$C,All_series!$L25)=0,"NA",SUMIFS(_data_Forecast!J:J,_data_Forecast!$N:$N,$B$5,_data_Forecast!$O:$O,$C$5,_data_Forecast!$P:$P,$D$5,_data_Forecast!$Q:$Q,$E$5,_data_Forecast!$C:$C,All_series!$L25)) -> 0.004430368591 | T25: =IF(SUMIFS(_data_Forecast!K:K,_data_Forecast!$N:$N,$B$5,_data_Forecast!$O:$O,$C$5,_data_Forecast!$P:$P,$D$5,_data_Forecast!$Q:$Q,$E$5,_data_Forecast!$C:$C,All_series!$L25)=0,"NA",SUMIFS(_data_Forecast!K:K,_data_Forecast!$N:$N,$B$5,_data_Forecast!$O:$O,$C$5,_data_Forecast!$P:$P,$D$5,_data_Forecast!$Q:$Q,$E$5,_data_Forecast!$C:$C,All_series!$L25)) -> 0.004393580054 | U25: =IF(SUMIFS(_data_Forecast!L:L,_data_Forecast!$N:$N,$B$5,_data_Forecast!$O:$O,$C$5,_data_Forecast!$P:$P,$D$5,_data_Forecast!$Q:$Q,$E$5,_data_Forecast!$C:$C,All_series!$L25)=0,"NA",SUMIFS(_data_Forecast!L:L,_data_Forecast!$N:$N,$B$5,_data_Forecast!$O:$O,$C$5,_data_Forecast!$P:$P,$D$5,_data_Forecast!$Q:$Q,$E$5,_data_Forecast!$C:$C,All_series!$L25)) -> 0.004357179562 | V25: =IF(SUMIFS(_data_Forecast!M:M,_data_Forecast!$N:$N,$B$5,_data_Forecast!$O:$O,$C$5,_data_Forecast!$P:$P,$D$5,_data_Forecast!$Q:$Q,$E$5,_data_Forecast!$C:$C,All_series!$L25)=0,"NA",SUMIFS(_data_Forecast!M:M,_data_Forecast!$N:$N,$B$5,_data_Forecast!$O:$O,$C$5,_data_Forecast!$P:$P,$D$5,_data_Forecast!$Q:$Q,$E$5,_data_Forecast!$C:$C,All_series!$L25)) -> 0.004321496357
L26: 65-69 | M26: =IF(SUMIFS(_data_Forecast!D:D,_data_Forecast!$N:$N,$B$5,_data_Forecast!$O:$O,$C$5,_data_Forecast!$P:$P,$D$5,_data_Forecast!$Q:$Q,$E$5,_data_Forecast!$C:$C,All_series!$L26)=0,"NA",SUMIFS(_data_Forecast!D:D,_data_Forecast!$N:$N,$B$5,_data_Forecast!$O:$O,$C$5,_data_Forecast!$P:$P,$D$5,_data_Forecast!$Q:$Q,$E$5,_data_Forecast!$C:$C,All_series!$L26)) -> 0.007126445446 | N26: =IF(SUMIFS(_data_Forecast!E:E,_data_Forecast!$N:$N,$B$5,_data_Forecast!$O:$O,$C$5,_data_Forecast!$P:$P,$D$5,_data_Forecast!$Q:$Q,$E$5,_data_Forecast!$C:$C,All_series!$L26)=0,"NA",SUMIFS(_data_Forecast!E:E,_data_Forecast!$N:$N,$B$5,_data_Forecast!$O:$O,$C$5,_data_Forecast!$P:$P,$D$5,_data_Forecast!$Q:$Q,$E$5,_data_Forecast!$C:$C,All_series!$L26)) -> 0.007090155673 | O26: =IF(SUMIFS(_data_Forecast!F:F,_data_Forecast!$N:$N,$B$5,_data_Forecast!$O:$O,$C$5,_data_Forecast!$P:$P,$D$5,_data_Forecast!$Q:$Q,$E$5,_data_Forecast!$C:$C,All_series!$L26)=0,"NA",SUMIFS(_data_Forecast!F:F,_data_Forecast!$N:$N,$B$5,_data_Forecast!$O:$O,$C$5,_data_Forecast!$P:$P,$D$5,_data_Forecast!$Q:$Q,$E$5,_data_Forecast!$C:$C,All_series!$L26)) -> 0.007051378433 | P26: =IF(SUMIFS(_data_Forecast!G:G,_data_Forecast!$N:$N,$B$5,_data_Forecast!$O:$O,$C$5,_data_Forecast!$P:$P,$D$5,_data_Forecast!$Q:$Q,$E$5,_data_Forecast!$C:$C,All_series!$L26)=0,"NA",SUMIFS(_data_Forecast!G:G,_data_Forecast!$N:$N,$B$5,_data_Forecast!$O:$O,$C$5,_data_Forecast!$P:$P,$D$5,_data_Forecast!$Q:$Q,$E$5,_data_Forecast!$C:$C,All_series!$L26)) -> 0.007015575856 | Q26: =IF(SUMIFS(_data_Forecast!H:H,_data_Forecast!$N:$N,$B$5,_data_Forecast!$O:$O,$C$5,_data_Forecast!$P:$P,$D$5,_data_Forecast!$Q:$Q,$E$5,_data_Forecast!$C:$C,All_series!$L26)=0,"NA",SUMIFS(_data_Forecast!H:H,_data_Forecast!$N:$N,$B$5,_data_Forecast!$O:$O,$C$5,_data_Forecast!$P:$P,$D$5,_data_Forecast!$Q:$Q,$E$5,_data_Forecast!$C:$C,All_series!$L26)) -> 0.006976976331 | R26: =IF(SUMIFS(_data_Forecast!I:I,_data_Forecast!$N:$N,$B$5,_data_Forecast!$O:$O,$C$5,_data_Forecast!$P:$P,$D$5,_data_Forecast!$Q:$Q,$E$5,_data_Forecast!$C:$C,All_series!$L26)=0,"NA",SUMIFS(_data_Forecast!I:I,_data_Forecast!$N:$N,$B$5,_data_Forecast!$O:$O,$C$5,_data_Forecast!$P:$P,$D$5,_data_Forecast!$Q:$Q,$E$5,_data_Forecast!$C:$C,All_series!$L26)) -> 0.006939087422 | S26: =IF(SUMIFS(_data_Forecast!J:J,_data_Forecast!$N:$N,$B$5,_data_Forecast!$O:$O,$C$5,_data_Forecast!$P:$P,$D$5,_data_Forecast!$Q:$Q,$E$5,_data_Forecast!$C:$C,All_series!$L26)=0,"NA",SUMIFS(_data_Forecast!J:J,_data_Forecast!$N:$N,$B$5,_data_Forecast!$O:$O,$C$5,_data_Forecast!$P:$P,$D$5,_data_Forecast!$Q:$Q,$E$5,_data_Forecast!$C:$C,All_series!$L26)) -> 0.006900696562 | T26: =IF(SUMIFS(_data_Forecast!K:K,_data_Forecast!$N:$N,$B$5,_data_Forecast!$O:$O,$C$5,_data_Forecast!$P:$P,$D$5,_data_Forecast!$Q:$Q,$E$5,_data_Forecast!$C:$C,All_series!$L26)=0,"NA",SUMIFS(_data_Forecast!K:K,_data_Forecast!$N:$N,$B$5,_data_Forecast!$O:$O,$C$5,_data_Forecast!$P:$P,$D$5,_data_Forecast!$Q:$Q,$E$5,_data_Forecast!$C:$C,All_series!$L26)) -> 0.006863181472 | U26: =IF(SUMIFS(_data_Forecast!L:L,_data_Forecast!$N:$N,$B$5,_data_Forecast!$O:$O,$C$5,_data_Forecast!$P:$P,$D$5,_data_Forecast!$Q:$Q,$E$5,_data_Forecast!$C:$C,All_series!$L26)=0,"NA",SUMIFS(_data_Forecast!L:L,_data_Forecast!$N:$N,$B$5,_data_Forecast!$O:$O,$C$5,_data_Forecast!$P:$P,$D$5,_data_Forecast!$Q:$Q,$E$5,_data_Forecast!$C:$C,All_series!$L26)) -> 0.006826050349 | V26: =IF(SUMIFS(_data_Forecast!M:M,_data_Forecast!$N:$N,$B$5,_data_Forecast!$O:$O,$C$5,_data_Forecast!$P:$P,$D$5,_data_Forecast!$Q:$Q,$E$5,_data_Forecast!$C:$C,All_series!$L26)=0,"NA",SUMIFS(_data_Forecast!M:M,_data_Forecast!$N:$N,$B$5,_data_Forecast!$O:$O,$C$5,_data_Forecast!$P:$P,$D$5,_data_Forecast!$Q:$Q,$E$5,_data_Forecast!$C:$C,All_series!$L26)) -> 0.006789593636
L27: 70-74 | M27: =IF(SUMIFS(_data_Forecast!D:D,_data_Forecast!$N:$N,$B$5,_data_Forecast!$O:$O,$C$5,_data_Forecast!$P:$P,$D$5,_data_Forecast!$Q:$Q,$E$5,_data_Forecast!$C:$C,All_series!$L27)=0,"NA",SUMIFS(_data_Forecast!D:D,_data_Forecast!$N:$N,$B$5,_data_Forecast!$O:$O,$C$5,_data_Forecast!$P:$P,$D$5,_data_Forecast!$Q:$Q,$E$5,_data_Forecast!$C:$C,All_series!$L27)) -> 0.009894365525 | N27: =IF(SUMIFS(_data_Forecast!E:E,_data_Forecast!$N:$N,$B$5,_data_Forecast!$O:$O,$C$5,_data_Forecast!$P:$P,$D$5,_data_Forecast!$Q:$Q,$E$5,_data_Forecast!$C:$C,All_series!$L27)=0,"NA",SUMIFS(_data_Forecast!E:E,_data_Forecast!$N:$N,$B$5,_data_Forecast!$O:$O,$C$5,_data_Forecast!$P:$P,$D$5,_data_Forecast!$Q:$Q,$E$5,_data_Forecast!$C:$C,All_series!$L27)) -> 0.009847842875 | O27: =IF(SUMIFS(_data_Forecast!F:F,_data_Forecast!$N:$N,$B$5,_data_Forecast!$O:$O,$C$5,_data_Forecast!$P:$P,$D$5,_data_Forecast!$Q:$Q,$E$5,_data_Forecast!$C:$C,All_series!$L27)=0,"NA",SUMIFS(_data_Forecast!F:F,_data_Forecast!$N:$N,$B$5,_data_Forecast!$O:$O,$C$5,_data_Forecast!$P:$P,$D$5,_data_Forecast!$Q:$Q,$E$5,_data_Forecast!$C:$C,All_series!$L27)) -> 0.0097898872 | P27: =IF(SUMIFS(_data_Forecast!G:G,_data_Forecast!$N:$N,$B$5,_data_Forecast!$O:$O,$C$5,_data_Forecast!$P:$P,$D$5,_data_Forecast!$Q:$Q,$E$5,_data_Forecast!$C:$C,All_series!$L27)=0,"NA",SUMIFS(_data_Forecast!G:G,_data_Forecast!$N:$N,$B$5,_data_Forecast!$O:$O,$C$5,_data_Forecast!$P:$P,$D$5,_data_Forecast!$Q:$Q,$E$5,_data_Forecast!$C:$C,All_series!$L27)) -> 0.00973673753 | Q27: =IF(SUMIFS(_data_Forecast!H:H,_data_Forecast!$N:$N,$B$5,_data_Forecast!$O:$O,$C$5,_data_Forecast!$P:$P,$D$5,_data_Forecast!$Q:$Q,$E$5,_data_Forecast!$C:$C,All_series!$L27)=0,"NA",SUMIFS(_data_Forecast!H:H,_data_Forecast!$N:$N,$B$5,_data_Forecast!$O:$O,$C$5,_data_Forecast!$P:$P,$D$5,_data_Forecast!$Q:$Q,$E$5,_data_Forecast!$C:$C,All_series!$L27)) -> 0.009677319394 | R27: =IF(SUMIFS(_data_Forecast!I:I,_data_Forecast!$N:$N,$B$5,_data_Forecast!$O:$O,$C$5,_data_Forecast!$P:$P,$D$5,_data_Forecast!$Q:$Q,$E$5,_data_Forecast!$C:$C,All_series!$L27)=0,"NA",SUMIFS(_data_Forecast!I:I,_data_Forecast!$N:$N,$B$5,_data_Forecast!$O:$O,$C$5,_data_Forecast!$P:$P,$D$5,_data_Forecast!$Q:$Q,$E$5,_data_Forecast!$C:$C,All_series!$L27)) -> 0.009618796563 | S27: =IF(SUMIFS(_data_Forecast!J:J,_data_Forecast!$N:$N,$B$5,_data_Forecast!$O:$O,$C$5,_data_Forecast!$P:$P,$D$5,_data_Forecast!$Q:$Q,$E$5,_data_Forecast!$C:$C,All_series!$L27)=0,"NA",SUMIFS(_data_Forecast!J:J,_data_Forecast!$N:$N,$B$5,_data_Forecast!$O:$O,$C$5,_data_Forecast!$P:$P,$D$5,_data_Forecast!$Q:$Q,$E$5,_data_Forecast!$C:$C,All_series!$L27)) -> 0.009558548975 | T27: =IF(SUMIFS(_data_Forecast!K:K,_data_Forecast!$N:$N,$B$5,_data_Forecast!$O:$O,$C$5,_data_Forecast!$P:$P,$D$5,_data_Forecast!$Q:$Q,$E$5,_data_Forecast!$C:$C,All_series!$L27)=0,"NA",SUMIFS(_data_Forecast!K:K,_data_Forecast!$N:$N,$B$5,_data_Forecast!$O:$O,$C$5,_data_Forecast!$P:$P,$D$5,_data_Forecast!$Q:$Q,$E$5,_data_Forecast!$C:$C,All_series!$L27)) -> 0.009499448476 | U27: =IF(SUMIFS(_data_Forecast!L:L,_data_Forecast!$N:$N,$B$5,_data_Forecast!$O:$O,$C$5,_data_Forecast!$P:$P,$D$5,_data_Forecast!$Q:$Q,$E$5,_data_Forecast!$C:$C,All_series!$L27)=0,"NA",SUMIFS(_data_Forecast!L:L,_data_Forecast!$N:$N,$B$5,_data_Forecast!$O:$O,$C$5,_data_Forecast!$P:$P,$D$5,_data_Forecast!$Q:$Q,$E$5,_data_Forecast!$C:$C,All_series!$L27)) -> 0.009440715415 | V27: =IF(SUMIFS(_data_Forecast!M:M,_data_Forecast!$N:$N,$B$5,_data_Forecast!$O:$O,$C$5,_data_Forecast!$P:$P,$D$5,_data_Forecast!$Q:$Q,$E$5,_data_Forecast!$C:$C,All_series!$L27)=0,"NA",SUMIFS(_data_Forecast!M:M,_data_Forecast!$N:$N,$B$5,_data_Forecast!$O:$O,$C$5,_data_Forecast!$P:$P,$D$5,_data_Forecast!$Q:$Q,$E$5,_data_Forecast!$C:$C,All_series!$L27)) -> 0.009383252346
L28: 75-79 | M28: =IF(SUMIFS(_data_Forecast!D:D,_data_Forecast!$N:$N,$B$5,_data_Forecast!$O:$O,$C$5,_data_Forecast!$P:$P,$D$5,_data_Forecast!$Q:$Q,$E$5,_data_Forecast!$C:$C,All_series!$L28)=0,"NA",SUMIFS(_data_Forecast!D:D,_data_Forecast!$N:$N,$B$5,_data_Forecast!$O:$O,$C$5,_data_Forecast!$P:$P,$D$5,_data_Forecast!$Q:$Q,$E$5,_data_Forecast!$C:$C,All_series!$L28)) -> 0.0128590199 | N28: =IF(SUMIFS(_data_Forecast!E:E,_data_Forecast!$N:$N,$B$5,_data_Forecast!$O:$O,$C$5,_data_Forecast!$P:$P,$D$5,_data_Forecast!$Q:$Q,$E$5,_data_Forecast!$C:$C,All_series!$L28)=0,"NA",SUMIFS(_data_Forecast!E:E,_data_Forecast!$N:$N,$B$5,_data_Forecast!$O:$O,$C$5,_data_Forecast!$P:$P,$D$5,_data_Forecast!$Q:$Q,$E$5,_data_Forecast!$C:$C,All_series!$L28)) -> 0.01281870218 | O28: =IF(SUMIFS(_data_Forecast!F:F,_data_Forecast!$N:$N,$B$5,_data_Forecast!$O:$O,$C$5,_data_Forecast!$P:$P,$D$5,_data_Forecast!$Q:$Q,$E$5,_data_Forecast!$C:$C,All_series!$L28)=0,"NA",SUMIFS(_data_Forecast!F:F,_data_Forecast!$N:$N,$B$5,_data_Forecast!$O:$O,$C$5,_data_Forecast!$P:$P,$D$5,_data_Forecast!$Q:$Q,$E$5,_data_Forecast!$C:$C,All_series!$L28)) -> 0.0127596331 | P28: =IF(SUMIFS(_data_Forecast!G:G,_data_Forecast!$N:$N,$B$5,_data_Forecast!$O:$O,$C$5,_data_Forecast!$P:$P,$D$5,_data_Forecast!$Q:$Q,$E$5,_data_Forecast!$C:$C,All_series!$L28)=0,"NA",SUMIFS(_data_Forecast!G:G,_data_Forecast!$N:$N,$B$5,_data_Forecast!$O:$O,$C$5,_data_Forecast!$P:$P,$D$5,_data_Forecast!$Q:$Q,$E$5,_data_Forecast!$C:$C,All_series!$L28)) -> 0.01270956338 | Q28: =IF(SUMIFS(_data_Forecast!H:H,_data_Forecast!$N:$N,$B$5,_data_Forecast!$O:$O,$C$5,_data_Forecast!$P:$P,$D$5,_data_Forecast!$Q:$Q,$E$5,_data_Forecast!$C:$C,All_series!$L28)=0,"NA",SUMIFS(_data_Forecast!H:H,_data_Forecast!$N:$N,$B$5,_data_Forecast!$O:$O,$C$5,_data_Forecast!$P:$P,$D$5,_data_Forecast!$Q:$Q,$E$5,_data_Forecast!$C:$C,All_series!$L28)) -> 0.01264813297 | R28: =IF(SUMIFS(_data_Forecast!I:I,_data_Forecast!$N:$N,$B$5,_data_Forecast!$O:$O,$C$5,_data_Forecast!$P:$P,$D$5,_data_Forecast!$Q:$Q,$E$5,_data_Forecast!$C:$C,All_series!$L28)=0,"NA",SUMIFS(_data_Forecast!I:I,_data_Forecast!$N:$N,$B$5,_data_Forecast!$O:$O,$C$5,_data_Forecast!$P:$P,$D$5,_data_Forecast!$Q:$Q,$E$5,_data_Forecast!$C:$C,All_series!$L28)) -> 0.01258487505 | S28: =IF(SUMIFS(_data_Forecast!J:J,_data_Forecast!$N:$N,$B$5,_data_Forecast!$O:$O,$C$5,_data_Forecast!$P:$P,$D$5,_data_Forecast!$Q:$Q,$E$5,_data_Forecast!$C:$C,All_series!$L28)=0,"NA",SUMIFS(_data_Forecast!J:J,_data_Forecast!$N:$N,$B$5,_data_Forecast!$O:$O,$C$5,_data_Forecast!$P:$P,$D$5,_data_Forecast!$Q:$Q,$E$5,_data_Forecast!$C:$C,All_series!$L28)) -> 0.01251646965 | T28: =IF(SUMIFS(_data_Forecast!K:K,_data_Forecast!$N:$N,$B$5,_data_Forecast!$O:$O,$C$5,_data_Forecast!$P:$P,$D$5,_data_Forecast!$Q:$Q,$E$5,_data_Forecast!$C:$C,All_series!$L28)=0,"NA",SUMIFS(_data_Forecast!K:K,_data_Forecast!$N:$N,$B$5,_data_Forecast!$O:$O,$C$5,_data_Forecast!$P:$P,$D$5,_data_Forecast!$Q:$Q,$E$5,_data_Forecast!$C:$C,All_series!$L28)) -> 0.01244804721 | U28: =IF(SUMIFS(_data_Forecast!L:L,_data_Forecast!$N:$N,$B$5,_data_Forecast!$O:$O,$C$5,_data_Forecast!$P:$P,$D$5,_data_Forecast!$Q:$Q,$E$5,_data_Forecast!$C:$C,All_series!$L28)=0,"NA",SUMIFS(_data_Forecast!L:L,_data_Forecast!$N:$N,$B$5,_data_Forecast!$O:$O,$C$5,_data_Forecast!$P:$P,$D$5,_data_Forecast!$Q:$Q,$E$5,_data_Forecast!$C:$C,All_series!$L28)) -> 0.0123804448 | V28: =IF(SUMIFS(_data_Forecast!M:M,_data_Forecast!$N:$N,$B$5,_data_Forecast!$O:$O,$C$5,_data_Forecast!$P:$P,$D$5,_data_Forecast!$Q:$Q,$E$5,_data_Forecast!$C:$C,All_series!$L28)=0,"NA",SUMIFS(_data_Forecast!M:M,_data_Forecast!$N:$N,$B$5,_data_Forecast!$O:$O,$C$5,_data_Forecast!$P:$P,$D$5,_data_Forecast!$Q:$Q,$E$5,_data_Forecast!$C:$C,All_series!$L28)) -> 0.01231565515
L29: 80-84 | M29: =IF(SUMIFS(_data_Forecast!D:D,_data_Forecast!$N:$N,$B$5,_data_Forecast!$O:$O,$C$5,_data_Forecast!$P:$P,$D$5,_data_Forecast!$Q:$Q,$E$5,_data_Forecast!$C:$C,All_series!$L29)=0,"NA",SUMIFS(_data_Forecast!D:D,_data_Forecast!$N:$N,$B$5,_data_Forecast!$O:$O,$C$5,_data_Forecast!$P:$P,$D$5,_data_Forecast!$Q:$Q,$E$5,_data_Forecast!$C:$C,All_series!$L29)) -> 0.01487563619 | N29: =IF(SUMIFS(_data_Forecast!E:E,_data_Forecast!$N:$N,$B$5,_data_Forecast!$O:$O,$C$5,_data_Forecast!$P:$P,$D$5,_data_Forecast!$Q:$Q,$E$5,_data_Forecast!$C:$C,All_series!$L29)=0,"NA",SUMIFS(_data_Forecast!E:E,_data_Forecast!$N:$N,$B$5,_data_Forecast!$O:$O,$C$5,_data_Forecast!$P:$P,$D$5,_data_Forecast!$Q:$Q,$E$5,_data_Forecast!$C:$C,All_series!$L29)) -> 0.01457708868 | O29: =IF(SUMIFS(_data_Forecast!F:F,_data_Forecast!$N:$N,$B$5,_data_Forecast!$O:$O,$C$5,_data_Forecast!$P:$P,$D$5,_data_Forecast!$Q:$Q,$E$5,_data_Forecast!$C:$C,All_series!$L29)=0,"NA",SUMIFS(_data_Forecast!F:F,_data_Forecast!$N:$N,$B$5,_data_Forecast!$O:$O,$C$5,_data_Forecast!$P:$P,$D$5,_data_Forecast!$Q:$Q,$E$5,_data_Forecast!$C:$C,All_series!$L29)) -> 0.01430190356 | P29: =IF(SUMIFS(_data_Forecast!G:G,_data_Forecast!$N:$N,$B$5,_data_Forecast!$O:$O,$C$5,_data_Forecast!$P:$P,$D$5,_data_Forecast!$Q:$Q,$E$5,_data_Forecast!$C:$C,All_series!$L29)=0,"NA",SUMIFS(_data_Forecast!G:G,_data_Forecast!$N:$N,$B$5,_data_Forecast!$O:$O,$C$5,_data_Forecast!$P:$P,$D$5,_data_Forecast!$Q:$Q,$E$5,_data_Forecast!$C:$C,All_series!$L29)) -> 0.0140615667 | Q29: =IF(SUMIFS(_data_Forecast!H:H,_data_Forecast!$N:$N,$B$5,_data_Forecast!$O:$O,$C$5,_data_Forecast!$P:$P,$D$5,_data_Forecast!$Q:$Q,$E$5,_data_Forecast!$C:$C,All_series!$L29)=0,"NA",SUMIFS(_data_Forecast!H:H,_data_Forecast!$N:$N,$B$5,_data_Forecast!$O:$O,$C$5,_data_Forecast!$P:$P,$D$5,_data_Forecast!$Q:$Q,$E$5,_data_Forecast!$C:$C,All_series!$L29)) -> 0.01385308594 | R29: =IF(SUMIFS(_data_Forecast!I:I,_data_Forecast!$N:$N,$B$5,_data_Forecast!$O:$O,$C$5,_data_Forecast!$P:$P,$D$5,_data_Forecast!$Q:$Q,$E$5,_data_Forecast!$C:$C,All_series!$L29)=0,"NA",SUMIFS(_data_Forecast!I:I,_data_Forecast!$N:$N,$B$5,_data_Forecast!$O:$O,$C$5,_data_Forecast!$P:$P,$D$5,_data_Forecast!$Q:$Q,$E$5,_data_Forecast!$C:$C,All_series!$L29)) -> 0.01368906532 | S29: =IF(SUMIFS(_data_Forecast!J:J,_data_Forecast!$N:$N,$B$5,_data_Forecast!$O:$O,$C$5,_data_Forecast!$P:$P,$D$5,_data_Forecast!$Q:$Q,$E$5,_data_Forecast!$C:$C,All_series!$L29)=0,"NA",SUMIFS(_data_Forecast!J:J,_data_Forecast!$N:$N,$B$5,_data_Forecast!$O:$O,$C$5,_data_Forecast!$P:$P,$D$5,_data_Forecast!$Q:$Q,$E$5,_data_Forecast!$C:$C,All_series!$L29)) -> 0.01355942984 | T29: =IF(SUMIFS(_data_Forecast!K:K,_data_Forecast!$N:$N,$B$5,_data_Forecast!$O:$O,$C$5,_data_Forecast!$P:$P,$D$5,_data_Forecast!$Q:$Q,$E$5,_data_Forecast!$C:$C,All_series!$L29)=0,"NA",SUMIFS(_data_Forecast!K:K,_data_Forecast!$N:$N,$B$5,_data_Forecast!$O:$O,$C$5,_data_Forecast!$P:$P,$D$5,_data_Forecast!$Q:$Q,$E$5,_data_Forecast!$C:$C,All_series!$L29)) -> 0.01344783576 | U29: =IF(SUMIFS(_data_Forecast!L:L,_data_Forecast!$N:$N,$B$5,_data_Forecast!$O:$O,$C$5,_data_Forecast!$P:$P,$D$5,_data_Forecast!$Q:$Q,$E$5,_data_Forecast!$C:$C,All_series!$L29)=0,"NA",SUMIFS(_data_Forecast!L:L,_data_Forecast!$N:$N,$B$5,_data_Forecast!$O:$O,$C$5,_data_Forecast!$P:$P,$D$5,_data_Forecast!$Q:$Q,$E$5,_data_Forecast!$C:$C,All_series!$L29)) -> 0.01332790567 | V29: =IF(SUMIFS(_data_Forecast!M:M,_data_Forecast!$N:$N,$B$5,_data_Forecast!$O:$O,$C$5,_data_Forecast!$P:$P,$D$5,_data_Forecast!$Q:$Q,$E$5,_data_Forecast!$C:$C,All_series!$L29)=0,"NA",SUMIFS(_data_Forecast!M:M,_data_Forecast!$N:$N,$B$5,_data_Forecast!$O:$O,$C$5,_data_Forecast!$P:$P,$D$5,_data_Forecast!$Q:$Q,$E$5,_data_Forecast!$C:$C,All_series!$L29)) -> 0.01318103647
L30: 85+ | M30: =IF(SUMIFS(_data_Forecast!D:D,_data_Forecast!$N:$N,$B$5,_data_Forecast!$O:$O,$C$5,_data_Forecast!$P:$P,$D$5,_data_Forecast!$Q:$Q,$E$5,_data_Forecast!$C:$C,All_series!$L30)=0,"NA",SUMIFS(_data_Forecast!D:D,_data_Forecast!$N:$N,$B$5,_data_Forecast!$O:$O,$C$5,_data_Forecast!$P:$P,$D$5,_data_Forecast!$Q:$Q,$E$5,_data_Forecast!$C:$C,All_series!$L30)) -> 0.01769135413 | N30: =IF(SUMIFS(_data_Forecast!E:E,_data_Forecast!$N:$N,$B$5,_data_Forecast!$O:$O,$C$5,_data_Forecast!$P:$P,$D$5,_data_Forecast!$Q:$Q,$E$5,_data_Forecast!$C:$C,All_series!$L30)=0,"NA",SUMIFS(_data_Forecast!E:E,_data_Forecast!$N:$N,$B$5,_data_Forecast!$O:$O,$C$5,_data_Forecast!$P:$P,$D$5,_data_Forecast!$Q:$Q,$E$5,_data_Forecast!$C:$C,All_series!$L30)) -> 0.01734085838 | O30: =IF(SUMIFS(_data_Forecast!F:F,_data_Forecast!$N:$N,$B$5,_data_Forecast!$O:$O,$C$5,_data_Forecast!$P:$P,$D$5,_data_Forecast!$Q:$Q,$E$5,_data_Forecast!$C:$C,All_series!$L30)=0,"NA",SUMIFS(_data_Forecast!F:F,_data_Forecast!$N:$N,$B$5,_data_Forecast!$O:$O,$C$5,_data_Forecast!$P:$P,$D$5,_data_Forecast!$Q:$Q,$E$5,_data_Forecast!$C:$C,All_series!$L30)) -> 0.01709331341 | P30: =IF(SUMIFS(_data_Forecast!G:G,_data_Forecast!$N:$N,$B$5,_data_Forecast!$O:$O,$C$5,_data_Forecast!$P:$P,$D$5,_data_Forecast!$Q:$Q,$E$5,_data_Forecast!$C:$C,All_series!$L30)=0,"NA",SUMIFS(_data_Forecast!G:G,_data_Forecast!$N:$N,$B$5,_data_Forecast!$O:$O,$C$5,_data_Forecast!$P:$P,$D$5,_data_Forecast!$Q:$Q,$E$5,_data_Forecast!$C:$C,All_series!$L30)) -> 0.01688586586 | Q30: =IF(SUMIFS(_data_Forecast!H:H,_data_Forecast!$N:$N,$B$5,_data_Forecast!$O:$O,$C$5,_data_Forecast!$P:$P,$D$5,_data_Forecast!$Q:$Q,$E$5,_data_Forecast!$C:$C,All_series!$L30)=0,"NA",SUMIFS(_data_Forecast!H:H,_data_Forecast!$N:$N,$B$5,_data_Forecast!$O:$O,$C$5,_data_Forecast!$P:$P,$D$5,_data_Forecast!$Q:$Q,$E$5,_data_Forecast!$C:$C,All_series!$L30)) -> 0.01671875857 | R30: =IF(SUMIFS(_data_Forecast!I:I,_data_Forecast!$N:$N,$B$5,_data_Forecast!$O:$O,$C$5,_data_Forecast!$P:$P,$D$5,_data_Forecast!$Q:$Q,$E$5,_data_Forecast!$C:$C,All_series!$L30)=0,"NA",SUMIFS(_data_Forecast!I:I,_data_Forecast!$N:$N,$B$5,_data_Forecast!$O:$O,$C$5,_data_Forecast!$P:$P,$D$5,_data_Forecast!$Q:$Q,$E$5,_data_Forecast!$C:$C,All_series!$L30)) -> 0.01656992889 | S30: =IF(SUMIFS(_data_Forecast!J:J,_data_Forecast!$N:$N,$B$5,_data_Forecast!$O:$O,$C$5,_data_Forecast!$P:$P,$D$5,_data_Forecast!$Q:$Q,$E$5,_data_Forecast!$C:$C,All_series!$L30)=0,"NA",SUMIFS(_data_Forecast!J:J,_data_Forecast!$N:$N,$B$5,_data_Forecast!$O:$O,$C$5,_data_Forecast!$P:$P,$D$5,_data_Forecast!$Q:$Q,$E$5,_data_Forecast!$C:$C,All_series!$L30)) -> 0.01644336113 | T30: =IF(SUMIFS(_data_Forecast!K:K,_data_Forecast!$N:$N,$B$5,_data_Forecast!$O:$O,$C$5,_data_Forecast!$P:$P,$D$5,_data_Forecast!$Q:$Q,$E$5,_data_Forecast!$C:$C,All_series!$L30)=0,"NA",SUMIFS(_data_Forecast!K:K,_data_Forecast!$N:$N,$B$5,_data_Forecast!$O:$O,$C$5,_data_Forecast!$P:$P,$D$5,_data_Forecast!$Q:$Q,$E$5,_data_Forecast!$C:$C,All_series!$L30)) -> 0.01632375828 | U30: =IF(SUMIFS(_data_Forecast!L:L,_data_Forecast!$N:$N,$B$5,_data_Forecast!$O:$O,$C$5,_data_Forecast!$P:$P,$D$5,_data_Forecast!$Q:$Q,$E$5,_data_Forecast!$C:$C,All_series!$L30)=0,"NA",SUMIFS(_data_Forecast!L:L,_data_Forecast!$N:$N,$B$5,_data_Forecast!$O:$O,$C$5,_data_Forecast!$P:$P,$D$5,_data_Forecast!$Q:$Q,$E$5,_data_Forecast!$C:$C,All_series!$L30)) -> 0.01620832637 | V30: =IF(SUMIFS(_data_Forecast!M:M,_data_Forecast!$N:$N,$B$5,_data_Forecast!$O:$O,$C$5,_data_Forecast!$P:$P,$D$5,_data_Forecast!$Q:$Q,$E$5,_data_Forecast!$C:$C,All_series!$L30)=0,"NA",SUMIFS(_data_Forecast!M:M,_data_Forecast!$N:$N,$B$5,_data_Forecast!$O:$O,$C$5,_data_Forecast!$P:$P,$D$5,_data_Forecast!$Q:$Q,$E$5,_data_Forecast!$C:$C,All_series!$L30)) -> 0.01608443922
B34: =setChartAxis("All_series","Chart 2","Min","Value","Primary",C34) -> Value Primary Min: 0.000014813 | C34: =ROUNDDOWN(MIN(M13:V30)*1000000000,0)/1000000000*0.5 -> 1.4813e-05
B35: =setChartAxis("All_series","Chart 2","Max","Value","Primary",C35) -> Value Primary Max: 0.0265370325 | C35: =ROUNDUP(MAX(M13:V30)*1000000000,0)/1000000000*1.5 -> 0.0265370325
B36: Test!1
S132: 2027 | T132: 2028 | U132: 2029
S133: =IF(SUMIFS(_data_Forecast!K:K,_data_Forecast!$Q:$Q,#REF!,_data_Forecast!$C:$C,#REF!)=0,"NA",SUMIFS(_data_Forecast!K:K,_data_Forecast!$Q:$Q,#REF!,_data_Forecast!$C:$C,#REF!)) -> NA | T133: =IF(SUMIFS(_data_Forecast!L:L,_data_Forecast!$Q:$Q,#REF!,_data_Forecast!$C:$C,#REF!)=0,"NA",SUMIFS(_data_Forecast!L:L,_data_Forecast!$Q:$Q,#REF!,_data_Forecast!$C:$C,#REF!)) -> NA | U133: =IF(SUMIFS(_data_Forecast!M:M,_data_Forecast!$Q:$Q,#REF!,_data_Forecast!$C:$C,#REF!)=0,"NA",SUMIFS(_data_Forecast!M:M,_data_Forecast!$Q:$Q,#REF!,_data_Forecast!$C:$C,#REF!)) -> NA
S134: =IF(SUMIFS(_data_Forecast!K:K,_data_Forecast!$Q:$Q,#REF!,_data_Forecast!$C:$C,#REF!)=0,"NA",SUMIFS(_data_Forecast!K:K,_data_Forecast!$Q:$Q,#REF!,_data_Forecast!$C:$C,#REF!)) -> NA | T134: =IF(SUMIFS(_data_Forecast!L:L,_data_Forecast!$Q:$Q,#REF!,_data_Forecast!$C:$C,#REF!)=0,"NA",SUMIFS(_data_Forecast!L:L,_data_Forecast!$Q:$Q,#REF!,_data_Forecast!$C:$C,#REF!)) -> NA | U134: =IF(SUMIFS(_data_Forecast!M:M,_data_Forecast!$Q:$Q,#REF!,_data_Forecast!$C:$C,#REF!)=0,"NA",SUMIFS(_data_Forecast!M:M,_data_Forecast!$Q:$Q,#REF!,_data_Forecast!$C:$C,#REF!)) -> NA
S135: =IF(SUMIFS(_data_Forecast!K:K,_data_Forecast!$Q:$Q,#REF!,_data_Forecast!$C:$C,#REF!)=0,"NA",SUMIFS(_data_Forecast!K:K,_data_Forecast!$Q:$Q,#REF!,_data_Forecast!$C:$C,#REF!)) -> NA | T135: =IF(SUMIFS(_data_Forecast!L:L,_data_Forecast!$Q:$Q,#REF!,_data_Forecast!$C:$C,#REF!)=0,"NA",SUMIFS(_data_Forecast!L:L,_data_Forecast!$Q:$Q,#REF!,_data_Forecast!$C:$C,#REF!)) -> NA | U135: =IF(SUMIFS(_data_Forecast!M:M,_data_Forecast!$Q:$Q,#REF!,_data_Forecast!$C:$C,#REF!)=0,"NA",SUMIFS(_data_Forecast!M:M,_data_Forecast!$Q:$Q,#REF!,_data_Forecast!$C:$C,#REF!)) -> NA
S136: =IF(SUMIFS(_data_Forecast!K:K,_data_Forecast!$Q:$Q,#REF!,_data_Forecast!$C:$C,#REF!)=0,"NA",SUMIFS(_data_Forecast!K:K,_data_Forecast!$Q:$Q,#REF!,_data_Forecast!$C:$C,#REF!)) -> NA | T136: =IF(SUMIFS(_data_Forecast!L:L,_data_Forecast!$Q:$Q,#REF!,_data_Forecast!$C:$C,#REF!)=0,"NA",SUMIFS(_data_Forecast!L:L,_data_Forecast!$Q:$Q,#REF!,_data_Forecast!$C:$C,#REF!)) -> NA | U136: =IF(SUMIFS(_data_Forecast!M:M,_data_Forecast!$Q:$Q,#REF!,_data_Forecast!$C:$C,#REF!)=0,"NA",SUMIFS(_data_Forecast!M:M,_data_Forecast!$Q:$Q,#REF!,_data_Forecast!$C:$C,#REF!)) -> NA
S137: =IF(SUMIFS(_data_Forecast!K:K,_data_Forecast!$Q:$Q,#REF!,_data_Forecast!$C:$C,#REF!)=0,"NA",SUMIFS(_data_Forecast!K:K,_data_Forecast!$Q:$Q,#REF!,_data_Forecast!$C:$C,#REF!)) -> NA | T137: =IF(SUMIFS(_data_Forecast!L:L,_data_Forecast!$Q:$Q,#REF!,_data_Forecast!$C:$C,#REF!)=0,"NA",SUMIFS(_data_Forecast!L:L,_data_Forecast!$Q:$Q,#REF!,_data_Forecast!$C:$C,#REF!)) -> NA | U137: =IF(SUMIFS(_data_Forecast!M:M,_data_Forecast!$Q:$Q,#REF!,_data_Forecast!$C:$C,#REF!)=0,"NA",SUMIFS(_data_Forecast!M:M,_data_Forecast!$Q:$Q,#REF!,_data_Forecast!$C:$C,#REF!)) -> NA
S138: =IF(SUMIFS(_data_Forecast!K:K,_data_Forecast!$Q:$Q,#REF!,_data_Forecast!$C:$C,#REF!)=0,"NA",SUMIFS(_data_Forecast!K:K,_data_Forecast!$Q:$Q,#REF!,_data_Forecast!$C:$C,#REF!)) -> NA | T138: =IF(SUMIFS(_data_Forecast!L:L,_data_Forecast!$Q:$Q,#REF!,_data_Forecast!$C:$C,#REF!)=0,"NA",SUMIFS(_data_Forecast!L:L,_data_Forecast!$Q:$Q,#REF!,_data_Forecast!$C:$C,#REF!)) -> NA | U138: =IF(SUMIFS(_data_Forecast!M:M,_data_Forecast!$Q:$Q,#REF!,_data_Forecast!$C:$C,#REF!)=0,"NA",SUMIFS(_data_Forecast!M:M,_data_Forecast!$Q:$Q,#REF!,_data_Forecast!$C:$C,#REF!)) -> NA
S139: =IF(SUMIFS(_data_Forecast!K:K,_data_Forecast!$Q:$Q,#REF!,_data_Forecast!$C:$C,#REF!)=0,"NA",SUMIFS(_data_Forecast!K:K,_data_Forecast!$Q:$Q,#REF!,_data_Forecast!$C:$C,#REF!)) -> NA | T139: =IF(SUMIFS(_data_Forecast!L:L,_data_Forecast!$Q:$Q,#REF!,_data_Forecast!$C:$C,#REF!)=0,"NA",SUMIFS(_data_Forecast!L:L,_data_Forecast!$Q:$Q,#REF!,_data_Forecast!$C:$C,#REF!)) -> NA | U139: =IF(SUMIFS(_data_Forecast!M:M,_data_Forecast!$Q:$Q,#REF!,_data_Forecast!$C:$C,#REF!)=0,"NA",SUMIFS(_data_Forecast!M:M,_data_Forecast!$Q:$Q,#REF!,_data_Forecast!$C:$C,#REF!)) -> NA
S140: =IF(SUMIFS(_data_Forecast!K:K,_data_Forecast!$Q:$Q,#REF!,_data_Forecast!$C:$C,#REF!)=0,"NA",SUMIFS(_data_Forecast!K:K,_data_Forecast!$Q:$Q,#REF!,_data_Forecast!$C:$C,#REF!)) -> NA | T140: =IF(SUMIFS(_data_Forecast!L:L,_data_Forecast!$Q:$Q,#REF!,_data_Forecast!$C:$C,#REF!)=0,"NA",SUMIFS(_data_Forecast!L:L,_data_Forecast!$Q:$Q,#REF!,_data_Forecast!$C:$C,#REF!)) -> NA | U140: =IF(SUMIFS(_data_Forecast!M:M,_data_Forecast!$Q:$Q,#REF!,_data_Forecast!$C:$C,#REF!)=0,"NA",SUMIFS(_data_Forecast!M:M,_data_Forecast!$Q:$Q,#REF!,_data_Forecast!$C:$C,#REF!)) -> NA
S141: =IF(SUMIFS(_data_Forecast!K:K,_data_Forecast!$Q:$Q,#REF!,_data_Forecast!$C:$C,#REF!)=0,"NA",SUMIFS(_data_Forecast!K:K,_data_Forecast!$Q:$Q,#REF!,_data_Forecast!$C:$C,#REF!)) -> NA | T141: =IF(SUMIFS(_data_Forecast!L:L,_data_Forecast!$Q:$Q,#REF!,_data_Forecast!$C:$C,#REF!)=0,"NA",SUMIFS(_data_Forecast!L:L,_data_Forecast!$Q:$Q,#REF!,_data_Forecast!$C:$C,#REF!)) -> NA | U141: =IF(SUMIFS(_data_Forecast!M:M,_data_Forecast!$Q:$Q,#REF!,_data_Forecast!$C:$C,#REF!)=0,"NA",SUMIFS(_data_Forecast!M:M,_data_Forecast!$Q:$Q,#REF!,_data_Forecast!$C:$C,#REF!)) -> NA
S142: =IF(SUMIFS(_data_Forecast!K:K,_data_Forecast!$Q:$Q,#REF!,_data_Forecast!$C:$C,#REF!)=0,"NA",SUMIFS(_data_Forecast!K:K,_data_Forecast!$Q:$Q,#REF!,_data_Forecast!$C:$C,#REF!)) -> NA | T142: =IF(SUMIFS(_data_Forecast!L:L,_data_Forecast!$Q:$Q,#REF!,_data_Forecast!$C:$C,#REF!)=0,"NA",SUMIFS(_data_Forecast!L:L,_data_Forecast!$Q:$Q,#REF!,_data_Forecast!$C:$C,#REF!)) -> NA | U142: =IF(SUMIFS(_data_Forecast!M:M,_data_Forecast!$Q:$Q,#REF!,_data_Forecast!$C:$C,#REF!)=0,"NA",SUMIFS(_data_Forecast!M:M,_data_Forecast!$Q:$Q,#REF!,_data_Forecast!$C:$C,#REF!)) -> NA
S143: =IF(SUMIFS(_data_Forecast!K:K,_data_Forecast!$Q:$Q,#REF!,_data_Forecast!$C:$C,#REF!)=0,"NA",SUMIFS(_data_Forecast!K:K,_data_Forecast!$Q:$Q,#REF!,_data_Forecast!$C:$C,#REF!)) -> NA | T143: =IF(SUMIFS(_data_Forecast!L:L,_data_Forecast!$Q:$Q,#REF!,_data_Forecast!$C:$C,#REF!)=0,"NA",SUMIFS(_data_Forecast!L:L,_data_Forecast!$Q:$Q,#REF!,_data_Forecast!$C:$C,#REF!)) -> NA | U143: =IF(SUMIFS(_data_Forecast!M:M,_data_Forecast!$Q:$Q,#REF!,_data_Forecast!$C:$C,#REF!)=0,"NA",SUMIFS(_data_Forecast!M:M,_data_Forecast!$Q:$Q,#REF!,_data_Forecast!$C:$C,#REF!)) -> NA
S144: =IF(SUMIFS(_data_Forecast!K:K,_data_Forecast!$Q:$Q,#REF!,_data_Forecast!$C:$C,#REF!)=0,"NA",SUMIFS(_data_Forecast!K:K,_data_Forecast!$Q:$Q,#REF!,_data_Forecast!$C:$C,#REF!)) -> NA | T144: =IF(SUMIFS(_data_Forecast!L:L,_data_Forecast!$Q:$Q,#REF!,_data_Forecast!$C:$C,#REF!)=0,"NA",SUMIFS(_data_Forecast!L:L,_data_Forecast!$Q:$Q,#REF!,_data_Forecast!$C:$C,#REF!)) -> NA | U144: =IF(SUMIFS(_data_Forecast!M:M,_data_Forecast!$Q:$Q,#REF!,_data_Forecast!$C:$C,#REF!)=0,"NA",SUMIFS(_data_Forecast!M:M,_data_Forecast!$Q:$Q,#REF!,_data_Forecast!$C:$C,#REF!)) -> NA
S145: =IF(SUMIFS(_data_Forecast!K:K,_data_Forecast!$Q:$Q,#REF!,_data_Forecast!$C:$C,#REF!)=0,"NA",SUMIFS(_data_Forecast!K:K,_data_Forecast!$Q:$Q,#REF!,_data_Forecast!$C:$C,#REF!)) -> NA | T145: =IF(SUMIFS(_data_Forecast!L:L,_data_Forecast!$Q:$Q,#REF!,_data_Forecast!$C:$C,#REF!)=0,"NA",SUMIFS(_data_Forecast!L:L,_data_Forecast!$Q:$Q,#REF!,_data_Forecast!$C:$C,#REF!)) -> NA | U145: =IF(SUMIFS(_data_Forecast!M:M,_data_Forecast!$Q:$Q,#REF!,_data_Forecast!$C:$C,#REF!)=0,"NA",SUMIFS(_data_Forecast!M:M,_data_Forecast!$Q:$Q,#REF!,_data_Forecast!$C:$C,#REF!)) -> NA
S146: =IF(SUMIFS(_data_Forecast!K:K,_data_Forecast!$Q:$Q,#REF!,_data_Forecast!$C:$C,#REF!)=0,"NA",SUMIFS(_data_Forecast!K:K,_data_Forecast!$Q:$Q,#REF!,_data_Forecast!$C:$C,#REF!)) -> NA | T146: =IF(SUMIFS(_data_Forecast!L:L,_data_Forecast!$Q:$Q,#REF!,_data_Forecast!$C:$C,#REF!)=0,"NA",SUMIFS(_data_Forecast!L:L,_data_Forecast!$Q:$Q,#REF!,_data_Forecast!$C:$C,#REF!)) -> NA | U146: =IF(SUMIFS(_data_Forecast!M:M,_data_Forecast!$Q:$Q,#REF!,_data_Forecast!$C:$C,#REF!)=0,"NA",SUMIFS(_data_Forecast!M:M,_data_Forecast!$Q:$Q,#REF!,_data_Forecast!$C:$C,#REF!)) -> NA
S147: =IF(SUMIFS(_data_Forecast!K:K,_data_Forecast!$Q:$Q,#REF!,_data_Forecast!$C:$C,#REF!)=0,"NA",SUMIFS(_data_Forecast!K:K,_data_Forecast!$Q:$Q,#REF!,_data_Forecast!$C:$C,#REF!)) -> NA | T147: =IF(SUMIFS(_data_Forecast!L:L,_data_Forecast!$Q:$Q,#REF!,_data_Forecast!$C:$C,#REF!)=0,"NA",SUMIFS(_data_Forecast!L:L,_data_Forecast!$Q:$Q,#REF!,_data_Forecast!$C:$C,#REF!)) -> NA | U147: =IF(SUMIFS(_data_Forecast!M:M,_data_Forecast!$Q:$Q,#REF!,_data_Forecast!$C:$C,#REF!)=0,"NA",SUMIFS(_data_Forecast!M:M,_data_Forecast!$Q:$Q,#REF!,_data_Forecast!$C:$C,#REF!)) -> NA
S148: =IF(SUMIFS(_data_Forecast!K:K,_data_Forecast!$Q:$Q,#REF!,_data_Forecast!$C:$C,#REF!)=0,"NA",SUMIFS(_data_Forecast!K:K,_data_Forecast!$Q:$Q,#REF!,_data_Forecast!$C:$C,#REF!)) -> NA | T148: =IF(SUMIFS(_data_Forecast!L:L,_data_Forecast!$Q:$Q,#REF!,_data_Forecast!$C:$C,#REF!)=0,"NA",SUMIFS(_data_Forecast!L:L,_data_Forecast!$Q:$Q,#REF!,_data_Forecast!$C:$C,#REF!)) -> NA | U148: =IF(SUMIFS(_data_Forecast!M:M,_data_Forecast!$Q:$Q,#REF!,_data_Forecast!$C:$C,#REF!)=0,"NA",SUMIFS(_data_Forecast!M:M,_data_Forecast!$Q:$Q,#REF!,_data_Forecast!$C:$C,#REF!)) -> NA
S149: =IF(SUMIFS(_data_Forecast!K:K,_data_Forecast!$Q:$Q,#REF!,_data_Forecast!$C:$C,#REF!)=0,"NA",SUMIFS(_data_Forecast!K:K,_data_Forecast!$Q:$Q,#REF!,_data_Forecast!$C:$C,#REF!)) -> NA | T149: =IF(SUMIFS(_data_Forecast!L:L,_data_Forecast!$Q:$Q,#REF!,_data_Forecast!$C:$C,#REF!)=0,"NA",SUMIFS(_data_Forecast!L:L,_data_Forecast!$Q:$Q,#REF!,_data_Forecast!$C:$C,#REF!)) -> NA | U149: =IF(SUMIFS(_data_Forecast!M:M,_data_Forecast!$Q:$Q,#REF!,_data_Forecast!$C:$C,#REF!)=0,"NA",SUMIFS(_data_Forecast!M:M,_data_Forecast!$Q:$Q,#REF!,_data_Forecast!$C:$C,#REF!)) -> NA
S150: =IF(SUMIFS(_data_Forecast!K:K,_data_Forecast!$Q:$Q,#REF!,_data_Forecast!$C:$C,#REF!)=0,"NA",SUMIFS(_data_Forecast!K:K,_data_Forecast!$Q:$Q,#REF!,_data_Forecast!$C:$C,#REF!)) -> NA | T150: =IF(SUMIFS(_data_Forecast!L:L,_data_Forecast!$Q:$Q,#REF!,_data_Forecast!$C:$C,#REF!)=0,"NA",SUMIFS(_data_Forecast!L:L,_data_Forecast!$Q:$Q,#REF!,_data_Forecast!$C:$C,#REF!)) -> NA | U150: =IF(SUMIFS(_data_Forecast!M:M,_data_Forecast!$Q:$Q,#REF!,_data_Forecast!$C:$C,#REF!)=0,"NA",SUMIFS(_data_Forecast!M:M,_data_Forecast!$Q:$Q,#REF!,_data_Forecast!$C:$C,#REF!)) -> NA

Sheet Gender_comparison
B2: Option 1 - Select Combination Using Drop-down List | N2: Option 2 - Click Buttons to Select Combination
B4: Region | C4: Area | D4: Cause | F4: Year | X4: Region | Y4: Area | Z4: Cause | AA4: Year | AB4: 5
B5: Central | C5: Rural | D5: Digestive | F5: 2029 | X5: =OFFSET(_tbl!G$3,comb_id,0) -> Central | Y5: =OFFSET(_tbl!H$3,comb_id,0) -> Rural | Z5: =OFFSET(_tbl!I$3,comb_id,0) -> Digestive | AA5: =F5 -> 2029
B9: CHARTS AND DATA | E9: =IF(COUNTIFS(O13:P30,"NA")=36, "Combination Not Available", B5&", "&C5&", Cause "&D5&", Forecast Year "&F5) -> Central, Rural, Cause Digestive, Forecast Year 2029
N12: Age/Gender | O12: Male | P12: Female
N13: 1-4 | O13: =IF(SUMIFS(INDEX(_data_Forecast!$D:$M,0,MATCH($F$5,_data_Forecast!$D$3:$M$3,0)),_data_Forecast!$O:$O,$B$5,_data_Forecast!$P:$P,$C$5,_data_Forecast!$N:$N,O$12,_data_Forecast!$Q:$Q,$D$5,_data_Forecast!$C:$C,$N13)=0,"NA",SUMIFS(INDEX(_data_Forecast!$D:$M,0,MATCH($F$5,_data_Forecast!$D$3:$M$3,0)),_data_Forecast!$O:$O,$B$5,_data_Forecast!$P:$P,$C$5,_data_Forecast!$N:$N,O$12,_data_Forecast!$Q:$Q,$D$5,_data_Forecast!$C:$C,$N13)) -> 3.29016227e-06 | P13: =IF(SUMIFS(INDEX(_data_Forecast!$D:$M,0,MATCH($F$5,_data_Forecast!$D$3:$M$3,0)),_data_Forecast!$O:$O,$B$5,_data_Forecast!$P:$P,$C$5,_data_Forecast!$N:$N,P$12,_data_Forecast!$Q:$Q,$D$5,_data_Forecast!$C:$C,$N13)=0,"NA",SUMIFS(INDEX(_data_Forecast!$D:$M,0,MATCH($F$5,_data_Forecast!$D$3:$M$3,0)),_data_Forecast!$O:$O,$B$5,_data_Forecast!$P:$P,$C$5,_data_Forecast!$N:$N,P$12,_data_Forecast!$Q:$Q,$D$5,_data_Forecast!$C:$C,$N13)) -> 1.89158897e-06
N14: 5-9 | O14: =IF(SUMIFS(INDEX(_data_Forecast!$D:$M,0,MATCH($F$5,_data_Forecast!$D$3:$M$3,0)),_data_Forecast!$O:$O,$B$5,_data_Forecast!$P:$P,$C$5,_data_Forecast!$N:$N,O$12,_data_Forecast!$Q:$Q,$D$5,_data_Forecast!$C:$C,$N14)=0,"NA",SUMIFS(INDEX(_data_Forecast!$D:$M,0,MATCH($F$5,_data_Forecast!$D$3:$M$3,0)),_data_Forecast!$O:$O,$B$5,_data_Forecast!$P:$P,$C$5,_data_Forecast!$N:$N,O$12,_data_Forecast!$Q:$Q,$D$5,_data_Forecast!$C:$C,$N14)) -> 8.446526451e-07 | P14: =IF(SUMIFS(INDEX(_data_Forecast!$D:$M,0,MATCH($F$5,_data_Forecast!$D$3:$M$3,0)),_data_Forecast!$O:$O,$B$5,_data_Forecast!$P:$P,$C$5,_data_Forecast!$N:$N,P$12,_data_Forecast!$Q:$Q,$D$5,_data_Forecast!$C:$C,$N14)=0,"NA",SUMIFS(INDEX(_data_Forecast!$D:$M,0,MATCH($F$5,_data_Forecast!$D$3:$M$3,0)),_data_Forecast!$O:$O,$B$5,_data_Forecast!$P:$P,$C$5,_data_Forecast!$N:$N,P$12,_data_Forecast!$Q:$Q,$D$5,_data_Forecast!$C:$C,$N14)) -> 9.110897757e-07
N15: 10-14 | O15: =IF(SUMIFS(INDEX(_data_Forecast!$D:$M,0,MATCH($F$5,_data_Forecast!$D$3:$M$3,0)),_data_Forecast!$O:$O,$B$5,_data_Forecast!$P:$P,$C$5,_data_Forecast!$N:$N,O$12,_data_Forecast!$Q:$Q,$D$5,_data_Forecast!$C:$C,$N15)=0,"NA",SUMIFS(INDEX(_data_Forecast!$D:$M,0,MATCH($F$5,_data_Forecast!$D$3:$M$3,0)),_data_Forecast!$O:$O,$B$5,_data_Forecast!$P:$P,$C$5,_data_Forecast!$N:$N,O$12,_data_Forecast!$Q:$Q,$D$5,_data_Forecast!$C:$C,$N15)) -> 7.903118818e-07 | P15: =IF(SUMIFS(INDEX(_data_Forecast!$D:$M,0,MATCH($F$5,_data_Forecast!$D$3:$M$3,0)),_data_Forecast!$O:$O,$B$5,_data_Forecast!$P:$P,$C$5,_data_Forecast!$N:$N,P$12,_data_Forecast!$Q:$Q,$D$5,_data_Forecast!$C:$C,$N15)=0,"NA",SUMIFS(INDEX(_data_Forecast!$D:$M,0,MATCH($F$5,_data_Forecast!$D$3:$M$3,0)),_data_Forecast!$O:$O,$B$5,_data_Forecast!$P:$P,$C$5,_data_Forecast!$N:$N,P$12,_data_Forecast!$Q:$Q,$D$5,_data_Forecast!$C:$C,$N15)) -> 8.947034468e-07
N16: 15-19 | O16: =IF(SUMIFS(INDEX(_data_Forecast!$D:$M,0,MATCH($F$5,_data_Forecast!$D$3:$M$3,0)),_data_Forecast!$O:$O,$B$5,_data_Forecast!$P:$P,$C$5,_data_Forecast!$N:$N,O$12,_data_Forecast!$Q:$Q,$D$5,_data_Forecast!$C:$C,$N16)=0,"NA",SUMIFS(INDEX(_data_Forecast!$D:$M,0,MATCH($F$5,_data_Forecast!$D$3:$M$3,0)),_data_Forecast!$O:$O,$B$5,_data_Forecast!$P:$P,$C$5,_data_Forecast!$N:$N,O$12,_data_Forecast!$Q:$Q,$D$5,_data_Forecast!$C:$C,$N16)) -> 1.288551863e-06 | P16: =IF(SUMIFS(INDEX(_data_Forecast!$D:$M,0,MATCH($F$5,_data_Forecast!$D$3:$M$3,0)),_data_Forecast!$O:$O,$B$5,_data_Forecast!$P:$P,$C$5,_data_Forecast!$N:$N,P$12,_data_Forecast!$Q:$Q,$D$5,_data_Forecast!$C:$C,$N16)=0,"NA",SUMIFS(INDEX(_data_Forecast!$D:$M,0,MATCH($F$5,_data_Forecast!$D$3:$M$3,0)),_data_Forecast!$O:$O,$B$5,_data_Forecast!$P:$P,$C$5,_data_Forecast!$N:$N,P$12,_data_Forecast!$Q:$Q,$D$5,_data_Forecast!$C:$C,$N16)) -> 1.234268238e-06
N17: 20-24 | O17: =IF(SUMIFS(INDEX(_data_Forecast!$D:$M,0,MATCH($F$5,_data_Forecast!$D$3:$M$3,0)),_data_Forecast!$O:$O,$B$5,_data_Forecast!$P:$P,$C$5,_data_Forecast!$N:$N,O$12,_data_Forecast!$Q:$Q,$D$5,_data_Forecast!$C:$C,$N17)=0,"NA",SUMIFS(INDEX(_data_Forecast!$D:$M,0,MATCH($F$5,_data_Forecast!$D$3:$M$3,0)),_data_Forecast!$O:$O,$B$5,_data_Forecast!$P:$P,$C$5,_data_Forecast!$N:$N,O$12,_data_Forecast!$Q:$Q,$D$5,_data_Forecast!$C:$C,$N17)) -> 2.800085974e-06 | P17: =IF(SUMIFS(INDEX(_data_Forecast!$D:$M,0,MATCH($F$5,_data_Forecast!$D$3:$M$3,0)),_data_Forecast!$O:$O,$B$5,_data_Forecast!$P:$P,$C$5,_data_Forecast!$N:$N,P$12,_data_Forecast!$Q:$Q,$D$5,_data_Forecast!$C:$C,$N17)=0,"NA",SUMIFS(INDEX(_data_Forecast!$D:$M,0,MATCH($F$5,_data_Forecast!$D$3:$M$3,0)),_data_Forecast!$O:$O,$B$5,_data_Forecast!$P:$P,$C$5,_data_Forecast!$N:$N,P$12,_data_Forecast!$Q:$Q,$D$5,_data_Forecast!$C:$C,$N17)) -> 1.403590547e-06
N18: 25-29 | O18: =IF(SUMIFS(INDEX(_data_Forecast!$D:$M,0,MATCH($F$5,_data_Forecast!$D$3:$M$3,0)),_data_Forecast!$O:$O,$B$5,_data_Forecast!$P:$P,$C$5,_data_Forecast!$N:$N,O$12,_data_Forecast!$Q:$Q,$D$5,_data_Forecast!$C:$C,$N18)=0,"NA",SUMIFS(INDEX(_data_Forecast!$D:$M,0,MATCH($F$5,_data_Forecast!$D$3:$M$3,0)),_data_Forecast!$O:$O,$B$5,_data_Forecast!$P:$P,$C$5,_data_Forecast!$N:$N,O$12,_data_Forecast!$Q:$Q,$D$5,_data_Forecast!$C:$C,$N18)) -> 6.474626155e-06 | P18: =IF(SUMIFS(INDEX(_data_Forecast!$D:$M,0,MATCH($F$5,_data_Forecast!$D$3:$M$3,0)),_data_Forecast!$O:$O,$B$5,_data_Forecast!$P:$P,$C$5,_data_Forecast!$N:$N,P$12,_data_Forecast!$Q:$Q,$D$5,_data_Forecast!$C:$C,$N18)=0,"NA",SUMIFS(INDEX(_data_Forecast!$D:$M,0,MATCH($F$5,_data_Forecast!$D$3:$M$3,0)),_data_Forecast!$O:$O,$B$5,_data_Forecast!$P:$P,$C$5,_data_Forecast!$N:$N,P$12,_data_Forecast!$Q:$Q,$D$5,_data_Forecast!$C:$C,$N18)) -> 1.63659925e-06
N19: 30-34 | O19: =IF(SUMIFS(INDEX(_data_Forecast!$D:$M,0,MATCH($F$5,_data_Forecast!$D$3:$M$3,0)),_data_Forecast!$O:$O,$B$5,_data_Forecast!$P:$P,$C$5,_data_Forecast!$N:$N,O$12,_data_Forecast!$Q:$Q,$D$5,_data_Forecast!$C:$C,$N19)=0,"NA",SUMIFS(INDEX(_data_Forecast!$D:$M,0,MATCH($F$5,_data_Forecast!$D$3:$M$3,0)),_data_Forecast!$O:$O,$B$5,_data_Forecast!$P:$P,$C$5,_data_Forecast!$N:$N,O$12,_data_Forecast!$Q:$Q,$D$5,_data_Forecast!$C:$C,$N19)) -> 1.316918562e-05 | P19: =IF(SUMIFS(INDEX(_data_Forecast!$D:$M,0,MATCH($F$5,_data_Forecast!$D$3:$M$3,0)),_data_Forecast!$O:$O,$B$5,_data_Forecast!$P:$P,$C$5,_data_Forecast!$N:$N,P$12,_data_Forecast!$Q:$Q,$D$5,_data_Forecast!$C:$C,$N19)=0,"NA",SUMIFS(INDEX(_data_Forecast!$D:$M,0,MATCH($F$5,_data_Forecast!$D$3:$M$3,0)),_data_Forecast!$O:$O,$B$5,_data_Forecast!$P:$P,$C$5,_data_Forecast!$N:$N,P$12,_data_Forecast!$Q:$Q,$D$5,_data_Forecast!$C:$C,$N19)) -> 2.513202511e-06
N20: 35-39 | O20: =IF(SUMIFS(INDEX(_data_Forecast!$D:$M,0,MATCH($F$5,_data_Forecast!$D$3:$M$3,0)),_data_Forecast!$O:$O,$B$5,_data_Forecast!$P:$P,$C$5,_data_Forecast!$N:$N,O$12,_data_Forecast!$Q:$Q,$D$5,_data_Forecast!$C:$C,$N20)=0,"NA",SUMIFS(INDEX(_data_Forecast!$D:$M,0,MATCH($F$5,_data_Forecast!$D$3:$M$3,0)),_data_Forecast!$O:$O,$B$5,_data_Forecast!$P:$P,$C$5,_data_Forecast!$N:$N,O$12,_data_Forecast!$Q:$Q,$D$5,_data_Forecast!$C:$C,$N20)) -> 2.461017153e-05 | P20: =IF(SUMIFS(INDEX(_data_Forecast!$D:$M,0,MATCH($F$5,_data_Forecast!$D$3:$M$3,0)),_data_Forecast!$O:$O,$B$5,_data_Forecast!$P:$P,$C$5,_data_Forecast!$N:$N,P$12,_data_Forecast!$Q:$Q,$D$5,_data_Forecast!$C:$C,$N20)=0,"NA",SUMIFS(INDEX(_data_Forecast!$D:$M,0,MATCH($F$5,_data_Forecast!$D$3:$M$3,0)),_data_Forecast!$O:$O,$B$5,_data_Forecast!$P:$P,$C$5,_data_Forecast!$N:$N,P$12,_data_Forecast!$Q:$Q,$D$5,_data_Forecast!$C:$C,$N20)) -> 4.330317486e-06
N21: 40-44 | O21: =IF(SUMIFS(INDEX(_data_Forecast!$D:$M,0,MATCH($F$5,_data_Forecast!$D$3:$M$3,0)),_data_Forecast!$O:$O,$B$5,_data_Forecast!$P:$P,$C$5,_data_Forecast!$N:$N,O$12,_data_Forecast!$Q:$Q,$D$5,_data_Forecast!$C:$C,$N21)=0,"NA",SUMIFS(INDEX(_data_Forecast!$D:$M,0,MATCH($F$5,_data_Forecast!$D$3:$M$3,0)),_data_Forecast!$O:$O,$B$5,_data_Forecast!$P:$P,$C$5,_data_Forecast!$N:$N,O$12,_data_Forecast!$Q:$Q,$D$5,_data_Forecast!$C:$C,$N21)) -> 3.629523907e-05 | P21: =IF(SUMIFS(INDEX(_data_Forecast!$D:$M,0,MATCH($F$5,_data_Forecast!$D$3:$M$3,0)),_data_Forecast!$O:$O,$B$5,_data_Forecast!$P:$P,$C$5,_data_Forecast!$N:$N,P$12,_data_Forecast!$Q:$Q,$D$5,_data_Forecast!$C:$C,$N21)=0,"NA",SUMIFS(INDEX(_data_Forecast!$D:$M,0,MATCH($F$5,_data_Forecast!$D$3:$M$3,0)),_data_Forecast!$O:$O,$B$5,_data_Forecast!$P:$P,$C$5,_data_Forecast!$N:$N,P$12,_data_Forecast!$Q:$Q,$D$5,_data_Forecast!$C:$C,$N21)) -> 6.892335276e-06
N22: 45-49 | O22: =IF(SUMIFS(INDEX(_data_Forecast!$D:$M,0,MATCH($F$5,_data_Forecast!$D$3:$M$3,0)),_data_Forecast!$O:$O,$B$5,_data_Forecast!$P:$P,$C$5,_data_Forecast!$N:$N,O$12,_data_Forecast!$Q:$Q,$D$5,_data_Forecast!$C:$C,$N22)=0,"NA",SUMIFS(INDEX(_data_Forecast!$D:$M,0,MATCH($F$5,_data_Forecast!$D$3:$M$3,0)),_data_Forecast!$O:$O,$B$5,_data_Forecast!$P:$P,$C$5,_data_Forecast!$N:$N,O$12,_data_Forecast!$Q:$Q,$D$5,_data_Forecast!$C:$C,$N22)) -> 5.518539373e-05 | P22: =IF(SUMIFS(INDEX(_data_Forecast!$D:$M,0,MATCH($F$5,_data_Forecast!$D$3:$M$3,0)),_data_Forecast!$O:$O,$B$5,_data_Forecast!$P:$P,$C$5,_data_Forecast!$N:$N,P$12,_data_Forecast!$Q:$Q,$D$5,_data_Forecast!$C:$C,$N22)=0,"NA",SUMIFS(INDEX(_data_Forecast!$D:$M,0,MATCH($F$5,_data_Forecast!$D$3:$M$3,0)),_data_Forecast!$O:$O,$B$5,_data_Forecast!$P:$P,$C$5,_data_Forecast!$N:$N,P$12,_data_Forecast!$Q:$Q,$D$5,_data_Forecast!$C:$C,$N22)) -> 1.04750979e-05
N23: 50-54 | O23: =IF(SUMIFS(INDEX(_data_Forecast!$D:$M,0,MATCH($F$5,_data_Forecast!$D$3:$M$3,0)),_data_Forecast!$O:$O,$B$5,_data_Forecast!$P:$P,$C$5,_data_Forecast!$N:$N,O$12,_data_Forecast!$Q:$Q,$D$5,_data_Forecast!$C:$C,$N23)=0,"NA",SUMIFS(INDEX(_data_Forecast!$D:$M,0,MATCH($F$5,_data_Forecast!$D$3:$M$3,0)),_data_Forecast!$O:$O,$B$5,_data_Forecast!$P:$P,$C$5,_data_Forecast!$N:$N,O$12,_data_Forecast!$Q:$Q,$D$5,_data_Forecast!$C:$C,$N23)) -> 7.771245013e-05 | P23: =IF(SUMIFS(INDEX(_data_Forecast!$D:$M,0,MATCH($F$5,_data_Forecast!$D$3:$M$3,0)),_data_Forecast!$O:$O,$B$5,_data_Forecast!$P:$P,$C$5,_data_Forecast!$N:$N,P$12,_data_Forecast!$Q:$Q,$D$5,_data_Forecast!$C:$C,$N23)=0,"NA",SUMIFS(INDEX(_data_Forecast!$D:$M,0,MATCH($F$5,_data_Forecast!$D$3:$M$3,0)),_data_Forecast!$O:$O,$B$5,_data_Forecast!$P:$P,$C$5,_data_Forecast!$N:$N,P$12,_data_Forecast!$Q:$Q,$D$5,_data_Forecast!$C:$C,$N23)) -> 1.712752895e-05
N24: 55-59 | O24: =IF(SUMIFS(INDEX(_data_Forecast!$D:$M,0,MATCH($F$5,_data_Forecast!$D$3:$M$3,0)),_data_Forecast!$O:$O,$B$5,_data_Forecast!$P:$P,$C$5,_data_Forecast!$N:$N,O$12,_data_Forecast!$Q:$Q,$D$5,_data_Forecast!$C:$C,$N24)=0,"NA",SUMIFS(INDEX(_data_Forecast!$D:$M,0,MATCH($F$5,_data_Forecast!$D$3:$M$3,0)),_data_Forecast!$O:$O,$B$5,_data_Forecast!$P:$P,$C$5,_data_Forecast!$N:$N,O$12,_data_Forecast!$Q:$Q,$D$5,_data_Forecast!$C:$C,$N24)) -> 8.393008724e-05 | P24: =IF(SUMIFS(INDEX(_data_Forecast!$D:$M,0,MATCH($F$5,_data_Forecast!$D$3:$M$3,0)),_data_Forecast!$O:$O,$B$5,_data_Forecast!$P:$P,$C$5,_data_Forecast!$N:$N,P$12,_data_Forecast!$Q:$Q,$D$5,_data_Forecast!$C:$C,$N24)=0,"NA",SUMIFS(INDEX(_data_Forecast!$D:$M,0,MATCH($F$5,_data_Forecast!$D$3:$M$3,0)),_data_Forecast!$O:$O,$B$5,_data_Forecast!$P:$P,$C$5,_data_Forecast!$N:$N,P$12,_data_Forecast!$Q:$Q,$D$5,_data_Forecast!$C:$C,$N24)) -> 3.059723086e-05
N25: 60-64 | O25: =IF(SUMIFS(INDEX(_data_Forecast!$D:$M,0,MATCH($F$5,_data_Forecast!$D$3:$M$3,0)),_data_Forecast!$O:$O,$B$5,_data_Forecast!$P:$P,$C$5,_data_Forecast!$N:$N,O$12,_data_Forecast!$Q:$Q,$D$5,_data_Forecast!$C:$C,$N25)=0,"NA",SUMIFS(INDEX(_data_Forecast!$D:$M,0,MATCH($F$5,_data_Forecast!$D$3:$M$3,0)),_data_Forecast!$O:$O,$B$5,_data_Forecast!$P:$P,$C$5,_data_Forecast!$N:$N,O$12,_data_Forecast!$Q:$Q,$D$5,_data_Forecast!$C:$C,$N25)) -> 0.000100560355 | P25: =IF(SUMIFS(INDEX(_data_Forecast!$D:$M,0,MATCH($F$5,_data_Forecast!$D$3:$M$3,0)),_data_Forecast!$O:$O,$B$5,_data_Forecast!$P:$P,$C$5,_data_Forecast!$N:$N,P$12,_data_Forecast!$Q:$Q,$D$5,_data_Forecast!$C:$C,$N25)=0,"NA",SUMIFS(INDEX(_data_Forecast!$D:$M,0,MATCH($F$5,_data_Forecast!$D$3:$M$3,0)),_data_Forecast!$O:$O,$B$5,_data_Forecast!$P:$P,$C$5,_data_Forecast!$N:$N,P$12,_data_Forecast!$Q:$Q,$D$5,_data_Forecast!$C:$C,$N25)) -> 5.513537438e-05
N26: 65-69 | O26: =IF(SUMIFS(INDEX(_data_Forecast!$D:$M,0,MATCH($F$5,_data_Forecast!$D$3:$M$3,0)),_data_Forecast!$O:$O,$B$5,_data_Forecast!$P:$P,$C$5,_data_Forecast!$N:$N,O$12,_data_Forecast!$Q:$Q,$D$5,_data_Forecast!$C:$C,$N26)=0,"NA",SUMIFS(INDEX(_data_Forecast!$D:$M,0,MATCH($F$5,_data_Forecast!$D$3:$M$3,0)),_data_Forecast!$O:$O,$B$5,_data_Forecast!$P:$P,$C$5,_data_Forecast!$N:$N,O$12,_data_Forecast!$Q:$Q,$D$5,_data_Forecast!$C:$C,$N26)) -> 0.0001231283632 | P26: =IF(SUMIFS(INDEX(_data_Forecast!$D:$M,0,MATCH($F$5,_data_Forecast!$D$3:$M$3,0)),_data_Forecast!$O:$O,$B$5,_data_Forecast!$P:$P,$C$5,_data_Forecast!$N:$N,P$12,_data_Forecast!$Q:$Q,$D$5,_data_Forecast!$C:$C,$N26)=0,"NA",SUMIFS(INDEX(_data_Forecast!$D:$M,0,MATCH($F$5,_data_Forecast!$D$3:$M$3,0)),_data_Forecast!$O:$O,$B$5,_data_Forecast!$P:$P,$C$5,_data_Forecast!$N:$N,P$12,_data_Forecast!$Q:$Q,$D$5,_data_Forecast!$C:$C,$N26)) -> 9.509295137e-05
N27: 70-74 | O27: =IF(SUMIFS(INDEX(_data_Forecast!$D:$M,0,MATCH($F$5,_data_Forecast!$D$3:$M$3,0)),_data_Forecast!$O:$O,$B$5,_data_Forecast!$P:$P,$C$5,_data_Forecast!$N:$N,O$12,_data_Forecast!$Q:$Q,$D$5,_data_Forecast!$C:$C,$N27)=0,"NA",SUMIFS(INDEX(_data_Forecast!$D:$M,0,MATCH($F$5,_data_Forecast!$D$3:$M$3,0)),_data_Forecast!$O:$O,$B$5,_data_Forecast!$P:$P,$C$5,_data_Forecast!$N:$N,O$12,_data_Forecast!$Q:$Q,$D$5,_data_Forecast!$C:$C,$N27)) -> 0.0001674931882 | P27: =IF(SUMIFS(INDEX(_data_Forecast!$D:$M,0,MATCH($F$5,_data_Forecast!$D$3:$M$3,0)),_data_Forecast!$O:$O,$B$5,_data_Forecast!$P:$P,$C$5,_data_Forecast!$N:$N,P$12,_data_Forecast!$Q:$Q,$D$5,_data_Forecast!$C:$C,$N27)=0,"NA",SUMIFS(INDEX(_data_Forecast!$D:$M,0,MATCH($F$5,_data_Forecast!$D$3:$M$3,0)),_data_Forecast!$O:$O,$B$5,_data_Forecast!$P:$P,$C$5,_data_Forecast!$N:$N,P$12,_data_Forecast!$Q:$Q,$D$5,_data_Forecast!$C:$C,$N27)) -> 0.000162480272
N28: 75-79 | O28: =IF(SUMIFS(INDEX(_data_Forecast!$D:$M,0,MATCH($F$5,_data_Forecast!$D$3:$M$3,0)),_data_Forecast!$O:$O,$B$5,_data_Forecast!$P:$P,$C$5,_data_Forecast!$N:$N,O$12,_data_Forecast!$Q:$Q,$D$5,_data_Forecast!$C:$C,$N28)=0,"NA",SUMIFS(INDEX(_data_Forecast!$D:$M,0,MATCH($F$5,_data_Forecast!$D$3:$M$3,0)),_data_Forecast!$O:$O,$B$5,_data_Forecast!$P:$P,$C$5,_data_Forecast!$N:$N,O$12,_data_Forecast!$Q:$Q,$D$5,_data_Forecast!$C:$C,$N28)) -> 0.0002679423542 | P28: =IF(SUMIFS(INDEX(_data_Forecast!$D:$M,0,MATCH($F$5,_data_Forecast!$D$3:$M$3,0)),_data_Forecast!$O:$O,$B$5,_data_Forecast!$P:$P,$C$5,_data_Forecast!$N:$N,P$12,_data_Forecast!$Q:$Q,$D$5,_data_Forecast!$C:$C,$N28)=0,"NA",SUMIFS(INDEX(_data_Forecast!$D:$M,0,MATCH($F$5,_data_Forecast!$D$3:$M$3,0)),_data_Forecast!$O:$O,$B$5,_data_Forecast!$P:$P,$C$5,_data_Forecast!$N:$N,P$12,_data_Forecast!$Q:$Q,$D$5,_data_Forecast!$C:$C,$N28)) -> 0.0002950996382
N29: 80-84 | O29: =IF(SUMIFS(INDEX(_data_Forecast!$D:$M,0,MATCH($F$5,_data_Forecast!$D$3:$M$3,0)),_data_Forecast!$O:$O,$B$5,_data_Forecast!$P:$P,$C$5,_data_Forecast!$N:$N,O$12,_data_Forecast!$Q:$Q,$D$5,_data_Forecast!$C:$C,$N29)=0,"NA",SUMIFS(INDEX(_data_Forecast!$D:$M,0,MATCH($F$5,_data_Forecast!$D$3:$M$3,0)),_data_Forecast!$O:$O,$B$5,_data_Forecast!$P:$P,$C$5,_data_Forecast!$N:$N,O$12,_data_Forecast!$Q:$Q,$D$5,_data_Forecast!$C:$C,$N29)) -> 0.0004849192484 | P29: =IF(SUMIFS(INDEX(_data_Forecast!$D:$M,0,MATCH($F$5,_data_Forecast!$D$3:$M$3,0)),_data_Forecast!$O:$O,$B$5,_data_Forecast!$P:$P,$C$5,_data_Forecast!$N:$N,P$12,_data_Forecast!$Q:$Q,$D$5,_data_Forecast!$C:$C,$N29)=0,"NA",SUMIFS(INDEX(_data_Forecast!$D:$M,0,MATCH($F$5,_data_Forecast!$D$3:$M$3,0)),_data_Forecast!$O:$O,$B$5,_data_Forecast!$P:$P,$C$5,_data_Forecast!$N:$N,P$12,_data_Forecast!$Q:$Q,$D$5,_data_Forecast!$C:$C,$N29)) -> 0.0005843057477
N30: 85+ | O30: =IF(SUMIFS(INDEX(_data_Forecast!$D:$M,0,MATCH($F$5,_data_Forecast!$D$3:$M$3,0)),_data_Forecast!$O:$O,$B$5,_data_Forecast!$P:$P,$C$5,_data_Forecast!$N:$N,O$12,_data_Forecast!$Q:$Q,$D$5,_data_Forecast!$C:$C,$N30)=0,"NA",SUMIFS(INDEX(_data_Forecast!$D:$M,0,MATCH($F$5,_data_Forecast!$D$3:$M$3,0)),_data_Forecast!$O:$O,$B$5,_data_Forecast!$P:$P,$C$5,_data_Forecast!$N:$N,O$12,_data_Forecast!$Q:$Q,$D$5,_data_Forecast!$C:$C,$N30)) -> 0.0008689291316 | P30: =IF(SUMIFS(INDEX(_data_Forecast!$D:$M,0,MATCH($F$5,_data_Forecast!$D$3:$M$3,0)),_data_Forecast!$O:$O,$B$5,_data_Forecast!$P:$P,$C$5,_data_Forecast!$N:$N,P$12,_data_Forecast!$Q:$Q,$D$5,_data_Forecast!$C:$C,$N30)=0,"NA",SUMIFS(INDEX(_data_Forecast!$D:$M,0,MATCH($F$5,_data_Forecast!$D$3:$M$3,0)),_data_Forecast!$O:$O,$B$5,_data_Forecast!$P:$P,$C$5,_data_Forecast!$N:$N,P$12,_data_Forecast!$Q:$Q,$D$5,_data_Forecast!$C:$C,$N30)) -> 0.001209577189
B34: =setChartAxis("Gender_comparison","Chart 4","Min","Value","Primary",C34) -> Value Primary Min: 0.000000395 | C34: =ROUNDDOWN(MIN(O13:P30)*1000000000,0)/1000000000*0.5 -> 3.95e-07
B35: =setChartAxis("Gender_comparison","Chart 4","Max","Value","Primary",C35) -> Value Primary Max: 0.001814367 | C35: =ROUNDUP(MAX(O13:P30)*1000000000,0)/1000000000*1.5 -> 0.001814367
B36: =All_series!B36 -> Test!1
S132: 2027 | T132: 2028 | U132: 2029
S133: =IF(SUMIFS(_data_Forecast!K:K,_data_Forecast!$Q:$Q,#REF!,_data_Forecast!$C:$C,#REF!)=0,"NA",SUMIFS(_data_Forecast!K:K,_data_Forecast!$Q:$Q,#REF!,_data_Forecast!$C:$C,#REF!)) -> NA | T133: =IF(SUMIFS(_data_Forecast!L:L,_data_Forecast!$Q:$Q,#REF!,_data_Forecast!$C:$C,#REF!)=0,"NA",SUMIFS(_data_Forecast!L:L,_data_Forecast!$Q:$Q,#REF!,_data_Forecast!$C:$C,#REF!)) -> NA | U133: =IF(SUMIFS(_data_Forecast!M:M,_data_Forecast!$Q:$Q,#REF!,_data_Forecast!$C:$C,#REF!)=0,"NA",SUMIFS(_data_Forecast!M:M,_data_Forecast!$Q:$Q,#REF!,_data_Forecast!$C:$C,#REF!)) -> NA
S134: =IF(SUMIFS(_data_Forecast!K:K,_data_Forecast!$Q:$Q,#REF!,_data_Forecast!$C:$C,#REF!)=0,"NA",SUMIFS(_data_Forecast!K:K,_data_Forecast!$Q:$Q,#REF!,_data_Forecast!$C:$C,#REF!)) -> NA | T134: =IF(SUMIFS(_data_Forecast!L:L,_data_Forecast!$Q:$Q,#REF!,_data_Forecast!$C:$C,#REF!)=0,"NA",SUMIFS(_data_Forecast!L:L,_data_Forecast!$Q:$Q,#REF!,_data_Forecast!$C:$C,#REF!)) -> NA | U134: =IF(SUMIFS(_data_Forecast!M:M,_data_Forecast!$Q:$Q,#REF!,_data_Forecast!$C:$C,#REF!)=0,"NA",SUMIFS(_data_Forecast!M:M,_data_Forecast!$Q:$Q,#REF!,_data_Forecast!$C:$C,#REF!)) -> NA
S135: =IF(SUMIFS(_data_Forecast!K:K,_data_Forecast!$Q:$Q,#REF!,_data_Forecast!$C:$C,#REF!)=0,"NA",SUMIFS(_data_Forecast!K:K,_data_Forecast!$Q:$Q,#REF!,_data_Forecast!$C:$C,#REF!)) -> NA | T135: =IF(SUMIFS(_data_Forecast!L:L,_data_Forecast!$Q:$Q,#REF!,_data_Forecast!$C:$C,#REF!)=0,"NA",SUMIFS(_data_Forecast!L:L,_data_Forecast!$Q:$Q,#REF!,_data_Forecast!$C:$C,#REF!)) -> NA | U135: =IF(SUMIFS(_data_Forecast!M:M,_data_Forecast!$Q:$Q,#REF!,_data_Forecast!$C:$C,#REF!)=0,"NA",SUMIFS(_data_Forecast!M:M,_data_Forecast!$Q:$Q,#REF!,_data_Forecast!$C:$C,#REF!)) -> NA
S136: =IF(SUMIFS(_data_Forecast!K:K,_data_Forecast!$Q:$Q,#REF!,_data_Forecast!$C:$C,#REF!)=0,"NA",SUMIFS(_data_Forecast!K:K,_data_Forecast!$Q:$Q,#REF!,_data_Forecast!$C:$C,#REF!)) -> NA | T136: =IF(SUMIFS(_data_Forecast!L:L,_data_Forecast!$Q:$Q,#REF!,_data_Forecast!$C:$C,#REF!)=0,"NA",SUMIFS(_data_Forecast!L:L,_data_Forecast!$Q:$Q,#REF!,_data_Forecast!$C:$C,#REF!)) -> NA | U136: =IF(SUMIFS(_data_Forecast!M:M,_data_Forecast!$Q:$Q,#REF!,_data_Forecast!$C:$C,#REF!)=0,"NA",SUMIFS(_data_Forecast!M:M,_data_Forecast!$Q:$Q,#REF!,_data_Forecast!$C:$C,#REF!)) -> NA
S137: =IF(SUMIFS(_data_Forecast!K:K,_data_Forecast!$Q:$Q,#REF!,_data_Forecast!$C:$C,#REF!)=0,"NA",SUMIFS(_data_Forecast!K:K,_data_Forecast!$Q:$Q,#REF!,_data_Forecast!$C:$C,#REF!)) -> NA | T137: =IF(SUMIFS(_data_Forecast!L:L,_data_Forecast!$Q:$Q,#REF!,_data_Forecast!$C:$C,#REF!)=0,"NA",SUMIFS(_data_Forecast!L:L,_data_Forecast!$Q:$Q,#REF!,_data_Forecast!$C:$C,#REF!)) -> NA | U137: =IF(SUMIFS(_data_Forecast!M:M,_data_Forecast!$Q:$Q,#REF!,_data_Forecast!$C:$C,#REF!)=0,"NA",SUMIFS(_data_Forecast!M:M,_data_Forecast!$Q:$Q,#REF!,_data_Forecast!$C:$C,#REF!)) -> NA
S138: =IF(SUMIFS(_data_Forecast!K:K,_data_Forecast!$Q:$Q,#REF!,_data_Forecast!$C:$C,#REF!)=0,"NA",SUMIFS(_data_Forecast!K:K,_data_Forecast!$Q:$Q,#REF!,_data_Forecast!$C:$C,#REF!)) -> NA | T138: =IF(SUMIFS(_data_Forecast!L:L,_data_Forecast!$Q:$Q,#REF!,_data_Forecast!$C:$C,#REF!)=0,"NA",SUMIFS(_data_Forecast!L:L,_data_Forecast!$Q:$Q,#REF!,_data_Forecast!$C:$C,#REF!)) -> NA | U138: =IF(SUMIFS(_data_Forecast!M:M,_data_Forecast!$Q:$Q,#REF!,_data_Forecast!$C:$C,#REF!)=0,"NA",SUMIFS(_data_Forecast!M:M,_data_Forecast!$Q:$Q,#REF!,_data_Forecast!$C:$C,#REF!)) -> NA
S139: =IF(SUMIFS(_data_Forecast!K:K,_data_Forecast!$Q:$Q,#REF!,_data_Forecast!$C:$C,#REF!)=0,"NA",SUMIFS(_data_Forecast!K:K,_data_Forecast!$Q:$Q,#REF!,_data_Forecast!$C:$C,#REF!)) -> NA | T139: =IF(SUMIFS(_data_Forecast!L:L,_data_Forecast!$Q:$Q,#REF!,_data_Forecast!$C:$C,#REF!)=0,"NA",SUMIFS(_data_Forecast!L:L,_data_Forecast!$Q:$Q,#REF!,_data_Forecast!$C:$C,#REF!)) -> NA | U139: =IF(SUMIFS(_data_Forecast!M:M,_data_Forecast!$Q:$Q,#REF!,_data_Forecast!$C:$C,#REF!)=0,"NA",SUMIFS(_data_Forecast!M:M,_data_Forecast!$Q:$Q,#REF!,_data_Forecast!$C:$C,#REF!)) -> NA
S140: =IF(SUMIFS(_data_Forecast!K:K,_data_Forecast!$Q:$Q,#REF!,_data_Forecast!$C:$C,#REF!)=0,"NA",SUMIFS(_data_Forecast!K:K,_data_Forecast!$Q:$Q,#REF!,_data_Forecast!$C:$C,#REF!)) -> NA | T140: =IF(SUMIFS(_data_Forecast!L:L,_data_Forecast!$Q:$Q,#REF!,_data_Forecast!$C:$C,#REF!)=0,"NA",SUMIFS(_data_Forecast!L:L,_data_Forecast!$Q:$Q,#REF!,_data_Forecast!$C:$C,#REF!)) -> NA | U140: =IF(SUMIFS(_data_Forecast!M:M,_data_Forecast!$Q:$Q,#REF!,_data_Forecast!$C:$C,#REF!)=0,"NA",SUMIFS(_data_Forecast!M:M,_data_Forecast!$Q:$Q,#REF!,_data_Forecast!$C:$C,#REF!)) -> NA
S141: =IF(SUMIFS(_data_Forecast!K:K,_data_Forecast!$Q:$Q,#REF!,_data_Forecast!$C:$C,#REF!)=0,"NA",SUMIFS(_data_Forecast!K:K,_data_Forecast!$Q:$Q,#REF!,_data_Forecast!$C:$C,#REF!)) -> NA | T141: =IF(SUMIFS(_data_Forecast!L:L,_data_Forecast!$Q:$Q,#REF!,_data_Forecast!$C:$C,#REF!)=0,"NA",SUMIFS(_data_Forecast!L:L,_data_Forecast!$Q:$Q,#REF!,_data_Forecast!$C:$C,#REF!)) -> NA | U141: =IF(SUMIFS(_data_Forecast!M:M,_data_Forecast!$Q:$Q,#REF!,_data_Forecast!$C:$C,#REF!)=0,"NA",SUMIFS(_data_Forecast!M:M,_data_Forecast!$Q:$Q,#REF!,_data_Forecast!$C:$C,#REF!)) -> NA
S142: =IF(SUMIFS(_data_Forecast!K:K,_data_Forecast!$Q:$Q,#REF!,_data_Forecast!$C:$C,#REF!)=0,"NA",SUMIFS(_data_Forecast!K:K,_data_Forecast!$Q:$Q,#REF!,_data_Forecast!$C:$C,#REF!)) -> NA | T142: =IF(SUMIFS(_data_Forecast!L:L,_data_Forecast!$Q:$Q,#REF!,_data_Forecast!$C:$C,#REF!)=0,"NA",SUMIFS(_data_Forecast!L:L,_data_Forecast!$Q:$Q,#REF!,_data_Forecast!$C:$C,#REF!)) -> NA | U142: =IF(SUMIFS(_data_Forecast!M:M,_data_Forecast!$Q:$Q,#REF!,_data_Forecast!$C:$C,#REF!)=0,"NA",SUMIFS(_data_Forecast!M:M,_data_Forecast!$Q:$Q,#REF!,_data_Forecast!$C:$C,#REF!)) -> NA
S143: =IF(SUMIFS(_data_Forecast!K:K,_data_Forecast!$Q:$Q,#REF!,_data_Forecast!$C:$C,#REF!)=0,"NA",SUMIFS(_data_Forecast!K:K,_data_Forecast!$Q:$Q,#REF!,_data_Forecast!$C:$C,#REF!)) -> NA | T143: =IF(SUMIFS(_data_Forecast!L:L,_data_Forecast!$Q:$Q,#REF!,_data_Forecast!$C:$C,#REF!)=0,"NA",SUMIFS(_data_Forecast!L:L,_data_Forecast!$Q:$Q,#REF!,_data_Forecast!$C:$C,#REF!)) -> NA | U143: =IF(SUMIFS(_data_Forecast!M:M,_data_Forecast!$Q:$Q,#REF!,_data_Forecast!$C:$C,#REF!)=0,"NA",SUMIFS(_data_Forecast!M:M,_data_Forecast!$Q:$Q,#REF!,_data_Forecast!$C:$C,#REF!)) -> NA
S144: =IF(SUMIFS(_data_Forecast!K:K,_data_Forecast!$Q:$Q,#REF!,_data_Forecast!$C:$C,#REF!)=0,"NA",SUMIFS(_data_Forecast!K:K,_data_Forecast!$Q:$Q,#REF!,_data_Forecast!$C:$C,#REF!)) -> NA | T144: =IF(SUMIFS(_data_Forecast!L:L,_data_Forecast!$Q:$Q,#REF!,_data_Forecast!$C:$C,#REF!)=0,"NA",SUMIFS(_data_Forecast!L:L,_data_Forecast!$Q:$Q,#REF!,_data_Forecast!$C:$C,#REF!)) -> NA | U144: =IF(SUMIFS(_data_Forecast!M:M,_data_Forecast!$Q:$Q,#REF!,_data_Forecast!$C:$C,#REF!)=0,"NA",SUMIFS(_data_Forecast!M:M,_data_Forecast!$Q:$Q,#REF!,_data_Forecast!$C:$C,#REF!)) -> NA
S145: =IF(SUMIFS(_data_Forecast!K:K,_data_Forecast!$Q:$Q,#REF!,_data_Forecast!$C:$C,#REF!)=0,"NA",SUMIFS(_data_Forecast!K:K,_data_Forecast!$Q:$Q,#REF!,_data_Forecast!$C:$C,#REF!)) -> NA | T145: =IF(SUMIFS(_data_Forecast!L:L,_data_Forecast!$Q:$Q,#REF!,_data_Forecast!$C:$C,#REF!)=0,"NA",SUMIFS(_data_Forecast!L:L,_data_Forecast!$Q:$Q,#REF!,_data_Forecast!$C:$C,#REF!)) -> NA | U145: =IF(SUMIFS(_data_Forecast!M:M,_data_Forecast!$Q:$Q,#REF!,_data_Forecast!$C:$C,#REF!)=0,"NA",SUMIFS(_data_Forecast!M:M,_data_Forecast!$Q:$Q,#REF!,_data_Forecast!$C:$C,#REF!)) -> NA
S146: =IF(SUMIFS(_data_Forecast!K:K,_data_Forecast!$Q:$Q,#REF!,_data_Forecast!$C:$C,#REF!)=0,"NA",SUMIFS(_data_Forecast!K:K,_data_Forecast!$Q:$Q,#REF!,_data_Forecast!$C:$C,#REF!)) -> NA | T146: =IF(SUMIFS(_data_Forecast!L:L,_data_Forecast!$Q:$Q,#REF!,_data_Forecast!$C:$C,#REF!)=0,"NA",SUMIFS(_data_Forecast!L:L,_data_Forecast!$Q:$Q,#REF!,_data_Forecast!$C:$C,#REF!)) -> NA | U146: =IF(SUMIFS(_data_Forecast!M:M,_data_Forecast!$Q:$Q,#REF!,_data_Forecast!$C:$C,#REF!)=0,"NA",SUMIFS(_data_Forecast!M:M,_data_Forecast!$Q:$Q,#REF!,_data_Forecast!$C:$C,#REF!)) -> NA
S147: =IF(SUMIFS(_data_Forecast!K:K,_data_Forecast!$Q:$Q,#REF!,_data_Forecast!$C:$C,#REF!)=0,"NA",SUMIFS(_data_Forecast!K:K,_data_Forecast!$Q:$Q,#REF!,_data_Forecast!$C:$C,#REF!)) -> NA | T147: =IF(SUMIFS(_data_Forecast!L:L,_data_Forecast!$Q:$Q,#REF!,_data_Forecast!$C:$C,#REF!)=0,"NA",SUMIFS(_data_Forecast!L:L,_data_Forecast!$Q:$Q,#REF!,_data_Forecast!$C:$C,#REF!)) -> NA | U147: =IF(SUMIFS(_data_Forecast!M:M,_data_Forecast!$Q:$Q,#REF!,_data_Forecast!$C:$C,#REF!)=0,"NA",SUMIFS(_data_Forecast!M:M,_data_Forecast!$Q:$Q,#REF!,_data_Forecast!$C:$C,#REF!)) -> NA
S148: =IF(SUMIFS(_data_Forecast!K:K,_data_Forecast!$Q:$Q,#REF!,_data_Forecast!$C:$C,#REF!)=0,"NA",SUMIFS(_data_Forecast!K:K,_data_Forecast!$Q:$Q,#REF!,_data_Forecast!$C:$C,#REF!)) -> NA | T148: =IF(SUMIFS(_data_Forecast!L:L,_data_Forecast!$Q:$Q,#REF!,_data_Forecast!$C:$C,#REF!)=0,"NA",SUMIFS(_data_Forecast!L:L,_data_Forecast!$Q:$Q,#REF!,_data_Forecast!$C:$C,#REF!)) -> NA | U148: =IF(SUMIFS(_data_Forecast!M:M,_data_Forecast!$Q:$Q,#REF!,_data_Forecast!$C:$C,#REF!)=0,"NA",SUMIFS(_data_Forecast!M:M,_data_Forecast!$Q:$Q,#REF!,_data_Forecast!$C:$C,#REF!)) -> NA
S149: =IF(SUMIFS(_data_Forecast!K:K,_data_Forecast!$Q:$Q,#REF!,_data_Forecast!$C:$C,#REF!)=0,"NA",SUMIFS(_data_Forecast!K:K,_data_Forecast!$Q:$Q,#REF!,_data_Forecast!$C:$C,#REF!)) -> NA | T149: =IF(SUMIFS(_data_Forecast!L:L,_data_Forecast!$Q:$Q,#REF!,_data_Forecast!$C:$C,#REF!)=0,"NA",SUMIFS(_data_Forecast!L:L,_data_Forecast!$Q:$Q,#REF!,_data_Forecast!$C:$C,#REF!)) -> NA | U149: =IF(SUMIFS(_data_Forecast!M:M,_data_Forecast!$Q:$Q,#REF!,_data_Forecast!$C:$C,#REF!)=0,"NA",SUMIFS(_data_Forecast!M:M,_data_Forecast!$Q:$Q,#REF!,_data_Forecast!$C:$C,#REF!)) -> NA
S150: =IF(SUMIFS(_data_Forecast!K:K,_data_Forecast!$Q:$Q,#REF!,_data_Forecast!$C:$C,#REF!)=0,"NA",SUMIFS(_data_Forecast!K:K,_data_Forecast!$Q:$Q,#REF!,_data_Forecast!$C:$C,#REF!)) -> NA | T150: =IF(SUMIFS(_data_Forecast!L:L,_data_Forecast!$Q:$Q,#REF!,_data_Forecast!$C:$C,#REF!)=0,"NA",SUMIFS(_data_Forecast!L:L,_data_Forecast!$Q:$Q,#REF!,_data_Forecast!$C:$C,#REF!)) -> NA | U150: =IF(SUMIFS(_data_Forecast!M:M,_data_Forecast!$Q:$Q,#REF!,_data_Forecast!$C:$C,#REF!)=0,"NA",SUMIFS(_data_Forecast!M:M,_data_Forecast!$Q:$Q,#REF!,_data_Forecast!$C:$C,#REF!)) -> NA

Sheet Region_comparison
B2: Option 1 - Select Combination Using Drop-down List | N2: Option 2 - Click Buttons to Select Combination
B4: Gender | C4: Area | D4: Cause | F4: Year | X4: Gender | Y4: Area | Z4: Cause | AA4: Year | AB4: 5
B5: Male | C5: Rural | D5: Mental | F5: 2022 | X5: =OFFSET(_tbl!K$3,comb_id,0) -> Male | Y5: =OFFSET(_tbl!L$3,comb_id,0) -> Rural | Z5: =OFFSET(_tbl!M$3,comb_id,0) -> Digestive | AA5: =F5 -> 2022
B9: CHARTS AND DATA | E9: =IF(COUNTIFS(O12:Q29,"NA")=54, "Combination Not Available", B5&", "&C5&", Cause "&D5&", Forecast Year "&F5) -> Male, Rural, Cause Mental, Forecast Year 2022
N11: Age/Region | O11: Central | P11: East | Q11: West
N12: 1-4 | O12: =IF(SUMIFS(INDEX(_data_Forecast!$D:$M,0,MATCH($F$5,_data_Forecast!$D$3:$M$3,0)),_data_Forecast!$O:$O,O$11,_data_Forecast!$P:$P,$C$5,_data_Forecast!$N:$N,$B$5,_data_Forecast!$Q:$Q,$D$5,_data_Forecast!$C:$C,$N12)=0,"NA",SUMIFS(INDEX(_data_Forecast!$D:$M,0,MATCH($F$5,_data_Forecast!$D$3:$M$3,0)),_data_Forecast!$O:$O,O$11,_data_Forecast!$P:$P,$C$5,_data_Forecast!$N:$N,$B$5,_data_Forecast!$Q:$Q,$D$5,_data_Forecast!$C:$C,$N12)) -> 2.381910328e-05 | P12: =IF(SUMIFS(INDEX(_data_Forecast!$D:$M,0,MATCH($F$5,_data_Forecast!$D$3:$M$3,0)),_data_Forecast!$O:$O,P$11,_data_Forecast!$P:$P,$C$5,_data_Forecast!$N:$N,$B$5,_data_Forecast!$Q:$Q,$D$5,_data_Forecast!$C:$C,$N12)=0,"NA",SUMIFS(INDEX(_data_Forecast!$D:$M,0,MATCH($F$5,_data_Forecast!$D$3:$M$3,0)),_data_Forecast!$O:$O,P$11,_data_Forecast!$P:$P,$C$5,_data_Forecast!$N:$N,$B$5,_data_Forecast!$Q:$Q,$D$5,_data_Forecast!$C:$C,$N12)) -> 2.646100026e-05 | Q12: =IF(SUMIFS(INDEX(_data_Forecast!$D:$M,0,MATCH($F$5,_data_Forecast!$D$3:$M$3,0)),_data_Forecast!$O:$O,Q$11,_data_Forecast!$P:$P,$C$5,_data_Forecast!$N:$N,$B$5,_data_Forecast!$Q:$Q,$D$5,_data_Forecast!$C:$C,$N12)=0,"NA",SUMIFS(INDEX(_data_Forecast!$D:$M,0,MATCH($F$5,_data_Forecast!$D$3:$M$3,0)),_data_Forecast!$O:$O,Q$11,_data_Forecast!$P:$P,$C$5,_data_Forecast!$N:$N,$B$5,_data_Forecast!$Q:$Q,$D$5,_data_Forecast!$C:$C,$N12)) -> 3.334736407e-05
N13: 5-9 | O13: =IF(SUMIFS(INDEX(_data_Forecast!$D:$M,0,MATCH($F$5,_data_Forecast!$D$3:$M$3,0)),_data_Forecast!$O:$O,O$11,_data_Forecast!$P:$P,$C$5,_data_Forecast!$N:$N,$B$5,_data_Forecast!$Q:$Q,$D$5,_data_Forecast!$C:$C,$N13)=0,"NA",SUMIFS(INDEX(_data_Forecast!$D:$M,0,MATCH($F$5,_data_Forecast!$D$3:$M$3,0)),_data_Forecast!$O:$O,O$11,_data_Forecast!$P:$P,$C$5,_data_Forecast!$N:$N,$B$5,_data_Forecast!$Q:$Q,$D$5,_data_Forecast!$C:$C,$N13)) -> 1.53769033e-05 | P13: =IF(SUMIFS(INDEX(_data_Forecast!$D:$M,0,MATCH($F$5,_data_Forecast!$D$3:$M$3,0)),_data_Forecast!$O:$O,P$11,_data_Forecast!$P:$P,$C$5,_data_Forecast!$N:$N,$B$5,_data_Forecast!$Q:$Q,$D$5,_data_Forecast!$C:$C,$N13)=0,"NA",SUMIFS(INDEX(_data_Forecast!$D:$M,0,MATCH($F$5,_data_Forecast!$D$3:$M$3,0)),_data_Forecast!$O:$O,P$11,_data_Forecast!$P:$P,$C$5,_data_Forecast!$N:$N,$B$5,_data_Forecast!$Q:$Q,$D$5,_data_Forecast!$C:$C,$N13)) -> 1.868747679e-05 | Q13: =IF(SUMIFS(INDEX(_data_Forecast!$D:$M,0,MATCH($F$5,_data_Forecast!$D$3:$M$3,0)),_data_Forecast!$O:$O,Q$11,_data_Forecast!$P:$P,$C$5,_data_Forecast!$N:$N,$B$5,_data_Forecast!$Q:$Q,$D$5,_data_Forecast!$C:$C,$N13)=0,"NA",SUMIFS(INDEX(_data_Forecast!$D:$M,0,MATCH($F$5,_data_Forecast!$D$3:$M$3,0)),_data_Forecast!$O:$O,Q$11,_data_Forecast!$P:$P,$C$5,_data_Forecast!$N:$N,$B$5,_data_Forecast!$Q:$Q,$D$5,_data_Forecast!$C:$C,$N13)) -> 2.707944872e-05
N14: 10-14 | O14: =IF(SUMIFS(INDEX(_data_Forecast!$D:$M,0,MATCH($F$5,_data_Forecast!$D$3:$M$3,0)),_data_Forecast!$O:$O,O$11,_data_Forecast!$P:$P,$C$5,_data_Forecast!$N:$N,$B$5,_data_Forecast!$Q:$Q,$D$5,_data_Forecast!$C:$C,$N14)=0,"NA",SUMIFS(INDEX(_data_Forecast!$D:$M,0,MATCH($F$5,_data_Forecast!$D$3:$M$3,0)),_data_Forecast!$O:$O,O$11,_data_Forecast!$P:$P,$C$5,_data_Forecast!$N:$N,$B$5,_data_Forecast!$Q:$Q,$D$5,_data_Forecast!$C:$C,$N14)) -> 1.702788503e-05 | P14: =IF(SUMIFS(INDEX(_data_Forecast!$D:$M,0,MATCH($F$5,_data_Forecast!$D$3:$M$3,0)),_data_Forecast!$O:$O,P$11,_data_Forecast!$P:$P,$C$5,_data_Forecast!$N:$N,$B$5,_data_Forecast!$Q:$Q,$D$5,_data_Forecast!$C:$C,$N14)=0,"NA",SUMIFS(INDEX(_data_Forecast!$D:$M,0,MATCH($F$5,_data_Forecast!$D$3:$M$3,0)),_data_Forecast!$O:$O,P$11,_data_Forecast!$P:$P,$C$5,_data_Forecast!$N:$N,$B$5,_data_Forecast!$Q:$Q,$D$5,_data_Forecast!$C:$C,$N14)) -> 2.206172658e-05 | Q14: =IF(SUMIFS(INDEX(_data_Forecast!$D:$M,0,MATCH($F$5,_data_Forecast!$D$3:$M$3,0)),_data_Forecast!$O:$O,Q$11,_data_Forecast!$P:$P,$C$5,_data_Forecast!$N:$N,$B$5,_data_Forecast!$Q:$Q,$D$5,_data_Forecast!$C:$C,$N14)=0,"NA",SUMIFS(INDEX(_data_Forecast!$D:$M,0,MATCH($F$5,_data_Forecast!$D$3:$M$3,0)),_data_Forecast!$O:$O,Q$11,_data_Forecast!$P:$P,$C$5,_data_Forecast!$N:$N,$B$5,_data_Forecast!$Q:$Q,$D$5,_data_Forecast!$C:$C,$N14)) -> 2.890877112e-05
N15: 15-19 | O15: =IF(SUMIFS(INDEX(_data_Forecast!$D:$M,0,MATCH($F$5,_data_Forecast!$D$3:$M$3,0)),_data_Forecast!$O:$O,O$11,_data_Forecast!$P:$P,$C$5,_data_Forecast!$N:$N,$B$5,_data_Forecast!$Q:$Q,$D$5,_data_Forecast!$C:$C,$N15)=0,"NA",SUMIFS(INDEX(_data_Forecast!$D:$M,0,MATCH($F$5,_data_Forecast!$D$3:$M$3,0)),_data_Forecast!$O:$O,O$11,_data_Forecast!$P:$P,$C$5,_data_Forecast!$N:$N,$B$5,_data_Forecast!$Q:$Q,$D$5,_data_Forecast!$C:$C,$N15)) -> 1.830004217e-05 | P15: =IF(SUMIFS(INDEX(_data_Forecast!$D:$M,0,MATCH($F$5,_data_Forecast!$D$3:$M$3,0)),_data_Forecast!$O:$O,P$11,_data_Forecast!$P:$P,$C$5,_data_Forecast!$N:$N,$B$5,_data_Forecast!$Q:$Q,$D$5,_data_Forecast!$C:$C,$N15)=0,"NA",SUMIFS(INDEX(_data_Forecast!$D:$M,0,MATCH($F$5,_data_Forecast!$D$3:$M$3,0)),_data_Forecast!$O:$O,P$11,_data_Forecast!$P:$P,$C$5,_data_Forecast!$N:$N,$B$5,_data_Forecast!$Q:$Q,$D$5,_data_Forecast!$C:$C,$N15)) -> 2.353040364e-05 | Q15: =IF(SUMIFS(INDEX(_data_Forecast!$D:$M,0,MATCH($F$5,_data_Forecast!$D$3:$M$3,0)),_data_Forecast!$O:$O,Q$11,_data_Forecast!$P:$P,$C$5,_data_Forecast!$N:$N,$B$5,_data_Forecast!$Q:$Q,$D$5,_data_Forecast!$C:$C,$N15)=0,"NA",SUMIFS(INDEX(_data_Forecast!$D:$M,0,MATCH($F$5,_data_Forecast!$D$3:$M$3,0)),_data_Forecast!$O:$O,Q$11,_data_Forecast!$P:$P,$C$5,_data_Forecast!$N:$N,$B$5,_data_Forecast!$Q:$Q,$D$5,_data_Forecast!$C:$C,$N15)) -> 3.120647815e-05
N16: 20-24 | O16: =IF(SUMIFS(INDEX(_data_Forecast!$D:$M,0,MATCH($F$5,_data_Forecast!$D$3:$M$3,0)),_data_Forecast!$O:$O,O$11,_data_Forecast!$P:$P,$C$5,_data_Forecast!$N:$N,$B$5,_data_Forecast!$Q:$Q,$D$5,_data_Forecast!$C:$C,$N16)=0,"NA",SUMIFS(INDEX(_data_Forecast!$D:$M,0,MATCH($F$5,_data_Forecast!$D$3:$M$3,0)),_data_Forecast!$O:$O,O$11,_data_Forecast!$P:$P,$C$5,_data_Forecast!$N:$N,$B$5,_data_Forecast!$Q:$Q,$D$5,_data_Forecast!$C:$C,$N16)) -> 1.960376491e-05 | P16: =IF(SUMIFS(INDEX(_data_Forecast!$D:$M,0,MATCH($F$5,_data_Forecast!$D$3:$M$3,0)),_data_Forecast!$O:$O,P$11,_data_Forecast!$P:$P,$C$5,_data_Forecast!$N:$N,$B$5,_data_Forecast!$Q:$Q,$D$5,_data_Forecast!$C:$C,$N16)=0,"NA",SUMIFS(INDEX(_data_Forecast!$D:$M,0,MATCH($F$5,_data_Forecast!$D$3:$M$3,0)),_data_Forecast!$O:$O,P$11,_data_Forecast!$P:$P,$C$5,_data_Forecast!$N:$N,$B$5,_data_Forecast!$Q:$Q,$D$5,_data_Forecast!$C:$C,$N16)) -> 2.227734606e-05 | Q16: =IF(SUMIFS(INDEX(_data_Forecast!$D:$M,0,MATCH($F$5,_data_Forecast!$D$3:$M$3,0)),_data_Forecast!$O:$O,Q$11,_data_Forecast!$P:$P,$C$5,_data_Forecast!$N:$N,$B$5,_data_Forecast!$Q:$Q,$D$5,_data_Forecast!$C:$C,$N16)=0,"NA",SUMIFS(INDEX(_data_Forecast!$D:$M,0,MATCH($F$5,_data_Forecast!$D$3:$M$3,0)),_data_Forecast!$O:$O,Q$11,_data_Forecast!$P:$P,$C$5,_data_Forecast!$N:$N,$B$5,_data_Forecast!$Q:$Q,$D$5,_data_Forecast!$C:$C,$N16)) -> 3.559210874e-05
N17: 25-29 | O17: =IF(SUMIFS(INDEX(_data_Forecast!$D:$M,0,MATCH($F$5,_data_Forecast!$D$3:$M$3,0)),_data_Forecast!$O:$O,O$11,_data_Forecast!$P:$P,$C$5,_data_Forecast!$N:$N,$B$5,_data_Forecast!$Q:$Q,$D$5,_data_Forecast!$C:$C,$N17)=0,"NA",SUMIFS(INDEX(_data_Forecast!$D:$M,0,MATCH($F$5,_data_Forecast!$D$3:$M$3,0)),_data_Forecast!$O:$O,O$11,_data_Forecast!$P:$P,$C$5,_data_Forecast!$N:$N,$B$5,_data_Forecast!$Q:$Q,$D$5,_data_Forecast!$C:$C,$N17)) -> 2.12836523e-05 | P17: =IF(SUMIFS(INDEX(_data_Forecast!$D:$M,0,MATCH($F$5,_data_Forecast!$D$3:$M$3,0)),_data_Forecast!$O:$O,P$11,_data_Forecast!$P:$P,$C$5,_data_Forecast!$N:$N,$B$5,_data_Forecast!$Q:$Q,$D$5,_data_Forecast!$C:$C,$N17)=0,"NA",SUMIFS(INDEX(_data_Forecast!$D:$M,0,MATCH($F$5,_data_Forecast!$D$3:$M$3,0)),_data_Forecast!$O:$O,P$11,_data_Forecast!$P:$P,$C$5,_data_Forecast!$N:$N,$B$5,_data_Forecast!$Q:$Q,$D$5,_data_Forecast!$C:$C,$N17)) -> 2.278729303e-05 | Q17: =IF(SUMIFS(INDEX(_data_Forecast!$D:$M,0,MATCH($F$5,_data_Forecast!$D$3:$M$3,0)),_data_Forecast!$O:$O,Q$11,_data_Forecast!$P:$P,$C$5,_data_Forecast!$N:$N,$B$5,_data_Forecast!$Q:$Q,$D$5,_data_Forecast!$C:$C,$N17)=0,"NA",SUMIFS(INDEX(_data_Forecast!$D:$M,0,MATCH($F$5,_data_Forecast!$D$3:$M$3,0)),_data_Forecast!$O:$O,Q$11,_data_Forecast!$P:$P,$C$5,_data_Forecast!$N:$N,$B$5,_data_Forecast!$Q:$Q,$D$5,_data_Forecast!$C:$C,$N17)) -> 4.161278642e-05
N18: 30-34 | O18: =IF(SUMIFS(INDEX(_data_Forecast!$D:$M,0,MATCH($F$5,_data_Forecast!$D$3:$M$3,0)),_data_Forecast!$O:$O,O$11,_data_Forecast!$P:$P,$C$5,_data_Forecast!$N:$N,$B$5,_data_Forecast!$Q:$Q,$D$5,_data_Forecast!$C:$C,$N18)=0,"NA",SUMIFS(INDEX(_data_Forecast!$D:$M,0,MATCH($F$5,_data_Forecast!$D$3:$M$3,0)),_data_Forecast!$O:$O,O$11,_data_Forecast!$P:$P,$C$5,_data_Forecast!$N:$N,$B$5,_data_Forecast!$Q:$Q,$D$5,_data_Forecast!$C:$C,$N18)) -> 2.391501287e-05 | P18: =IF(SUMIFS(INDEX(_data_Forecast!$D:$M,0,MATCH($F$5,_data_Forecast!$D$3:$M$3,0)),_data_Forecast!$O:$O,P$11,_data_Forecast!$P:$P,$C$5,_data_Forecast!$N:$N,$B$5,_data_Forecast!$Q:$Q,$D$5,_data_Forecast!$C:$C,$N18)=0,"NA",SUMIFS(INDEX(_data_Forecast!$D:$M,0,MATCH($F$5,_data_Forecast!$D$3:$M$3,0)),_data_Forecast!$O:$O,P$11,_data_Forecast!$P:$P,$C$5,_data_Forecast!$N:$N,$B$5,_data_Forecast!$Q:$Q,$D$5,_data_Forecast!$C:$C,$N18)) -> 2.545764314e-05 | Q18: =IF(SUMIFS(INDEX(_data_Forecast!$D:$M,0,MATCH($F$5,_data_Forecast!$D$3:$M$3,0)),_data_Forecast!$O:$O,Q$11,_data_Forecast!$P:$P,$C$5,_data_Forecast!$N:$N,$B$5,_data_Forecast!$Q:$Q,$D$5,_data_Forecast!$C:$C,$N18)=0,"NA",SUMIFS(INDEX(_data_Forecast!$D:$M,0,MATCH($F$5,_data_Forecast!$D$3:$M$3,0)),_data_Forecast!$O:$O,Q$11,_data_Forecast!$P:$P,$C$5,_data_Forecast!$N:$N,$B$5,_data_Forecast!$Q:$Q,$D$5,_data_Forecast!$C:$C,$N18)) -> 4.949941414e-05
N19: 35-39 | O19: =IF(SUMIFS(INDEX(_data_Forecast!$D:$M,0,MATCH($F$5,_data_Forecast!$D$3:$M$3,0)),_data_Forecast!$O:$O,O$11,_data_Forecast!$P:$P,$C$5,_data_Forecast!$N:$N,$B$5,_data_Forecast!$Q:$Q,$D$5,_data_Forecast!$C:$C,$N19)=0,"NA",SUMIFS(INDEX(_data_Forecast!$D:$M,0,MATCH($F$5,_data_Forecast!$D$3:$M$3,0)),_data_Forecast!$O:$O,O$11,_data_Forecast!$P:$P,$C$5,_data_Forecast!$N:$N,$B$5,_data_Forecast!$Q:$Q,$D$5,_data_Forecast!$C:$C,$N19)) -> 2.619085165e-05 | P19: =IF(SUMIFS(INDEX(_data_Forecast!$D:$M,0,MATCH($F$5,_data_Forecast!$D$3:$M$3,0)),_data_Forecast!$O:$O,P$11,_data_Forecast!$P:$P,$C$5,_data_Forecast!$N:$N,$B$5,_data_Forecast!$Q:$Q,$D$5,_data_Forecast!$C:$C,$N19)=0,"NA",SUMIFS(INDEX(_data_Forecast!$D:$M,0,MATCH($F$5,_data_Forecast!$D$3:$M$3,0)),_data_Forecast!$O:$O,P$11,_data_Forecast!$P:$P,$C$5,_data_Forecast!$N:$N,$B$5,_data_Forecast!$Q:$Q,$D$5,_data_Forecast!$C:$C,$N19)) -> 2.689614962e-05 | Q19: =IF(SUMIFS(INDEX(_data_Forecast!$D:$M,0,MATCH($F$5,_data_Forecast!$D$3:$M$3,0)),_data_Forecast!$O:$O,Q$11,_data_Forecast!$P:$P,$C$5,_data_Forecast!$N:$N,$B$5,_data_Forecast!$Q:$Q,$D$5,_data_Forecast!$C:$C,$N19)=0,"NA",SUMIFS(INDEX(_data_Forecast!$D:$M,0,MATCH($F$5,_data_Forecast!$D$3:$M$3,0)),_data_Forecast!$O:$O,Q$11,_data_Forecast!$P:$P,$C$5,_data_Forecast!$N:$N,$B$5,_data_Forecast!$Q:$Q,$D$5,_data_Forecast!$C:$C,$N19)) -> 5.289875065e-05
N20: 40-44 | O20: =IF(SUMIFS(INDEX(_data_Forecast!$D:$M,0,MATCH($F$5,_data_Forecast!$D$3:$M$3,0)),_data_Forecast!$O:$O,O$11,_data_Forecast!$P:$P,$C$5,_data_Forecast!$N:$N,$B$5,_data_Forecast!$Q:$Q,$D$5,_data_Forecast!$C:$C,$N20)=0,"NA",SUMIFS(INDEX(_data_Forecast!$D:$M,0,MATCH($F$5,_data_Forecast!$D$3:$M$3,0)),_data_Forecast!$O:$O,O$11,_data_Forecast!$P:$P,$C$5,_data_Forecast!$N:$N,$B$5,_data_Forecast!$Q:$Q,$D$5,_data_Forecast!$C:$C,$N20)) -> 2.743649034e-05 | P20: =IF(SUMIFS(INDEX(_data_Forecast!$D:$M,0,MATCH($F$5,_data_Forecast!$D$3:$M$3,0)),_data_Forecast!$O:$O,P$11,_data_Forecast!$P:$P,$C$5,_data_Forecast!$N:$N,$B$5,_data_Forecast!$Q:$Q,$D$5,_data_Forecast!$C:$C,$N20)=0,"NA",SUMIFS(INDEX(_data_Forecast!$D:$M,0,MATCH($F$5,_data_Forecast!$D$3:$M$3,0)),_data_Forecast!$O:$O,P$11,_data_Forecast!$P:$P,$C$5,_data_Forecast!$N:$N,$B$5,_data_Forecast!$Q:$Q,$D$5,_data_Forecast!$C:$C,$N20)) -> 3.071503894e-05 | Q20: =IF(SUMIFS(INDEX(_data_Forecast!$D:$M,0,MATCH($F$5,_data_Forecast!$D$3:$M$3,0)),_data_Forecast!$O:$O,Q$11,_data_Forecast!$P:$P,$C$5,_data_Forecast!$N:$N,$B$5,_data_Forecast!$Q:$Q,$D$5,_data_Forecast!$C:$C,$N20)=0,"NA",SUMIFS(INDEX(_data_Forecast!$D:$M,0,MATCH($F$5,_data_Forecast!$D$3:$M$3,0)),_data_Forecast!$O:$O,Q$11,_data_Forecast!$P:$P,$C$5,_data_Forecast!$N:$N,$B$5,_data_Forecast!$Q:$Q,$D$5,_data_Forecast!$C:$C,$N20)) -> 5.998257202e-05
N21: 45-49 | O21: =IF(SUMIFS(INDEX(_data_Forecast!$D:$M,0,MATCH($F$5,_data_Forecast!$D$3:$M$3,0)),_data_Forecast!$O:$O,O$11,_data_Forecast!$P:$P,$C$5,_data_Forecast!$N:$N,$B$5,_data_Forecast!$Q:$Q,$D$5,_data_Forecast!$C:$C,$N21)=0,"NA",SUMIFS(INDEX(_data_Forecast!$D:$M,0,MATCH($F$5,_data_Forecast!$D$3:$M$3,0)),_data_Forecast!$O:$O,O$11,_data_Forecast!$P:$P,$C$5,_data_Forecast!$N:$N,$B$5,_data_Forecast!$Q:$Q,$D$5,_data_Forecast!$C:$C,$N21)) -> 3.37130366e-05 | P21: =IF(SUMIFS(INDEX(_data_Forecast!$D:$M,0,MATCH($F$5,_data_Forecast!$D$3:$M$3,0)),_data_Forecast!$O:$O,P$11,_data_Forecast!$P:$P,$C$5,_data_Forecast!$N:$N,$B$5,_data_Forecast!$Q:$Q,$D$5,_data_Forecast!$C:$C,$N21)=0,"NA",SUMIFS(INDEX(_data_Forecast!$D:$M,0,MATCH($F$5,_data_Forecast!$D$3:$M$3,0)),_data_Forecast!$O:$O,P$11,_data_Forecast!$P:$P,$C$5,_data_Forecast!$N:$N,$B$5,_data_Forecast!$Q:$Q,$D$5,_data_Forecast!$C:$C,$N21)) -> 3.592711017e-05 | Q21: =IF(SUMIFS(INDEX(_data_Forecast!$D:$M,0,MATCH($F$5,_data_Forecast!$D$3:$M$3,0)),_data_Forecast!$O:$O,Q$11,_data_Forecast!$P:$P,$C$5,_data_Forecast!$N:$N,$B$5,_data_Forecast!$Q:$Q,$D$5,_data_Forecast!$C:$C,$N21)=0,"NA",SUMIFS(INDEX(_data_Forecast!$D:$M,0,MATCH($F$5,_data_Forecast!$D$3:$M$3,0)),_data_Forecast!$O:$O,Q$11,_data_Forecast!$P:$P,$C$5,_data_Forecast!$N:$N,$B$5,_data_Forecast!$Q:$Q,$D$5,_data_Forecast!$C:$C,$N21)) -> 6.581167207e-05
N22: 50-54 | O22: =IF(SUMIFS(INDEX(_data_Forecast!$D:$M,0,MATCH($F$5,_data_Forecast!$D$3:$M$3,0)),_data_Forecast!$O:$O,O$11,_data_Forecast!$P:$P,$C$5,_data_Forecast!$N:$N,$B$5,_data_Forecast!$Q:$Q,$D$5,_data_Forecast!$C:$C,$N22)=0,"NA",SUMIFS(INDEX(_data_Forecast!$D:$M,0,MATCH($F$5,_data_Forecast!$D$3:$M$3,0)),_data_Forecast!$O:$O,O$11,_data_Forecast!$P:$P,$C$5,_data_Forecast!$N:$N,$B$5,_data_Forecast!$Q:$Q,$D$5,_data_Forecast!$C:$C,$N22)) -> 4.049692292e-05 | P22: =IF(SUMIFS(INDEX(_data_Forecast!$D:$M,0,MATCH($F$5,_data_Forecast!$D$3:$M$3,0)),_data_Forecast!$O:$O,P$11,_data_Forecast!$P:$P,$C$5,_data_Forecast!$N:$N,$B$5,_data_Forecast!$Q:$Q,$D$5,_data_Forecast!$C:$C,$N22)=0,"NA",SUMIFS(INDEX(_data_Forecast!$D:$M,0,MATCH($F$5,_data_Forecast!$D$3:$M$3,0)),_data_Forecast!$O:$O,P$11,_data_Forecast!$P:$P,$C$5,_data_Forecast!$N:$N,$B$5,_data_Forecast!$Q:$Q,$D$5,_data_Forecast!$C:$C,$N22)) -> 5.041951935e-05 | Q22: =IF(SUMIFS(INDEX(_data_Forecast!$D:$M,0,MATCH($F$5,_data_Forecast!$D$3:$M$3,0)),_data_Forecast!$O:$O,Q$11,_data_Forecast!$P:$P,$C$5,_data_Forecast!$N:$N,$B$5,_data_Forecast!$Q:$Q,$D$5,_data_Forecast!$C:$C,$N22)=0,"NA",SUMIFS(INDEX(_data_Forecast!$D:$M,0,MATCH($F$5,_data_Forecast!$D$3:$M$3,0)),_data_Forecast!$O:$O,Q$11,_data_Forecast!$P:$P,$C$5,_data_Forecast!$N:$N,$B$5,_data_Forecast!$Q:$Q,$D$5,_data_Forecast!$C:$C,$N22)) -> 7.506813143e-05
N23: 55-59 | O23: =IF(SUMIFS(INDEX(_data_Forecast!$D:$M,0,MATCH($F$5,_data_Forecast!$D$3:$M$3,0)),_data_Forecast!$O:$O,O$11,_data_Forecast!$P:$P,$C$5,_data_Forecast!$N:$N,$B$5,_data_Forecast!$Q:$Q,$D$5,_data_Forecast!$C:$C,$N23)=0,"NA",SUMIFS(INDEX(_data_Forecast!$D:$M,0,MATCH($F$5,_data_Forecast!$D$3:$M$3,0)),_data_Forecast!$O:$O,O$11,_data_Forecast!$P:$P,$C$5,_data_Forecast!$N:$N,$B$5,_data_Forecast!$Q:$Q,$D$5,_data_Forecast!$C:$C,$N23)) -> 5.254999054e-05 | P23: =IF(SUMIFS(INDEX(_data_Forecast!$D:$M,0,MATCH($F$5,_data_Forecast!$D$3:$M$3,0)),_data_Forecast!$O:$O,P$11,_data_Forecast!$P:$P,$C$5,_data_Forecast!$N:$N,$B$5,_data_Forecast!$Q:$Q,$D$5,_data_Forecast!$C:$C,$N23)=0,"NA",SUMIFS(INDEX(_data_Forecast!$D:$M,0,MATCH($F$5,_data_Forecast!$D$3:$M$3,0)),_data_Forecast!$O:$O,P$11,_data_Forecast!$P:$P,$C$5,_data_Forecast!$N:$N,$B$5,_data_Forecast!$Q:$Q,$D$5,_data_Forecast!$C:$C,$N23)) -> 7.125326856e-05 | Q23: =IF(SUMIFS(INDEX(_data_Forecast!$D:$M,0,MATCH($F$5,_data_Forecast!$D$3:$M$3,0)),_data_Forecast!$O:$O,Q$11,_data_Forecast!$P:$P,$C$5,_data_Forecast!$N:$N,$B$5,_data_Forecast!$Q:$Q,$D$5,_data_Forecast!$C:$C,$N23)=0,"NA",SUMIFS(INDEX(_data_Forecast!$D:$M,0,MATCH($F$5,_data_Forecast!$D$3:$M$3,0)),_data_Forecast!$O:$O,Q$11,_data_Forecast!$P:$P,$C$5,_data_Forecast!$N:$N,$B$5,_data_Forecast!$Q:$Q,$D$5,_data_Forecast!$C:$C,$N23)) -> 8.763567127e-05
N24: 60-64 | O24: =IF(SUMIFS(INDEX(_data_Forecast!$D:$M,0,MATCH($F$5,_data_Forecast!$D$3:$M$3,0)),_data_Forecast!$O:$O,O$11,_data_Forecast!$P:$P,$C$5,_data_Forecast!$N:$N,$B$5,_data_Forecast!$Q:$Q,$D$5,_data_Forecast!$C:$C,$N24)=0,"NA",SUMIFS(INDEX(_data_Forecast!$D:$M,0,MATCH($F$5,_data_Forecast!$D$3:$M$3,0)),_data_Forecast!$O:$O,O$11,_data_Forecast!$P:$P,$C$5,_data_Forecast!$N:$N,$B$5,_data_Forecast!$Q:$Q,$D$5,_data_Forecast!$C:$C,$N24)) -> 7.430783266e-05 | P24: =IF(SUMIFS(INDEX(_data_Forecast!$D:$M,0,MATCH($F$5,_data_Forecast!$D$3:$M$3,0)),_data_Forecast!$O:$O,P$11,_data_Forecast!$P:$P,$C$5,_data_Forecast!$N:$N,$B$5,_data_Forecast!$Q:$Q,$D$5,_data_Forecast!$C:$C,$N24)=0,"NA",SUMIFS(INDEX(_data_Forecast!$D:$M,0,MATCH($F$5,_data_Forecast!$D$3:$M$3,0)),_data_Forecast!$O:$O,P$11,_data_Forecast!$P:$P,$C$5,_data_Forecast!$N:$N,$B$5,_data_Forecast!$Q:$Q,$D$5,_data_Forecast!$C:$C,$N24)) -> 0.0001000266456 | Q24: =IF(SUMIFS(INDEX(_data_Forecast!$D:$M,0,MATCH($F$5,_data_Forecast!$D$3:$M$3,0)),_data_Forecast!$O:$O,Q$11,_data_Forecast!$P:$P,$C$5,_data_Forecast!$N:$N,$B$5,_data_Forecast!$Q:$Q,$D$5,_data_Forecast!$C:$C,$N24)=0,"NA",SUMIFS(INDEX(_data_Forecast!$D:$M,0,MATCH($F$5,_data_Forecast!$D$3:$M$3,0)),_data_Forecast!$O:$O,Q$11,_data_Forecast!$P:$P,$C$5,_data_Forecast!$N:$N,$B$5,_data_Forecast!$Q:$Q,$D$5,_data_Forecast!$C:$C,$N24)) -> 0.000111026227
N25: 65-69 | O25: =IF(SUMIFS(INDEX(_data_Forecast!$D:$M,0,MATCH($F$5,_data_Forecast!$D$3:$M$3,0)),_data_Forecast!$O:$O,O$11,_data_Forecast!$P:$P,$C$5,_data_Forecast!$N:$N,$B$5,_data_Forecast!$Q:$Q,$D$5,_data_Forecast!$C:$C,$N25)=0,"NA",SUMIFS(INDEX(_data_Forecast!$D:$M,0,MATCH($F$5,_data_Forecast!$D$3:$M$3,0)),_data_Forecast!$O:$O,O$11,_data_Forecast!$P:$P,$C$5,_data_Forecast!$N:$N,$B$5,_data_Forecast!$Q:$Q,$D$5,_data_Forecast!$C:$C,$N25)) -> 0.0001161315344 | P25: =IF(SUMIFS(INDEX(_data_Forecast!$D:$M,0,MATCH($F$5,_data_Forecast!$D$3:$M$3,0)),_data_Forecast!$O:$O,P$11,_data_Forecast!$P:$P,$C$5,_data_Forecast!$N:$N,$B$5,_data_Forecast!$Q:$Q,$D$5,_data_Forecast!$C:$C,$N25)=0,"NA",SUMIFS(INDEX(_data_Forecast!$D:$M,0,MATCH($F$5,_data_Forecast!$D$3:$M$3,0)),_data_Forecast!$O:$O,P$11,_data_Forecast!$P:$P,$C$5,_data_Forecast!$N:$N,$B$5,_data_Forecast!$Q:$Q,$D$5,_data_Forecast!$C:$C,$N25)) -> 0.0001543937 | Q25: =IF(SUMIFS(INDEX(_data_Forecast!$D:$M,0,MATCH($F$5,_data_Forecast!$D$3:$M$3,0)),_data_Forecast!$O:$O,Q$11,_data_Forecast!$P:$P,$C$5,_data_Forecast!$N:$N,$B$5,_data_Forecast!$Q:$Q,$D$5,_data_Forecast!$C:$C,$N25)=0,"NA",SUMIFS(INDEX(_data_Forecast!$D:$M,0,MATCH($F$5,_data_Forecast!$D$3:$M$3,0)),_data_Forecast!$O:$O,Q$11,_data_Forecast!$P:$P,$C$5,_data_Forecast!$N:$N,$B$5,_data_Forecast!$Q:$Q,$D$5,_data_Forecast!$C:$C,$N25)) -> 0.0001686156983
N26: 70-74 | O26: =IF(SUMIFS(INDEX(_data_Forecast!$D:$M,0,MATCH($F$5,_data_Forecast!$D$3:$M$3,0)),_data_Forecast!$O:$O,O$11,_data_Forecast!$P:$P,$C$5,_data_Forecast!$N:$N,$B$5,_data_Forecast!$Q:$Q,$D$5,_data_Forecast!$C:$C,$N26)=0,"NA",SUMIFS(INDEX(_data_Forecast!$D:$M,0,MATCH($F$5,_data_Forecast!$D$3:$M$3,0)),_data_Forecast!$O:$O,O$11,_data_Forecast!$P:$P,$C$5,_data_Forecast!$N:$N,$B$5,_data_Forecast!$Q:$Q,$D$5,_data_Forecast!$C:$C,$N26)) -> 0.0002130211679 | P26: =IF(SUMIFS(INDEX(_data_Forecast!$D:$M,0,MATCH($F$5,_data_Forecast!$D$3:$M$3,0)),_data_Forecast!$O:$O,P$11,_data_Forecast!$P:$P,$C$5,_data_Forecast!$N:$N,$B$5,_data_Forecast!$Q:$Q,$D$5,_data_Forecast!$C:$C,$N26)=0,"NA",SUMIFS(INDEX(_data_Forecast!$D:$M,0,MATCH($F$5,_data_Forecast!$D$3:$M$3,0)),_data_Forecast!$O:$O,P$11,_data_Forecast!$P:$P,$C$5,_data_Forecast!$N:$N,$B$5,_data_Forecast!$Q:$Q,$D$5,_data_Forecast!$C:$C,$N26)) -> 0.0002825877475 | Q26: =IF(SUMIFS(INDEX(_data_Forecast!$D:$M,0,MATCH($F$5,_data_Forecast!$D$3:$M$3,0)),_data_Forecast!$O:$O,Q$11,_data_Forecast!$P:$P,$C$5,_data_Forecast!$N:$N,$B$5,_data_Forecast!$Q:$Q,$D$5,_data_Forecast!$C:$C,$N26)=0,"NA",SUMIFS(INDEX(_data_Forecast!$D:$M,0,MATCH($F$5,_data_Forecast!$D$3:$M$3,0)),_data_Forecast!$O:$O,Q$11,_data_Forecast!$P:$P,$C$5,_data_Forecast!$N:$N,$B$5,_data_Forecast!$Q:$Q,$D$5,_data_Forecast!$C:$C,$N26)) -> 0.0003143068134
N27: 75-79 | O27: =IF(SUMIFS(INDEX(_data_Forecast!$D:$M,0,MATCH($F$5,_data_Forecast!$D$3:$M$3,0)),_data_Forecast!$O:$O,O$11,_data_Forecast!$P:$P,$C$5,_data_Forecast!$N:$N,$B$5,_data_Forecast!$Q:$Q,$D$5,_data_Forecast!$C:$C,$N27)=0,"NA",SUMIFS(INDEX(_data_Forecast!$D:$M,0,MATCH($F$5,_data_Forecast!$D$3:$M$3,0)),_data_Forecast!$O:$O,O$11,_data_Forecast!$P:$P,$C$5,_data_Forecast!$N:$N,$B$5,_data_Forecast!$Q:$Q,$D$5,_data_Forecast!$C:$C,$N27)) -> 0.0004666171189 | P27: =IF(SUMIFS(INDEX(_data_Forecast!$D:$M,0,MATCH($F$5,_data_Forecast!$D$3:$M$3,0)),_data_Forecast!$O:$O,P$11,_data_Forecast!$P:$P,$C$5,_data_Forecast!$N:$N,$B$5,_data_Forecast!$Q:$Q,$D$5,_data_Forecast!$C:$C,$N27)=0,"NA",SUMIFS(INDEX(_data_Forecast!$D:$M,0,MATCH($F$5,_data_Forecast!$D$3:$M$3,0)),_data_Forecast!$O:$O,P$11,_data_Forecast!$P:$P,$C$5,_data_Forecast!$N:$N,$B$5,_data_Forecast!$Q:$Q,$D$5,_data_Forecast!$C:$C,$N27)) -> 0.0006263135073 | Q27: =IF(SUMIFS(INDEX(_data_Forecast!$D:$M,0,MATCH($F$5,_data_Forecast!$D$3:$M$3,0)),_data_Forecast!$O:$O,Q$11,_data_Forecast!$P:$P,$C$5,_data_Forecast!$N:$N,$B$5,_data_Forecast!$Q:$Q,$D$5,_data_Forecast!$C:$C,$N27)=0,"NA",SUMIFS(INDEX(_data_Forecast!$D:$M,0,MATCH($F$5,_data_Forecast!$D$3:$M$3,0)),_data_Forecast!$O:$O,Q$11,_data_Forecast!$P:$P,$C$5,_data_Forecast!$N:$N,$B$5,_data_Forecast!$Q:$Q,$D$5,_data_Forecast!$C:$C,$N27)) -> 0.0006859089792
N28: 80-84 | O28: =IF(SUMIFS(INDEX(_data_Forecast!$D:$M,0,MATCH($F$5,_data_Forecast!$D$3:$M$3,0)),_data_Forecast!$O:$O,O$11,_data_Forecast!$P:$P,$C$5,_data_Forecast!$N:$N,$B$5,_data_Forecast!$Q:$Q,$D$5,_data_Forecast!$C:$C,$N28)=0,"NA",SUMIFS(INDEX(_data_Forecast!$D:$M,0,MATCH($F$5,_data_Forecast!$D$3:$M$3,0)),_data_Forecast!$O:$O,O$11,_data_Forecast!$P:$P,$C$5,_data_Forecast!$N:$N,$B$5,_data_Forecast!$Q:$Q,$D$5,_data_Forecast!$C:$C,$N28)) -> 0.0009055503923 | P28: =IF(SUMIFS(INDEX(_data_Forecast!$D:$M,0,MATCH($F$5,_data_Forecast!$D$3:$M$3,0)),_data_Forecast!$O:$O,P$11,_data_Forecast!$P:$P,$C$5,_data_Forecast!$N:$N,$B$5,_data_Forecast!$Q:$Q,$D$5,_data_Forecast!$C:$C,$N28)=0,"NA",SUMIFS(INDEX(_data_Forecast!$D:$M,0,MATCH($F$5,_data_Forecast!$D$3:$M$3,0)),_data_Forecast!$O:$O,P$11,_data_Forecast!$P:$P,$C$5,_data_Forecast!$N:$N,$B$5,_data_Forecast!$Q:$Q,$D$5,_data_Forecast!$C:$C,$N28)) -> 0.001911991569 | Q28: =IF(SUMIFS(INDEX(_data_Forecast!$D:$M,0,MATCH($F$5,_data_Forecast!$D$3:$M$3,0)),_data_Forecast!$O:$O,Q$11,_data_Forecast!$P:$P,$C$5,_data_Forecast!$N:$N,$B$5,_data_Forecast!$Q:$Q,$D$5,_data_Forecast!$C:$C,$N28)=0,"NA",SUMIFS(INDEX(_data_Forecast!$D:$M,0,MATCH($F$5,_data_Forecast!$D$3:$M$3,0)),_data_Forecast!$O:$O,Q$11,_data_Forecast!$P:$P,$C$5,_data_Forecast!$N:$N,$B$5,_data_Forecast!$Q:$Q,$D$5,_data_Forecast!$C:$C,$N28)) -> 0.001623398982
N29: 85+ | O29: =IF(SUMIFS(INDEX(_data_Forecast!$D:$M,0,MATCH($F$5,_data_Forecast!$D$3:$M$3,0)),_data_Forecast!$O:$O,O$11,_data_Forecast!$P:$P,$C$5,_data_Forecast!$N:$N,$B$5,_data_Forecast!$Q:$Q,$D$5,_data_Forecast!$C:$C,$N29)=0,"NA",SUMIFS(INDEX(_data_Forecast!$D:$M,0,MATCH($F$5,_data_Forecast!$D$3:$M$3,0)),_data_Forecast!$O:$O,O$11,_data_Forecast!$P:$P,$C$5,_data_Forecast!$N:$N,$B$5,_data_Forecast!$Q:$Q,$D$5,_data_Forecast!$C:$C,$N29)) -> 0.002417297115 | P29: =IF(SUMIFS(INDEX(_data_Forecast!$D:$M,0,MATCH($F$5,_data_Forecast!$D$3:$M$3,0)),_data_Forecast!$O:$O,P$11,_data_Forecast!$P:$P,$C$5,_data_Forecast!$N:$N,$B$5,_data_Forecast!$Q:$Q,$D$5,_data_Forecast!$C:$C,$N29)=0,"NA",SUMIFS(INDEX(_data_Forecast!$D:$M,0,MATCH($F$5,_data_Forecast!$D$3:$M$3,0)),_data_Forecast!$O:$O,P$11,_data_Forecast!$P:$P,$C$5,_data_Forecast!$N:$N,$B$5,_data_Forecast!$Q:$Q,$D$5,_data_Forecast!$C:$C,$N29)) -> 0.005320121135 | Q29: =IF(SUMIFS(INDEX(_data_Forecast!$D:$M,0,MATCH($F$5,_data_Forecast!$D$3:$M$3,0)),_data_Forecast!$O:$O,Q$11,_data_Forecast!$P:$P,$C$5,_data_Forecast!$N:$N,$B$5,_data_Forecast!$Q:$Q,$D$5,_data_Forecast!$C:$C,$N29)=0,"NA",SUMIFS(INDEX(_data_Forecast!$D:$M,0,MATCH($F$5,_data_Forecast!$D$3:$M$3,0)),_data_Forecast!$O:$O,Q$11,_data_Forecast!$P:$P,$C$5,_data_Forecast!$N:$N,$B$5,_data_Forecast!$Q:$Q,$D$5,_data_Forecast!$C:$C,$N29)) -> 0.004124586316
B34: =setChartAxis("Region_comparison","Chart 1","Min","Value","Primary",C34) ->  | C34: =ROUNDDOWN(MIN(O12:Q29)*1000000000,0)/1000000000*0.5 -> 7.688e-06
B35: =setChartAxis("Region_comparison","Chart 1","Max","Value","Primary",C35) ->  | C35: =ROUNDUP(MAX(O12:Q29)*1000000000,0)/1000000000*1.5 -> 0.007980183
B36: =All_series!B36 -> Test!1

Sheet Area_comparison
B2: Option 1 - Select Combination Using Drop-down List | N2: Option 2 - Click Buttons to Select Combination
B4: Gender | C4: Region | D4: Cause | F4: Year | X4: Gender | Y4: Region | Z4: Cause | AA4: Year | AB4: 1
B5: Male | C5: Central | D5: Cancer | F5: 2022 | X5: =OFFSET(_tbl!O$3,comb_id,0) -> Male | Y5: =OFFSET(_tbl!P$3,comb_id,0) -> Central | Z5: =OFFSET(_tbl!Q$3,comb_id,0) -> Cancer | AA5: =$F$5 -> 2022
B9: CHARTS AND DATA | E9: =IF(COUNTIFS(O11:P29,"NA")=36, "Combination Not Available", B5&", "&C5&", Cause "&D5&", Forecast Year "&F5) -> Male, Central, Cause Cancer, Forecast Year 2022
N11: Age/Area | O11: Urban | P11: Rural
N12: 1-4 | O12: =IF(SUMIFS(INDEX(_data_Forecast!$D:$M,0,MATCH($F$5,_data_Forecast!$D$3:$M$3,0)),_data_Forecast!$O:$O,$C$5,_data_Forecast!$P:$P,O$11,_data_Forecast!$N:$N,$B$5,_data_Forecast!$Q:$Q,$D$5,_data_Forecast!$C:$C,$N12)=0,"NA",SUMIFS(INDEX(_data_Forecast!$D:$M,0,MATCH($F$5,_data_Forecast!$D$3:$M$3,0)),_data_Forecast!$O:$O,$C$5,_data_Forecast!$P:$P,O$11,_data_Forecast!$N:$N,$B$5,_data_Forecast!$Q:$Q,$D$5,_data_Forecast!$C:$C,$N12)) -> 2.910857559e-05 | P12: =IF(SUMIFS(INDEX(_data_Forecast!$D:$M,0,MATCH($F$5,_data_Forecast!$D$3:$M$3,0)),_data_Forecast!$O:$O,$C$5,_data_Forecast!$P:$P,P$11,_data_Forecast!$N:$N,$B$5,_data_Forecast!$Q:$Q,$D$5,_data_Forecast!$C:$C,$N12)=0,"NA",SUMIFS(INDEX(_data_Forecast!$D:$M,0,MATCH($F$5,_data_Forecast!$D$3:$M$3,0)),_data_Forecast!$O:$O,$C$5,_data_Forecast!$P:$P,P$11,_data_Forecast!$N:$N,$B$5,_data_Forecast!$Q:$Q,$D$5,_data_Forecast!$C:$C,$N12)) -> 3.020538412e-05
N13: 5-9 | O13: =IF(SUMIFS(INDEX(_data_Forecast!$D:$M,0,MATCH($F$5,_data_Forecast!$D$3:$M$3,0)),_data_Forecast!$O:$O,$C$5,_data_Forecast!$P:$P,O$11,_data_Forecast!$N:$N,$B$5,_data_Forecast!$Q:$Q,$D$5,_data_Forecast!$C:$C,$N13)=0,"NA",SUMIFS(INDEX(_data_Forecast!$D:$M,0,MATCH($F$5,_data_Forecast!$D$3:$M$3,0)),_data_Forecast!$O:$O,$C$5,_data_Forecast!$P:$P,O$11,_data_Forecast!$N:$N,$B$5,_data_Forecast!$Q:$Q,$D$5,_data_Forecast!$C:$C,$N13)) -> 2.874833946e-05 | P13: =IF(SUMIFS(INDEX(_data_Forecast!$D:$M,0,MATCH($F$5,_data_Forecast!$D$3:$M$3,0)),_data_Forecast!$O:$O,$C$5,_data_Forecast!$P:$P,P$11,_data_Forecast!$N:$N,$B$5,_data_Forecast!$Q:$Q,$D$5,_data_Forecast!$C:$C,$N13)=0,"NA",SUMIFS(INDEX(_data_Forecast!$D:$M,0,MATCH($F$5,_data_Forecast!$D$3:$M$3,0)),_data_Forecast!$O:$O,$C$5,_data_Forecast!$P:$P,P$11,_data_Forecast!$N:$N,$B$5,_data_Forecast!$Q:$Q,$D$5,_data_Forecast!$C:$C,$N13)) -> 3.206845566e-05
N14: 10-14 | O14: =IF(SUMIFS(INDEX(_data_Forecast!$D:$M,0,MATCH($F$5,_data_Forecast!$D$3:$M$3,0)),_data_Forecast!$O:$O,$C$5,_data_Forecast!$P:$P,O$11,_data_Forecast!$N:$N,$B$5,_data_Forecast!$Q:$Q,$D$5,_data_Forecast!$C:$C,$N14)=0,"NA",SUMIFS(INDEX(_data_Forecast!$D:$M,0,MATCH($F$5,_data_Forecast!$D$3:$M$3,0)),_data_Forecast!$O:$O,$C$5,_data_Forecast!$P:$P,O$11,_data_Forecast!$N:$N,$B$5,_data_Forecast!$Q:$Q,$D$5,_data_Forecast!$C:$C,$N14)) -> 3.224508004e-05 | P14: =IF(SUMIFS(INDEX(_data_Forecast!$D:$M,0,MATCH($F$5,_data_Forecast!$D$3:$M$3,0)),_data_Forecast!$O:$O,$C$5,_data_Forecast!$P:$P,P$11,_data_Forecast!$N:$N,$B$5,_data_Forecast!$Q:$Q,$D$5,_data_Forecast!$C:$C,$N14)=0,"NA",SUMIFS(INDEX(_data_Forecast!$D:$M,0,MATCH($F$5,_data_Forecast!$D$3:$M$3,0)),_data_Forecast!$O:$O,$C$5,_data_Forecast!$P:$P,P$11,_data_Forecast!$N:$N,$B$5,_data_Forecast!$Q:$Q,$D$5,_data_Forecast!$C:$C,$N14)) -> 3.801256852e-05
N15: 15-19 | O15: =IF(SUMIFS(INDEX(_data_Forecast!$D:$M,0,MATCH($F$5,_data_Forecast!$D$3:$M$3,0)),_data_Forecast!$O:$O,$C$5,_data_Forecast!$P:$P,O$11,_data_Forecast!$N:$N,$B$5,_data_Forecast!$Q:$Q,$D$5,_data_Forecast!$C:$C,$N15)=0,"NA",SUMIFS(INDEX(_data_Forecast!$D:$M,0,MATCH($F$5,_data_Forecast!$D$3:$M$3,0)),_data_Forecast!$O:$O,$C$5,_data_Forecast!$P:$P,O$11,_data_Forecast!$N:$N,$B$5,_data_Forecast!$Q:$Q,$D$5,_data_Forecast!$C:$C,$N15)) -> 3.835594449e-05 | P15: =IF(SUMIFS(INDEX(_data_Forecast!$D:$M,0,MATCH($F$5,_data_Forecast!$D$3:$M$3,0)),_data_Forecast!$O:$O,$C$5,_data_Forecast!$P:$P,P$11,_data_Forecast!$N:$N,$B$5,_data_Forecast!$Q:$Q,$D$5,_data_Forecast!$C:$C,$N15)=0,"NA",SUMIFS(INDEX(_data_Forecast!$D:$M,0,MATCH($F$5,_data_Forecast!$D$3:$M$3,0)),_data_Forecast!$O:$O,$C$5,_data_Forecast!$P:$P,P$11,_data_Forecast!$N:$N,$B$5,_data_Forecast!$Q:$Q,$D$5,_data_Forecast!$C:$C,$N15)) -> 5.046637462e-05
N16: 20-24 | O16: =IF(SUMIFS(INDEX(_data_Forecast!$D:$M,0,MATCH($F$5,_data_Forecast!$D$3:$M$3,0)),_data_Forecast!$O:$O,$C$5,_data_Forecast!$P:$P,O$11,_data_Forecast!$N:$N,$B$5,_data_Forecast!$Q:$Q,$D$5,_data_Forecast!$C:$C,$N16)=0,"NA",SUMIFS(INDEX(_data_Forecast!$D:$M,0,MATCH($F$5,_data_Forecast!$D$3:$M$3,0)),_data_Forecast!$O:$O,$C$5,_data_Forecast!$P:$P,O$11,_data_Forecast!$N:$N,$B$5,_data_Forecast!$Q:$Q,$D$5,_data_Forecast!$C:$C,$N16)) -> 4.978838171e-05 | P16: =IF(SUMIFS(INDEX(_data_Forecast!$D:$M,0,MATCH($F$5,_data_Forecast!$D$3:$M$3,0)),_data_Forecast!$O:$O,$C$5,_data_Forecast!$P:$P,P$11,_data_Forecast!$N:$N,$B$5,_data_Forecast!$Q:$Q,$D$5,_data_Forecast!$C:$C,$N16)=0,"NA",SUMIFS(INDEX(_data_Forecast!$D:$M,0,MATCH($F$5,_data_Forecast!$D$3:$M$3,0)),_data_Forecast!$O:$O,$C$5,_data_Forecast!$P:$P,P$11,_data_Forecast!$N:$N,$B$5,_data_Forecast!$Q:$Q,$D$5,_data_Forecast!$C:$C,$N16)) -> 7.368858775e-05
N17: 25-29 | O17: =IF(SUMIFS(INDEX(_data_Forecast!$D:$M,0,MATCH($F$5,_data_Forecast!$D$3:$M$3,0)),_data_Forecast!$O:$O,$C$5,_data_Forecast!$P:$P,O$11,_data_Forecast!$N:$N,$B$5,_data_Forecast!$Q:$Q,$D$5,_data_Forecast!$C:$C,$N17)=0,"NA",SUMIFS(INDEX(_data_Forecast!$D:$M,0,MATCH($F$5,_data_Forecast!$D$3:$M$3,0)),_data_Forecast!$O:$O,$C$5,_data_Forecast!$P:$P,O$11,_data_Forecast!$N:$N,$B$5,_data_Forecast!$Q:$Q,$D$5,_data_Forecast!$C:$C,$N17)) -> 7.680564144e-05 | P17: =IF(SUMIFS(INDEX(_data_Forecast!$D:$M,0,MATCH($F$5,_data_Forecast!$D$3:$M$3,0)),_data_Forecast!$O:$O,$C$5,_data_Forecast!$P:$P,P$11,_data_Forecast!$N:$N,$B$5,_data_Forecast!$Q:$Q,$D$5,_data_Forecast!$C:$C,$N17)=0,"NA",SUMIFS(INDEX(_data_Forecast!$D:$M,0,MATCH($F$5,_data_Forecast!$D$3:$M$3,0)),_data_Forecast!$O:$O,$C$5,_data_Forecast!$P:$P,P$11,_data_Forecast!$N:$N,$B$5,_data_Forecast!$Q:$Q,$D$5,_data_Forecast!$C:$C,$N17)) -> 0.0001153774044
N18: 30-34 | O18: =IF(SUMIFS(INDEX(_data_Forecast!$D:$M,0,MATCH($F$5,_data_Forecast!$D$3:$M$3,0)),_data_Forecast!$O:$O,$C$5,_data_Forecast!$P:$P,O$11,_data_Forecast!$N:$N,$B$5,_data_Forecast!$Q:$Q,$D$5,_data_Forecast!$C:$C,$N18)=0,"NA",SUMIFS(INDEX(_data_Forecast!$D:$M,0,MATCH($F$5,_data_Forecast!$D$3:$M$3,0)),_data_Forecast!$O:$O,$C$5,_data_Forecast!$P:$P,O$11,_data_Forecast!$N:$N,$B$5,_data_Forecast!$Q:$Q,$D$5,_data_Forecast!$C:$C,$N18)) -> 0.0001346689735 | P18: =IF(SUMIFS(INDEX(_data_Forecast!$D:$M,0,MATCH($F$5,_data_Forecast!$D$3:$M$3,0)),_data_Forecast!$O:$O,$C$5,_data_Forecast!$P:$P,P$11,_data_Forecast!$N:$N,$B$5,_data_Forecast!$Q:$Q,$D$5,_data_Forecast!$C:$C,$N18)=0,"NA",SUMIFS(INDEX(_data_Forecast!$D:$M,0,MATCH($F$5,_data_Forecast!$D$3:$M$3,0)),_data_Forecast!$O:$O,$C$5,_data_Forecast!$P:$P,P$11,_data_Forecast!$N:$N,$B$5,_data_Forecast!$Q:$Q,$D$5,_data_Forecast!$C:$C,$N18)) -> 0.0001959893413
N19: 35-39 | O19: =IF(SUMIFS(INDEX(_data_Forecast!$D:$M,0,MATCH($F$5,_data_Forecast!$D$3:$M$3,0)),_data_Forecast!$O:$O,$C$5,_data_Forecast!$P:$P,O$11,_data_Forecast!$N:$N,$B$5,_data_Forecast!$Q:$Q,$D$5,_data_Forecast!$C:$C,$N19)=0,"NA",SUMIFS(INDEX(_data_Forecast!$D:$M,0,MATCH($F$5,_data_Forecast!$D$3:$M$3,0)),_data_Forecast!$O:$O,$C$5,_data_Forecast!$P:$P,O$11,_data_Forecast!$N:$N,$B$5,_data_Forecast!$Q:$Q,$D$5,_data_Forecast!$C:$C,$N19)) -> 0.0002316964013 | P19: =IF(SUMIFS(INDEX(_data_Forecast!$D:$M,0,MATCH($F$5,_data_Forecast!$D$3:$M$3,0)),_data_Forecast!$O:$O,$C$5,_data_Forecast!$P:$P,P$11,_data_Forecast!$N:$N,$B$5,_data_Forecast!$Q:$Q,$D$5,_data_Forecast!$C:$C,$N19)=0,"NA",SUMIFS(INDEX(_data_Forecast!$D:$M,0,MATCH($F$5,_data_Forecast!$D$3:$M$3,0)),_data_Forecast!$O:$O,$C$5,_data_Forecast!$P:$P,P$11,_data_Forecast!$N:$N,$B$5,_data_Forecast!$Q:$Q,$D$5,_data_Forecast!$C:$C,$N19)) -> 0.0003385021549
N20: 40-44 | O20: =IF(SUMIFS(INDEX(_data_Forecast!$D:$M,0,MATCH($F$5,_data_Forecast!$D$3:$M$3,0)),_data_Forecast!$O:$O,$C$5,_data_Forecast!$P:$P,O$11,_data_Forecast!$N:$N,$B$5,_data_Forecast!$Q:$Q,$D$5,_data_Forecast!$C:$C,$N20)=0,"NA",SUMIFS(INDEX(_data_Forecast!$D:$M,0,MATCH($F$5,_data_Forecast!$D$3:$M$3,0)),_data_Forecast!$O:$O,$C$5,_data_Forecast!$P:$P,O$11,_data_Forecast!$N:$N,$B$5,_data_Forecast!$Q:$Q,$D$5,_data_Forecast!$C:$C,$N20)) -> 0.0004066761369 | P20: =IF(SUMIFS(INDEX(_data_Forecast!$D:$M,0,MATCH($F$5,_data_Forecast!$D$3:$M$3,0)),_data_Forecast!$O:$O,$C$5,_data_Forecast!$P:$P,P$11,_data_Forecast!$N:$N,$B$5,_data_Forecast!$Q:$Q,$D$5,_data_Forecast!$C:$C,$N20)=0,"NA",SUMIFS(INDEX(_data_Forecast!$D:$M,0,MATCH($F$5,_data_Forecast!$D$3:$M$3,0)),_data_Forecast!$O:$O,$C$5,_data_Forecast!$P:$P,P$11,_data_Forecast!$N:$N,$B$5,_data_Forecast!$Q:$Q,$D$5,_data_Forecast!$C:$C,$N20)) -> 0.0005767164724
N21: 45-49 | O21: =IF(SUMIFS(INDEX(_data_Forecast!$D:$M,0,MATCH($F$5,_data_Forecast!$D$3:$M$3,0)),_data_Forecast!$O:$O,$C$5,_data_Forecast!$P:$P,O$11,_data_Forecast!$N:$N,$B$5,_data_Forecast!$Q:$Q,$D$5,_data_Forecast!$C:$C,$N21)=0,"NA",SUMIFS(INDEX(_data_Forecast!$D:$M,0,MATCH($F$5,_data_Forecast!$D$3:$M$3,0)),_data_Forecast!$O:$O,$C$5,_data_Forecast!$P:$P,O$11,_data_Forecast!$N:$N,$B$5,_data_Forecast!$Q:$Q,$D$5,_data_Forecast!$C:$C,$N21)) -> 0.000794951903 | P21: =IF(SUMIFS(INDEX(_data_Forecast!$D:$M,0,MATCH($F$5,_data_Forecast!$D$3:$M$3,0)),_data_Forecast!$O:$O,$C$5,_data_Forecast!$P:$P,P$11,_data_Forecast!$N:$N,$B$5,_data_Forecast!$Q:$Q,$D$5,_data_Forecast!$C:$C,$N21)=0,"NA",SUMIFS(INDEX(_data_Forecast!$D:$M,0,MATCH($F$5,_data_Forecast!$D$3:$M$3,0)),_data_Forecast!$O:$O,$C$5,_data_Forecast!$P:$P,P$11,_data_Forecast!$N:$N,$B$5,_data_Forecast!$Q:$Q,$D$5,_data_Forecast!$C:$C,$N21)) -> 0.001001140861
N22: 50-54 | O22: =IF(SUMIFS(INDEX(_data_Forecast!$D:$M,0,MATCH($F$5,_data_Forecast!$D$3:$M$3,0)),_data_Forecast!$O:$O,$C$5,_data_Forecast!$P:$P,O$11,_data_Forecast!$N:$N,$B$5,_data_Forecast!$Q:$Q,$D$5,_data_Forecast!$C:$C,$N22)=0,"NA",SUMIFS(INDEX(_data_Forecast!$D:$M,0,MATCH($F$5,_data_Forecast!$D$3:$M$3,0)),_data_Forecast!$O:$O,$C$5,_data_Forecast!$P:$P,O$11,_data_Forecast!$N:$N,$B$5,_data_Forecast!$Q:$Q,$D$5,_data_Forecast!$C:$C,$N22)) -> 0.001608624644 | P22: =IF(SUMIFS(INDEX(_data_Forecast!$D:$M,0,MATCH($F$5,_data_Forecast!$D$3:$M$3,0)),_data_Forecast!$O:$O,$C$5,_data_Forecast!$P:$P,P$11,_data_Forecast!$N:$N,$B$5,_data_Forecast!$Q:$Q,$D$5,_data_Forecast!$C:$C,$N22)=0,"NA",SUMIFS(INDEX(_data_Forecast!$D:$M,0,MATCH($F$5,_data_Forecast!$D$3:$M$3,0)),_data_Forecast!$O:$O,$C$5,_data_Forecast!$P:$P,P$11,_data_Forecast!$N:$N,$B$5,_data_Forecast!$Q:$Q,$D$5,_data_Forecast!$C:$C,$N22)) -> 0.001779016049
N23: 55-59 | O23: =IF(SUMIFS(INDEX(_data_Forecast!$D:$M,0,MATCH($F$5,_data_Forecast!$D$3:$M$3,0)),_data_Forecast!$O:$O,$C$5,_data_Forecast!$P:$P,O$11,_data_Forecast!$N:$N,$B$5,_data_Forecast!$Q:$Q,$D$5,_data_Forecast!$C:$C,$N23)=0,"NA",SUMIFS(INDEX(_data_Forecast!$D:$M,0,MATCH($F$5,_data_Forecast!$D$3:$M$3,0)),_data_Forecast!$O:$O,$C$5,_data_Forecast!$P:$P,O$11,_data_Forecast!$N:$N,$B$5,_data_Forecast!$Q:$Q,$D$5,_data_Forecast!$C:$C,$N23)) -> 0.002929001691 | P23: =IF(SUMIFS(INDEX(_data_Forecast!$D:$M,0,MATCH($F$5,_data_Forecast!$D$3:$M$3,0)),_data_Forecast!$O:$O,$C$5,_data_Forecast!$P:$P,P$11,_data_Forecast!$N:$N,$B$5,_data_Forecast!$Q:$Q,$D$5,_data_Forecast!$C:$C,$N23)=0,"NA",SUMIFS(INDEX(_data_Forecast!$D:$M,0,MATCH($F$5,_data_Forecast!$D$3:$M$3,0)),_data_Forecast!$O:$O,$C$5,_data_Forecast!$P:$P,P$11,_data_Forecast!$N:$N,$B$5,_data_Forecast!$Q:$Q,$D$5,_data_Forecast!$C:$C,$N23)) -> 0.002824915311
N24: 60-64 | O24: =IF(SUMIFS(INDEX(_data_Forecast!$D:$M,0,MATCH($F$5,_data_Forecast!$D$3:$M$3,0)),_data_Forecast!$O:$O,$C$5,_data_Forecast!$P:$P,O$11,_data_Forecast!$N:$N,$B$5,_data_Forecast!$Q:$Q,$D$5,_data_Forecast!$C:$C,$N24)=0,"NA",SUMIFS(INDEX(_data_Forecast!$D:$M,0,MATCH($F$5,_data_Forecast!$D$3:$M$3,0)),_data_Forecast!$O:$O,$C$5,_data_Forecast!$P:$P,O$11,_data_Forecast!$N:$N,$B$5,_data_Forecast!$Q:$Q,$D$5,_data_Forecast!$C:$C,$N24)) -> 0.004680528903 | P24: =IF(SUMIFS(INDEX(_data_Forecast!$D:$M,0,MATCH($F$5,_data_Forecast!$D$3:$M$3,0)),_data_Forecast!$O:$O,$C$5,_data_Forecast!$P:$P,P$11,_data_Forecast!$N:$N,$B$5,_data_Forecast!$Q:$Q,$D$5,_data_Forecast!$C:$C,$N24)=0,"NA",SUMIFS(INDEX(_data_Forecast!$D:$M,0,MATCH($F$5,_data_Forecast!$D$3:$M$3,0)),_data_Forecast!$O:$O,$C$5,_data_Forecast!$P:$P,P$11,_data_Forecast!$N:$N,$B$5,_data_Forecast!$Q:$Q,$D$5,_data_Forecast!$C:$C,$N24)) -> 0.004577403656
N25: 65-69 | O25: =IF(SUMIFS(INDEX(_data_Forecast!$D:$M,0,MATCH($F$5,_data_Forecast!$D$3:$M$3,0)),_data_Forecast!$O:$O,$C$5,_data_Forecast!$P:$P,O$11,_data_Forecast!$N:$N,$B$5,_data_Forecast!$Q:$Q,$D$5,_data_Forecast!$C:$C,$N25)=0,"NA",SUMIFS(INDEX(_data_Forecast!$D:$M,0,MATCH($F$5,_data_Forecast!$D$3:$M$3,0)),_data_Forecast!$O:$O,$C$5,_data_Forecast!$P:$P,O$11,_data_Forecast!$N:$N,$B$5,_data_Forecast!$Q:$Q,$D$5,_data_Forecast!$C:$C,$N25)) -> 0.006510562637 | P25: =IF(SUMIFS(INDEX(_data_Forecast!$D:$M,0,MATCH($F$5,_data_Forecast!$D$3:$M$3,0)),_data_Forecast!$O:$O,$C$5,_data_Forecast!$P:$P,P$11,_data_Forecast!$N:$N,$B$5,_data_Forecast!$Q:$Q,$D$5,_data_Forecast!$C:$C,$N25)=0,"NA",SUMIFS(INDEX(_data_Forecast!$D:$M,0,MATCH($F$5,_data_Forecast!$D$3:$M$3,0)),_data_Forecast!$O:$O,$C$5,_data_Forecast!$P:$P,P$11,_data_Forecast!$N:$N,$B$5,_data_Forecast!$Q:$Q,$D$5,_data_Forecast!$C:$C,$N25)) -> 0.007051378433
N26: 70-74 | O26: =IF(SUMIFS(INDEX(_data_Forecast!$D:$M,0,MATCH($F$5,_data_Forecast!$D$3:$M$3,0)),_data_Forecast!$O:$O,$C$5,_data_Forecast!$P:$P,O$11,_data_Forecast!$N:$N,$B$5,_data_Forecast!$Q:$Q,$D$5,_data_Forecast!$C:$C,$N26)=0,"NA",SUMIFS(INDEX(_data_Forecast!$D:$M,0,MATCH($F$5,_data_Forecast!$D$3:$M$3,0)),_data_Forecast!$O:$O,$C$5,_data_Forecast!$P:$P,O$11,_data_Forecast!$N:$N,$B$5,_data_Forecast!$Q:$Q,$D$5,_data_Forecast!$C:$C,$N26)) -> 0.009115876819 | P26: =IF(SUMIFS(INDEX(_data_Forecast!$D:$M,0,MATCH($F$5,_data_Forecast!$D$3:$M$3,0)),_data_Forecast!$O:$O,$C$5,_data_Forecast!$P:$P,P$11,_data_Forecast!$N:$N,$B$5,_data_Forecast!$Q:$Q,$D$5,_data_Forecast!$C:$C,$N26)=0,"NA",SUMIFS(INDEX(_data_Forecast!$D:$M,0,MATCH($F$5,_data_Forecast!$D$3:$M$3,0)),_data_Forecast!$O:$O,$C$5,_data_Forecast!$P:$P,P$11,_data_Forecast!$N:$N,$B$5,_data_Forecast!$Q:$Q,$D$5,_data_Forecast!$C:$C,$N26)) -> 0.0097898872
N27: 75-79 | O27: =IF(SUMIFS(INDEX(_data_Forecast!$D:$M,0,MATCH($F$5,_data_Forecast!$D$3:$M$3,0)),_data_Forecast!$O:$O,$C$5,_data_Forecast!$P:$P,O$11,_data_Forecast!$N:$N,$B$5,_data_Forecast!$Q:$Q,$D$5,_data_Forecast!$C:$C,$N27)=0,"NA",SUMIFS(INDEX(_data_Forecast!$D:$M,0,MATCH($F$5,_data_Forecast!$D$3:$M$3,0)),_data_Forecast!$O:$O,$C$5,_data_Forecast!$P:$P,O$11,_data_Forecast!$N:$N,$B$5,_data_Forecast!$Q:$Q,$D$5,_data_Forecast!$C:$C,$N27)) -> 0.0128739122 | P27: =IF(SUMIFS(INDEX(_data_Forecast!$D:$M,0,MATCH($F$5,_data_Forecast!$D$3:$M$3,0)),_data_Forecast!$O:$O,$C$5,_data_Forecast!$P:$P,P$11,_data_Forecast!$N:$N,$B$5,_data_Forecast!$Q:$Q,$D$5,_data_Forecast!$C:$C,$N27)=0,"NA",SUMIFS(INDEX(_data_Forecast!$D:$M,0,MATCH($F$5,_data_Forecast!$D$3:$M$3,0)),_data_Forecast!$O:$O,$C$5,_data_Forecast!$P:$P,P$11,_data_Forecast!$N:$N,$B$5,_data_Forecast!$Q:$Q,$D$5,_data_Forecast!$C:$C,$N27)) -> 0.0127596331
N28: 80-84 | O28: =IF(SUMIFS(INDEX(_data_Forecast!$D:$M,0,MATCH($F$5,_data_Forecast!$D$3:$M$3,0)),_data_Forecast!$O:$O,$C$5,_data_Forecast!$P:$P,O$11,_data_Forecast!$N:$N,$B$5,_data_Forecast!$Q:$Q,$D$5,_data_Forecast!$C:$C,$N28)=0,"NA",SUMIFS(INDEX(_data_Forecast!$D:$M,0,MATCH($F$5,_data_Forecast!$D$3:$M$3,0)),_data_Forecast!$O:$O,$C$5,_data_Forecast!$P:$P,O$11,_data_Forecast!$N:$N,$B$5,_data_Forecast!$Q:$Q,$D$5,_data_Forecast!$C:$C,$N28)) -> 0.01866831956 | P28: =IF(SUMIFS(INDEX(_data_Forecast!$D:$M,0,MATCH($F$5,_data_Forecast!$D$3:$M$3,0)),_data_Forecast!$O:$O,$C$5,_data_Forecast!$P:$P,P$11,_data_Forecast!$N:$N,$B$5,_data_Forecast!$Q:$Q,$D$5,_data_Forecast!$C:$C,$N28)=0,"NA",SUMIFS(INDEX(_data_Forecast!$D:$M,0,MATCH($F$5,_data_Forecast!$D$3:$M$3,0)),_data_Forecast!$O:$O,$C$5,_data_Forecast!$P:$P,P$11,_data_Forecast!$N:$N,$B$5,_data_Forecast!$Q:$Q,$D$5,_data_Forecast!$C:$C,$N28)) -> 0.01430190356
N29: 85+ | O29: =IF(SUMIFS(INDEX(_data_Forecast!$D:$M,0,MATCH($F$5,_data_Forecast!$D$3:$M$3,0)),_data_Forecast!$O:$O,$C$5,_data_Forecast!$P:$P,O$11,_data_Forecast!$N:$N,$B$5,_data_Forecast!$Q:$Q,$D$5,_data_Forecast!$C:$C,$N29)=0,"NA",SUMIFS(INDEX(_data_Forecast!$D:$M,0,MATCH($F$5,_data_Forecast!$D$3:$M$3,0)),_data_Forecast!$O:$O,$C$5,_data_Forecast!$P:$P,O$11,_data_Forecast!$N:$N,$B$5,_data_Forecast!$Q:$Q,$D$5,_data_Forecast!$C:$C,$N29)) -> 0.02741815148 | P29: =IF(SUMIFS(INDEX(_data_Forecast!$D:$M,0,MATCH($F$5,_data_Forecast!$D$3:$M$3,0)),_data_Forecast!$O:$O,$C$5,_data_Forecast!$P:$P,P$11,_data_Forecast!$N:$N,$B$5,_data_Forecast!$Q:$Q,$D$5,_data_Forecast!$C:$C,$N29)=0,"NA",SUMIFS(INDEX(_data_Forecast!$D:$M,0,MATCH($F$5,_data_Forecast!$D$3:$M$3,0)),_data_Forecast!$O:$O,$C$5,_data_Forecast!$P:$P,P$11,_data_Forecast!$N:$N,$B$5,_data_Forecast!$Q:$Q,$D$5,_data_Forecast!$C:$C,$N29)) -> 0.01709331341
B34: =setChartAxis("Area_comparison","Chart 1","Min","Value","Primary",C34) -> Value Primary Min: 0.000014374 | C34: =ROUNDDOWN(MIN(O12:P29)*1000000000,0)/1000000000*0.5 -> 1.4374e-05
B35: =setChartAxis("Area_comparison","Chart 1","Max","Value","Primary",C35) -> Value Primary Max: 0.041127228 | C35: =ROUNDUP(MAX(O12:P29)*1000000000,0)/1000000000*1.5 -> 0.041127228
B36: =All_series!B36 -> Test!1

Sheet _data_Forecast (hidden)
S1: =MAX(S4:S2801) -> 0.2043372139 | T1: =_xlfn.MINIFS(T4:T2801,T4:T2801,">0") -> 6.211648293e-07
N2: 2 | O2: =N2+1 -> 3 | P2: =O2+1 -> 4 | Q2: =P2+1 -> 5
B3: File Name | D3: 2020 | E3: 2021 | F3: 2022 | G3: 2023 | H3: 2024 | I3: 2025 | J3: 2026 | K3: 2027 | L3: 2028 | M3: 2029 | N3: Gender | O3: Region | P3: Area | Q3: Cause
B4: all_m_Central Rural cancer.csv | C4: 1-4 | D4: 3.03520888e-05 | E4: 3.027480088e-05 | F4: 3.020538412e-05 | G4: 3.00993879e-05 | H4: 3.003104365e-05 | I4: 2.995515191e-05 | J4: 2.986931169e-05 | K4: 2.97939357e-05 | L4: 2.971423254e-05 | M4: 2.962670621e-05 | N4: =IF($B4="","",VLOOKUP($B4,_tbl!$A:$E,N$2,0)) -> Male | O4: =IF($B4="","",VLOOKUP($B4,_tbl!$A:$E,O$2,0)) -> Central | P4: =IF($B4="","",VLOOKUP($B4,_tbl!$A:$E,P$2,0)) -> Rural | Q4: =IF($B4="","",VLOOKUP($B4,_tbl!$A:$E,Q$2,0)) -> Cancer | S4: =MAX(D4:M4) -> 3.03520888e-05 | T4: =MIN(D4:M4) -> 2.962670621e-05
B5: all_m_Central Rural cancer.csv | C5: 5-9 | D5: 3.220767111e-05 | E5: 3.213234351e-05 | F5: 3.206845566e-05 | G5: 3.201429524e-05 | H5: 3.195774868e-05 | I5: 3.190542146e-05 | J5: 3.185247072e-05 | K5: 3.180121067e-05 | L5: 3.174598426e-05 | M5: 3.169283698e-05 | N5: =IF($B5="","",VLOOKUP($B5,_tbl!$A:$E,N$2,0)) -> Male | O5: =IF($B5="","",VLOOKUP($B5,_tbl!$A:$E,O$2,0)) -> Central | P5: =IF($B5="","",VLOOKUP($B5,_tbl!$A:$E,P$2,0)) -> Rural | Q5: =IF($B5="","",VLOOKUP($B5,_tbl!$A:$E,Q$2,0)) -> Cancer | S5: =MAX(D5:M5) -> 3.220767111e-05 | T5: =MIN(D5:M5) -> 3.169283698e-05
B6: all_m_Central Rural cancer.csv | C6: 10-14 | D6: 3.85823199e-05 | E6: 3.834180859e-05 | F6: 3.801256852e-05 | G6: 3.767304752e-05 | H6: 3.751715128e-05 | I6: 3.751328163e-05 | J6: 3.759275909e-05 | K6: 3.772245822e-05 | L6: 3.783359356e-05 | M6: 3.789675119e-05 | N6: =IF($B6="","",VLOOKUP($B6,_tbl!$A:$E,N$2,0)) -> Male | O6: =IF($B6="","",VLOOKUP($B6,_tbl!$A:$E,O$2,0)) -> Central | P6: =IF($B6="","",VLOOKUP($B6,_tbl!$A:$E,P$2,0)) -> Rural | Q6: =IF($B6="","",VLOOKUP($B6,_tbl!$A:$E,Q$2,0)) -> Cancer | S6: 3.85823199e-05 | T6: 3.751328163e-05
B7: all_m_Central Rural cancer.csv | C7: 15-19 | D7: 5.082873723e-05 | E7: 5.06556194e-05 | F7: 5.046637462e-05 | G7: 5.021083225e-05 | H7: 5.012875259e-05 | I7: 5.015658981e-05 | J7: 5.025657423e-05 | K7: 5.03874053e-05 | L7: 5.050455391e-05 | M7: 5.057436504e-05 | N7: =IF($B7="","",VLOOKUP($B7,_tbl!$A:$E,N$2,0)) -> Male | O7: =IF($B7="","",VLOOKUP($B7,_tbl!$A:$E,O$2,0)) -> Central | P7: =IF($B7="","",VLOOKUP($B7,_tbl!$A:$E,P$2,0)) -> Rural | Q7: =IF($B7="","",VLOOKUP($B7,_tbl!$A:$E,Q$2,0)) -> Cancer | S7: 5.082873723e-05 | T7: 5.012875259e-05
B8: all_m_Central Rural cancer.csv | C8: 20-24 | D8: 7.550690833e-05 | E8: 7.47701973e-05 | F8: 7.368858775e-05 | G8: 7.262318291e-05 | H8: 7.20217572e-05 | I8: 7.185736624e-05 | J8: 7.201041399e-05 | K8: 7.225221156e-05 | L8: 7.244457732e-05 | M8: 7.25032936e-05 | N8: =IF($B8="","",VLOOKUP($B8,_tbl!$A:$E,N$2,0)) -> Male | O8: =IF($B8="","",VLOOKUP($B8,_tbl!$A:$E,O$2,0)) -> Central | P8: =IF($B8="","",VLOOKUP($B8,_tbl!$A:$E,P$2,0)) -> Rural | Q8: =IF($B8="","",VLOOKUP($B8,_tbl!$A:$E,Q$2,0)) -> Cancer | S8: 7.550690833e-05 | T8: 7.185736624e-05
B9: all_m_Central Rural cancer.csv | C9: 25-29 | D9: 0.0001170924402 | E9: 0.0001163730776 | F9: 0.0001153774044 | G9: 0.0001143912722 | H9: 0.0001138421382 | I9: 0.0001136807941 | J9: 0.0001138205073 | K9: 0.0001140355962 | L9: 0.0001142117958 | M9: 0.0001142580768 | N9: =IF($B9="","",VLOOKUP($B9,_tbl!$A:$E,N$2,0)) -> Male | O9: =IF($B9="","",VLOOKUP($B9,_tbl!$A:$E,O$2,0)) -> Central | P9: =IF($B9="","",VLOOKUP($B9,_tbl!$A:$E,P$2,0)) -> Rural | Q9: =IF($B9="","",VLOOKUP($B9,_tbl!$A:$E,Q$2,0)) -> Cancer | S9: 0.0001170924402 | T9: 0.0001136807941
B10: all_m_Central Rural cancer.csv | C10: 30-34 | D10: 0.0001982553033 | E10: 0.0001972615168 | F10: 0.0001959893413 | G10: 0.0001947558702 | H10: 0.0001939707944 | I10: 0.0001935906303 | J10: 0.0001935077224 | K10: 0.0001935029107 | L10: 0.0001934411427 | M10: 0.0001932456866 | N10: =IF($B10="","",VLOOKUP($B10,_tbl!$A:$E,N$2,0)) -> Male | O10: =IF($B10="","",VLOOKUP($B10,_tbl!$A:$E,O$2,0)) -> Central | P10: =IF($B10="","",VLOOKUP($B10,_tbl!$A:$E,P$2,0)) -> Rural | Q10: =IF($B10="","",VLOOKUP($B10,_tbl!$A:$E,Q$2,0)) -> Cancer | S10: 0.0001982553033 | T10: 0.0001932456866
B11: all_m_Central Rural cancer.csv | C11: 35-39 | D11: 0.0003436032274 | E11: 0.0003410980275 | F11: 0.0003385021549 | G11: 0.0003355397685 | H11: 0.0003333082864 | I11: 0.0003312191043 | J11: 0.0003296236246 | K11: 0.0003278988441 | L11: 0.0003262272847 | M11: 0.0003242593383 | N11: =IF($B11="","",VLOOKUP($B11,_tbl!$A:$E,N$2,0)) -> Male | O11: =IF($B11="","",VLOOKUP($B11,_tbl!$A:$E,O$2,0)) -> Central | P11: =IF($B11="","",VLOOKUP($B11,_tbl!$A:$E,P$2,0)) -> Rural | Q11: =IF($B11="","",VLOOKUP($B11,_tbl!$A:$E,Q$2,0)) -> Cancer | S11: 0.0003436032274 | T11: 0.0003242593383
B12: all_m_Central Rural cancer.csv | C12: 40-44 | D12: 0.0005879556505 | E12: 0.0005819155624 | F12: 0.0005767164724 | G12: 0.0005694208345 | H12: 0.0005635994957 | I12: 0.0005569300976 | J12: 0.0005513053877 | K12: 0.000544946285 | L12: 0.0005390139474 | M12: 0.0005323865612 | N12: =IF($B12="","",VLOOKUP($B12,_tbl!$A:$E,N$2,0)) -> Male | O12: =IF($B12="","",VLOOKUP($B12,_tbl!$A:$E,O$2,0)) -> Central | P12: =IF($B12="","",VLOOKUP($B12,_tbl!$A:$E,P$2,0)) -> Rural | Q12: =IF($B12="","",VLOOKUP($B12,_tbl!$A:$E,Q$2,0)) -> Cancer | S12: 0.0005879556505 | T12: 0.0005323865612
B13: all_m_Central Rural cancer.csv | C13: 45-49 | D13: 0.001017527463 | E13: 0.001010617809 | F13: 0.001001140861 | G13: 0.0009902046095 | H13: 0.0009784149881 | I13: 0.0009648485742 | J13: 0.0009510670439 | K13: 0.0009364417509 | L13: 0.00092251577 | M13: 0.0009086763385 | N13: =IF($B13="","",VLOOKUP($B13,_tbl!$A:$E,N$2,0)) -> Male | O13: =IF($B13="","",VLOOKUP($B13,_tbl!$A:$E,O$2,0)) -> Central | P13: =IF($B13="","",VLOOKUP($B13,_tbl!$A:$E,P$2,0)) -> Rural | Q13: =IF($B13="","",VLOOKUP($B13,_tbl!$A:$E,Q$2,0)) -> Cancer | S13: 0.001017527463 | T13: 0.0009086763385
B14: all_m_Central Rural cancer.csv | C14: 50-54 | D14: 0.001803154411 | E14: 0.001793773794 | F14: 0.001779016049 | G14: 0.001763348645 | H14: 0.001746333271 | I14: 0.001727984131 | J14: 0.001709421419 | K14: 0.00169012465 | L14: 0.001671351373 | M14: 0.001652438563 | N14: =IF($B14="","",VLOOKUP($B14,_tbl!$A:$E,N$2,0)) -> Male | O14: =IF($B14="","",VLOOKUP($B14,_tbl!$A:$E,O$2,0)) -> Central | P14: =IF($B14="","",VLOOKUP($B14,_tbl!$A:$E,P$2,0)) -> Rural | Q14: =IF($B14="","",VLOOKUP($B14,_tbl!$A:$E,Q$2,0)) -> Cancer | S14: 0.001803154411 | T14: 0.001652438563
B15: all_m_Central Rural cancer.csv | C15: 55-59 | D15: 0.002885308894 | E15: 0.00285795454 | F15: 0.002824915311 | G15: 0.002795650192 | H15: 0.002764792859 | I15: 0.002735268333 | J15: 0.002705433116 | K15: 0.002676214219 | L15: 0.002647061258 | M15: 0.002618215357 | N15: =IF($B15="","",VLOOKUP($B15,_tbl!$A:$E,N$2,0)) -> Male | O15: =IF($B15="","",VLOOKUP($B15,_tbl!$A:$E,O$2,0)) -> Central | P15: =IF($B15="","",VLOOKUP($B15,_tbl!$A:$E,P$2,0)) -> Rural | Q15: =IF($B15="","",VLOOKUP($B15,_tbl!$A:$E,Q$2,0)) -> Cancer | S15: 0.002885308894 | T15: 0.002618215357
B16: all_m_Central Rural cancer.csv | C16: 60-64 | D16: 0.004652298268 | E16: 0.004615793617 | F16: 0.004577403656 | G16: 0.004542082472 | H16: 0.004504660849 | I16: 0.004467793692 | J16: 0.004430368591 | K16: 0.004393580054 | L16: 0.004357179562 | M16: 0.004321496357 | N16: =IF($B16="","",VLOOKUP($B16,_tbl!$A:$E,N$2,0)) -> Male | O16: =IF($B16="","",VLOOKUP($B16,_tbl!$A:$E,O$2,0)) -> Central | P16: =IF($B16="","",VLOOKUP($B16,_tbl!$A:$E,P$2,0)) -> Rural | Q16: =IF($B16="","",VLOOKUP($B16,_tbl!$A:$E,Q$2,0)) -> Cancer | S16: 0.004652298268 | T16: 0.004321496357
B17: all_m_Central Rural cancer.csv | C17: 65-69 | D17: 0.007126445446 | E17: 0.007090155673 | F17: 0.007051378433 | G17: 0.007015575856 | H17: 0.006976976331 | I17: 0.006939087422 | J17: 0.006900696562 | K17: 0.006863181472 | L17: 0.006826050349 | M17: 0.006789593636 | N17: =IF($B17="","",VLOOKUP($B17,_tbl!$A:$E,N$2,0)) -> Male | O17: =IF($B17="","",VLOOKUP($B17,_tbl!$A:$E,O$2,0)) -> Central | P17: =IF($B17="","",VLOOKUP($B17,_tbl!$A:$E,P$2,0)) -> Rural | Q17: =IF($B17="","",VLOOKUP($B17,_tbl!$A:$E,Q$2,0)) -> Cancer | S17: 0.007126445446 | T17: 0.006789593636
B18: all_m_Central Rural cancer.csv | C18: 70-74 | D18: 0.009894365525 | E18: 0.009847842875 | F18: 0.0097898872 | G18: 0.00973673753 | H18: 0.009677319394 | I18: 0.009618796563 | J18: 0.009558548975 | K18: 0.009499448476 | L18: 0.009440715415 | M18: 0.009383252346 | N18: =IF($B18="","",VLOOKUP($B18,_tbl!$A:$E,N$2,0)) -> Male | O18: =IF($B18="","",VLOOKUP($B18,_tbl!$A:$E,O$2,0)) -> Central | P18: =IF($B18="","",VLOOKUP($B18,_tbl!$A:$E,P$2,0)) -> Rural | Q18: =IF($B18="","",VLOOKUP($B18,_tbl!$A:$E,Q$2,0)) -> Cancer | S18: 0.009894365525 | T18: 0.009383252346
B19: all_m_Central Rural cancer.csv | C19: 75-79 | D19: 0.0128590199 | E19: 0.01281870218 | F19: 0.0127596331 | G19: 0.01270956338 | H19: 0.01264813297 | I19: 0.01258487505 | J19: 0.01251646965 | K19: 0.01244804721 | L19: 0.0123804448 | M19: 0.01231565515 | N19: =IF($B19="","",VLOOKUP($B19,_tbl!$A:$E,N$2,0)) -> Male | O19: =IF($B19="","",VLOOKUP($B19,_tbl!$A:$E,O$2,0)) -> Central | P19: =IF($B19="","",VLOOKUP($B19,_tbl!$A:$E,P$2,0)) -> Rural | Q19: =IF($B19="","",VLOOKUP($B19,_tbl!$A:$E,Q$2,0)) -> Cancer | S19: 0.0128590199 | T19: 0.01231565515
B20: all_m_Central Rural cancer.csv | C20: 80-84 | D20: 0.01487563619 | E20: 0.01457708868 | F20: 0.01430190356 | G20: 0.0140615667 | H20: 0.01385308594 | I20: 0.01368906532 | J20: 0.01355942984 | K20: 0.01344783576 | L20: 0.01332790567 | M20: 0.01318103647 | N20: =IF($B20="","",VLOOKUP($B20,_tbl!$A:$E,N$2,0)) -> Male | O20: =IF($B20="","",VLOOKUP($B20,_tbl!$A:$E,O$2,0)) -> Central | P20: =IF($B20="","",VLOOKUP($B20,_tbl!$A:$E,P$2,0)) -> Rural | Q20: =IF($B20="","",VLOOKUP($B20,_tbl!$A:$E,Q$2,0)) -> Cancer | S20: 0.01487563619 | T20: 0.01318103647
B21: all_m_Central Rural cancer.csv | C21: 85+ | D21: 0.01769135413 | E21: 0.01734085838 | F21: 0.01709331341 | G21: 0.01688586586 | H21: 0.01671875857 | I21: 0.01656992889 | J21: 0.01644336113 | K21: 0.01632375828 | L21: 0.01620832637 | M21: 0.01608443922 | N21: =IF($B21="","",VLOOKUP($B21,_tbl!$A:$E,N$2,0)) -> Male | O21: =IF($B21="","",VLOOKUP($B21,_tbl!$A:$E,O$2,0)) -> Central | P21: =IF($B21="","",VLOOKUP($B21,_tbl!$A:$E,P$2,0)) -> Rural | Q21: =IF($B21="","",VLOOKUP($B21,_tbl!$A:$E,Q$2,0)) -> Cancer | S21: 0.01769135413 | T21: 0.01608443922
N22: =IF($B22="","",VLOOKUP($B22,_tbl!$A:$E,N$2,0)) ->  | O22: =IF($B22="","",VLOOKUP($B22,_tbl!$A:$E,O$2,0)) ->  | P22: =IF($B22="","",VLOOKUP($B22,_tbl!$A:$E,P$2,0)) ->  | Q22: =IF($B22="","",VLOOKUP($B22,_tbl!$A:$E,Q$2,0)) -> 
D23: 2020 | E23: 2021 | F23: 2022 | G23: 2023 | H23: 2024 | I23: 2025 | J23: 2026 | K23: 2027 | L23: 2028 | M23: 2029 | N23: =IF($B23="","",VLOOKUP($B23,_tbl!$A:$E,N$2,0)) ->  | O23: =IF($B23="","",VLOOKUP($B23,_tbl!$A:$E,O$2,0)) ->  | P23: =IF($B23="","",VLOOKUP($B23,_tbl!$A:$E,P$2,0)) ->  | Q23: =IF($B23="","",VLOOKUP($B23,_tbl!$A:$E,Q$2,0)) -> 
B24: all_m_Central Rural circulatory.csv | C24: 1-4 | D24: 1.516865531e-05 | E24: 1.494368768e-05 | F24: 1.479291722e-05 | G24: 1.458820451e-05 | H24: 1.444676828e-05 | I24: 1.433674441e-05 | J24: 1.421261097e-05 | K24: 1.411792378e-05 | L24: 1.401281947e-05 | M24: 1.389435908e-05 | N24: =IF($B24="","",VLOOKUP($B24,_tbl!$A:$E,N$2,0)) -> Male | O24: =IF($B24="","",VLOOKUP($B24,_tbl!$A:$E,O$2,0)) -> Central | P24: =IF($B24="","",VLOOKUP($B24,_tbl!$A:$E,P$2,0)) -> Rural | Q24: =IF($B24="","",VLOOKUP($B24,_tbl!$A:$E,Q$2,0)) -> Circulatory | S24: =MAX(D24:M24) -> 1.516865531e-05 | T24: =MIN(D24:M24) -> 1.389435908e-05
B25: all_m_Central Rural circulatory.csv | C25: 5-9 | D25: 1.270825103e-05 | E25: 1.266001649e-05 | F25: 1.261195885e-05 | G25: 1.256827758e-05 | H25: 1.252531584e-05 | I25: 1.248625997e-05 | J25: 1.244618506e-05 | K25: 1.240827927e-05 | L25: 1.236846626e-05 | M25: 1.232758818e-05 | N25: =IF($B25="","",VLOOKUP($B25,_tbl!$A:$E,N$2,0)) -> Male | O25: =IF($B25="","",VLOOKUP($B25,_tbl!$A:$E,O$2,0)) -> Central | P25: =IF($B25="","",VLOOKUP($B25,_tbl!$A:$E,P$2,0)) -> Rural | Q25: =IF($B25="","",VLOOKUP($B25,_tbl!$A:$E,Q$2,0)) -> Circulatory | S25: 1.270825103e-05 | T25: 1.232758818e-05
B26: all_m_Central Rural circulatory.csv | C26: 10-14 | D26: 1.812449531e-05 | E26: 1.808308659e-05 | F26: 1.80289343e-05 | G26: 1.797884478e-05 | H26: 1.795187281e-05 | I26: 1.79474077e-05 | J26: 1.795520905e-05 | K26: 1.796960592e-05 | L26: 1.798070423e-05 | M26: 1.798509292e-05 | N26: =IF($B26="","",VLOOKUP($B26,_tbl!$A:$E,N$2,0)) -> Male | O26: =IF($B26="","",VLOOKUP($B26,_tbl!$A:$E,O$2,0)) -> Central | P26: =IF($B26="","",VLOOKUP($B26,_tbl!$A:$E,P$2,0)) -> Rural | Q26: =IF($B26="","",VLOOKUP($B26,_tbl!$A:$E,Q$2,0)) -> Circulatory | S26: 1.812449531e-05 | T26: 1.79474077e-05
B27: all_m_Central Rural circulatory.csv | C27: 15-19 | D27: 2.995245319e-05 | E27: 2.992984842e-05 | F27: 2.989312181e-05 | G27: 2.986560928e-05 | H27: 2.98536785e-05 | I27: 2.986258732e-05 | J27: 2.988287628e-05 | K27: 2.990717197e-05 | L27: 2.99270657e-05 | M27: 2.993938101e-05 | N27: =IF($B27="","",VLOOKUP($B27,_tbl!$A:$E,N$2,0)) -> Male | O27: =IF($B27="","",VLOOKUP($B27,_tbl!$A:$E,O$2,0)) -> Central | P27: =IF($B27="","",VLOOKUP($B27,_tbl!$A:$E,P$2,0)) -> Rural | Q27: =IF($B27="","",VLOOKUP($B27,_tbl!$A:$E,Q$2,0)) -> Circulatory | S27: 2.995245319e-05 | T27: 2.98536785e-05
B28: all_m_Central Rural circulatory.csv | C28: 20-24 | D28: 5.403381286e-05 | E28: 5.359393615e-05 | F28: 5.289025361e-05 | G28: 5.222561867e-05 | H28: 5.179028277e-05 | I28: 5.160179027e-05 | J28: 5.157658326e-05 | K28: 5.160310502e-05 | L28: 5.15959507e-05 | M28: 5.151516242e-05 | N28: =IF($B28="","",VLOOKUP($B28,_tbl!$A:$E,N$2,0)) -> Male | O28: =IF($B28="","",VLOOKUP($B28,_tbl!$A:$E,O$2,0)) -> Central | P28: =IF($B28="","",VLOOKUP($B28,_tbl!$A:$E,P$2,0)) -> Rural | Q28: =IF($B28="","",VLOOKUP($B28,_tbl!$A:$E,Q$2,0)) -> Circulatory | S28: 5.403381286e-05 | T28: 5.151516242e-05
B29: all_m_Central Rural circulatory.csv | C29: 25-29 | D29: 0.0001030313518 | E29: 0.0001020902949 | F29: 0.0001006369213 | G29: 9.922234001e-05 | H29: 9.830629623e-05 | I29: 9.78490863e-05 | J29: 9.773988668e-05 | K29: 9.771766032e-05 | L29: 9.765664392e-05 | M29: 9.743973761e-05 | N29: =IF($B29="","",VLOOKUP($B29,_tbl!$A:$E,N$2,0)) -> Male | O29: =IF($B29="","",VLOOKUP($B29,_tbl!$A:$E,O$2,0)) -> Central | P29: =IF($B29="","",VLOOKUP($B29,_tbl!$A:$E,P$2,0)) -> Rural | Q29: =IF($B29="","",VLOOKUP($B29,_tbl!$A:$E,Q$2,0)) -> Circulatory | S29: 0.0001030313518 | T29: 9.743973761e-05
B30: all_m_Central Rural circulatory.csv | C30: 30-34 | D30: 0.0002102461907 | E30: 0.0002072834801 | F30: 0.0002032899248 | G30: 0.000199538115 | H30: 0.0001970302249 | I30: 0.0001957658648 | J30: 0.0001953518792 | K30: 0.0001951976023 | L30: 0.0001948895384 | M30: 0.000194226861 | N30: =IF($B30="","",VLOOKUP($B30,_tbl!$A:$E,N$2,0)) -> Male | O30: =IF($B30="","",VLOOKUP($B30,_tbl!$A:$E,O$2,0)) -> Central | P30: =IF($B30="","",VLOOKUP($B30,_tbl!$A:$E,P$2,0)) -> Rural | Q30: =IF($B30="","",VLOOKUP($B30,_tbl!$A:$E,Q$2,0)) -> Circulatory | S30: 0.0002102461907 | T30: 0.000194226861
B31: all_m_Central Rural circulatory.csv | C31: 35-39 | D31: 0.0003754621984 | E31: 0.0003707684441 | F31: 0.0003666978594 | G31: 0.000361205368 | H31: 0.0003579786203 | I31: 0.0003548429474 | J31: 0.0003531586325 | K31: 0.0003510397092 | L31: 0.0003492335741 | M31: 0.0003466835884 | N31: =IF($B31="","",VLOOKUP($B31,_tbl!$A:$E,N$2,0)) -> Male | O31: =IF($B31="","",VLOOKUP($B31,_tbl!$A:$E,O$2,0)) -> Central | P31: =IF($B31="","",VLOOKUP($B31,_tbl!$A:$E,P$2,0)) -> Rural | Q31: =IF($B31="","",VLOOKUP($B31,_tbl!$A:$E,Q$2,0)) -> Circulatory | S31: 0.0003754621984 | T31: 0.0003466835884
B32: all_m_Central Rural circulatory.csv | C32: 40-44 | D32: 0.000655840207 | E32: 0.0006552486947 | F32: 0.0006540890468 | G32: 0.000652607064 | H32: 0.0006511815404 | I32: 0.0006492657997 | J32: 0.0006474197295 | K32: 0.0006452441024 | L32: 0.0006432955138 | M32: 0.0006412836851 | N32: =IF($B32="","",VLOOKUP($B32,_tbl!$A:$E,N$2,0)) -> Male | O32: =IF($B32="","",VLOOKUP($B32,_tbl!$A:$E,O$2,0)) -> Central | P32: =IF($B32="","",VLOOKUP($B32,_tbl!$A:$E,P$2,0)) -> Rural | Q32: =IF($B32="","",VLOOKUP($B32,_tbl!$A:$E,Q$2,0)) -> Circulatory | S32: 0.000655840207 | T32: 0.0006412836851
B33: all_m_Central Rural circulatory.csv | C33: 45-49 | D33: 0.001127996492 | E33: 0.00112591686 | F33: 0.001119566183 | G33: 0.001113257542 | H33: 0.001105527032 | I33: 0.00109704716 | J33: 0.001087963187 | K33: 0.001078455153 | L33: 0.001069103106 | M33: 0.001059848623 | N33: =IF($B33="","",VLOOKUP($B33,_tbl!$A:$E,N$2,0)) -> Male | O33: =IF($B33="","",VLOOKUP($B33,_tbl!$A:$E,O$2,0)) -> Central | P33: =IF($B33="","",VLOOKUP($B33,_tbl!$A:$E,P$2,0)) -> Rural | Q33: =IF($B33="","",VLOOKUP($B33,_tbl!$A:$E,Q$2,0)) -> Circulatory | S33: 0.001127996492 | T33: 0.001059848623
B34: all_m_Central Rural circulatory.csv | C34: 50-54 | D34: 0.001984008732 | E34: 0.001969731582 | F34: 0.001951227549 | G34: 0.001931468305 | H34: 0.001911598069 | I34: 0.001889853722 | J34: 0.001868798023 | K34: 0.001846445285 | L34: 0.001825205561 | M34: 0.001803365713 | N34: =IF($B34="","",VLOOKUP($B34,_tbl!$A:$E,N$2,0)) -> Male | O34: =IF($B34="","",VLOOKUP($B34,_tbl!$A:$E,O$2,0)) -> Central | P34: =IF($B34="","",VLOOKUP($B34,_tbl!$A:$E,P$2,0)) -> Rural | Q34: =IF($B34="","",VLOOKUP($B34,_tbl!$A:$E,Q$2,0)) -> Circulatory | S34: 0.001984008732 | T34: 0.001803365713
B35: all_m_Central Rural circulatory.csv | C35: 55-59 | D35: 0.003232195033 | E35: 0.003184224084 | F35: 0.003132052819 | G35: 0.003083642584 | H35: 0.00303552438 | I35: 0.00298825268 | J35: 0.002941998326 | K35: 0.002895663035 | L35: 0.002850260523 | M35: 0.002804558214 | N35: =IF($B35="","",VLOOKUP($B35,_tbl!$A:$E,N$2,0)) -> Male | O35: =IF($B35="","",VLOOKUP($B35,_tbl!$A:$E,O$2,0)) -> Central | P35: =IF($B35="","",VLOOKUP($B35,_tbl!$A:$E,P$2,0)) -> Rural | Q35: =IF($B35="","",VLOOKUP($B35,_tbl!$A:$E,Q$2,0)) -> Circulatory | S35: 0.003232195033 | T35: 0.002804558214
B36: all_m_Central Rural circulatory.csv | C36: 60-64 | D36: 0.005060806804 | E36: 0.004932446223 | F36: 0.004802302314 | G36: 0.004678410721 | H36: 0.004552110241 | I36: 0.004425017434 | J36: 0.004297163401 | K36: 0.004169125633 | L36: 0.0040432464 | M36: 0.003919065083 | N36: =IF($B36="","",VLOOKUP($B36,_tbl!$A:$E,N$2,0)) -> Male | O36: =IF($B36="","",VLOOKUP($B36,_tbl!$A:$E,O$2,0)) -> Central | P36: =IF($B36="","",VLOOKUP($B36,_tbl!$A:$E,P$2,0)) -> Rural | Q36: =IF($B36="","",VLOOKUP($B36,_tbl!$A:$E,Q$2,0)) -> Circulatory | S36: 0.005060806804 | T36: 0.003919065083
B37: all_m_Central Rural circulatory.csv | C37: 65-69 | D37: 0.008585113748 | E37: 0.008369868019 | F37: 0.008153129361 | G37: 0.007935368398 | H37: 0.007702319399 | I37: 0.0074540724 | J37: 0.007197620153 | K37: 0.006937238858 | L37: 0.006684161507 | M37: 0.006438983347 | N37: =IF($B37="","",VLOOKUP($B37,_tbl!$A:$E,N$2,0)) -> Male | O37: =IF($B37="","",VLOOKUP($B37,_tbl!$A:$E,O$2,0)) -> Central | P37: =IF($B37="","",VLOOKUP($B37,_tbl!$A:$E,P$2,0)) -> Rural | Q37: =IF($B37="","",VLOOKUP($B37,_tbl!$A:$E,Q$2,0)) -> Circulatory | S37: 0.008585113748 | T37: 0.006438983347
B38: all_m_Central Rural circulatory.csv | C38: 70-74 | D38: 0.01517090129 | E38: 0.01474356268 | F38: 0.0142926607 | G38: 0.01383887108 | H38: 0.01335665392 | I38: 0.01285460829 | J38: 0.01234322489 | K38: 0.01182792635 | L38: 0.01132360395 | M38: 0.01082901905 | N38: =IF($B38="","",VLOOKUP($B38,_tbl!$A:$E,N$2,0)) -> Male | O38: =IF($B38="","",VLOOKUP($B38,_tbl!$A:$E,O$2,0)) -> Central | P38: =IF($B38="","",VLOOKUP($B38,_tbl!$A:$E,P$2,0)) -> Rural | Q38: =IF($B38="","",VLOOKUP($B38,_tbl!$A:$E,Q$2,0)) -> Circulatory | S38: 0.01517090129 | T38: 0.01082901905
B39: all_m_Central Rural circulatory.csv | C39: 75-79 | D39: 0.03030974876 | E39: 0.02945204867 | F39: 0.02855870012 | G39: 0.02771190821 | H39: 0.02690251384 | I39: 0.02614829251 | J39: 0.02544186934 | K39: 0.02474921495 | L39: 0.02404968435 | M39: 0.02331331435 | N39: =IF($B39="","",VLOOKUP($B39,_tbl!$A:$E,N$2,0)) -> Male | O39: =IF($B39="","",VLOOKUP($B39,_tbl!$A:$E,O$2,0)) -> Central | P39: =IF($B39="","",VLOOKUP($B39,_tbl!$A:$E,P$2,0)) -> Rural | Q39: =IF($B39="","",VLOOKUP($B39,_tbl!$A:$E,Q$2,0)) -> Circulatory | S39: 0.03030974876 | T39: 0.02331331435
B40: all_m_Central Rural circulatory.csv | C40: 80-84 | D40: 0.06028974023 | E40: 0.05807569047 | F40: 0.05647228317 | G40: 0.05489833198 | H40: 0.05368941181 | I40: 0.0526422237 | J40: 0.05178078626 | K40: 0.05095961371 | L40: 0.05011061204 | M40: 0.04915547715 | N40: =IF($B40="","",VLOOKUP($B40,_tbl!$A:$E,N$2,0)) -> Male | O40: =IF($B40="","",VLOOKUP($B40,_tbl!$A:$E,O$2,0)) -> Central | P40: =IF($B40="","",VLOOKUP($B40,_tbl!$A:$E,P$2,0)) -> Rural | Q40: =IF($B40="","",VLOOKUP($B40,_tbl!$A:$E,Q$2,0)) -> Circulatory | S40: 0.06028974023 | T40: 0.04915547715
B41: all_m_Central Rural circulatory.csv | C41: 85+ | D41: 0.1173474265 | E41: 0.1115898785 | F41: 0.1075526737 | G41: 0.1039276617 | H41: 0.1014943598 | I41: 0.09957221569 | J41: 0.09822827838 | K41: 0.09697402467 | L41: 0.09567873184 | M41: 0.09404976905 | N41: =IF($B41="","",VLOOKUP($B41,_tbl!$A:$E,N$2,0)) -> Male | O41: =IF($B41="","",VLOOKUP($B41,_tbl!$A:$E,O$2,0)) -> Central | P41: =IF($B41="","",VLOOKUP($B41,_tbl!$A:$E,P$2,0)) -> Rural | Q41: =IF($B41="","",VLOOKUP($B41,_tbl!$A:$E,Q$2,0)) -> Circulatory | S41: 0.1173474265 | T41: 0.09404976905
N42: =IF($B42="","",VLOOKUP($B42,_tbl!$A:$E,N$2,0)) ->  | O42: =IF($B42="","",VLOOKUP($B42,_tbl!$A:$E,O$2,0)) ->  | P42: =IF($B42="","",VLOOKUP($B42,_tbl!$A:$E,P$2,0)) ->  | Q42: =IF($B42="","",VLOOKUP($B42,_tbl!$A:$E,Q$2,0)) -> 
D43: 2020 | E43: 2021 | F43: 2022 | G43: 2023 | H43: 2024 | I43: 2025 | J43: 2026 | K43: 2027 | L43: 2028 | M43: 2029 | N43: =IF($B43="","",VLOOKUP($B43,_tbl!$A:$E,N$2,0)) ->  | O43: =IF($B43="","",VLOOKUP($B43,_tbl!$A:$E,O$2,0)) ->  | P43: =IF($B43="","",VLOOKUP($B43,_tbl!$A:$E,P$2,0)) ->  | Q43: =IF($B43="","",VLOOKUP($B43,_tbl!$A:$E,Q$2,0)) -> 
B44: all_m_Central Rural congenital.csv | C44: 1-4 | D44: 6.304018967e-05 | E44: 6.179168179e-05 | F44: 5.766664177e-05 | G44: 5.489639357e-05 | H44: 5.24018828e-05 | I44: 4.948013139e-05 | J44: 4.744887141e-05 | K44: 4.488066397e-05 | L44: 4.285274472e-05 | M44: 4.065791061e-05 | N44: =IF($B44="","",VLOOKUP($B44,_tbl!$A:$E,N$2,0)) -> Male | O44: =IF($B44="","",VLOOKUP($B44,_tbl!$A:$E,O$2,0)) -> Central | P44: =IF($B44="","",VLOOKUP($B44,_tbl!$A:$E,P$2,0)) -> Rural | Q44: =IF($B44="","",VLOOKUP($B44,_tbl!$A:$E,Q$2,0)) -> Congenital | S44: =MAX(D44:M44) -> 6.304018967e-05 | T44: =MIN(D44:M44) -> 4.065791061e-05
B45: all_m_Central Rural congenital.csv | C45: 5-9 | D45: 1.308681287e-05 | E45: 1.28650627e-05 | F45: 1.189021717e-05 | G45: 1.131620594e-05 | H45: 1.075664587e-05 | I45: 1.004806138e-05 | J45: 9.604510651e-06 | K45: 8.98118105e-06 | L45: 8.518889364e-06 | M45: 8.028485566e-06 | N45: =IF($B45="","",VLOOKUP($B45,_tbl!$A:$E,N$2,0)) -> Male | O45: =IF($B45="","",VLOOKUP($B45,_tbl!$A:$E,O$2,0)) -> Central | P45: =IF($B45="","",VLOOKUP($B45,_tbl!$A:$E,P$2,0)) -> Rural | Q45: =IF($B45="","",VLOOKUP($B45,_tbl!$A:$E,Q$2,0)) -> Congenital | S45: 1.308681287e-05 | T45: 8.028485566e-06
B46: all_m_Central Rural congenital.csv | C46: 10-14 | D46: 1.309791976e-05 | E46: 1.296876167e-05 | F46: 1.238207353e-05 | G46: 1.19908455e-05 | H46: 1.167780328e-05 | I46: 1.130851417e-05 | J46: 1.113206335e-05 | K46: 1.084134075e-05 | L46: 1.064408037e-05 | M46: 1.039487327e-05 | N46: =IF($B46="","",VLOOKUP($B46,_tbl!$A:$E,N$2,0)) -> Male | O46: =IF($B46="","",VLOOKUP($B46,_tbl!$A:$E,O$2,0)) -> Central | P46: =IF($B46="","",VLOOKUP($B46,_tbl!$A:$E,P$2,0)) -> Rural | Q46: =IF($B46="","",VLOOKUP($B46,_tbl!$A:$E,Q$2,0)) -> Congenital | S46: 1.309791976e-05 | T46: 1.039487327e-05
B47: all_m_Central Rural congenital.csv | C47: 15-19 | D47: 1.124808426e-05 | E47: 1.11173749e-05 | F47: 1.053371169e-05 | G47: 1.015816123e-05 | H47: 9.821885285e-06 | I47: 9.432556902e-06 | J47: 9.211884093e-06 | K47: 8.884732876e-06 | L47: 8.64028034e-06 | M47: 8.358071007e-06 | N47: =IF($B47="","",VLOOKUP($B47,_tbl!$A:$E,N$2,0)) -> Male | O47: =IF($B47="","",VLOOKUP($B47,_tbl!$A:$E,O$2,0)) -> Central | P47: =IF($B47="","",VLOOKUP($B47,_tbl!$A:$E,P$2,0)) -> Rural | Q47: =IF($B47="","",VLOOKUP($B47,_tbl!$A:$E,Q$2,0)) -> Congenital | S47: 1.124808426e-05 | T47: 8.358071007e-06
B48: all_m_Central Rural congenital.csv | C48: 20-24 | D48: 9.75377317e-06 | E48: 9.561814665e-06 | F48: 9.024896866e-06 | G48: 8.617729123e-06 | H48: 8.331940792e-06 | I48: 8.074109723e-06 | J48: 8.006799318e-06 | K48: 7.867828668e-06 | L48: 7.780594517e-06 | M48: 7.637119121e-06 | N48: =IF($B48="","",VLOOKUP($B48,_tbl!$A:$E,N$2,0)) -> Male | O48: =IF($B48="","",VLOOKUP($B48,_tbl!$A:$E,O$2,0)) -> Central | P48: =IF($B48="","",VLOOKUP($B48,_tbl!$A:$E,P$2,0)) -> Rural | Q48: =IF($B48="","",VLOOKUP($B48,_tbl!$A:$E,Q$2,0)) -> Congenital | S48: 9.75377317e-06 | T48: 7.637119121e-06
B49: all_m_Central Rural congenital.csv | C49: 25-29 | D49: 1.098463095e-05 | E49: 1.071848092e-05 | F49: 1.037106702e-05 | G49: 1.000721852e-05 | H49: 9.820246985e-06 | I49: 9.810972364e-06 | J49: 9.902374199e-06 | K49: 1.004549173e-05 | L49: 1.015885539e-05 | M49: 1.02240814e-05 | N49: =IF($B49="","",VLOOKUP($B49,_tbl!$A:$E,N$2,0)) -> Male | O49: =IF($B49="","",VLOOKUP($B49,_tbl!$A:$E,O$2,0)) -> Central | P49: =IF($B49="","",VLOOKUP($B49,_tbl!$A:$E,P$2,0)) -> Rural | Q49: =IF($B49="","",VLOOKUP($B49,_tbl!$A:$E,Q$2,0)) -> Congenital | S49: 1.098463095e-05 | T49: 9.810972364e-06
B50: all_m_Central Rural congenital.csv | N50: =IF($B50="","",VLOOKUP($B50,_tbl!$A:$E,N$2,0)) -> Male | O50: =IF($B50="","",VLOOKUP($B50,_tbl!$A:$E,O$2,0)) -> Central | P50: =IF($B50="","",VLOOKUP($B50,_tbl!$A:$E,P$2,0)) -> Rural | Q50: =IF($B50="","",VLOOKUP($B50,_tbl!$A:$E,Q$2,0)) -> Congenital | S50: 0 | T50: 0
B51: all_m_Central Rural congenital.csv | N51: =IF($B51="","",VLOOKUP($B51,_tbl!$A:$E,N$2,0)) -> Male | O51: =IF($B51="","",VLOOKUP($B51,_tbl!$A:$E,O$2,0)) -> Central | P51: =IF($B51="","",VLOOKUP($B51,_tbl!$A:$E,P$2,0)) -> Rural | Q51: =IF($B51="","",VLOOKUP($B51,_tbl!$A:$E,Q$2,0)) -> Congenital | S51: 0 | T51: 0
B52: all_m_Central Rural congenital.csv | N52: =IF($B52="","",VLOOKUP($B52,_tbl!$A:$E,N$2,0)) -> Male | O52: =IF($B52="","",VLOOKUP($B52,_tbl!$A:$E,O$2,0)) -> Central | P52: =IF($B52="","",VLOOKUP($B52,_tbl!$A:$E,P$2,0)) -> Rural | Q52: =IF($B52="","",VLOOKUP($B52,_tbl!$A:$E,Q$2,0)) -> Congenital | S52: 0 | T52: 0
B53: all_m_Central Rural congenital.csv | N53: =IF($B53="","",VLOOKUP($B53,_tbl!$A:$E,N$2,0)) -> Male | O53: =IF($B53="","",VLOOKUP($B53,_tbl!$A:$E,O$2,0)) -> Central | P53: =IF($B53="","",VLOOKUP($B53,_tbl!$A:$E,P$2,0)) -> Rural | Q53: =IF($B53="","",VLOOKUP($B53,_tbl!$A:$E,Q$2,0)) -> Congenital | S53: 0 | T53: 0
B54: all_m_Central Rural congenital.csv | N54: =IF($B54="","",VLOOKUP($B54,_tbl!$A:$E,N$2,0)) -> Male | O54: =IF($B54="","",VLOOKUP($B54,_tbl!$A:$E,O$2,0)) -> Central | P54: =IF($B54="","",VLOOKUP($B54,_tbl!$A:$E,P$2,0)) -> Rural | Q54: =IF($B54="","",VLOOKUP($B54,_tbl!$A:$E,Q$2,0)) -> Congenital | S54: 0 | T54: 0
B55: all_m_Central Rural congenital.csv | N55: =IF($B55="","",VLOOKUP($B55,_tbl!$A:$E,N$2,0)) -> Male | O55: =IF($B55="","",VLOOKUP($B55,_tbl!$A:$E,O$2,0)) -> Central | P55: =IF($B55="","",VLOOKUP($B55,_tbl!$A:$E,P$2,0)) -> Rural | Q55: =IF($B55="","",VLOOKUP($B55,_tbl!$A:$E,Q$2,0)) -> Congenital | S55: 0 | T55: 0
B56: all_m_Central Rural congenital.csv | N56: =IF($B56="","",VLOOKUP($B56,_tbl!$A:$E,N$2,0)) -> Male | O56: =IF($B56="","",VLOOKUP($B56,_tbl!$A:$E,O$2,0)) -> Central | P56: =IF($B56="","",VLOOKUP($B56,_tbl!$A:$E,P$2,0)) -> Rural | Q56: =IF($B56="","",VLOOKUP($B56,_tbl!$A:$E,Q$2,0)) -> Congenital | S56: 0 | T56: 0
B57: all_m_Central Rural congenital.csv | N57: =IF($B57="","",VLOOKUP($B57,_tbl!$A:$E,N$2,0)) -> Male | O57: =IF($B57="","",VLOOKUP($B57,_tbl!$A:$E,O$2,0)) -> Central | P57: =IF($B57="","",VLOOKUP($B57,_tbl!$A:$E,P$2,0)) -> Rural | Q57: =IF($B57="","",VLOOKUP($B57,_tbl!$A:$E,Q$2,0)) -> Congenital | S57: 0 | T57: 0
B58: all_m_Central Rural congenital.csv | N58: =IF($B58="","",VLOOKUP($B58,_tbl!$A:$E,N$2,0)) -> Male | O58: =IF($B58="","",VLOOKUP($B58,_tbl!$A:$E,O$2,0)) -> Central | P58: =IF($B58="","",VLOOKUP($B58,_tbl!$A:$E,P$2,0)) -> Rural | Q58: =IF($B58="","",VLOOKUP($B58,_tbl!$A:$E,Q$2,0)) -> Congenital | S58: 0 | T58: 0
B59: all_m_Central Rural congenital.csv | N59: =IF($B59="","",VLOOKUP($B59,_tbl!$A:$E,N$2,0)) -> Male | O59: =IF($B59="","",VLOOKUP($B59,_tbl!$A:$E,O$2,0)) -> Central | P59: =IF($B59="","",VLOOKUP($B59,_tbl!$A:$E,P$2,0)) -> Rural | Q59: =IF($B59="","",VLOOKUP($B59,_tbl!$A:$E,Q$2,0)) -> Congenital | S59: 0 | T59: 0
B60: all_m_Central Rural congenital.csv | N60: =IF($B60="","",VLOOKUP($B60,_tbl!$A:$E,N$2,0)) -> Male | O60: =IF($B60="","",VLOOKUP($B60,_tbl!$A:$E,O$2,0)) -> Central | P60: =IF($B60="","",VLOOKUP($B60,_tbl!$A:$E,P$2,0)) -> Rural | Q60: =IF($B60="","",VLOOKUP($B60,_tbl!$A:$E,Q$2,0)) -> Congenital | S60: 0 | T60: 0
B61: all_m_Central Rural congenital.csv | N61: =IF($B61="","",VLOOKUP($B61,_tbl!$A:$E,N$2,0)) -> Male | O61: =IF($B61="","",VLOOKUP($B61,_tbl!$A:$E,O$2,0)) -> Central | P61: =IF($B61="","",VLOOKUP($B61,_tbl!$A:$E,P$2,0)) -> Rural | Q61: =IF($B61="","",VLOOKUP($B61,_tbl!$A:$E,Q$2,0)) -> Congenital | S61: 0 | T61: 0
N62: =IF($B62="","",VLOOKUP($B62,_tbl!$A:$E,N$2,0)) ->  | O62: =IF($B62="","",VLOOKUP($B62,_tbl!$A:$E,O$2,0)) ->  | P62: =IF($B62="","",VLOOKUP($B62,_tbl!$A:$E,P$2,0)) ->  | Q62: =IF($B62="","",VLOOKUP($B62,_tbl!$A:$E,Q$2,0)) -> 
D63: 2020 | E63: 2021 | F63: 2022 | G63: 2023 | H63: 2024 | I63: 2025 | J63: 2026 | K63: 2027 | L63: 2028 | M63: 2029 | N63: =IF($B63="","",VLOOKUP($B63,_tbl!$A:$E,N$2,0)) ->  | O63: =IF($B63="","",VLOOKUP($B63,_tbl!$A:$E,O$2,0)) ->  | P63: =IF($B63="","",VLOOKUP($B63,_tbl!$A:$E,P$2,0)) ->  | Q63: =IF($B63="","",VLOOKUP($B63,_tbl!$A:$E,Q$2,0)) -> 
B64: all_m_Central Rural diabetes.csv | C64: 30-34 | D64: 6.548654569e-06 | E64: 6.432157887e-06 | F64: 6.289347036e-06 | G64: 6.145944235e-06 | H64: 6.065136599e-06 | I64: 6.035600448e-06 | J64: 6.044331516e-06 | K64: 6.062032712e-06 | L64: 6.072238911e-06 | M64: 6.065700538e-06 | N64: =IF($B64="","",VLOOKUP($B64,_tbl!$A:$E,N$2,0)) -> Male | O64: =IF($B64="","",VLOOKUP($B64,_tbl!$A:$E,O$2,0)) -> Central | P64: =IF($B64="","",VLOOKUP($B64,_tbl!$A:$E,P$2,0)) -> Rural | Q64: =IF($B64="","",VLOOKUP($B64,_tbl!$A:$E,Q$2,0)) -> Diabetes | S64: =MAX(D64:M64) -> 6.548654569e-06 | T64: =MIN(D64:M64) -> 6.035600448e-06
B65: all_m_Central Rural diabetes.csv | C65: 35-39 | D65: 1.281149924e-05 | E65: 1.290583602e-05 | F65: 1.296897183e-05 | G65: 1.306377938e-05 | H65: 1.312817717e-05 | I65: 1.32034214e-05 | J65: 1.325916525e-05 | K65: 1.332599317e-05 | L65: 1.338554712e-05 | M65: 1.345645623e-05 | N65: =IF($B65="","",VLOOKUP($B65,_tbl!$A:$E,N$2,0)) -> Male | O65: =IF($B65="","",VLOOKUP($B65,_tbl!$A:$E,O$2,0)) -> Central | P65: =IF($B65="","",VLOOKUP($B65,_tbl!$A:$E,P$2,0)) -> Rural | Q65: =IF($B65="","",VLOOKUP($B65,_tbl!$A:$E,Q$2,0)) -> Diabetes | S65: 1.345645623e-05 | T65: 1.281149924e-05
B66: all_m_Central Rural diabetes.csv | C66: 40-44 | D66: 2.462808817e-05 | E66: 2.46222615e-05 | F66: 2.464882474e-05 | G66: 2.46345666e-05 | H66: 2.463159456e-05 | I66: 2.46194394e-05 | J66: 2.461047969e-05 | K66: 2.459845614e-05 | L66: 2.458394256e-05 | M66: 2.456605747e-05 | N66: =IF($B66="","",VLOOKUP($B66,_tbl!$A:$E,N$2,0)) -> Male | O66: =IF($B66="","",VLOOKUP($B66,_tbl!$A:$E,O$2,0)) -> Central | P66: =IF($B66="","",VLOOKUP($B66,_tbl!$A:$E,P$2,0)) -> Rural | Q66: =IF($B66="","",VLOOKUP($B66,_tbl!$A:$E,Q$2,0)) -> Diabetes | S66: 2.464882474e-05 | T66: 2.456605747e-05
B67: all_m_Central Rural diabetes.csv | C67: 45-49 | D67: 4.228299409e-05 | E67: 4.230428668e-05 | F67: 4.202724303e-05 | G67: 4.183060051e-05 | H67: 4.156047294e-05 | I67: 4.133132799e-05 | J67: 4.107803393e-05 | K67: 4.083494492e-05 | L67: 4.056971578e-05 | M67: 4.029638088e-05 | N67: =IF($B67="","",VLOOKUP($B67,_tbl!$A:$E,N$2,0)) -> Male | O67: =IF($B67="","",VLOOKUP($B67,_tbl!$A:$E,O$2,0)) -> Central | P67: =IF($B67="","",VLOOKUP($B67,_tbl!$A:$E,P$2,0)) -> Rural | Q67: =IF($B67="","",VLOOKUP($B67,_tbl!$A:$E,Q$2,0)) -> Diabetes | S67: 4.230428668e-05 | T67: 4.029638088e-05
B68: all_m_Central Rural diabetes.csv | C68: 50-54 | D68: 7.826376462e-05 | E68: 7.80710288e-05 | F68: 7.761994139e-05 | G68: 7.727295894e-05 | H68: 7.685927959e-05 | I68: 7.647667131e-05 | J68: 7.607234519e-05 | K68: 7.567638492e-05 | L68: 7.527255037e-05 | M68: 7.486966847e-05 | N68: =IF($B68="","",VLOOKUP($B68,_tbl!$A:$E,N$2,0)) -> Male | O68: =IF($B68="","",VLOOKUP($B68,_tbl!$A:$E,O$2,0)) -> Central | P68: =IF($B68="","",VLOOKUP($B68,_tbl!$A:$E,P$2,0)) -> Rural | Q68: =IF($B68="","",VLOOKUP($B68,_tbl!$A:$E,Q$2,0)) -> Diabetes | S68: 7.826376462e-05 | T68: 7.486966847e-05
B69: all_m_Central Rural diabetes.csv | C69: 55-59 | D69: 0.0001429741643 | E69: 0.0001437542908 | F69: 0.0001443546373 | G69: 0.0001448191233 | H69: 0.0001451760798 | I69: 0.0001454958614 | J69: 0.0001457599024 | K69: 0.0001460227633 | L69: 0.0001462527163 | M69: 0.0001464879095 | N69: =IF($B69="","",VLOOKUP($B69,_tbl!$A:$E,N$2,0)) -> Male | O69: =IF($B69="","",VLOOKUP($B69,_tbl!$A:$E,O$2,0)) -> Central | P69: =IF($B69="","",VLOOKUP($B69,_tbl!$A:$E,P$2,0)) -> Rural | Q69: =IF($B69="","",VLOOKUP($B69,_tbl!$A:$E,Q$2,0)) -> Diabetes | S69: 0.0001464879095 | T69: 0.0001429741643
B70: all_m_Central Rural diabetes.csv | C70: 60-64 | D70: 0.0002462747397 | E70: 0.0002475822058 | F70: 0.0002488807468 | G70: 0.0002501200919 | H70: 0.0002513844086 | I70: 0.0002526570592 | J70: 0.000253921225 | K70: 0.0002551848853 | L70: 0.0002564197333 | M70: 0.0002576462455 | N70: =IF($B70="","",VLOOKUP($B70,_tbl!$A:$E,N$2,0)) -> Male | O70: =IF($B70="","",VLOOKUP($B70,_tbl!$A:$E,O$2,0)) -> Central | P70: =IF($B70="","",VLOOKUP($B70,_tbl!$A:$E,P$2,0)) -> Rural | Q70: =IF($B70="","",VLOOKUP($B70,_tbl!$A:$E,Q$2,0)) -> Diabetes | S70: 0.0002576462455 | T70: 0.0002462747397
B71: all_m_Central Rural diabetes.csv | C71: 65-69 | D71: 0.0003837069319 | E71: 0.0003843864014 | F71: 0.0003851796364 | G71: 0.0003859730041 | H71: 0.0003867851489 | I71: 0.0003875905517 | J71: 0.0003883828089 | K71: 0.0003891742052 | L71: 0.0003899578023 | M71: 0.0003907483544 | N71: =IF($B71="","",VLOOKUP($B71,_tbl!$A:$E,N$2,0)) -> Male | O71: =IF($B71="","",VLOOKUP($B71,_tbl!$A:$E,O$2,0)) -> Central | P71: =IF($B71="","",VLOOKUP($B71,_tbl!$A:$E,P$2,0)) -> Rural | Q71: =IF($B71="","",VLOOKUP($B71,_tbl!$A:$E,Q$2,0)) -> Diabetes | S71: 0.0003907483544 | T71: 0.0003837069319
B72: all_m_Central Rural diabetes.csv | C72: 70-74 | D72: 0.0005765808676 | E72: 0.000577819895 | F72: 0.0005792061672 | G72: 0.0005804477821 | H72: 0.0005816054199 | I72: 0.0005826414411 | J72: 0.0005835861971 | K72: 0.0005844810371 | L72: 0.0005853461866 | M72: 0.0005862136605 | N72: =IF($B72="","",VLOOKUP($B72,_tbl!$A:$E,N$2,0)) -> Male | O72: =IF($B72="","",VLOOKUP($B72,_tbl!$A:$E,O$2,0)) -> Central | P72: =IF($B72="","",VLOOKUP($B72,_tbl!$A:$E,P$2,0)) -> Rural | Q72: =IF($B72="","",VLOOKUP($B72,_tbl!$A:$E,Q$2,0)) -> Diabetes | S72: 0.0005862136605 | T72: 0.0005765808676
B73: all_m_Central Rural diabetes.csv | C73: 75-79 | D73: 0.0008158192766 | E73: 0.0008138076624 | F73: 0.0008115639119 | G73: 0.0008096889608 | H73: 0.000808550246 | I73: 0.0008082089819 | J73: 0.0008083550986 | K73: 0.0008086145582 | L73: 0.0008085475777 | M73: 0.0008079494058 | N73: =IF($B73="","",VLOOKUP($B73,_tbl!$A:$E,N$2,0)) -> Male | O73: =IF($B73="","",VLOOKUP($B73,_tbl!$A:$E,O$2,0)) -> Central | P73: =IF($B73="","",VLOOKUP($B73,_tbl!$A:$E,P$2,0)) -> Rural | Q73: =IF($B73="","",VLOOKUP($B73,_tbl!$A:$E,Q$2,0)) -> Diabetes | S73: 0.0008158192766 | T73: 0.0008079494058
B74: all_m_Central Rural diabetes.csv | C74: 80-84 | D74: 0.001126906239 | E74: 0.001119498634 | F74: 0.001108836926 | G74: 0.001101287112 | H74: 0.001096116357 | I74: 0.001095024402 | J74: 0.001096526347 | K74: 0.001099268529 | L74: 0.001100934828 | M74: 0.001100109556 | N74: =IF($B74="","",VLOOKUP($B74,_tbl!$A:$E,N$2,0)) -> Male | O74: =IF($B74="","",VLOOKUP($B74,_tbl!$A:$E,O$2,0)) -> Central | P74: =IF($B74="","",VLOOKUP($B74,_tbl!$A:$E,P$2,0)) -> Rural | Q74: =IF($B74="","",VLOOKUP($B74,_tbl!$A:$E,Q$2,0)) -> Diabetes | S74: 0.001126906239 | T74: 0.001095024402
B75: all_m_Central Rural diabetes.csv | C75: 85+ | D75: 0.001484764717 | E75: 0.001476147065 | F75: 0.001469546121 | G75: 0.00146502238 | H75: 0.001460753205 | I75: 0.001456139707 | J75: 0.001451064161 | K75: 0.001445599284 | L75: 0.001440550578 | M75: 0.00143627949 | N75: =IF($B75="","",VLOOKUP($B75,_tbl!$A:$E,N$2,0)) -> Male | O75: =IF($B75="","",VLOOKUP($B75,_tbl!$A:$E,O$2,0)) -> Central | P75: =IF($B75="","",VLOOKUP($B75,_tbl!$A:$E,P$2,0)) -> Rural | Q75: =IF($B75="","",VLOOKUP($B75,_tbl!$A:$E,Q$2,0)) -> Diabetes | S75: 0.001484764717 | T75: 0.00143627949
B76: all_m_Central Rural diabetes.csv | N76: =IF($B76="","",VLOOKUP($B76,_tbl!$A:$E,N$2,0)) -> Male | O76: =IF($B76="","",VLOOKUP($B76,_tbl!$A:$E,O$2,0)) -> Central | P76: =IF($B76="","",VLOOKUP($B76,_tbl!$A:$E,P$2,0)) -> Rural | Q76: =IF($B76="","",VLOOKUP($B76,_tbl!$A:$E,Q$2,0)) -> Diabetes | S76: 0 | T76: 0
B77: all_m_Central Rural diabetes.csv | N77: =IF($B77="","",VLOOKUP($B77,_tbl!$A:$E,N$2,0)) -> Male | O77: =IF($B77="","",VLOOKUP($B77,_tbl!$A:$E,O$2,0)) -> Central | P77: =IF($B77="","",VLOOKUP($B77,_tbl!$A:$E,P$2,0)) -> Rural | Q77: =IF($B77="","",VLOOKUP($B77,_tbl!$A:$E,Q$2,0)) -> Diabetes | S77: 0 | T77: 0
B78: all_m_Central Rural diabetes.csv | N78: =IF($B78="","",VLOOKUP($B78,_tbl!$A:$E,N$2,0)) -> Male | O78: =IF($B78="","",VLOOKUP($B78,_tbl!$A:$E,O$2,0)) -> Central | P78: =IF($B78="","",VLOOKUP($B78,_tbl!$A:$E,P$2,0)) -> Rural | Q78: =IF($B78="","",VLOOKUP($B78,_tbl!$A:$E,Q$2,0)) -> Diabetes | S78: 0 | T78: 0
B79: all_m_Central Rural diabetes.csv | N79: =IF($B79="","",VLOOKUP($B79,_tbl!$A:$E,N$2,0)) -> Male | O79: =IF($B79="","",VLOOKUP($B79,_tbl!$A:$E,O$2,0)) -> Central | P79: =IF($B79="","",VLOOKUP($B79,_tbl!$A:$E,P$2,0)) -> Rural | Q79: =IF($B79="","",VLOOKUP($B79,_tbl!$A:$E,Q$2,0)) -> Diabetes | S79: 0 | T79: 0
B80: all_m_Central Rural diabetes.csv | N80: =IF($B80="","",VLOOKUP($B80,_tbl!$A:$E,N$2,0)) -> Male | O80: =IF($B80="","",VLOOKUP($B80,_tbl!$A:$E,O$2,0)) -> Central | P80: =IF($B80="","",VLOOKUP($B80,_tbl!$A:$E,P$2,0)) -> Rural | Q80: =IF($B80="","",VLOOKUP($B80,_tbl!$A:$E,Q$2,0)) -> Diabetes | S80: 0 | T80: 0
B81: all_m_Central Rural diabetes.csv | N81: =IF($B81="","",VLOOKUP($B81,_tbl!$A:$E,N$2,0)) -> Male | O81: =IF($B81="","",VLOOKUP($B81,_tbl!$A:$E,O$2,0)) -> Central | P81: =IF($B81="","",VLOOKUP($B81,_tbl!$A:$E,P$2,0)) -> Rural | Q81: =IF($B81="","",VLOOKUP($B81,_tbl!$A:$E,Q$2,0)) -> Diabetes | S81: 0 | T81: 0
N82: =IF($B82="","",VLOOKUP($B82,_tbl!$A:$E,N$2,0)) ->  | O82: =IF($B82="","",VLOOKUP($B82,_tbl!$A:$E,O$2,0)) ->  | P82: =IF($B82="","",VLOOKUP($B82,_tbl!$A:$E,P$2,0)) ->  | Q82: =IF($B82="","",VLOOKUP($B82,_tbl!$A:$E,Q$2,0)) -> 
D83: 2020 | E83: 2021 | F83: 2022 | G83: 2023 | H83: 2024 | I83: 2025 | J83: 2026 | K83: 2027 | L83: 2028 | M83: 2029 | N83: =IF($B83="","",VLOOKUP($B83,_tbl!$A:$E,N$2,0)) ->  | O83: =IF($B83="","",VLOOKUP($B83,_tbl!$A:$E,O$2,0)) ->  | P83: =IF($B83="","",VLOOKUP($B83,_tbl!$A:$E,P$2,0)) ->  | Q83: =IF($B83="","",VLOOKUP($B83,_tbl!$A:$E,Q$2,0)) -> 
B84: all_m_Central Rural digestive.csv | C84: 1-4 | D84: 6.717989479e-06 | E84: 6.156273832e-06 | F84: 5.668980337e-06 | G84: 5.20207385e-06 | H84: 4.795361073e-06 | I84: 4.444206508e-06 | J84: 4.109361771e-06 | K84: 3.818033957e-06 | L84: 3.545587247e-06 | M84: 3.29016227e-06 | N84: =IF($B84="","",VLOOKUP($B84,_tbl!$A:$E,N$2,0)) -> Male | O84: =IF($B84="","",VLOOKUP($B84,_tbl!$A:$E,O$2,0)) -> Central | P84: =IF($B84="","",VLOOKUP($B84,_tbl!$A:$E,P$2,0)) -> Rural | Q84: =IF($B84="","",VLOOKUP($B84,_tbl!$A:$E,Q$2,0)) -> Digestive | S84: =MAX(D84:M84) -> 6.717989479e-06 | T84: =MIN(D84:M84) -> 3.29016227e-06
B85: all_m_Central Rural digestive.csv | C85: 5-9 | D85: 2.020695166e-06 | E85: 1.824393307e-06 | F85: 1.655043873e-06 | G85: 1.496683065e-06 | H85: 1.358249067e-06 | I85: 1.23300271e-06 | J85: 1.119523458e-06 | K85: 1.018156462e-06 | L85: 9.272185316e-07 | M85: 8.446526451e-07 | N85: =IF($B85="","",VLOOKUP($B85,_tbl!$A:$E,N$2,0)) -> Male | O85: =IF($B85="","",VLOOKUP($B85,_tbl!$A:$E,O$2,0)) -> Central | P85: =IF($B85="","",VLOOKUP($B85,_tbl!$A:$E,P$2,0)) -> Rural | Q85: =IF($B85="","",VLOOKUP($B85,_tbl!$A:$E,Q$2,0)) -> Digestive | S85: 2.020695166e-06 | T85: 8.446526451e-07
B86: all_m_Central Rural digestive.csv | C86: 10-14 | D86: 1.819622886e-06 | E86: 1.655827764e-06 | F86: 1.508202546e-06 | G86: 1.370588036e-06 | H86: 1.248605232e-06 | I86: 1.138514065e-06 | J86: 1.038589844e-06 | K86: 9.484022656e-07 | L86: 8.661707317e-07 | M86: 7.903118818e-07 | N86: =IF($B86="","",VLOOKUP($B86,_tbl!$A:$E,N$2,0)) -> Male | O86: =IF($B86="","",VLOOKUP($B86,_tbl!$A:$E,O$2,0)) -> Central | P86: =IF($B86="","",VLOOKUP($B86,_tbl!$A:$E,P$2,0)) -> Rural | Q86: =IF($B86="","",VLOOKUP($B86,_tbl!$A:$E,Q$2,0)) -> Digestive | S86: 1.819622886e-06 | T86: 7.903118818e-07
B87: all_m_Central Rural digestive.csv | C87: 15-19 | D87: 2.588833129e-06 | E87: 2.393935749e-06 | F87: 2.214524561e-06 | G87: 2.044893134e-06 | H87: 1.891314222e-06 | I87: 1.750482308e-06 | J87: 1.62126824e-06 | K87: 1.502113547e-06 | L87: 1.391597408e-06 | M87: 1.288551863e-06 | N87: =IF($B87="","",VLOOKUP($B87,_tbl!$A:$E,N$2,0)) -> Male | O87: =IF($B87="","",VLOOKUP($B87,_tbl!$A:$E,O$2,0)) -> Central | P87: =IF($B87="","",VLOOKUP($B87,_tbl!$A:$E,P$2,0)) -> Rural | Q87: =IF($B87="","",VLOOKUP($B87,_tbl!$A:$E,Q$2,0)) -> Digestive | S87: 2.588833129e-06 | T87: 1.288551863e-06
B88: all_m_Central Rural digestive.csv | C88: 20-24 | D88: 4.857004049e-06 | E88: 4.55602892e-06 | F88: 4.260410333e-06 | G88: 3.976479992e-06 | H88: 3.726596021e-06 | I88: 3.506870496e-06 | J88: 3.312591305e-06 | K88: 3.133399943e-06 | L88: 2.963871028e-06 | M88: 2.800085974e-06 | N88: =IF($B88="","",VLOOKUP($B88,_tbl!$A:$E,N$2,0)) -> Male | O88: =IF($B88="","",VLOOKUP($B88,_tbl!$A:$E,O$2,0)) -> Central | P88: =IF($B88="","",VLOOKUP($B88,_tbl!$A:$E,P$2,0)) -> Rural | Q88: =IF($B88="","",VLOOKUP($B88,_tbl!$A:$E,Q$2,0)) -> Digestive | S88: 4.857004049e-06 | T88: 2.800085974e-06
B89: all_m_Central Rural digestive.csv | C89: 25-29 | D89: 9.807878843e-06 | E89: 9.363813401e-06 | F89: 8.920624384e-06 | G89: 8.49742013e-06 | H89: 8.103543239e-06 | I89: 7.738350829e-06 | J89: 7.397632671e-06 | K89: 7.075248193e-06 | L89: 6.768483854e-06 | M89: 6.474626155e-06 | N89: =IF($B89="","",VLOOKUP($B89,_tbl!$A:$E,N$2,0)) -> Male | O89: =IF($B89="","",VLOOKUP($B89,_tbl!$A:$E,O$2,0)) -> Central | P89: =IF($B89="","",VLOOKUP($B89,_tbl!$A:$E,P$2,0)) -> Rural | Q89: =IF($B89="","",VLOOKUP($B89,_tbl!$A:$E,Q$2,0)) -> Digestive | S89: 9.807878843e-06 | T89: 6.474626155e-06
B90: all_m_Central Rural digestive.csv | C90: 30-34 | D90: 1.977165268e-05 | E90: 1.888591134e-05 | F90: 1.796258761e-05 | G90: 1.709502711e-05 | H90: 1.63032534e-05 | I90: 1.559487753e-05 | J90: 1.494706706e-05 | K90: 1.433728414e-05 | L90: 1.374724448e-05 | M90: 1.316918562e-05 | N90: =IF($B90="","",VLOOKUP($B90,_tbl!$A:$E,N$2,0)) -> Male | O90: =IF($B90="","",VLOOKUP($B90,_tbl!$A:$E,O$2,0)) -> Central | P90: =IF($B90="","",VLOOKUP($B90,_tbl!$A:$E,P$2,0)) -> Rural | Q90: =IF($B90="","",VLOOKUP($B90,_tbl!$A:$E,Q$2,0)) -> Digestive | S90: 1.977165268e-05 | T90: 1.316918562e-05
B91: all_m_Central Rural digestive.csv | C91: 35-39 | D91: 3.735671741e-05 | E91: 3.566122163e-05 | F91: 3.403367318e-05 | G91: 3.237365022e-05 | H91: 3.090382777e-05 | I91: 2.950121771e-05 | J91: 2.822959314e-05 | K91: 2.698394228e-05 | L91: 2.579537149e-05 | M91: 2.461017153e-05 | N91: =IF($B91="","",VLOOKUP($B91,_tbl!$A:$E,N$2,0)) -> Male | O91: =IF($B91="","",VLOOKUP($B91,_tbl!$A:$E,O$2,0)) -> Central | P91: =IF($B91="","",VLOOKUP($B91,_tbl!$A:$E,P$2,0)) -> Rural | Q91: =IF($B91="","",VLOOKUP($B91,_tbl!$A:$E,Q$2,0)) -> Digestive | S91: 3.735671741e-05 | T91: 2.461017153e-05
B92: all_m_Central Rural digestive.csv | C92: 40-44 | D92: 5.862162448e-05 | E92: 5.576206912e-05 | F92: 5.321975558e-05 | G92: 5.055785167e-05 | H92: 4.807555606e-05 | I92: 4.553150469e-05 | J92: 4.31211921e-05 | K92: 4.072436496e-05 | L92: 3.847483599e-05 | M92: 3.629523907e-05 | N92: =IF($B92="","",VLOOKUP($B92,_tbl!$A:$E,N$2,0)) -> Male | O92: =IF($B92="","",VLOOKUP($B92,_tbl!$A:$E,O$2,0)) -> Central | P92: =IF($B92="","",VLOOKUP($B92,_tbl!$A:$E,P$2,0)) -> Rural | Q92: =IF($B92="","",VLOOKUP($B92,_tbl!$A:$E,Q$2,0)) -> Digestive | S92: 5.862162448e-05 | T92: 3.629523907e-05
B93: all_m_Central Rural digestive.csv | C93: 45-49 | D93: 8.864591482e-05 | E93: 8.433594685e-05 | F93: 8.017640591e-05 | G93: 7.613596485e-05 | H93: 7.227891827e-05 | I93: 6.855390619e-05 | J93: 6.500864275e-05 | K93: 6.159307236e-05 | L93: 5.833241293e-05 | M93: 5.518539373e-05 | N93: =IF($B93="","",VLOOKUP($B93,_tbl!$A:$E,N$2,0)) -> Male | O93: =IF($B93="","",VLOOKUP($B93,_tbl!$A:$E,O$2,0)) -> Central | P93: =IF($B93="","",VLOOKUP($B93,_tbl!$A:$E,P$2,0)) -> Rural | Q93: =IF($B93="","",VLOOKUP($B93,_tbl!$A:$E,Q$2,0)) -> Digestive | S93: 8.864591482e-05 | T93: 5.518539373e-05
B94: all_m_Central Rural digestive.csv | C94: 50-54 | D94: 0.0001229490709 | E94: 0.0001171623647 | F94: 0.0001112614523 | G94: 0.0001057941622 | H94: 0.0001004616107 | I94: 9.54744002e-05 | J94: 9.067468152e-05 | K94: 8.615883254e-05 | L94: 8.182155474e-05 | M94: 7.771245013e-05 | N94: =IF($B94="","",VLOOKUP($B94,_tbl!$A:$E,N$2,0)) -> Male | O94: =IF($B94="","",VLOOKUP($B94,_tbl!$A:$E,O$2,0)) -> Central | P94: =IF($B94="","",VLOOKUP($B94,_tbl!$A:$E,P$2,0)) -> Rural | Q94: =IF($B94="","",VLOOKUP($B94,_tbl!$A:$E,Q$2,0)) -> Digestive | S94: 0.0001229490709 | T94: 7.771245013e-05
B95: all_m_Central Rural digestive.csv | C95: 55-59 | D95: 0.0001514677415 | E95: 0.0001422908376 | F95: 0.0001333885846 | G95: 0.0001251259977 | H95: 0.0001171980634 | I95: 0.0001097837977 | J95: 0.0001027208012 | K95: 9.610491425e-05 | L95: 8.982500709e-05 | M95: 8.393008724e-05 | N95: =IF($B95="","",VLOOKUP($B95,_tbl!$A:$E,N$2,0)) -> Male | O95: =IF($B95="","",VLOOKUP($B95,_tbl!$A:$E,O$2,0)) -> Central | P95: =IF($B95="","",VLOOKUP($B95,_tbl!$A:$E,P$2,0)) -> Rural | Q95: =IF($B95="","",VLOOKUP($B95,_tbl!$A:$E,Q$2,0)) -> Digestive | S95: 0.0001514677415 | T95: 8.393008724e-05
B96: all_m_Central Rural digestive.csv | C96: 60-64 | D96: 0.0001941580576 | E96: 0.0001808619197 | F96: 0.0001684730299 | G96: 0.0001568405152 | H96: 0.0001458723298 | I96: 0.0001355889657 | J96: 0.0001259239955 | K96: 0.0001169018731 | L96: 0.0001084473332 | M96: 0.000100560355 | N96: =IF($B96="","",VLOOKUP($B96,_tbl!$A:$E,N$2,0)) -> Male | O96: =IF($B96="","",VLOOKUP($B96,_tbl!$A:$E,O$2,0)) -> Central | P96: =IF($B96="","",VLOOKUP($B96,_tbl!$A:$E,P$2,0)) -> Rural | Q96: =IF($B96="","",VLOOKUP($B96,_tbl!$A:$E,Q$2,0)) -> Digestive | S96: 0.0001941580576 | T96: 0.000100560355
B97: all_m_Central Rural digestive.csv | C97: 65-69 | D97: 0.0002567559804 | E97: 0.0002375626027 | F97: 0.0002197489931 | G97: 0.0002030757612 | H97: 0.0001873958106 | I97: 0.0001727096991 | J97: 0.0001589450967 | K97: 0.0001461324285 | L97: 0.0001341964545 | M97: 0.0001231283632 | N97: =IF($B97="","",VLOOKUP($B97,_tbl!$A:$E,N$2,0)) -> Male | O97: =IF($B97="","",VLOOKUP($B97,_tbl!$A:$E,O$2,0)) -> Central | P97: =IF($B97="","",VLOOKUP($B97,_tbl!$A:$E,P$2,0)) -> Rural | Q97: =IF($B97="","",VLOOKUP($B97,_tbl!$A:$E,Q$2,0)) -> Digestive | S97: 0.0002567559804 | T97: 0.0001231283632
B98: all_m_Central Rural digestive.csv | C98: 70-74 | D98: 0.0003730144612 | E98: 0.0003439949858 | F98: 0.0003164386756 | G98: 0.0002908550727 | H98: 0.0002667226894 | I98: 0.0002441749884 | J98: 0.0002230060686 | K98: 0.0002032304151 | L98: 0.0001847401718 | M98: 0.0001674931882 | N98: =IF($B98="","",VLOOKUP($B98,_tbl!$A:$E,N$2,0)) -> Male | O98: =IF($B98="","",VLOOKUP($B98,_tbl!$A:$E,O$2,0)) -> Central | P98: =IF($B98="","",VLOOKUP($B98,_tbl!$A:$E,P$2,0)) -> Rural | Q98: =IF($B98="","",VLOOKUP($B98,_tbl!$A:$E,Q$2,0)) -> Digestive | S98: 0.0003730144612 | T98: 0.0001674931882
B99: all_m_Central Rural digestive.csv | C99: 75-79 | D99: 0.0005955832946 | E99: 0.0005510531893 | F99: 0.000508411444 | G99: 0.0004687988848 | H99: 0.0004304907225 | I99: 0.0003940945054 | J99: 0.000359475422 | K99: 0.0003269072422 | L99: 0.0002964183001 | M99: 0.0002679423542 | N99: =IF($B99="","",VLOOKUP($B99,_tbl!$A:$E,N$2,0)) -> Male | O99: =IF($B99="","",VLOOKUP($B99,_tbl!$A:$E,O$2,0)) -> Central | P99: =IF($B99="","",VLOOKUP($B99,_tbl!$A:$E,P$2,0)) -> Rural | Q99: =IF($B99="","",VLOOKUP($B99,_tbl!$A:$E,Q$2,0)) -> Digestive | S99: 0.0005955832946 | T99: 0.0002679423542
B100: all_m_Central Rural digestive.csv | C100: 80-84 | D100: 0.001007686944 | E100: 0.0009425677019 | F100: 0.0008830508127 | G100: 0.0008271256515 | H100: 0.0007684954755 | I100: 0.0007082638271 | J100: 0.0006471836917 | K100: 0.0005881752807 | L100: 0.0005335200848 | M100: 0.0004849192484 | N100: =IF($B100="","",VLOOKUP($B100,_tbl!$A:$E,N$2,0)) -> Male | O100: =IF($B100="","",VLOOKUP($B100,_tbl!$A:$E,O$2,0)) -> Central | P100: =IF($B100="","",VLOOKUP($B100,_tbl!$A:$E,P$2,0)) -> Rural | Q100: =IF($B100="","",VLOOKUP($B100,_tbl!$A:$E,Q$2,0)) -> Digestive | S100: 0.001007686944 | T100: 0.0004849192484
B101: all_m_Central Rural digestive.csv | C101: 85+ | D101: 0.001734833589 | E101: 0.0016194954 | F101: 0.001526795361 | G101: 0.001439032051 | H101: 0.001347926683 | I101: 0.001250038689 | J101: 0.001147589486 | K101: 0.001045308034 | L101: 0.0009506253473 | M101: 0.0008689291316 | N101: =IF($B101="","",VLOOKUP($B101,_tbl!$A:$E,N$2,0)) -> Male | O101: =IF($B101="","",VLOOKUP($B101,_tbl!$A:$E,O$2,0)) -> Central | P101: =IF($B101="","",VLOOKUP($B101,_tbl!$A:$E,P$2,0)) -> Rural | Q101: =IF($B101="","",VLOOKUP($B101,_tbl!$A:$E,Q$2,0)) -> Digestive | S101: 0.001734833589 | T101: 0.0008689291316
N102: =IF($B102="","",VLOOKUP($B102,_tbl!$A:$E,N$2,0)) ->  | O102: =IF($B102="","",VLOOKUP($B102,_tbl!$A:$E,O$2,0)) ->  | P102: =IF($B102="","",VLOOKUP($B102,_tbl!$A:$E,P$2,0)) ->  | Q102: =IF($B102="","",VLOOKUP($B102,_tbl!$A:$E,Q$2,0)) -> 
D103: 2020 | E103: 2021 | F103: 2022 | G103: 2023 | H103: 2024 | I103: 2025 | J103: 2026 | K103: 2027 | L103: 2028 | M103: 2029 | N103: =IF($B103="","",VLOOKUP($B103,_tbl!$A:$E,N$2,0)) ->  | O103: =IF($B103="","",VLOOKUP($B103,_tbl!$A:$E,O$2,0)) ->  | P103: =IF($B103="","",VLOOKUP($B103,_tbl!$A:$E,P$2,0)) ->  | Q103: =IF($B103="","",VLOOKUP($B103,_tbl!$A:$E,Q$2,0)) -> 
B104: all_m_Central Rural external.csv | C104: 1-4 | D104: 0.0002423902917 | E104: 0.0002318401746 | F104: 0.0002249165892 | G104: 0.00021642223 | H104: 0.0002085894356 | I104: 0.0002008464235 | J104: 0.0001923826574 | K104: 0.0001846651076 | L104: 0.0001770836431 | M104: 0.0001697581684 | N104: =IF($B104="","",VLOOKUP($B104,_tbl!$A:$E,N$2,0)) -> Male | O104: =IF($B104="","",VLOOKUP($B104,_tbl!$A:$E,O$2,0)) -> Central | P104: =IF($B104="","",VLOOKUP($B104,_tbl!$A:$E,P$2,0)) -> Rural | Q104: =IF($B104="","",VLOOKUP($B104,_tbl!$A:$E,Q$2,0)) -> External | S104: =MAX(D104:M104) -> 0.0002423902917 | T104: =MIN(D104:M104) -> 0.0001697581684
B105: all_m_Central Rural external.csv | C105: 5-9 | D105: 0.0001901117889 | E105: 0.0001859455182 | F105: 0.0001833725539 | G105: 0.0001797772256 | H105: 0.0001768463905 | I105: 0.0001740566105 | J105: 0.0001708973854 | K105: 0.0001680977079 | L105: 0.0001652587522 | M105: 0.0001623455254 | N105: =IF($B105="","",VLOOKUP($B105,_tbl!$A:$E,N$2,0)) -> Male | O105: =IF($B105="","",VLOOKUP($B105,_tbl!$A:$E,O$2,0)) -> Central | P105: =IF($B105="","",VLOOKUP($B105,_tbl!$A:$E,P$2,0)) -> Rural | Q105: =IF($B105="","",VLOOKUP($B105,_tbl!$A:$E,Q$2,0)) -> External | S105: 0.0001901117889 | T105: 0.0001623455254
B106: all_m_Central Rural external.csv | C106: 10-14 | D106: 0.000165637619 | E106: 0.0001607646556 | F106: 0.0001573928022 | G106: 0.0001533481684 | H106: 0.000149389255 | I106: 0.0001451058333 | J106: 0.0001403455527 | K106: 0.0001357557627 | L106: 0.0001312504119 | M106: 0.0001268591153 | N106: =IF($B106="","",VLOOKUP($B106,_tbl!$A:$E,N$2,0)) -> Male | O106: =IF($B106="","",VLOOKUP($B106,_tbl!$A:$E,O$2,0)) -> Central | P106: =IF($B106="","",VLOOKUP($B106,_tbl!$A:$E,P$2,0)) -> Rural | Q106: =IF($B106="","",VLOOKUP($B106,_tbl!$A:$E,Q$2,0)) -> External | S106: 0.000165637619 | T106: 0.0001268591153
B107: all_m_Central Rural external.csv | C107: 15-19 | D107: 0.0001977778266 | E107: 0.0001913812191 | F107: 0.0001863895938 | G107: 0.0001807925749 | H107: 0.0001747710138 | I107: 0.0001680801832 | J107: 0.0001608336409 | K107: 0.0001536568106 | L107: 0.0001466812518 | M107: 0.0001400346166 | N107: =IF($B107="","",VLOOKUP($B107,_tbl!$A:$E,N$2,0)) -> Male | O107: =IF($B107="","",VLOOKUP($B107,_tbl!$A:$E,O$2,0)) -> Central | P107: =IF($B107="","",VLOOKUP($B107,_tbl!$A:$E,P$2,0)) -> Rural | Q107: =IF($B107="","",VLOOKUP($B107,_tbl!$A:$E,Q$2,0)) -> External | S107: 0.0001977778266 | T107: 0.0001400346166
B108: all_m_Central Rural external.csv | C108: 20-24 | D108: 0.0002546721129 | E108: 0.0002490743457 | F108: 0.000246042113 | G108: 0.0002421804003 | H108: 0.0002361262466 | I108: 0.0002276286978 | J108: 0.0002175685208 | K108: 0.0002071244703 | L108: 0.0001971277588 | M108: 0.0001879644022 | N108: =IF($B108="","",VLOOKUP($B108,_tbl!$A:$E,N$2,0)) -> Male | O108: =IF($B108="","",VLOOKUP($B108,_tbl!$A:$E,O$2,0)) -> Central | P108: =IF($B108="","",VLOOKUP($B108,_tbl!$A:$E,P$2,0)) -> Rural | Q108: =IF($B108="","",VLOOKUP($B108,_tbl!$A:$E,Q$2,0)) -> External | S108: 0.0002546721129 | T108: 0.0001879644022
B109: all_m_Central Rural external.csv | C109: 25-29 | D109: 0.0003329593886 | E109: 0.0003238096674 | F109: 0.000317697 | G109: 0.0003104201534 | H109: 0.0003015628809 | I109: 0.000290197458 | J109: 0.0002775943663 | K109: 0.0002644940048 | L109: 0.0002519778259 | M109: 0.0002401457724 | N109: =IF($B109="","",VLOOKUP($B109,_tbl!$A:$E,N$2,0)) -> Male | O109: =IF($B109="","",VLOOKUP($B109,_tbl!$A:$E,O$2,0)) -> Central | P109: =IF($B109="","",VLOOKUP($B109,_tbl!$A:$E,P$2,0)) -> Rural | Q109: =IF($B109="","",VLOOKUP($B109,_tbl!$A:$E,Q$2,0)) -> External | S109: 0.0003329593886 | T109: 0.0002401457724
B110: all_m_Central Rural external.csv | C110: 30-34 | D110: 0.000417366773 | E110: 0.0004062786519 | F110: 0.0003989232948 | G110: 0.0003907215965 | H110: 0.000379564368 | I110: 0.0003651456724 | J110: 0.0003487034764 | K110: 0.0003317356639 | L110: 0.0003154097111 | M110: 0.0003002396661 | N110: =IF($B110="","",VLOOKUP($B110,_tbl!$A:$E,N$2,0)) -> Male | O110: =IF($B110="","",VLOOKUP($B110,_tbl!$A:$E,O$2,0)) -> Central | P110: =IF($B110="","",VLOOKUP($B110,_tbl!$A:$E,P$2,0)) -> Rural | Q110: =IF($B110="","",VLOOKUP($B110,_tbl!$A:$E,Q$2,0)) -> External | S110: 0.000417366773 | T110: 0.0003002396661
B111: all_m_Central Rural external.csv | C111: 35-39 | D111: 0.0004649500116 | E111: 0.0004500266573 | F111: 0.000438663325 | G111: 0.0004261574533 | H111: 0.0004117727272 | I111: 0.0003946909918 | J111: 0.0003764967991 | K111: 0.0003578857697 | L111: 0.0003401754604 | M111: 0.0003234574672 | N111: =IF($B111="","",VLOOKUP($B111,_tbl!$A:$E,N$2,0)) -> Male | O111: =IF($B111="","",VLOOKUP($B111,_tbl!$A:$E,O$2,0)) -> Central | P111: =IF($B111="","",VLOOKUP($B111,_tbl!$A:$E,P$2,0)) -> Rural | Q111: =IF($B111="","",VLOOKUP($B111,_tbl!$A:$E,Q$2,0)) -> External | S111: 0.0004649500116 | T111: 0.0003234574672
B112: all_m_Central Rural external.csv | C112: 40-44 | D112: 0.0005240803442 | E112: 0.0005010555026 | F112: 0.0004812164307 | G112: 0.0004585471143 | H112: 0.0004363335965 | I112: 0.0004117970763 | J112: 0.0003877672523 | K112: 0.0003630877321 | L112: 0.0003397298309 | M112: 0.0003167947801 | N112: =IF($B112="","",VLOOKUP($B112,_tbl!$A:$E,N$2,0)) -> Male | O112: =IF($B112="","",VLOOKUP($B112,_tbl!$A:$E,O$2,0)) -> Central | P112: =IF($B112="","",VLOOKUP($B112,_tbl!$A:$E,P$2,0)) -> Rural | Q112: =IF($B112="","",VLOOKUP($B112,_tbl!$A:$E,Q$2,0)) -> External | S112: 0.0005240803442 | T112: 0.0003167947801
B113: all_m_Central Rural external.csv | C113: 45-49 | D113: 0.0005995342617 | E113: 0.0005754186697 | F113: 0.0005506232883 | G113: 0.0005253925236 | H113: 0.0004994689966 | I113: 0.0004722713986 | J113: 0.0004451326613 | K113: 0.0004178407604 | L113: 0.0003916850823 | M113: 0.0003662566058 | N113: =IF($B113="","",VLOOKUP($B113,_tbl!$A:$E,N$2,0)) -> Male | O113: =IF($B113="","",VLOOKUP($B113,_tbl!$A:$E,O$2,0)) -> Central | P113: =IF($B113="","",VLOOKUP($B113,_tbl!$A:$E,P$2,0)) -> Rural | Q113: =IF($B113="","",VLOOKUP($B113,_tbl!$A:$E,Q$2,0)) -> External | S113: 0.0005995342617 | T113: 0.0003662566058
B114: all_m_Central Rural external.csv | C114: 50-54 | D114: 0.0007384308038 | E114: 0.0007178411249 | F114: 0.0006954880991 | G114: 0.0006743653066 | H114: 0.0006522329437 | I114: 0.0006300502918 | J114: 0.0006076167312 | K114: 0.0005854935637 | L114: 0.0005638440486 | M114: 0.0005428113059 | N114: =IF($B114="","",VLOOKUP($B114,_tbl!$A:$E,N$2,0)) -> Male | O114: =IF($B114="","",VLOOKUP($B114,_tbl!$A:$E,O$2,0)) -> Central | P114: =IF($B114="","",VLOOKUP($B114,_tbl!$A:$E,P$2,0)) -> Rural | Q114: =IF($B114="","",VLOOKUP($B114,_tbl!$A:$E,Q$2,0)) -> External | S114: 0.0007384308038 | T114: 0.0005428113059
B115: all_m_Central Rural external.csv | C115: 55-59 | D115: 0.0008553409445 | E115: 0.0008304960634 | F115: 0.0008041804889 | G115: 0.0007796284955 | H115: 0.0007556598412 | I115: 0.0007329423772 | J115: 0.0007109090911 | K115: 0.0006894768398 | L115: 0.0006684059429 | M115: 0.0006475924693 | N115: =IF($B115="","",VLOOKUP($B115,_tbl!$A:$E,N$2,0)) -> Male | O115: =IF($B115="","",VLOOKUP($B115,_tbl!$A:$E,O$2,0)) -> Central | P115: =IF($B115="","",VLOOKUP($B115,_tbl!$A:$E,P$2,0)) -> Rural | Q115: =IF($B115="","",VLOOKUP($B115,_tbl!$A:$E,Q$2,0)) -> External | S115: 0.0008553409445 | T115: 0.0006475924693
B116: all_m_Central Rural external.csv | C116: 60-64 | D116: 0.001024982624 | E116: 0.0009940357979 | F116: 0.0009570984576 | G116: 0.0009225109605 | H116: 0.0008921312086 | I116: 0.0008668368378 | J116: 0.0008448875913 | K116: 0.0008245563095 | L116: 0.0008042176415 | M116: 0.0007830699177 | N116: =IF($B116="","",VLOOKUP($B116,_tbl!$A:$E,N$2,0)) -> Male | O116: =IF($B116="","",VLOOKUP($B116,_tbl!$A:$E,O$2,0)) -> Central | P116: =IF($B116="","",VLOOKUP($B116,_tbl!$A:$E,P$2,0)) -> Rural | Q116: =IF($B116="","",VLOOKUP($B116,_tbl!$A:$E,Q$2,0)) -> External | S116: 0.001024982624 | T116: 0.0007830699177
B117: all_m_Central Rural external.csv | C117: 65-69 | D117: 0.00124768053 | E117: 0.001196117993 | F117: 0.001129727412 | G117: 0.001069282885 | H117: 0.001021149225 | I117: 0.000986426176 | J117: 0.0009605379434 | K117: 0.0009386028431 | L117: 0.0009162437407 | M117: 0.0008913141034 | N117: =IF($B117="","",VLOOKUP($B117,_tbl!$A:$E,N$2,0)) -> Male | O117: =IF($B117="","",VLOOKUP($B117,_tbl!$A:$E,O$2,0)) -> Central | P117: =IF($B117="","",VLOOKUP($B117,_tbl!$A:$E,P$2,0)) -> Rural | Q117: =IF($B117="","",VLOOKUP($B117,_tbl!$A:$E,Q$2,0)) -> External | S117: 0.00124768053 | T117: 0.0008913141034
B118: all_m_Central Rural external.csv | C118: 70-74 | D118: 0.00166785617 | E118: 0.001573541811 | F118: 0.001452185326 | G118: 0.001345994624 | H118: 0.00126761426 | I118: 0.001217217264 | J118: 0.001185215008 | K118: 0.001161218675 | L118: 0.001136500101 | M118: 0.001106473007 | N118: =IF($B118="","",VLOOKUP($B118,_tbl!$A:$E,N$2,0)) -> Male | O118: =IF($B118="","",VLOOKUP($B118,_tbl!$A:$E,O$2,0)) -> Central | P118: =IF($B118="","",VLOOKUP($B118,_tbl!$A:$E,P$2,0)) -> Rural | Q118: =IF($B118="","",VLOOKUP($B118,_tbl!$A:$E,Q$2,0)) -> External | S118: 0.00166785617 | T118: 0.001106473007
B119: all_m_Central Rural external.csv | C119: 75-79 | D119: 0.002379084915 | E119: 0.002209796052 | F119: 0.001997819474 | G119: 0.001817400734 | H119: 0.001690548723 | I119: 0.001613446574 | J119: 0.001569107697 | K119: 0.001539104602 | L119: 0.001508871994 | M119: 0.001470376635 | N119: =IF($B119="","",VLOOKUP($B119,_tbl!$A:$E,N$2,0)) -> Male | O119: =IF($B119="","",VLOOKUP($B119,_tbl!$A:$E,O$2,0)) -> Central | P119: =IF($B119="","",VLOOKUP($B119,_tbl!$A:$E,P$2,0)) -> Rural | Q119: =IF($B119="","",VLOOKUP($B119,_tbl!$A:$E,Q$2,0)) -> External | S119: 0.002379084915 | T119: 0.001470376635
B120: all_m_Central Rural external.csv | C120: 80-84 | D120: 0.003391372457 | E120: 0.003063634406 | F120: 0.00266836455 | G120: 0.002344763023 | H120: 0.00212404093 | I120: 0.001992284798 | J120: 0.001915762329 | K120: 0.001863114086 | L120: 0.001810180812 | M120: 0.001745153204 | N120: =IF($B120="","",VLOOKUP($B120,_tbl!$A:$E,N$2,0)) -> Male | O120: =IF($B120="","",VLOOKUP($B120,_tbl!$A:$E,O$2,0)) -> Central | P120: =IF($B120="","",VLOOKUP($B120,_tbl!$A:$E,P$2,0)) -> Rural | Q120: =IF($B120="","",VLOOKUP($B120,_tbl!$A:$E,Q$2,0)) -> External | S120: 0.003391372457 | T120: 0.001745153204
B121: all_m_Central Rural external.csv | C121: 85+ | D121: 0.004803815824 | E121: 0.004153984882 | F121: 0.003411812773 | G121: 0.00282792959 | H121: 0.00245025643 | I121: 0.002239082075 | J121: 0.002130261426 | K121: 0.002063191883 | L121: 0.001992709894 | M121: 0.001894774166 | N121: =IF($B121="","",VLOOKUP($B121,_tbl!$A:$E,N$2,0)) -> Male | O121: =IF($B121="","",VLOOKUP($B121,_tbl!$A:$E,O$2,0)) -> Central | P121: =IF($B121="","",VLOOKUP($B121,_tbl!$A:$E,P$2,0)) -> Rural | Q121: =IF($B121="","",VLOOKUP($B121,_tbl!$A:$E,Q$2,0)) -> External | S121: 0.004803815824 | T121: 0.001894774166
N122: =IF($B122="","",VLOOKUP($B122,_tbl!$A:$E,N$2,0)) ->  | O122: =IF($B122="","",VLOOKUP($B122,_tbl!$A:$E,O$2,0)) ->  | P122: =IF($B122="","",VLOOKUP($B122,_tbl!$A:$E,P$2,0)) ->  | Q122: =IF($B122="","",VLOOKUP($B122,_tbl!$A:$E,Q$2,0)) -> 
D123: 2020 | E123: 2021 | F123: 2022 | G123: 2023 | H123: 2024 | I123: 2025 | J123: 2026 | K123: 2027 | L123: 2028 | M123: 2029 | N123: =IF($B123="","",VLOOKUP($B123,_tbl!$A:$E,N$2,0)) ->  | O123: =IF($B123="","",VLOOKUP($B123,_tbl!$A:$E,O$2,0)) ->  | P123: =IF($B123="","",VLOOKUP($B123,_tbl!$A:$E,P$2,0)) ->  | Q123: =IF($B123="","",VLOOKUP($B123,_tbl!$A:$E,Q$2,0)) -> 
B124: all_m_Central Rural infectious.csv | C124: 1-4 | D124: 7.871035064e-05 | E124: 7.580166841e-05 | F124: 7.330661891e-05 | G124: 7.003376423e-05 | H124: 6.718634094e-05 | I124: 6.453767225e-05 | J124: 6.174270488e-05 | K124: 5.923877977e-05 | L124: 5.673335114e-05 | M124: 5.420697958e-05 | N124: =IF($B124="","",VLOOKUP($B124,_tbl!$A:$E,N$2,0)) -> Male | O124: =IF($B124="","",VLOOKUP($B124,_tbl!$A:$E,O$2,0)) -> Central | P124: =IF($B124="","",VLOOKUP($B124,_tbl!$A:$E,P$2,0)) -> Rural | Q124: =IF($B124="","",VLOOKUP($B124,_tbl!$A:$E,Q$2,0)) -> Infectious | S124: =MAX(D124:M124) -> 7.871035064e-05 | T124: =MIN(D124:M124) -> 5.420697958e-05
B125: all_m_Central Rural infectious.csv | C125: 5-9 | D125: 1.662499774e-05 | E125: 1.644896827e-05 | F125: 1.619421997e-05 | G125: 1.587274272e-05 | H125: 1.551745139e-05 | I125: 1.513812343e-05 | J125: 1.473657773e-05 | K125: 1.433108507e-05 | L125: 1.391961681e-05 | M125: 1.350569179e-05 | N125: =IF($B125="","",VLOOKUP($B125,_tbl!$A:$E,N$2,0)) -> Male | O125: =IF($B125="","",VLOOKUP($B125,_tbl!$A:$E,O$2,0)) -> Central | P125: =IF($B125="","",VLOOKUP($B125,_tbl!$A:$E,P$2,0)) -> Rural | Q125: =IF($B125="","",VLOOKUP($B125,_tbl!$A:$E,Q$2,0)) -> Infectious | S125: 1.662499774e-05 | T125: 1.350569179e-05
B126: all_m_Central Rural infectious.csv | C126: 10-14 | D126: 1.073331287e-05 | E126: 1.035377258e-05 | F126: 9.974867567e-06 | G126: 9.590193846e-06 | H126: 9.228378881e-06 | I126: 8.885918681e-06 | J126: 8.553200638e-06 | K126: 8.23546436e-06 | L126: 7.924127355e-06 | M126: 7.615056839e-06 | N126: =IF($B126="","",VLOOKUP($B126,_tbl!$A:$E,N$2,0)) -> Male | O126: =IF($B126="","",VLOOKUP($B126,_tbl!$A:$E,O$2,0)) -> Central | P126: =IF($B126="","",VLOOKUP($B126,_tbl!$A:$E,P$2,0)) -> Rural | Q126: =IF($B126="","",VLOOKUP($B126,_tbl!$A:$E,Q$2,0)) -> Infectious | S126: 1.073331287e-05 | T126: 7.615056839e-06
B127: all_m_Central Rural infectious.csv | C127: 15-19 | D127: 1.078528478e-05 | E127: 1.01292646e-05 | F127: 9.503208675e-06 | G127: 8.916984169e-06 | H127: 8.407931791e-06 | I127: 7.965260241e-06 | J127: 7.567098338e-06 | K127: 7.201340826e-06 | L127: 6.8503161e-06 | M127: 6.505981817e-06 | N127: =IF($B127="","",VLOOKUP($B127,_tbl!$A:$E,N$2,0)) -> Male | O127: =IF($B127="","",VLOOKUP($B127,_tbl!$A:$E,O$2,0)) -> Central | P127: =IF($B127="","",VLOOKUP($B127,_tbl!$A:$E,P$2,0)) -> Rural | Q127: =IF($B127="","",VLOOKUP($B127,_tbl!$A:$E,Q$2,0)) -> Infectious | S127: 1.078528478e-05 | T127: 6.505981817e-06
B128: all_m_Central Rural infectious.csv | C128: 20-24 | D128: 1.456768544e-05 | E128: 1.361062228e-05 | F128: 1.261294847e-05 | G128: 1.17162153e-05 | H128: 1.097919418e-05 | I128: 1.040720616e-05 | J128: 9.945932838e-06 | K128: 9.540595399e-06 | L128: 9.144993585e-06 | M128: 8.739402978e-06 | N128: =IF($B128="","",VLOOKUP($B128,_tbl!$A:$E,N$2,0)) -> Male | O128: =IF($B128="","",VLOOKUP($B128,_tbl!$A:$E,O$2,0)) -> Central | P128: =IF($B128="","",VLOOKUP($B128,_tbl!$A:$E,P$2,0)) -> Rural | Q128: =IF($B128="","",VLOOKUP($B128,_tbl!$A:$E,Q$2,0)) -> Infectious | S128: 1.456768544e-05 | T128: 8.739402978e-06
B129: all_m_Central Rural infectious.csv | C129: 25-29 | D129: 2.074935315e-05 | E129: 1.972458572e-05 | F129: 1.875750024e-05 | G129: 1.789451942e-05 | H129: 1.71068728e-05 | I129: 1.63983252e-05 | J129: 1.574420726e-05 | K129: 1.513208725e-05 | L129: 1.454614806e-05 | M129: 1.398146578e-05 | N129: =IF($B129="","",VLOOKUP($B129,_tbl!$A:$E,N$2,0)) -> Male | O129: =IF($B129="","",VLOOKUP($B129,_tbl!$A:$E,O$2,0)) -> Central | P129: =IF($B129="","",VLOOKUP($B129,_tbl!$A:$E,P$2,0)) -> Rural | Q129: =IF($B129="","",VLOOKUP($B129,_tbl!$A:$E,Q$2,0)) -> Infectious | S129: 2.074935315e-05 | T129: 1.398146578e-05
B130: all_m_Central Rural infectious.csv | C130: 30-34 | D130: 3.129204417e-05 | E130: 2.986397609e-05 | F130: 2.858189307e-05 | G130: 2.735561598e-05 | H130: 2.624656939e-05 | I130: 2.521024201e-05 | J130: 2.424989819e-05 | K130: 2.333623343e-05 | L130: 2.246256471e-05 | M130: 2.161732353e-05 | N130: =IF($B130="","",VLOOKUP($B130,_tbl!$A:$E,N$2,0)) -> Male | O130: =IF($B130="","",VLOOKUP($B130,_tbl!$A:$E,O$2,0)) -> Central | P130: =IF($B130="","",VLOOKUP($B130,_tbl!$A:$E,P$2,0)) -> Rural | Q130: =IF($B130="","",VLOOKUP($B130,_tbl!$A:$E,Q$2,0)) -> Infectious | S130: 3.129204417e-05 | T130: 2.161732353e-05
B131: all_m_Central Rural infectious.csv | C131: 35-39 | D131: 4.703072388e-05 | E131: 4.486797568e-05 | F131: 4.289986268e-05 | G131: 4.101296574e-05 | H131: 3.92880071e-05 | I131: 3.768117506e-05 | J131: 3.618216475e-05 | K131: 3.476746141e-05 | L131: 3.340864185e-05 | M131: 3.210111487e-05 | N131: =IF($B131="","",VLOOKUP($B131,_tbl!$A:$E,N$2,0)) -> Male | O131: =IF($B131="","",VLOOKUP($B131,_tbl!$A:$E,O$2,0)) -> Central | P131: =IF($B131="","",VLOOKUP($B131,_tbl!$A:$E,P$2,0)) -> Rural | Q131: =IF($B131="","",VLOOKUP($B131,_tbl!$A:$E,Q$2,0)) -> Infectious | S131: 4.703072388e-05 | T131: 3.210111487e-05
B132: all_m_Central Rural infectious.csv | C132: 40-44 | D132: 6.420628426e-05 | E132: 6.040834771e-05 | F132: 5.722133832e-05 | G132: 5.400572857e-05 | H132: 5.115564565e-05 | I132: 4.841751615e-05 | J132: 4.592264896e-05 | K132: 4.352299734e-05 | L132: 4.125484209e-05 | M132: 3.903838357e-05 | N132: =IF($B132="","",VLOOKUP($B132,_tbl!$A:$E,N$2,0)) -> Male | O132: =IF($B132="","",VLOOKUP($B132,_tbl!$A:$E,O$2,0)) -> Central | P132: =IF($B132="","",VLOOKUP($B132,_tbl!$A:$E,P$2,0)) -> Rural | Q132: =IF($B132="","",VLOOKUP($B132,_tbl!$A:$E,Q$2,0)) -> Infectious | S132: 6.420628426e-05 | T132: 3.903838357e-05
B133: all_m_Central Rural infectious.csv | C133: 45-49 | D133: 8.873517917e-05 | E133: 8.383051551e-05 | F133: 7.876411652e-05 | G133: 7.43117098e-05 | H133: 7.022488936e-05 | I133: 6.65577713e-05 | J133: 6.319298845e-05 | K133: 5.999787057e-05 | L133: 5.692215044e-05 | M133: 5.387038478e-05 | N133: =IF($B133="","",VLOOKUP($B133,_tbl!$A:$E,N$2,0)) -> Male | O133: =IF($B133="","",VLOOKUP($B133,_tbl!$A:$E,O$2,0)) -> Central | P133: =IF($B133="","",VLOOKUP($B133,_tbl!$A:$E,P$2,0)) -> Rural | Q133: =IF($B133="","",VLOOKUP($B133,_tbl!$A:$E,Q$2,0)) -> Infectious | S133: 8.873517917e-05 | T133: 5.387038478e-05
B134: all_m_Central Rural infectious.csv | C134: 50-54 | D134: 0.0001255565006 | E134: 0.0001185667211 | F134: 0.0001116555494 | G134: 0.0001056153695 | H134: 9.998111341e-05 | I134: 9.487374002e-05 | J134: 9.010835904e-05 | K134: 8.562060894e-05 | L134: 8.133254851e-05 | M134: 7.718327238e-05 | N134: =IF($B134="","",VLOOKUP($B134,_tbl!$A:$E,N$2,0)) -> Male | O134: =IF($B134="","",VLOOKUP($B134,_tbl!$A:$E,O$2,0)) -> Central | P134: =IF($B134="","",VLOOKUP($B134,_tbl!$A:$E,P$2,0)) -> Rural | Q134: =IF($B134="","",VLOOKUP($B134,_tbl!$A:$E,Q$2,0)) -> Infectious | S134: 0.0001255565006 | T134: 7.718327238e-05
B135: all_m_Central Rural infectious.csv | C135: 55-59 | D135: 0.0001641385942 | E135: 0.0001539151198 | F135: 0.0001443433137 | G135: 0.0001356215729 | H135: 0.0001274488289 | I135: 0.0001198232684 | J135: 0.0001126254721 | K135: 0.0001058212528 | L135: 9.936396415e-05 | M135: 9.322316371e-05 | N135: =IF($B135="","",VLOOKUP($B135,_tbl!$A:$E,N$2,0)) -> Male | O135: =IF($B135="","",VLOOKUP($B135,_tbl!$A:$E,O$2,0)) -> Central | P135: =IF($B135="","",VLOOKUP($B135,_tbl!$A:$E,P$2,0)) -> Rural | Q135: =IF($B135="","",VLOOKUP($B135,_tbl!$A:$E,Q$2,0)) -> Infectious | S135: 0.0001641385942 | T135: 9.322316371e-05
B136: all_m_Central Rural infectious.csv | C136: 60-64 | D136: 0.0002046279566 | E136: 0.0001880815771 | F136: 0.0001728544106 | G136: 0.0001588864369 | H136: 0.0001458150925 | I136: 0.0001335394795 | J136: 0.0001219198186 | K136: 0.0001109030918 | L136: 0.0001004489576 | M136: 9.052041515e-05 | N136: =IF($B136="","",VLOOKUP($B136,_tbl!$A:$E,N$2,0)) -> Male | O136: =IF($B136="","",VLOOKUP($B136,_tbl!$A:$E,O$2,0)) -> Central | P136: =IF($B136="","",VLOOKUP($B136,_tbl!$A:$E,P$2,0)) -> Rural | Q136: =IF($B136="","",VLOOKUP($B136,_tbl!$A:$E,Q$2,0)) -> Infectious | S136: 0.0002046279566 | T136: 9.052041515e-05
B137: all_m_Central Rural infectious.csv | C137: 65-69 | D137: 0.0002868753578 | E137: 0.0002612477763 | F137: 0.0002374486544 | G137: 0.0002154601557 | H137: 0.0001946662288 | I137: 0.0001749695228 | J137: 0.0001562374557 | K137: 0.000138420857 | L137: 0.0001215411699 | M137: 0.0001055332542 | N137: =IF($B137="","",VLOOKUP($B137,_tbl!$A:$E,N$2,0)) -> Male | O137: =IF($B137="","",VLOOKUP($B137,_tbl!$A:$E,O$2,0)) -> Central | P137: =IF($B137="","",VLOOKUP($B137,_tbl!$A:$E,P$2,0)) -> Rural | Q137: =IF($B137="","",VLOOKUP($B137,_tbl!$A:$E,Q$2,0)) -> Infectious | S137: 0.0002868753578 | T137: 0.0001055332542
B138: all_m_Central Rural infectious.csv | C138: 70-74 | D138: 0.0004671522273 | E138: 0.0004249475822 | F138: 0.0003841783285 | G138: 0.0003463319369 | H138: 0.0003100414861 | I138: 0.0002756222727 | J138: 0.0002427676609 | K138: 0.000211455591 | L138: 0.0001816464019 | M138: 0.0001532140601 | N138: =IF($B138="","",VLOOKUP($B138,_tbl!$A:$E,N$2,0)) -> Male | O138: =IF($B138="","",VLOOKUP($B138,_tbl!$A:$E,O$2,0)) -> Central | P138: =IF($B138="","",VLOOKUP($B138,_tbl!$A:$E,P$2,0)) -> Rural | Q138: =IF($B138="","",VLOOKUP($B138,_tbl!$A:$E,Q$2,0)) -> Infectious | S138: 0.0004671522273 | T138: 0.0001532140601
B139: all_m_Central Rural infectious.csv | C139: 75-79 | D139: 0.0009622527926 | E139: 0.0008987716281 | F139: 0.0008379033717 | G139: 0.0007802707086 | H139: 0.0007225306458 | I139: 0.0006656544156 | J139: 0.0006102569679 | K139: 0.0005572308047 | L139: 0.0005074233854 | M139: 0.0004608410082 | N139: =IF($B139="","",VLOOKUP($B139,_tbl!$A:$E,N$2,0)) -> Male | O139: =IF($B139="","",VLOOKUP($B139,_tbl!$A:$E,O$2,0)) -> Central | P139: =IF($B139="","",VLOOKUP($B139,_tbl!$A:$E,P$2,0)) -> Rural | Q139: =IF($B139="","",VLOOKUP($B139,_tbl!$A:$E,Q$2,0)) -> Infectious | S139: 0.0009622527926 | T139: 0.0004608410082
B140: all_m_Central Rural infectious.csv | C140: 80-84 | D140: 0.00215282201 | E140: 0.002003758437 | F140: 0.001873743493 | G140: 0.001747233732 | H140: 0.001633748971 | I140: 0.001523005503 | J140: 0.001415627112 | K140: 0.001309548311 | L140: 0.001207754543 | M140: 0.001111950606 | N140: =IF($B140="","",VLOOKUP($B140,_tbl!$A:$E,N$2,0)) -> Male | O140: =IF($B140="","",VLOOKUP($B140,_tbl!$A:$E,O$2,0)) -> Central | P140: =IF($B140="","",VLOOKUP($B140,_tbl!$A:$E,P$2,0)) -> Rural | Q140: =IF($B140="","",VLOOKUP($B140,_tbl!$A:$E,Q$2,0)) -> Infectious | S140: 0.00215282201 | T140: 0.001111950606
B141: all_m_Central Rural infectious.csv | C141: 85+ | D141: 0.004821101912 | E141: 0.004630746282 | F141: 0.004470694443 | G141: 0.004300200329 | H141: 0.004111411908 | I141: 0.003889582809 | J141: 0.003642089304 | K141: 0.003383608478 | L141: 0.003141823856 | M141: 0.002938045104 | N141: =IF($B141="","",VLOOKUP($B141,_tbl!$A:$E,N$2,0)) -> Male | O141: =IF($B141="","",VLOOKUP($B141,_tbl!$A:$E,O$2,0)) -> Central | P141: =IF($B141="","",VLOOKUP($B141,_tbl!$A:$E,P$2,0)) -> Rural | Q141: =IF($B141="","",VLOOKUP($B141,_tbl!$A:$E,Q$2,0)) -> Infectious | S141: 0.004821101912 | T141: 0.002938045104
N142: =IF($B142="","",VLOOKUP($B142,_tbl!$A:$E,N$2,0)) ->  | O142: =IF($B142="","",VLOOKUP($B142,_tbl!$A:$E,O$2,0)) ->  | P142: =IF($B142="","",VLOOKUP($B142,_tbl!$A:$E,P$2,0)) ->  | Q142: =IF($B142="","",VLOOKUP($B142,_tbl!$A:$E,Q$2,0)) -> 
D143: 2020 | E143: 2021 | F143: 2022 | G143: 2023 | H143: 2024 | I143: 2025 | J143: 2026 | K143: 2027 | L143: 2028 | M143: 2029 | N143: =IF($B143="","",VLOOKUP($B143,_tbl!$A:$E,N$2,0)) ->  | O143: =IF($B143="","",VLOOKUP($B143,_tbl!$A:$E,O$2,0)) ->  | P143: =IF($B143="","",VLOOKUP($B143,_tbl!$A:$E,P$2,0)) ->  | Q143: =IF($B143="","",VLOOKUP($B143,_tbl!$A:$E,Q$2,0)) -> 
B144: all_m_Central Rural mental.csv | C144: 1-4 | D144: 2.396975292e-05 | E144: 2.388557786e-05 | F144: 2.381910328e-05 | G144: 2.372557e-05 | H144: 2.366243988e-05 | I144: 2.360115972e-05 | J144: 2.352987845e-05 | K144: 2.34705855e-05 | L144: 2.340711632e-05 | M144: 2.33384825e-05 | N144: =IF($B144="","",VLOOKUP($B144,_tbl!$A:$E,N$2,0)) -> Male | O144: =IF($B144="","",VLOOKUP($B144,_tbl!$A:$E,O$2,0)) -> Central | P144: =IF($B144="","",VLOOKUP($B144,_tbl!$A:$E,P$2,0)) -> Rural | Q144: =IF($B144="","",VLOOKUP($B144,_tbl!$A:$E,Q$2,0)) -> Mental | S144: =MAX(D144:M144) -> 2.396975292e-05 | T144: =MIN(D144:M144) -> 2.33384825e-05
B145: all_m_Central Rural mental.csv | C145: 5-9 | D145: 1.544560929e-05 | E145: 1.540678106e-05 | F145: 1.53769033e-05 | G145: 1.533455354e-05 | H145: 1.530820375e-05 | I145: 1.528648357e-05 | J145: 1.526241025e-05 | K145: 1.524391231e-05 | L145: 1.522396706e-05 | M145: 1.519855211e-05 | N145: =IF($B145="","",VLOOKUP($B145,_tbl!$A:$E,N$2,0)) -> Male | O145: =IF($B145="","",VLOOKUP($B145,_tbl!$A:$E,O$2,0)) -> Central | P145: =IF($B145="","",VLOOKUP($B145,_tbl!$A:$E,P$2,0)) -> Rural | Q145: =IF($B145="","",VLOOKUP($B145,_tbl!$A:$E,Q$2,0)) -> Mental | S145: 1.544560929e-05 | T145: 1.519855211e-05
B146: all_m_Central Rural mental.csv | C146: 10-14 | D146: 1.710576176e-05 | E146: 1.705129544e-05 | F146: 1.702788503e-05 | G146: 1.69515412e-05 | H146: 1.696472357e-05 | I146: 1.70201464e-05 | J146: 1.710746176e-05 | K146: 1.720938203e-05 | L146: 1.730415431e-05 | M146: 1.737721747e-05 | N146: =IF($B146="","",VLOOKUP($B146,_tbl!$A:$E,N$2,0)) -> Male | O146: =IF($B146="","",VLOOKUP($B146,_tbl!$A:$E,O$2,0)) -> Central | P146: =IF($B146="","",VLOOKUP($B146,_tbl!$A:$E,P$2,0)) -> Rural | Q146: =IF($B146="","",VLOOKUP($B146,_tbl!$A:$E,Q$2,0)) -> Mental | S146: 1.737721747e-05 | T146: 1.69515412e-05
B147: all_m_Central Rural mental.csv | C147: 15-19 | D147: 1.845551137e-05 | E147: 1.839409883e-05 | F147: 1.830004217e-05 | G147: 1.820598656e-05 | H147: 1.815224977e-05 | I147: 1.813774196e-05 | J147: 1.814578828e-05 | K147: 1.816482368e-05 | L147: 1.81800159e-05 | M147: 1.818861804e-05 | N147: =IF($B147="","",VLOOKUP($B147,_tbl!$A:$E,N$2,0)) -> Male | O147: =IF($B147="","",VLOOKUP($B147,_tbl!$A:$E,O$2,0)) -> Central | P147: =IF($B147="","",VLOOKUP($B147,_tbl!$A:$E,P$2,0)) -> Rural | Q147: =IF($B147="","",VLOOKUP($B147,_tbl!$A:$E,Q$2,0)) -> Mental | S147: 1.845551137e-05 | T147: 1.813774196e-05
B148: all_m_Central Rural mental.csv | C148: 20-24 | D148: 1.993884913e-05 | E148: 1.983240382e-05 | F148: 1.960376491e-05 | G148: 1.941817482e-05 | H148: 1.926928017e-05 | I148: 1.918932199e-05 | J148: 1.91423246e-05 | K148: 1.911178434e-05 | L148: 1.907033568e-05 | M148: 1.901262909e-05 | N148: =IF($B148="","",VLOOKUP($B148,_tbl!$A:$E,N$2,0)) -> Male | O148: =IF($B148="","",VLOOKUP($B148,_tbl!$A:$E,O$2,0)) -> Central | P148: =IF($B148="","",VLOOKUP($B148,_tbl!$A:$E,P$2,0)) -> Rural | Q148: =IF($B148="","",VLOOKUP($B148,_tbl!$A:$E,Q$2,0)) -> Mental | S148: 1.993884913e-05 | T148: 1.901262909e-05
B149: all_m_Central Rural mental.csv | C149: 25-29 | D149: 2.134735572e-05 | E149: 2.133598866e-05 | F149: 2.12836523e-05 | G149: 2.125629989e-05 | H149: 2.1198888e-05 | I149: 2.113429593e-05 | J149: 2.105593784e-05 | K149: 2.097766439e-05 | L149: 2.089954296e-05 | M149: 2.082482203e-05 | N149: =IF($B149="","",VLOOKUP($B149,_tbl!$A:$E,N$2,0)) -> Male | O149: =IF($B149="","",VLOOKUP($B149,_tbl!$A:$E,O$2,0)) -> Central | P149: =IF($B149="","",VLOOKUP($B149,_tbl!$A:$E,P$2,0)) -> Rural | Q149: =IF($B149="","",VLOOKUP($B149,_tbl!$A:$E,Q$2,0)) -> Mental | S149: 2.134735572e-05 | T149: 2.082482203e-05
B150: all_m_Central Rural mental.csv | C150: 30-34 | D150: 2.385349161e-05 | E150: 2.38835932e-05 | F150: 2.391501287e-05 | G150: 2.395306844e-05 | H150: 2.395493776e-05 | I150: 2.39338218e-05 | J150: 2.389323155e-05 | K150: 2.384972528e-05 | L150: 2.380971658e-05 | M150: 2.377783495e-05 | N150: =IF($B150="","",VLOOKUP($B150,_tbl!$A:$E,N$2,0)) -> Male | O150: =IF($B150="","",VLOOKUP($B150,_tbl!$A:$E,O$2,0)) -> Central | P150: =IF($B150="","",VLOOKUP($B150,_tbl!$A:$E,P$2,0)) -> Rural | Q150: =IF($B150="","",VLOOKUP($B150,_tbl!$A:$E,Q$2,0)) -> Mental | S150: 2.395493776e-05 | T150: 2.377783495e-05
B151: all_m_Central Rural mental.csv | C151: 35-39 | D151: 2.629144291e-05 | E151: 2.626248855e-05 | F151: 2.619085165e-05 | G151: 2.614505191e-05 | H151: 2.609146567e-05 | I151: 2.605412417e-05 | J151: 2.601666133e-05 | K151: 2.59844309e-05 | L151: 2.594754043e-05 | M151: 2.590792313e-05 | N151: =IF($B151="","",VLOOKUP($B151,_tbl!$A:$E,N$2,0)) -> Male | O151: =IF($B151="","",VLOOKUP($B151,_tbl!$A:$E,O$2,0)) -> Central | P151: =IF($B151="","",VLOOKUP($B151,_tbl!$A:$E,P$2,0)) -> Rural | Q151: =IF($B151="","",VLOOKUP($B151,_tbl!$A:$E,Q$2,0)) -> Mental | S151: 2.629144291e-05 | T151: 2.590792313e-05
B152: all_m_Central Rural mental.csv | C152: 40-44 | D152: 2.797516493e-05 | E152: 2.769378456e-05 | F152: 2.743649034e-05 | G152: 2.71279525e-05 | H152: 2.6895826e-05 | I152: 2.666282368e-05 | J152: 2.648680341e-05 | K152: 2.629171916e-05 | L152: 2.610691361e-05 | M152: 2.588461294e-05 | N152: =IF($B152="","",VLOOKUP($B152,_tbl!$A:$E,N$2,0)) -> Male | O152: =IF($B152="","",VLOOKUP($B152,_tbl!$A:$E,O$2,0)) -> Central | P152: =IF($B152="","",VLOOKUP($B152,_tbl!$A:$E,P$2,0)) -> Rural | Q152: =IF($B152="","",VLOOKUP($B152,_tbl!$A:$E,Q$2,0)) -> Mental | S152: 2.797516493e-05 | T152: 2.588461294e-05
B153: all_m_Central Rural mental.csv | C153: 45-49 | D153: 3.356986363e-05 | E153: 3.367983863e-05 | F153: 3.37130366e-05 | G153: 3.379026183e-05 | H153: 3.388350659e-05 | I153: 3.400643477e-05 | J153: 3.414252582e-05 | K153: 3.427621328e-05 | L153: 3.44002933e-05 | M153: 3.45047036e-05 | N153: =IF($B153="","",VLOOKUP($B153,_tbl!$A:$E,N$2,0)) -> Male | O153: =IF($B153="","",VLOOKUP($B153,_tbl!$A:$E,O$2,0)) -> Central | P153: =IF($B153="","",VLOOKUP($B153,_tbl!$A:$E,P$2,0)) -> Rural | Q153: =IF($B153="","",VLOOKUP($B153,_tbl!$A:$E,Q$2,0)) -> Mental | S153: 3.45047036e-05 | T153: 3.356986363e-05
B154: all_m_Central Rural mental.csv | C154: 50-54 | D154: 4.04878557e-05 | E154: 4.05195458e-05 | F154: 4.049692292e-05 | G154: 4.050085735e-05 | H154: 4.050652644e-05 | I154: 4.052045913e-05 | J154: 4.054196196e-05 | K154: 4.05584555e-05 | L154: 4.057576248e-05 | M154: 4.058258595e-05 | N154: =IF($B154="","",VLOOKUP($B154,_tbl!$A:$E,N$2,0)) -> Male | O154: =IF($B154="","",VLOOKUP($B154,_tbl!$A:$E,O$2,0)) -> Central | P154: =IF($B154="","",VLOOKUP($B154,_tbl!$A:$E,P$2,0)) -> Rural | Q154: =IF($B154="","",VLOOKUP($B154,_tbl!$A:$E,Q$2,0)) -> Mental | S154: 4.058258595e-05 | T154: 4.04878557e-05
B155: all_m_Central Rural mental.csv | C155: 55-59 | D155: 5.259729022e-05 | E155: 5.259963856e-05 | F155: 5.254999054e-05 | G155: 5.251213972e-05 | H155: 5.245612953e-05 | I155: 5.240276488e-05 | J155: 5.23427989e-05 | K155: 5.228378982e-05 | L155: 5.222290575e-05 | M155: 5.216300706e-05 | N155: =IF($B155="","",VLOOKUP($B155,_tbl!$A:$E,N$2,0)) -> Male | O155: =IF($B155="","",VLOOKUP($B155,_tbl!$A:$E,O$2,0)) -> Central | P155: =IF($B155="","",VLOOKUP($B155,_tbl!$A:$E,P$2,0)) -> Rural | Q155: =IF($B155="","",VLOOKUP($B155,_tbl!$A:$E,Q$2,0)) -> Mental | S155: 5.259963856e-05 | T155: 5.216300706e-05
B156: all_m_Central Rural mental.csv | C156: 60-64 | D156: 7.440775446e-05 | E156: 7.43776971e-05 | F156: 7.430783266e-05 | G156: 7.423743467e-05 | H156: 7.414613743e-05 | I156: 7.405489156e-05 | J156: 7.395456245e-05 | K156: 7.385646842e-05 | L156: 7.375507827e-05 | M156: 7.3656538e-05 | N156: =IF($B156="","",VLOOKUP($B156,_tbl!$A:$E,N$2,0)) -> Male | O156: =IF($B156="","",VLOOKUP($B156,_tbl!$A:$E,O$2,0)) -> Central | P156: =IF($B156="","",VLOOKUP($B156,_tbl!$A:$E,P$2,0)) -> Rural | Q156: =IF($B156="","",VLOOKUP($B156,_tbl!$A:$E,Q$2,0)) -> Mental | S156: 7.440775446e-05 | T156: 7.3656538e-05
B157: all_m_Central Rural mental.csv | C157: 65-69 | D157: 0.0001166074588 | E157: 0.0001163743436 | F157: 0.0001161315344 | G157: 0.0001158602341 | H157: 0.0001155753707 | I157: 0.0001152793734 | J157: 0.0001149850851 | K157: 0.0001146903175 | L157: 0.0001144003417 | M157: 0.0001141100995 | N157: =IF($B157="","",VLOOKUP($B157,_tbl!$A:$E,N$2,0)) -> Male | O157: =IF($B157="","",VLOOKUP($B157,_tbl!$A:$E,O$2,0)) -> Central | P157: =IF($B157="","",VLOOKUP($B157,_tbl!$A:$E,P$2,0)) -> Rural | Q157: =IF($B157="","",VLOOKUP($B157,_tbl!$A:$E,Q$2,0)) -> Mental | S157: 0.0001166074588 | T157: 0.0001141100995
B158: all_m_Central Rural mental.csv | C158: 70-74 | D158: 0.0002144393431 | E158: 0.0002137325022 | F158: 0.0002130211679 | G158: 0.0002122885358 | H158: 0.0002115269038 | I158: 0.0002107388759 | J158: 0.0002099538686 | K158: 0.0002091674993 | L158: 0.0002084061121 | M158: 0.0002076568798 | N158: =IF($B158="","",VLOOKUP($B158,_tbl!$A:$E,N$2,0)) -> Male | O158: =IF($B158="","",VLOOKUP($B158,_tbl!$A:$E,O$2,0)) -> Central | P158: =IF($B158="","",VLOOKUP($B158,_tbl!$A:$E,P$2,0)) -> Rural | Q158: =IF($B158="","",VLOOKUP($B158,_tbl!$A:$E,Q$2,0)) -> Mental | S158: 0.0002144393431 | T158: 0.0002076568798
B159: all_m_Central Rural mental.csv | C159: 75-79 | D159: 0.0004672960988 | E159: 0.0004671463166 | F159: 0.0004666171189 | G159: 0.0004663634552 | H159: 0.0004660076141 | I159: 0.0004657790728 | J159: 0.0004654822269 | K159: 0.0004651910573 | L159: 0.0004648176069 | M159: 0.0004644069271 | N159: =IF($B159="","",VLOOKUP($B159,_tbl!$A:$E,N$2,0)) -> Male | O159: =IF($B159="","",VLOOKUP($B159,_tbl!$A:$E,O$2,0)) -> Central | P159: =IF($B159="","",VLOOKUP($B159,_tbl!$A:$E,P$2,0)) -> Rural | Q159: =IF($B159="","",VLOOKUP($B159,_tbl!$A:$E,Q$2,0)) -> Mental | S159: 0.0004672960988 | T159: 0.0004644069271
B160: all_m_Central Rural mental.csv | C160: 80-84 | D160: 0.0009631090324 | E160: 0.0009304113967 | F160: 0.0009055503923 | G160: 0.0008823492103 | H160: 0.000859012388 | I160: 0.0008343717932 | J160: 0.0008088966637 | K160: 0.0007833251701 | L160: 0.0007586679695 | M160: 0.0007355461792 | N160: =IF($B160="","",VLOOKUP($B160,_tbl!$A:$E,N$2,0)) -> Male | O160: =IF($B160="","",VLOOKUP($B160,_tbl!$A:$E,O$2,0)) -> Central | P160: =IF($B160="","",VLOOKUP($B160,_tbl!$A:$E,P$2,0)) -> Rural | Q160: =IF($B160="","",VLOOKUP($B160,_tbl!$A:$E,Q$2,0)) -> Mental | S160: 0.0009631090324 | T160: 0.0007355461792
B161: all_m_Central Rural mental.csv | C161: 85+ | D161: 0.002418231329 | E161: 0.002393663359 | F161: 0.002417297115 | G161: 0.002430217291 | H161: 0.002416713952 | I161: 0.002366383768 | J161: 0.002290485691 | K161: 0.002203075099 | L161: 0.002128106921 | M161: 0.002080913265 | N161: =IF($B161="","",VLOOKUP($B161,_tbl!$A:$E,N$2,0)) -> Male | O161: =IF($B161="","",VLOOKUP($B161,_tbl!$A:$E,O$2,0)) -> Central | P161: =IF($B161="","",VLOOKUP($B161,_tbl!$A:$E,P$2,0)) -> Rural | Q161: =IF($B161="","",VLOOKUP($B161,_tbl!$A:$E,Q$2,0)) -> Mental | S161: 0.002430217291 | T161: 0.002080913265
N162: =IF($B162="","",VLOOKUP($B162,_tbl!$A:$E,N$2,0)) ->  | O162: =IF($B162="","",VLOOKUP($B162,_tbl!$A:$E,O$2,0)) ->  | P162: =IF($B162="","",VLOOKUP($B162,_tbl!$A:$E,P$2,0)) ->  | Q162: =IF($B162="","",VLOOKUP($B162,_tbl!$A:$E,Q$2,0)) -> 
D163: 2020 | E163: 2021 | F163: 2022 | G163: 2023 | H163: 2024 | I163: 2025 | J163: 2026 | K163: 2027 | L163: 2028 | M163: 2029 | N163: =IF($B163="","",VLOOKUP($B163,_tbl!$A:$E,N$2,0)) ->  | O163: =IF($B163="","",VLOOKUP($B163,_tbl!$A:$E,O$2,0)) ->  | P163: =IF($B163="","",VLOOKUP($B163,_tbl!$A:$E,P$2,0)) ->  | Q163: =IF($B163="","",VLOOKUP($B163,_tbl!$A:$E,Q$2,0)) -> 
B164: all_m_Central Rural other.csv | C164: 1-4 | D164: 6.136233571e-05 | E164: 6.014761134e-05 | F164: 5.976816893e-05 | G164: 5.869193775e-05 | H164: 5.813142969e-05 | I164: 5.774528442e-05 | J164: 5.717474026e-05 | K164: 5.681460273e-05 | L164: 5.640332625e-05 | M164: 5.587072904e-05 | N164: =IF($B164="","",VLOOKUP($B164,_tbl!$A:$E,N$2,0)) -> Male | O164: =IF($B164="","",VLOOKUP($B164,_tbl!$A:$E,O$2,0)) -> Central | P164: =IF($B164="","",VLOOKUP($B164,_tbl!$A:$E,P$2,0)) -> Rural | Q164: =IF($B164="","",VLOOKUP($B164,_tbl!$A:$E,Q$2,0)) -> Other | S164: =MAX(D164:M164) -> 6.136233571e-05 | T164: =MIN(D164:M164) -> 5.587072904e-05
B165: all_m_Central Rural other.csv | C165: 5-9 | D165: 2.096853834e-05 | E165: 2.081133671e-05 | F165: 2.076844329e-05 | G165: 2.063668532e-05 | H165: 2.056028912e-05 | I165: 2.047910391e-05 | J165: 2.037868914e-05 | K165: 2.029298867e-05 | L165: 2.020486794e-05 | M165: 2.010482644e-05 | N165: =IF($B165="","",VLOOKUP($B165,_tbl!$A:$E,N$2,0)) -> Male | O165: =IF($B165="","",VLOOKUP($B165,_tbl!$A:$E,O$2,0)) -> Central | P165: =IF($B165="","",VLOOKUP($B165,_tbl!$A:$E,P$2,0)) -> Rural | Q165: =IF($B165="","",VLOOKUP($B165,_tbl!$A:$E,Q$2,0)) -> Other | S165: 2.096853834e-05 | T165: 2.010482644e-05
B166: all_m_Central Rural other.csv | C166: 10-14 | D166: 1.848945145e-05 | E166: 1.833033881e-05 | F166: 1.813725088e-05 | G166: 1.792709694e-05 | H166: 1.782391128e-05 | I166: 1.78064195e-05 | J166: 1.783186104e-05 | K166: 1.788727265e-05 | L166: 1.793270082e-05 | M166: 1.794866069e-05 | N166: =IF($B166="","",VLOOKUP($B166,_tbl!$A:$E,N$2,0)) -> Male | O166: =IF($B166="","",VLOOKUP($B166,_tbl!$A:$E,O$2,0)) -> Central | P166: =IF($B166="","",VLOOKUP($B166,_tbl!$A:$E,P$2,0)) -> Rural | Q166: =IF($B166="","",VLOOKUP($B166,_tbl!$A:$E,Q$2,0)) -> Other | S166: 1.848945145e-05 | T166: 1.78064195e-05
B167: all_m_Central Rural other.csv | C167: 15-19 | D167: 2.255357922e-05 | E167: 2.242406343e-05 | F167: 2.225176462e-05 | G167: 2.205343597e-05 | H167: 2.198447328e-05 | I167: 2.202109175e-05 | J167: 2.211983901e-05 | K167: 2.224616934e-05 | L167: 2.2359904e-05 | M167: 2.243741923e-05 | N167: =IF($B167="","",VLOOKUP($B167,_tbl!$A:$E,N$2,0)) -> Male | O167: =IF($B167="","",VLOOKUP($B167,_tbl!$A:$E,O$2,0)) -> Central | P167: =IF($B167="","",VLOOKUP($B167,_tbl!$A:$E,P$2,0)) -> Rural | Q167: =IF($B167="","",VLOOKUP($B167,_tbl!$A:$E,Q$2,0)) -> Other | S167: 2.255357922e-05 | T167: 2.198447328e-05
B168: all_m_Central Rural other.csv | C168: 20-24 | D168: 3.114483843e-05 | E168: 3.049175824e-05 | F168: 2.943319078e-05 | G168: 2.842872411e-05 | H168: 2.785372419e-05 | I168: 2.772301169e-05 | J168: 2.78921778e-05 | K168: 2.815617244e-05 | L168: 2.836783766e-05 | M168: 2.845488794e-05 | N168: =IF($B168="","",VLOOKUP($B168,_tbl!$A:$E,N$2,0)) -> Male | O168: =IF($B168="","",VLOOKUP($B168,_tbl!$A:$E,O$2,0)) -> Central | P168: =IF($B168="","",VLOOKUP($B168,_tbl!$A:$E,P$2,0)) -> Rural | Q168: =IF($B168="","",VLOOKUP($B168,_tbl!$A:$E,Q$2,0)) -> Other | S168: 3.114483843e-05 | T168: 2.772301169e-05
B169: all_m_Central Rural other.csv | C169: 25-29 | D169: 4.353311579e-05 | E169: 4.291528198e-05 | F169: 4.198764121e-05 | G169: 4.110171971e-05 | H169: 4.059724474e-05 | I169: 4.046430278e-05 | J169: 4.060158394e-05 | K169: 4.081534778e-05 | L169: 4.099063942e-05 | M169: 4.105571164e-05 | N169: =IF($B169="","",VLOOKUP($B169,_tbl!$A:$E,N$2,0)) -> Male | O169: =IF($B169="","",VLOOKUP($B169,_tbl!$A:$E,O$2,0)) -> Central | P169: =IF($B169="","",VLOOKUP($B169,_tbl!$A:$E,P$2,0)) -> Rural | Q169: =IF($B169="","",VLOOKUP($B169,_tbl!$A:$E,Q$2,0)) -> Other | S169: 4.353311579e-05 | T169: 4.046430278e-05
B170: all_m_Central Rural other.csv | C170: 30-34 | D170: 6.494157456e-05 | E170: 6.406744765e-05 | F170: 6.297798327e-05 | G170: 6.190336739e-05 | H170: 6.123588808e-05 | I170: 6.092131923e-05 | J170: 6.086712346e-05 | K170: 6.087816339e-05 | L170: 6.08381121e-05 | M170: 6.068178576e-05 | N170: =IF($B170="","",VLOOKUP($B170,_tbl!$A:$E,N$2,0)) -> Male | O170: =IF($B170="","",VLOOKUP($B170,_tbl!$A:$E,O$2,0)) -> Central | P170: =IF($B170="","",VLOOKUP($B170,_tbl!$A:$E,P$2,0)) -> Rural | Q170: =IF($B170="","",VLOOKUP($B170,_tbl!$A:$E,Q$2,0)) -> Other | S170: 6.494157456e-05 | T170: 6.068178576e-05
B171: all_m_Central Rural other.csv | C171: 35-39 | D171: 8.045574027e-05 | E171: 7.965894451e-05 | F171: 7.89423042e-05 | G171: 7.802384129e-05 | H171: 7.739596155e-05 | I171: 7.675600883e-05 | J171: 7.631094412e-05 | K171: 7.579276671e-05 | L171: 7.532597387e-05 | M171: 7.475332906e-05 | N171: =IF($B171="","",VLOOKUP($B171,_tbl!$A:$E,N$2,0)) -> Male | O171: =IF($B171="","",VLOOKUP($B171,_tbl!$A:$E,O$2,0)) -> Central | P171: =IF($B171="","",VLOOKUP($B171,_tbl!$A:$E,P$2,0)) -> Rural | Q171: =IF($B171="","",VLOOKUP($B171,_tbl!$A:$E,Q$2,0)) -> Other | S171: 8.045574027e-05 | T171: 7.475332906e-05
B172: all_m_Central Rural other.csv | C172: 40-44 | D172: 0.0001057578303 | E172: 0.0001059630719 | F172: 0.0001059032472 | G172: 0.0001058851567 | H172: 0.0001057884055 | I172: 0.0001056442603 | J172: 0.0001054624241 | K172: 0.000105247204 | L172: 0.0001050484126 | M172: 0.0001048581285 | N172: =IF($B172="","",VLOOKUP($B172,_tbl!$A:$E,N$2,0)) -> Male | O172: =IF($B172="","",VLOOKUP($B172,_tbl!$A:$E,O$2,0)) -> Central | P172: =IF($B172="","",VLOOKUP($B172,_tbl!$A:$E,P$2,0)) -> Rural | Q172: =IF($B172="","",VLOOKUP($B172,_tbl!$A:$E,Q$2,0)) -> Other | S172: 0.0001059630719 | T172: 0.0001048581285
B173: all_m_Central Rural other.csv | C173: 45-49 | D173: 0.0001518375524 | E173: 0.0001521194315 | F173: 0.0001518363592 | G173: 0.0001517832033 | H173: 0.0001515419556 | I173: 0.0001514470403 | J173: 0.0001512558626 | K173: 0.0001511264946 | L173: 0.0001509122305 | M173: 0.0001507116463 | N173: =IF($B173="","",VLOOKUP($B173,_tbl!$A:$E,N$2,0)) -> Male | O173: =IF($B173="","",VLOOKUP($B173,_tbl!$A:$E,O$2,0)) -> Central | P173: =IF($B173="","",VLOOKUP($B173,_tbl!$A:$E,P$2,0)) -> Rural | Q173: =IF($B173="","",VLOOKUP($B173,_tbl!$A:$E,Q$2,0)) -> Other | S173: 0.0001521194315 | T173: 0.0001507116463
B174: all_m_Central Rural other.csv | C174: 50-54 | D174: 0.0002336638218 | E174: 0.0002340602462 | F174: 0.0002336095719 | G174: 0.0002334193547 | H174: 0.0002329258453 | I174: 0.0002325791849 | J174: 0.0002320921247 | K174: 0.0002316770784 | L174: 0.0002311639119 | M174: 0.0002306764511 | N174: =IF($B174="","",VLOOKUP($B174,_tbl!$A:$E,N$2,0)) -> Male | O174: =IF($B174="","",VLOOKUP($B174,_tbl!$A:$E,O$2,0)) -> Central | P174: =IF($B174="","",VLOOKUP($B174,_tbl!$A:$E,P$2,0)) -> Rural | Q174: =IF($B174="","",VLOOKUP($B174,_tbl!$A:$E,Q$2,0)) -> Other | S174: 0.0002340602462 | T174: 0.0002306764511
B175: all_m_Central Rural other.csv | C175: 55-59 | D175: 0.0003540814529 | E175: 0.0003539189416 | F175: 0.0003530118451 | G175: 0.0003524799404 | H175: 0.0003516538798 | I175: 0.0003509710161 | J175: 0.0003501584346 | K175: 0.0003494257393 | L175: 0.0003486387169 | M175: 0.00034790822 | N175: =IF($B175="","",VLOOKUP($B175,_tbl!$A:$E,N$2,0)) -> Male | O175: =IF($B175="","",VLOOKUP($B175,_tbl!$A:$E,O$2,0)) -> Central | P175: =IF($B175="","",VLOOKUP($B175,_tbl!$A:$E,P$2,0)) -> Rural | Q175: =IF($B175="","",VLOOKUP($B175,_tbl!$A:$E,Q$2,0)) -> Other | S175: 0.0003540814529 | T175: 0.00034790822
B176: all_m_Central Rural other.csv | C176: 60-64 | D176: 0.0005285548977 | E176: 0.0005288099527 | F176: 0.0005284124104 | G176: 0.0005281442622 | H176: 0.000527590444 | I176: 0.0005271330432 | J176: 0.0005265762072 | K176: 0.0005260849981 | L176: 0.0005255282472 | M176: 0.0005249907997 | N176: =IF($B176="","",VLOOKUP($B176,_tbl!$A:$E,N$2,0)) -> Male | O176: =IF($B176="","",VLOOKUP($B176,_tbl!$A:$E,O$2,0)) -> Central | P176: =IF($B176="","",VLOOKUP($B176,_tbl!$A:$E,P$2,0)) -> Rural | Q176: =IF($B176="","",VLOOKUP($B176,_tbl!$A:$E,Q$2,0)) -> Other | S176: 0.0005288099527 | T176: 0.0005249907997
B177: all_m_Central Rural other.csv | C177: 65-69 | D177: 0.0007566972855 | E177: 0.0007564311596 | F177: 0.0007550593287 | G177: 0.0007537083993 | H177: 0.0007520729085 | I177: 0.0007506746474 | J177: 0.0007492369549 | K177: 0.0007479104743 | L177: 0.000746443994 | M177: 0.0007449214627 | N177: =IF($B177="","",VLOOKUP($B177,_tbl!$A:$E,N$2,0)) -> Male | O177: =IF($B177="","",VLOOKUP($B177,_tbl!$A:$E,O$2,0)) -> Central | P177: =IF($B177="","",VLOOKUP($B177,_tbl!$A:$E,P$2,0)) -> Rural | Q177: =IF($B177="","",VLOOKUP($B177,_tbl!$A:$E,Q$2,0)) -> Other | S177: 0.0007566972855 | T177: 0.0007449214627
B178: all_m_Central Rural other.csv | C178: 70-74 | D178: 0.00120502017 | E178: 0.001203348187 | F178: 0.001199891618 | G178: 0.001196625681 | H178: 0.001192748632 | I178: 0.001188883493 | J178: 0.001184859686 | K178: 0.001180826338 | L178: 0.001176771805 | M178: 0.001172710634 | N178: =IF($B178="","",VLOOKUP($B178,_tbl!$A:$E,N$2,0)) -> Male | O178: =IF($B178="","",VLOOKUP($B178,_tbl!$A:$E,O$2,0)) -> Central | P178: =IF($B178="","",VLOOKUP($B178,_tbl!$A:$E,P$2,0)) -> Rural | Q178: =IF($B178="","",VLOOKUP($B178,_tbl!$A:$E,Q$2,0)) -> Other | S178: 0.00120502017 | T178: 0.001172710634
B179: all_m_Central Rural other.csv | C179: 75-79 | D179: 0.00228444124 | E179: 0.002288553526 | F179: 0.002292694486 | G179: 0.00229552787 | H179: 0.002294846597 | I179: 0.002291299353 | J179: 0.002286359862 | K179: 0.002281032015 | L179: 0.002276732797 | M179: 0.002273532609 | N179: =IF($B179="","",VLOOKUP($B179,_tbl!$A:$E,N$2,0)) -> Male | O179: =IF($B179="","",VLOOKUP($B179,_tbl!$A:$E,O$2,0)) -> Central | P179: =IF($B179="","",VLOOKUP($B179,_tbl!$A:$E,P$2,0)) -> Rural | Q179: =IF($B179="","",VLOOKUP($B179,_tbl!$A:$E,Q$2,0)) -> Other | S179: 0.00229552787 | T179: 0.002273532609
B180: all_m_Central Rural other.csv | C180: 80-84 | D180: 0.004698729276 | E180: 0.004611679649 | F180: 0.004542285653 | G180: 0.004479451496 | H180: 0.004432573232 | I180: 0.004392218095 | J180: 0.004356540192 | K180: 0.004320510204 | L180: 0.004283239939 | M180: 0.004243975475 | N180: =IF($B180="","",VLOOKUP($B180,_tbl!$A:$E,N$2,0)) -> Male | O180: =IF($B180="","",VLOOKUP($B180,_tbl!$A:$E,O$2,0)) -> Central | P180: =IF($B180="","",VLOOKUP($B180,_tbl!$A:$E,P$2,0)) -> Rural | Q180: =IF($B180="","",VLOOKUP($B180,_tbl!$A:$E,Q$2,0)) -> Other | S180: 0.004698729276 | T180: 0.004243975475
B181: all_m_Central Rural other.csv | C181: 85+ | D181: 0.009715240345 | E181: 0.009548746612 | F181: 0.009580672016 | G181: 0.009568267111 | H181: 0.009474286173 | I181: 0.009248001106 | J181: 0.008933520687 | K181: 0.008575319839 | L181: 0.008261834002 | M181: 0.008046832016 | N181: =IF($B181="","",VLOOKUP($B181,_tbl!$A:$E,N$2,0)) -> Male | O181: =IF($B181="","",VLOOKUP($B181,_tbl!$A:$E,O$2,0)) -> Central | P181: =IF($B181="","",VLOOKUP($B181,_tbl!$A:$E,P$2,0)) -> Rural | Q181: =IF($B181="","",VLOOKUP($B181,_tbl!$A:$E,Q$2,0)) -> Other | S181: 0.009715240345 | T181: 0.008046832016
N182: =IF($B182="","",VLOOKUP($B182,_tbl!$A:$E,N$2,0)) ->  | O182: =IF($B182="","",VLOOKUP($B182,_tbl!$A:$E,O$2,0)) ->  | P182: =IF($B182="","",VLOOKUP($B182,_tbl!$A:$E,P$2,0)) ->  | Q182: =IF($B182="","",VLOOKUP($B182,_tbl!$A:$E,Q$2,0)) -> 
D183: 2020 | E183: 2021 | F183: 2022 | G183: 2023 | H183: 2024 | I183: 2025 | J183: 2026 | K183: 2027 | L183: 2028 | M183: 2029 | N183: =IF($B183="","",VLOOKUP($B183,_tbl!$A:$E,N$2,0)) ->  | O183: =IF($B183="","",VLOOKUP($B183,_tbl!$A:$E,O$2,0)) ->  | P183: =IF($B183="","",VLOOKUP($B183,_tbl!$A:$E,P$2,0)) ->  | Q183: =IF($B183="","",VLOOKUP($B183,_tbl!$A:$E,Q$2,0)) -> 
B184: all_m_Central Rural respiratory.csv | C184: 1-4 | D184: 2.205281818e-06 | E184: 2.058714699e-06 | F184: 1.81477537e-06 | G184: 1.658007985e-06 | H184: 1.483245873e-06 | I184: 1.337813556e-06 | J184: 1.20410319e-06 | K184: 1.082812328e-06 | L184: 9.666059532e-07 | M184: 8.618893359e-07 | N184: =IF($B184="","",VLOOKUP($B184,_tbl!$A:$E,N$2,0)) -> Male | O184: =IF($B184="","",VLOOKUP($B184,_tbl!$A:$E,O$2,0)) -> Central | P184: =IF($B184="","",VLOOKUP($B184,_tbl!$A:$E,P$2,0)) -> Rural | Q184: =IF($B184="","",VLOOKUP($B184,_tbl!$A:$E,Q$2,0)) -> Respiratory | S184: =MAX(D184:M184) -> 2.205281818e-06 | T184: =MIN(D184:M184) -> 8.618893359e-07
B185: all_m_Central Rural respiratory.csv | C185: 5-9 | D185: 1.798448938e-06 | E185: 1.724243079e-06 | F185: 1.595999079e-06 | G185: 1.506723303e-06 | H185: 1.405345473e-06 | I185: 1.317900353e-06 | J185: 1.230951662e-06 | K185: 1.151094678e-06 | L185: 1.074734661e-06 | M185: 1.00387482e-06 | N185: =IF($B185="","",VLOOKUP($B185,_tbl!$A:$E,N$2,0)) -> Male | O185: =IF($B185="","",VLOOKUP($B185,_tbl!$A:$E,O$2,0)) -> Central | P185: =IF($B185="","",VLOOKUP($B185,_tbl!$A:$E,P$2,0)) -> Rural | Q185: =IF($B185="","",VLOOKUP($B185,_tbl!$A:$E,Q$2,0)) -> Respiratory | S185: 1.798448938e-06 | T185: 1.00387482e-06
B186: all_m_Central Rural respiratory.csv | C186: 10-14 | D186: 2.012936449e-06 | E186: 1.960137541e-06 | F186: 1.856408505e-06 | G186: 1.773842321e-06 | H186: 1.698859668e-06 | I186: 1.643681434e-06 | J186: 1.594938996e-06 | K186: 1.554442356e-06 | L186: 1.515246496e-06 | M186: 1.475859058e-06 | N186: =IF($B186="","",VLOOKUP($B186,_tbl!$A:$E,N$2,0)) -> Male | O186: =IF($B186="","",VLOOKUP($B186,_tbl!$A:$E,O$2,0)) -> Central | P186: =IF($B186="","",VLOOKUP($B186,_tbl!$A:$E,P$2,0)) -> Rural | Q186: =IF($B186="","",VLOOKUP($B186,_tbl!$A:$E,Q$2,0)) -> Respiratory | S186: 2.012936449e-06 | T186: 1.475859058e-06
B187: all_m_Central Rural respiratory.csv | C187: 15-19 | D187: 2.561156898e-06 | E187: 2.485498513e-06 | F187: 2.356626154e-06 | G187: 2.258267182e-06 | H187: 2.160471968e-06 | I187: 2.084745142e-06 | J187: 2.013039742e-06 | K187: 1.949160916e-06 | L187: 1.884908513e-06 | M187: 1.818942981e-06 | N187: =IF($B187="","",VLOOKUP($B187,_tbl!$A:$E,N$2,0)) -> Male | O187: =IF($B187="","",VLOOKUP($B187,_tbl!$A:$E,O$2,0)) -> Central | P187: =IF($B187="","",VLOOKUP($B187,_tbl!$A:$E,P$2,0)) -> Rural | Q187: =IF($B187="","",VLOOKUP($B187,_tbl!$A:$E,Q$2,0)) -> Respiratory | S187: 2.561156898e-06 | T187: 1.818942981e-06
B188: all_m_Central Rural respiratory.csv | C188: 20-24 | D188: 3.751903045e-06 | E188: 3.615620883e-06 | F188: 3.396675284e-06 | G188: 3.21436783e-06 | H188: 3.054067504e-06 | I188: 2.939360759e-06 | J188: 2.847405993e-06 | K188: 2.767384451e-06 | L188: 2.68438016e-06 | M188: 2.593407818e-06 | N188: =IF($B188="","",VLOOKUP($B188,_tbl!$A:$E,N$2,0)) -> Male | O188: =IF($B188="","",VLOOKUP($B188,_tbl!$A:$E,O$2,0)) -> Central | P188: =IF($B188="","",VLOOKUP($B188,_tbl!$A:$E,P$2,0)) -> Rural | Q188: =IF($B188="","",VLOOKUP($B188,_tbl!$A:$E,Q$2,0)) -> Respiratory | S188: 3.751903045e-06 | T188: 2.593407818e-06
B189: all_m_Central Rural respiratory.csv | C189: 25-29 | D189: 5.720229422e-06 | E189: 5.598569208e-06 | F189: 5.405895994e-06 | G189: 5.254381446e-06 | H189: 5.095919006e-06 | I189: 4.959359713e-06 | J189: 4.827455331e-06 | K189: 4.703785538e-06 | L189: 4.583078575e-06 | M189: 4.464169887e-06 | N189: =IF($B189="","",VLOOKUP($B189,_tbl!$A:$E,N$2,0)) -> Male | O189: =IF($B189="","",VLOOKUP($B189,_tbl!$A:$E,O$2,0)) -> Central | P189: =IF($B189="","",VLOOKUP($B189,_tbl!$A:$E,P$2,0)) -> Rural | Q189: =IF($B189="","",VLOOKUP($B189,_tbl!$A:$E,Q$2,0)) -> Respiratory | S189: 5.720229422e-06 | T189: 4.464169887e-06
B190: all_m_Central Rural respiratory.csv | C190: 30-34 | D190: 1.018967028e-05 | E190: 9.926142448e-06 | F190: 9.449889485e-06 | G190: 9.097025038e-06 | H190: 8.713367462e-06 | I190: 8.392184397e-06 | J190: 8.075946532e-06 | K190: 7.782480655e-06 | L190: 7.48946649e-06 | M190: 7.201673707e-06 | N190: =IF($B190="","",VLOOKUP($B190,_tbl!$A:$E,N$2,0)) -> Male | O190: =IF($B190="","",VLOOKUP($B190,_tbl!$A:$E,O$2,0)) -> Central | P190: =IF($B190="","",VLOOKUP($B190,_tbl!$A:$E,P$2,0)) -> Rural | Q190: =IF($B190="","",VLOOKUP($B190,_tbl!$A:$E,Q$2,0)) -> Respiratory | S190: 1.018967028e-05 | T190: 7.201673707e-06
B191: all_m_Central Rural respiratory.csv | C191: 35-39 | D191: 1.744352981e-05 | E191: 1.689639015e-05 | F191: 1.598952432e-05 | G191: 1.529861063e-05 | H191: 1.454954336e-05 | I191: 1.390505593e-05 | J191: 1.326692057e-05 | K191: 1.266661643e-05 | L191: 1.20656579e-05 | M191: 1.147095587e-05 | N191: =IF($B191="","",VLOOKUP($B191,_tbl!$A:$E,N$2,0)) -> Male | O191: =IF($B191="","",VLOOKUP($B191,_tbl!$A:$E,O$2,0)) -> Central | P191: =IF($B191="","",VLOOKUP($B191,_tbl!$A:$E,P$2,0)) -> Rural | Q191: =IF($B191="","",VLOOKUP($B191,_tbl!$A:$E,Q$2,0)) -> Respiratory | S191: 1.744352981e-05 | T191: 1.147095587e-05
B192: all_m_Central Rural respiratory.csv | C192: 40-44 | D192: 3.146486325e-05 | E192: 3.03660452e-05 | F192: 2.867694061e-05 | G192: 2.737482181e-05 | H192: 2.600947989e-05 | I192: 2.483723064e-05 | J192: 2.371127109e-05 | K192: 2.265635716e-05 | L192: 2.16132477e-05 | M192: 2.057157986e-05 | N192: =IF($B192="","",VLOOKUP($B192,_tbl!$A:$E,N$2,0)) -> Male | O192: =IF($B192="","",VLOOKUP($B192,_tbl!$A:$E,O$2,0)) -> Central | P192: =IF($B192="","",VLOOKUP($B192,_tbl!$A:$E,P$2,0)) -> Rural | Q192: =IF($B192="","",VLOOKUP($B192,_tbl!$A:$E,Q$2,0)) -> Respiratory | S192: 3.146486325e-05 | T192: 2.057157986e-05
B193: all_m_Central Rural respiratory.csv | C193: 45-49 | D193: 5.648134682e-05 | E193: 5.413107125e-05 | F193: 5.014124423e-05 | G193: 4.698519316e-05 | H193: 4.360550403e-05 | I193: 4.056923373e-05 | J193: 3.759437162e-05 | K193: 3.471954715e-05 | L193: 3.18899581e-05 | M193: 2.905987485e-05 | N193: =IF($B193="","",VLOOKUP($B193,_tbl!$A:$E,N$2,0)) -> Male | O193: =IF($B193="","",VLOOKUP($B193,_tbl!$A:$E,O$2,0)) -> Central | P193: =IF($B193="","",VLOOKUP($B193,_tbl!$A:$E,P$2,0)) -> Rural | Q193: =IF($B193="","",VLOOKUP($B193,_tbl!$A:$E,Q$2,0)) -> Respiratory | S193: 5.648134682e-05 | T193: 2.905987485e-05
B194: all_m_Central Rural respiratory.csv | C194: 50-54 | D194: 0.0001214890653 | E194: 0.0001169459637 | F194: 0.0001089350152 | G194: 0.0001026697688 | H194: 9.577059432e-05 | I194: 8.950220296e-05 | J194: 8.328196702e-05 | K194: 7.728298816e-05 | L194: 7.141347994e-05 | M194: 6.561326454e-05 | N194: =IF($B194="","",VLOOKUP($B194,_tbl!$A:$E,N$2,0)) -> Male | O194: =IF($B194="","",VLOOKUP($B194,_tbl!$A:$E,O$2,0)) -> Central | P194: =IF($B194="","",VLOOKUP($B194,_tbl!$A:$E,P$2,0)) -> Rural | Q194: =IF($B194="","",VLOOKUP($B194,_tbl!$A:$E,Q$2,0)) -> Respiratory | S194: 0.0001214890653 | T194: 6.561326454e-05
B195: all_m_Central Rural respiratory.csv | C195: 55-59 | D195: 0.0002410943731 | E195: 0.0002303205579 | F195: 0.0002120921412 | G195: 0.0001988460015 | H195: 0.0001838632949 | I195: 0.0001706559306 | J195: 0.0001572658414 | K195: 0.0001446896825 | L195: 0.0001323775845 | M195: 0.0001206013283 | N195: =IF($B195="","",VLOOKUP($B195,_tbl!$A:$E,N$2,0)) -> Male | O195: =IF($B195="","",VLOOKUP($B195,_tbl!$A:$E,O$2,0)) -> Central | P195: =IF($B195="","",VLOOKUP($B195,_tbl!$A:$E,P$2,0)) -> Rural | Q195: =IF($B195="","",VLOOKUP($B195,_tbl!$A:$E,Q$2,0)) -> Respiratory | S195: 0.0002410943731 | T195: 0.0001206013283
B196: all_m_Central Rural respiratory.csv | C196: 60-64 | D196: 0.000471724926 | E196: 0.0004386136803 | F196: 0.0003886255032 | G196: 0.0003512493679 | H196: 0.0003102245713 | I196: 0.0002738033349 | J196: 0.0002371487218 | K196: 0.0002025637678 | L196: 0.0001687190322 | M196: 0.0001362679045 | N196: =IF($B196="","",VLOOKUP($B196,_tbl!$A:$E,N$2,0)) -> Male | O196: =IF($B196="","",VLOOKUP($B196,_tbl!$A:$E,O$2,0)) -> Central | P196: =IF($B196="","",VLOOKUP($B196,_tbl!$A:$E,P$2,0)) -> Rural | Q196: =IF($B196="","",VLOOKUP($B196,_tbl!$A:$E,Q$2,0)) -> Respiratory | S196: 0.000471724926 | T196: 0.0001362679045
B197: all_m_Central Rural respiratory.csv | C197: 65-69 | D197: 0.001033841473 | E197: 0.0009549683608 | F197: 0.0008361334058 | G197: 0.0007446425203 | H197: 0.0006443956002 | I197: 0.0005540773674 | J197: 0.000463395766 | K197: 0.0003772469707 | L197: 0.0002930409748 | M197: 0.0002119590651 | N197: =IF($B197="","",VLOOKUP($B197,_tbl!$A:$E,N$2,0)) -> Male | O197: =IF($B197="","",VLOOKUP($B197,_tbl!$A:$E,O$2,0)) -> Central | P197: =IF($B197="","",VLOOKUP($B197,_tbl!$A:$E,P$2,0)) -> Rural | Q197: =IF($B197="","",VLOOKUP($B197,_tbl!$A:$E,Q$2,0)) -> Respiratory | S197: 0.001033841473 | T197: 0.0002119590651
B198: all_m_Central Rural respiratory.csv | C198: 70-74 | D198: 0.003002537022 | E198: 0.002901103905 | F198: 0.0027283307 | G198: 0.002604902465 | H198: 0.002466152473 | I198: 0.002345831778 | J198: 0.002225507982 | K198: 0.002114467694 | L198: 0.002007315107 | M198: 0.001906469049 | N198: =IF($B198="","",VLOOKUP($B198,_tbl!$A:$E,N$2,0)) -> Male | O198: =IF($B198="","",VLOOKUP($B198,_tbl!$A:$E,O$2,0)) -> Central | P198: =IF($B198="","",VLOOKUP($B198,_tbl!$A:$E,P$2,0)) -> Rural | Q198: =IF($B198="","",VLOOKUP($B198,_tbl!$A:$E,Q$2,0)) -> Respiratory | S198: 0.003002537022 | T198: 0.001906469049
B199: all_m_Central Rural respiratory.csv | C199: 75-79 | D199: 0.006375993817 | E199: 0.006164448166 | F199: 0.005803805427 | G199: 0.005545911185 | H199: 0.005255737197 | I199: 0.005003865244 | J199: 0.004751751652 | K199: 0.004518869912 | L199: 0.004293930829 | M199: 0.004082031245 | N199: =IF($B199="","",VLOOKUP($B199,_tbl!$A:$E,N$2,0)) -> Male | O199: =IF($B199="","",VLOOKUP($B199,_tbl!$A:$E,O$2,0)) -> Central | P199: =IF($B199="","",VLOOKUP($B199,_tbl!$A:$E,P$2,0)) -> Rural | Q199: =IF($B199="","",VLOOKUP($B199,_tbl!$A:$E,Q$2,0)) -> Respiratory | S199: 0.006375993817 | T199: 0.004082031245
B200: all_m_Central Rural respiratory.csv | C200: 80-84 | D200: 0.01213996139 | E200: 0.01136648397 | F200: 0.01039191544 | G200: 0.009640318823 | H200: 0.008882764972 | I200: 0.008224709944 | J200: 0.007589185205 | K200: 0.006994392454 | L200: 0.006411227115 | M200: 0.005841975587 | N200: =IF($B200="","",VLOOKUP($B200,_tbl!$A:$E,N$2,0)) -> Male | O200: =IF($B200="","",VLOOKUP($B200,_tbl!$A:$E,O$2,0)) -> Central | P200: =IF($B200="","",VLOOKUP($B200,_tbl!$A:$E,P$2,0)) -> Rural | Q200: =IF($B200="","",VLOOKUP($B200,_tbl!$A:$E,Q$2,0)) -> Respiratory | S200: 0.01213996139 | T200: 0.005841975587
... 2601 more rows

Sheet notes (hidden)
B3: Number of files | C3: 140
B5: List of Files
B6: all_m_Central Rural cancer.csv
B7: all_m_Central Rural circulatory.csv
B8: all_m_Central Rural congenital.csv
B9: all_m_Central Rural diabetes.csv
B10: all_m_Central Rural digestive.csv
B11: all_m_Central Rural external.csv
B12: all_m_Central Rural infectious.csv
B13: all_m_Central Rural mental.csv
B14: all_m_Central Rural other.csv
B15: all_m_Central Rural respiratory.csv
B16: all_m_Central Rural.csv
B17: all_m_Central Urban cancer.csv
B18: all_m_Central Urban circulatory.csv
B19: all_m_Central Urban congenital.csv
B20: all_m_Central Urban diabetes.csv
B21: all_m_Central Urban digestive.csv
B22: all_m_Central Urban external.csv
B23: all_m_Central Urban infectious.csv
B24: all_m_Central Urban mental.csv
B25: all_m_Central Urban other.csv
B26: all_m_Central Urban respiratory.csv
B27: all_m_Central Urban.csv
B28: all_m_Central.csv
B29: all_m_East Rural cancer.csv
B30: all_m_East Rural circulatory.csv
B31: all_m_East Rural congenital.csv
B32: all_m_East Rural diabetes.csv
B33: all_m_East Rural digestive.csv
B34: all_m_East Rural external.csv
B35: all_m_East Rural infectious.csv
B36: all_m_East Rural mental.csv
B37: all_m_East Rural other.csv
B38: all_m_East Rural respiratory.csv
B39: all_m_East Rural.csv
B40: all_m_East Urban cancer.csv
B41: all_m_East Urban circulatory.csv
B42: all_m_East Urban congenital.csv
B43: all_m_East Urban diabetes.csv
B44: all_m_East Urban digestive.csv
B45: all_m_East Urban external.csv
B46: all_m_East Urban infectious.csv
B47: all_m_East Urban mental.csv
B48: all_m_East Urban other.csv
B49: all_m_East Urban respiratory.csv
B50: all_m_East Urban.csv
B51: all_m_East.csv
B52: all_m_Total.csv
B53: all_m_West Rural cancer.csv
B54: all_m_West Rural circulatory.csv
B55: all_m_West Rural congenital.csv
B56: all_m_West Rural diabetes.csv
B57: all_m_West Rural digestive.csv
B58: all_m_West Rural external.csv
B59: all_m_West Rural infectious.csv
B60: all_m_West Rural mental.csv
B61: all_m_West Rural other.csv
B62: all_m_West Rural respiratory.csv
B63: all_m_West Rural.csv
B64: all_m_West Urban cancer.csv
B65: all_m_West Urban circulatory.csv
B66: all_m_West Urban congenital.csv
B67: all_m_West Urban diabetes.csv
B68: all_m_West Urban digestive.csv
B69: all_m_West Urban external.csv
B70: all_m_West Urban infectious.csv
B71: all_m_West Urban mental.csv
B72: all_m_West Urban other.csv
B73: all_m_West Urban respiratory.csv
B74: all_m_West Urban.csv
B75: all_m_West.csv
B76: all_f_Central Rural cancer.csv
B77: all_f_Central Rural circulatory.csv
B78: all_f_Central Rural congenital.csv
B79: all_f_Central Rural diabetes.csv
B80: all_f_Central Rural digestive.csv
B81: all_f_Central Rural external.csv
B82: all_f_Central Rural infectious.csv
B83: all_f_Central Rural mental.csv
B84: all_f_Central Rural other.csv
B85: all_f_Central Rural respiratory.csv
B86: all_f_Central Rural.csv
B87: all_f_Central Urban cancer.csv
B88: all_f_Central Urban circulatory.csv
B89: all_f_Central Urban congenital.csv
B90: all_f_Central Urban diabetes.csv
B91: all_f_Central Urban digestive.csv
B92: all_f_Central Urban external.csv
B93: all_f_Central Urban infectious.csv
B94: all_f_Central Urban mental.csv
B95: all_f_Central Urban other.csv
B96: all_f_Central Urban respiratory.csv
B97: all_f_Central Urban.csv
B98: all_f_Central.csv
B99: all_f_East Rural cancer.csv
B100: all_f_East Rural circulatory.csv
B101: all_f_East Rural congenital.csv
B102: all_f_East Rural diabetes.csv
B103: all_f_East Rural digestive.csv
B104: all_f_East Rural external.csv
B105: all_f_East Rural infectious.csv
B106: all_f_East Rural mental.csv
B107: all_f_East Rural other.csv
B108: all_f_East Rural respiratory.csv
B109: all_f_East Rural.csv
B110: all_f_East Urban cancer.csv
B111: all_f_East Urban circulatory.csv
B112: all_f_East Urban congenital.csv
B113: all_f_East Urban diabetes.csv
B114: all_f_East Urban digestive.csv
B115: all_f_East Urban external.csv
B116: all_f_East Urban infectious.csv
B117: all_f_East Urban mental.csv
B118: all_f_East Urban other.csv
B119: all_f_East Urban respiratory.csv
B120: all_f_East Urban.csv
B121: all_f_East.csv
B122: all_f_Total.csv
B123: all_f_West Rural cancer.csv
B124: all_f_West Rural circulatory.csv
B125: all_f_West Rural congenital.csv
B126: all_f_West Rural diabetes.csv
B127: all_f_West Rural digestive.csv
B128: all_f_West Rural external.csv
B129: all_f_West Rural infectious.csv
B130: all_f_West Rural mental.csv
B131: all_f_West Rural other.csv
B132: all_f_West Rural respiratory.csv
B133: all_f_West Rural.csv
B134: all_f_West Urban cancer.csv
B135: all_f_West Urban circulatory.csv
B136: all_f_West Urban congenital.csv
B137: all_f_West Urban diabetes.csv
B138: all_f_West Urban digestive.csv
B139: all_f_West Urban external.csv
B140: all_f_West Urban infectious.csv
B141: all_f_West Urban mental.csv
B142: all_f_West Urban other.csv
B143: all_f_West Urban respiratory.csv
B144: all_f_West Urban.csv
B145: all_f_West.csv

Sheet _tbl (hidden)
A2: LIST USED IN VIEW "ALL" | G2: LIST USED IN VIEW "Gender" | K2: LIST USED IN VIEW "Region" | O2: LIST USED IN VIEW "Area"
A3: File Name | B3: Gender | C3: Region | D3: Area | E3: Cause | G3: Region | H3: Area | I3: Cause | K3: Gender | L3: Area | M3: Cause | O3: Gender | P3: Region | Q3: Cause | T3: Gender | U3: Region | V3: Area | X3: Cause | Y3: year
A4: all_m_Central Rural cancer.csv | B4: Male | C4: Central | D4: Rural | E4: Cancer | G4: Central | H4: Rural | I4: Cancer | K4: Male | L4: Rural | M4: Cancer | O4: Male | P4: Central | Q4: Cancer | T4: Male | U4: Total | V4: Total | X4: Total | Y4: 2020
A5: all_m_Central Rural circulatory.csv | B5: Male | C5: Central | D5: Rural | E5: Circulatory | G5: Central | H5: Rural | I5: Circulatory | K5: Male | L5: Rural | M5: Circulatory | O5: Male | P5: Central | Q5: Circulatory | T5: Female | U5: Central | V5: Rural | X5: Cancer | Y5: 2021
A6: all_m_Central Rural congenital.csv | B6: Male | C6: Central | D6: Rural | E6: Congenital | G6: Central | H6: Rural | I6: Congenital | K6: Male | L6: Rural | M6: Congenital | O6: Male | P6: Central | Q6: Congenital | U6: East | V6: Urban | X6: Circulatory | Y6: 2022
A7: all_m_Central Rural diabetes.csv | B7: Male | C7: Central | D7: Rural | E7: Diabetes | G7: Central | H7: Rural | I7: Diabetes | K7: Male | L7: Rural | M7: Diabetes | O7: Male | P7: Central | Q7: Diabetes | U7: West | X7: Congenital | Y7: 2023
A8: all_m_Central Rural digestive.csv | B8: Male | C8: Central | D8: Rural | E8: Digestive | G8: Central | H8: Rural | I8: Digestive | K8: Male | L8: Rural | M8: Digestive | O8: Male | P8: Central | Q8: Digestive | X8: Diabetes | Y8: 2024
A9: all_m_Central Rural external.csv | B9: Male | C9: Central | D9: Rural | E9: External | G9: Central | H9: Rural | I9: External | K9: Male | L9: Rural | M9: External | O9: Male | P9: Central | Q9: External | X9: Digestive | Y9: 2025
A10: all_m_Central Rural infectious.csv | B10: Male | C10: Central | D10: Rural | E10: Infectious | G10: Central | H10: Rural | I10: Infectious | K10: Male | L10: Rural | M10: Infectious | O10: Male | P10: Central | Q10: Infectious | X10: External | Y10: 2026
A11: all_m_Central Rural mental.csv | B11: Male | C11: Central | D11: Rural | E11: Mental | G11: Central | H11: Rural | I11: Mental | K11: Male | L11: Rural | M11: Mental | O11: Male | P11: Central | Q11: Mental | X11: Infectious | Y11: 2027
A12: all_m_Central Rural other.csv | B12: Male | C12: Central | D12: Rural | E12: Other | G12: Central | H12: Rural | I12: Other | K12: Male | L12: Rural | M12: Other | O12: Male | P12: Central | Q12: Other | X12: Mental | Y12: 2028
A13: all_m_Central Rural respiratory.csv | B13: Male | C13: Central | D13: Rural | E13: Respiratory | G13: Central | H13: Rural | I13: Respiratory | K13: Male | L13: Rural | M13: Respiratory | O13: Male | P13: Central | Q13: Respiratory | X13: Other | Y13: 2029
A14: all_m_Central Rural.csv | B14: Male | C14: Central | D14: Rural | E14: Total | G14: Central | H14: Rural | I14: Total | K14: Male | L14: Rural | M14: Total | O14: Male | P14: Central | Q14: Total | X14: Respiratory
A15: all_m_Central Urban cancer.csv | B15: Male | C15: Central | D15: Urban | E15: Cancer | G15: Central | H15: Urban | I15: Cancer | K15: Male | L15: Urban | M15: Cancer | O15: Male | P15: East | Q15: Cancer
A16: all_m_Central Urban circulatory.csv | B16: Male | C16: Central | D16: Urban | E16: Circulatory | G16: Central | H16: Urban | I16: Circulatory | K16: Male | L16: Urban | M16: Circulatory | O16: Male | P16: East | Q16: Circulatory
A17: all_m_Central Urban congenital.csv | B17: Male | C17: Central | D17: Urban | E17: Congenital | G17: Central | H17: Urban | I17: Congenital | K17: Male | L17: Urban | M17: Congenital | O17: Male | P17: East | Q17: Congenital
A18: all_m_Central Urban diabetes.csv | B18: Male | C18: Central | D18: Urban | E18: Diabetes | G18: Central | H18: Urban | I18: Diabetes | K18: Male | L18: Urban | M18: Diabetes | O18: Male | P18: East | Q18: Diabetes
A19: all_m_Central Urban digestive.csv | B19: Male | C19: Central | D19: Urban | E19: Digestive | G19: Central | H19: Urban | I19: Digestive | K19: Male | L19: Urban | M19: Digestive | O19: Male | P19: East | Q19: Digestive
A20: all_m_Central Urban external.csv | B20: Male | C20: Central | D20: Urban | E20: External | G20: Central | H20: Urban | I20: External | K20: Male | L20: Urban | M20: External | O20: Male | P20: East | Q20: External
A21: all_m_Central Urban infectious.csv | B21: Male | C21: Central | D21: Urban | E21: Infectious | G21: Central | H21: Urban | I21: Infectious | K21: Male | L21: Urban | M21: Infectious | O21: Male | P21: East | Q21: Infectious
A22: all_m_Central Urban mental.csv | B22: Male | C22: Central | D22: Urban | E22: Mental | G22: Central | H22: Urban | I22: Mental | K22: Male | L22: Urban | M22: Mental | O22: Male | P22: East | Q22: Mental
A23: all_m_Central Urban other.csv | B23: Male | C23: Central | D23: Urban | E23: Other | G23: Central | H23: Urban | I23: Other | K23: Male | L23: Urban | M23: Other | O23: Male | P23: East | Q23: Other
A24: all_m_Central Urban respiratory.csv | B24: Male | C24: Central | D24: Urban | E24: Respiratory | G24: Central | H24: Urban | I24: Respiratory | K24: Male | L24: Urban | M24: Respiratory | O24: Male | P24: East | Q24: Respiratory
A25: all_m_Central Urban.csv | B25: Male | C25: Central | D25: Urban | E25: Total | G25: Central | H25: Urban | I25: Total | K25: Male | L25: Urban | M25: Total | O25: Male | P25: East | Q25: Total
A26: all_m_Central.csv | B26: Male | C26: Central | D26: Total | E26: Total | G26: Central | H26: Total | I26: Total | K26: Male | L26: Total | M26: Total | O26: Male | P26: West | Q26: Cancer
A27: all_m_East Rural cancer.csv | B27: Male | C27: East | D27: Rural | E27: Cancer | G27: East | H27: Rural | I27: Cancer | K27: Female | L27: Rural | M27: Cancer | O27: Male | P27: West | Q27: Circulatory
A28: all_m_East Rural circulatory.csv | B28: Male | C28: East | D28: Rural | E28: Circulatory | G28: East | H28: Rural | I28: Circulatory | K28: Female | L28: Rural | M28: Circulatory | O28: Male | P28: West | Q28: Congenital
A29: all_m_East Rural congenital.csv | B29: Male | C29: East | D29: Rural | E29: Congenital | G29: East | H29: Rural | I29: Congenital | K29: Female | L29: Rural | M29: Congenital | O29: Male | P29: West | Q29: Diabetes
A30: all_m_East Rural diabetes.csv | B30: Male | C30: East | D30: Rural | E30: Diabetes | G30: East | H30: Rural | I30: Diabetes | K30: Female | L30: Rural | M30: Diabetes | O30: Male | P30: West | Q30: Digestive
A31: all_m_East Rural digestive.csv | B31: Male | C31: East | D31: Rural | E31: Digestive | G31: East | H31: Rural | I31: Digestive | K31: Female | L31: Rural | M31: Digestive | O31: Male | P31: West | Q31: External
A32: all_m_East Rural external.csv | B32: Male | C32: East | D32: Rural | E32: External | G32: East | H32: Rural | I32: External | K32: Female | L32: Rural | M32: External | O32: Male | P32: West | Q32: Infectious
A33: all_m_East Rural infectious.csv | B33: Male | C33: East | D33: Rural | E33: Infectious | G33: East | H33: Rural | I33: Infectious | K33: Female | L33: Rural | M33: Infectious | O33: Male | P33: West | Q33: Mental
A34: all_m_East Rural mental.csv | B34: Male | C34: East | D34: Rural | E34: Mental | G34: East | H34: Rural | I34: Mental | K34: Female | L34: Rural | M34: Mental | O34: Male | P34: West | Q34: Other
A35: all_m_East Rural other.csv | B35: Male | C35: East | D35: Rural | E35: Other | G35: East | H35: Rural | I35: Other | K35: Female | L35: Rural | M35: Other | O35: Male | P35: West | Q35: Respiratory
A36: all_m_East Rural respiratory.csv | B36: Male | C36: East | D36: Rural | E36: Respiratory | G36: East | H36: Rural | I36: Respiratory | K36: Female | L36: Rural | M36: Respiratory | O36: Male | P36: West | Q36: Total
A37: all_m_East Rural.csv | B37: Male | C37: East | D37: Rural | E37: Total | G37: East | H37: Rural | I37: Total | K37: Female | L37: Rural | M37: Total | O37: Female | P37: Central | Q37: Cancer
A38: all_m_East Urban cancer.csv | B38: Male | C38: East | D38: Urban | E38: Cancer | G38: East | H38: Urban | I38: Cancer | K38: Female | L38: Urban | M38: Cancer | O38: Female | P38: Central | Q38: Circulatory
A39: all_m_East Urban circulatory.csv | B39: Male | C39: East | D39: Urban | E39: Circulatory | G39: East | H39: Urban | I39: Circulatory | K39: Female | L39: Urban | M39: Circulatory | O39: Female | P39: Central | Q39: Congenital
A40: all_m_East Urban congenital.csv | B40: Male | C40: East | D40: Urban | E40: Congenital | G40: East | H40: Urban | I40: Congenital | K40: Female | L40: Urban | M40: Congenital | O40: Female | P40: Central | Q40: Diabetes
A41: all_m_East Urban diabetes.csv | B41: Male | C41: East | D41: Urban | E41: Diabetes | G41: East | H41: Urban | I41: Diabetes | K41: Female | L41: Urban | M41: Diabetes | O41: Female | P41: Central | Q41: Digestive
A42: all_m_East Urban digestive.csv | B42: Male | C42: East | D42: Urban | E42: Digestive | G42: East | H42: Urban | I42: Digestive | K42: Female | L42: Urban | M42: Digestive | O42: Female | P42: Central | Q42: External
A43: all_m_East Urban external.csv | B43: Male | C43: East | D43: Urban | E43: External | G43: East | H43: Urban | I43: External | K43: Female | L43: Urban | M43: External | O43: Female | P43: Central | Q43: Infectious
A44: all_m_East Urban infectious.csv | B44: Male | C44: East | D44: Urban | E44: Infectious | G44: East | H44: Urban | I44: Infectious | K44: Female | L44: Urban | M44: Infectious | O44: Female | P44: Central | Q44: Mental
A45: all_m_East Urban mental.csv | B45: Male | C45: East | D45: Urban | E45: Mental | G45: East | H45: Urban | I45: Mental | K45: Female | L45: Urban | M45: Mental | O45: Female | P45: Central | Q45: Other
A46: all_m_East Urban other.csv | B46: Male | C46: East | D46: Urban | E46: Other | G46: East | H46: Urban | I46: Other | K46: Female | L46: Urban | M46: Other | O46: Female | P46: Central | Q46: Respiratory
A47: all_m_East Urban respiratory.csv | B47: Male | C47: East | D47: Urban | E47: Respiratory | G47: East | H47: Urban | I47: Respiratory | K47: Female | L47: Urban | M47: Respiratory | O47: Female | P47: Central | Q47: Total
A48: all_m_East Urban.csv | B48: Male | C48: East | D48: Urban | E48: Total | G48: East | H48: Urban | I48: Total | K48: Female | L48: Urban | M48: Total | O48: Female | P48: East | Q48: Cancer
A49: all_m_East.csv | B49: Male | C49: East | D49: Total | E49: Total | G49: East | H49: Total | I49: Total | K49: Female | L49: Total | M49: Total | O49: Female | P49: East | Q49: Circulatory
A50: all_m_Total.csv | B50: Male | C50: Total | D50: Total | E50: Total | G50: Total | H50: Total | I50: Total | O50: Female | P50: East | Q50: Congenital
A51: all_m_West Rural cancer.csv | B51: Male | C51: West | D51: Rural | E51: Cancer | G51: West | H51: Rural | I51: Cancer | O51: Female | P51: East | Q51: Diabetes
A52: all_m_West Rural circulatory.csv | B52: Male | C52: West | D52: Rural | E52: Circulatory | G52: West | H52: Rural | I52: Circulatory | O52: Female | P52: East | Q52: Digestive
A53: all_m_West Rural congenital.csv | B53: Male | C53: West | D53: Rural | E53: Congenital | G53: West | H53: Rural | I53: Congenital | O53: Female | P53: East | Q53: External
A54: all_m_West Rural diabetes.csv | B54: Male | C54: West | D54: Rural | E54: Diabetes | G54: West | H54: Rural | I54: Diabetes | O54: Female | P54: East | Q54: Infectious
A55: all_m_West Rural digestive.csv | B55: Male | C55: West | D55: Rural | E55: Digestive | G55: West | H55: Rural | I55: Digestive | O55: Female | P55: East | Q55: Mental
A56: all_m_West Rural external.csv | B56: Male | C56: West | D56: Rural | E56: External | G56: West | H56: Rural | I56: External | O56: Female | P56: East | Q56: Other
A57: all_m_West Rural infectious.csv | B57: Male | C57: West | D57: Rural | E57: Infectious | G57: West | H57: Rural | I57: Infectious | O57: Female | P57: East | Q57: Respiratory
A58: all_m_West Rural mental.csv | B58: Male | C58: West | D58: Rural | E58: Mental | G58: West | H58: Rural | I58: Mental | O58: Female | P58: East | Q58: Total
A59: all_m_West Rural other.csv | B59: Male | C59: West | D59: Rural | E59: Other | G59: West | H59: Rural | I59: Other | O59: Female | P59: West | Q59: Cancer
A60: all_m_West Rural respiratory.csv | B60: Male | C60: West | D60: Rural | E60: Respiratory | G60: West | H60: Rural | I60: Respiratory | O60: Female | P60: West | Q60: Circulatory
A61: all_m_West Rural.csv | B61: Male | C61: West | D61: Rural | E61: Total | G61: West | H61: Rural | I61: Total | O61: Female | P61: West | Q61: Congenital
A62: all_m_West Urban cancer.csv | B62: Male | C62: West | D62: Urban | E62: Cancer | G62: West | H62: Urban | I62: Cancer | O62: Female | P62: West | Q62: Diabetes
A63: all_m_West Urban circulatory.csv | B63: Male | C63: West | D63: Urban | E63: Circulatory | G63: West | H63: Urban | I63: Circulatory | O63: Female | P63: West | Q63: Digestive
A64: all_m_West Urban congenital.csv | B64: Male | C64: West | D64: Urban | E64: Congenital | G64: West | H64: Urban | I64: Congenital | O64: Female | P64: West | Q64: External
A65: all_m_West Urban diabetes.csv | B65: Male | C65: West | D65: Urban | E65: Diabetes | G65: West | H65: Urban | I65: Diabetes | O65: Female | P65: West | Q65: Infectious
A66: all_m_West Urban digestive.csv | B66: Male | C66: West | D66: Urban | E66: Digestive | G66: West | H66: Urban | I66: Digestive | O66: Female | P66: West | Q66: Mental
A67: all_m_West Urban external.csv | B67: Male | C67: West | D67: Urban | E67: External | G67: West | H67: Urban | I67: External | O67: Female | P67: West | Q67: Other
A68: all_m_West Urban infectious.csv | B68: Male | C68: West | D68: Urban | E68: Infectious | G68: West | H68: Urban | I68: Infectious | O68: Female | P68: West | Q68: Respiratory
A69: all_m_West Urban mental.csv | B69: Male | C69: West | D69: Urban | E69: Mental | G69: West | H69: Urban | I69: Mental | O69: Female | P69: West | Q69: Total
A70: all_m_West Urban other.csv | B70: Male | C70: West | D70: Urban | E70: Other | G70: West | H70: Urban | I70: Other
A71: all_m_West Urban respiratory.csv | B71: Male | C71: West | D71: Urban | E71: Respiratory | G71: West | H71: Urban | I71: Respiratory
A72: all_m_West Urban.csv | B72: Male | C72: West | D72: Urban | E72: Total | G72: West | H72: Urban | I72: Total
A73: all_m_West.csv | B73: Male | C73: West | D73: Total | E73: Total | G73: West | H73: Total | I73: Total
A74: all_f_Central Rural cancer.csv | B74: Female | C74: Central | D74: Rural | E74: Cancer
A75: all_f_Central Rural circulatory.csv | B75: Female | C75: Central | D75: Rural | E75: Circulatory
A76: all_f_Central Rural congenital.csv | B76: Female | C76: Central | D76: Rural | E76: Congenital
A77: all_f_Central Rural diabetes.csv | B77: Female | C77: Central | D77: Rural | E77: Diabetes
A78: all_f_Central Rural digestive.csv | B78: Female | C78: Central | D78: Rural | E78: Digestive
A79: all_f_Central Rural external.csv | B79: Female | C79: Central | D79: Rural | E79: External
A80: all_f_Central Rural infectious.csv | B80: Female | C80: Central | D80: Rural | E80: Infectious
A81: all_f_Central Rural mental.csv | B81: Female | C81: Central | D81: Rural | E81: Mental
A82: all_f_Central Rural other.csv | B82: Female | C82: Central | D82: Rural | E82: Other
A83: all_f_Central Rural respiratory.csv | B83: Female | C83: Central | D83: Rural | E83: Respiratory
A84: all_f_Central Rural.csv | B84: Female | C84: Central | D84: Rural | E84: Total
A85: all_f_Central Urban cancer.csv | B85: Female | C85: Central | D85: Urban | E85: Cancer
A86: all_f_Central Urban circulatory.csv | B86: Female | C86: Central | D86: Urban | E86: Circulatory
A87: all_f_Central Urban congenital.csv | B87: Female | C87: Central | D87: Urban | E87: Congenital
A88: all_f_Central Urban diabetes.csv | B88: Female | C88: Central | D88: Urban | E88: Diabetes
A89: all_f_Central Urban digestive.csv | B89: Female | C89: Central | D89: Urban | E89: Digestive
A90: all_f_Central Urban external.csv | B90: Female | C90: Central | D90: Urban | E90: External
A91: all_f_Central Urban infectious.csv | B91: Female | C91: Central | D91: Urban | E91: Infectious
A92: all_f_Central Urban mental.csv | B92: Female | C92: Central | D92: Urban | E92: Mental
A93: all_f_Central Urban other.csv | B93: Female | C93: Central | D93: Urban | E93: Other
A94: all_f_Central Urban respiratory.csv | B94: Female | C94: Central | D94: Urban | E94: Respiratory
A95: all_f_Central Urban.csv | B95: Female | C95: Central | D95: Urban | E95: Total
A96: all_f_Central.csv | B96: Female | C96: Central | D96: Total | E96: Total
A97: all_f_East Rural cancer.csv | B97: Female | C97: East | D97: Rural | E97: Cancer
A98: all_f_East Rural circulatory.csv | B98: Female | C98: East | D98: Rural | E98: Circulatory
A99: all_f_East Rural congenital.csv | B99: Female | C99: East | D99: Rural | E99: Congenital
A100: all_f_East Rural diabetes.csv | B100: Female | C100: East | D100: Rural | E100: Diabetes
A101: all_f_East Rural digestive.csv | B101: Female | C101: East | D101: Rural | E101: Digestive
A102: all_f_East Rural external.csv | B102: Female | C102: East | D102: Rural | E102: External
A103: all_f_East Rural infectious.csv | B103: Female | C103: East | D103: Rural | E103: Infectious
A104: all_f_East Rural mental.csv | B104: Female | C104: East | D104: Rural | E104: Mental
A105: all_f_East Rural other.csv | B105: Female | C105: East | D105: Rural | E105: Other
A106: all_f_East Rural respiratory.csv | B106: Female | C106: East | D106: Rural | E106: Respiratory
A107: all_f_East Rural.csv | B107: Female | C107: East | D107: Rural | E107: Total
A108: all_f_East Urban cancer.csv | B108: Female | C108: East | D108: Urban | E108: Cancer
A109: all_f_East Urban circulatory.csv | B109: Female | C109: East | D109: Urban | E109: Circulatory
A110: all_f_East Urban congenital.csv | B110: Female | C110: East | D110: Urban | E110: Congenital
A111: all_f_East Urban diabetes.csv | B111: Female | C111: East | D111: Urban | E111: Diabetes
A112: all_f_East Urban digestive.csv | B112: Female | C112: East | D112: Urban | E112: Digestive
A113: all_f_East Urban external.csv | B113: Female | C113: East | D113: Urban | E113: External
A114: all_f_East Urban infectious.csv | B114: Female | C114: East | D114: Urban | E114: Infectious
A115: all_f_East Urban mental.csv | B115: Female | C115: East | D115: Urban | E115: Mental
A116: all_f_East Urban other.csv | B116: Female | C116: East | D116: Urban | E116: Other
A117: all_f_East Urban respiratory.csv | B117: Female | C117: East | D117: Urban | E117: Respiratory
A118: all_f_East Urban.csv | B118: Female | C118: East | D118: Urban | E118: Total
A119: all_f_East.csv | B119: Female | C119: East | D119: Total | E119: Total
A120: all_f_Total.csv | B120: Female | C120: Total | D120: Total | E120: Total
A121: all_f_West Rural cancer.csv | B121: Female | C121: West | D121: Rural | E121: Cancer
A122: all_f_West Rural circulatory.csv | B122: Female | C122: West | D122: Rural | E122: Circulatory
A123: all_f_West Rural congenital.csv | B123: Female | C123: West | D123: Rural | E123: Congenital
A124: all_f_West Rural diabetes.csv | B124: Female | C124: West | D124: Rural | E124: Diabetes
A125: all_f_West Rural digestive.csv | B125: Female | C125: West | D125: Rural | E125: Digestive
A126: all_f_West Rural external.csv | B126: Female | C126: West | D126: Rural | E126: External
A127: all_f_West Rural infectious.csv | B127: Female | C127: West | D127: Rural | E127: Infectious
A128: all_f_West Rural mental.csv | B128: Female | C128: West | D128: Rural | E128: Mental
A129: all_f_West Rural other.csv | B129: Female | C129: West | D129: Rural | E129: Other
A130: all_f_West Rural respiratory.csv | B130: Female | C130: West | D130: Rural | E130: Respiratory
A131: all_f_West Rural.csv | B131: Female | C131: West | D131: Rural | E131: Total
A132: all_f_West Urban cancer.csv | B132: Female | C132: West | D132: Urban | E132: Cancer
A133: all_f_West Urban circulatory.csv | B133: Female | C133: West | D133: Urban | E133: Circulatory
A134: all_f_West Urban congenital.csv | B134: Female | C134: West | D134: Urban | E134: Congenital
A135: all_f_West Urban diabetes.csv | B135: Female | C135: West | D135: Urban | E135: Diabetes
A136: all_f_West Urban digestive.csv | B136: Female | C136: West | D136: Urban | E136: Digestive
A137: all_f_West Urban external.csv | B137: Female | C137: West | D137: Urban | E137: External
A138: all_f_West Urban infectious.csv | B138: Female | C138: West | D138: Urban | E138: Infectious
A139: all_f_West Urban mental.csv | B139: Female | C139: West | D139: Urban | E139: Mental
A140: all_f_West Urban other.csv | B140: Female | C140: West | D140: Urban | E140: Other
A141: all_f_West Urban respiratory.csv | B141: Female | C141: West | D141: Urban | E141: Respiratory
A142: all_f_West Urban.csv | B142: Female | C142: West | D142: Urban | E142: Total
A143: all_f_West.csv | B143: Female | C143: West | D143: Total | E143: Total
